Workbook

Sheet Pres & Prop Rev (hidden)
B2: =IF(Base1_Billing2=2,"BILLED","") -> 
A4: WORK PAPER | D4: RESIDENTIAL | E4: GENERAL SVC. | F4: LG. GEN. SVC. | G4: EX LG GEN SVC | H4: PUMPING | I4: ST & AREA LTG
A5: REFERENCE | C5: TOTAL | D5: SCHEDULE 1 | E5: SCH. 11,12 | F5: SCH. 21,22 | G5: SCHEDULE 25 | H5: SCH. 30, 31, 32 | I5: SCH. 41-48 | P5: Print Header for all printed pages on this worksheet:
B6: PRESENT BILL DETERMINANTS | L6: Calculate all revenue exhibits using ____ rates: | P6: ="AVISTA UTILITIES WASHINGTON ELECTRIC PRO FORMA REVENUE UNDER PRESENT AND PROPOSED "&N9&" RATES 12 MONTHS ENDED DECEMBER 31, 2011" -> AVISTA UTILITIES WASHINGTON ELECTRIC PRO FORMA REVENUE UNDER PRESENT AND PROPOSED BASE TARIFF RATES 12 MONTHS ENDED DECEMBER 31, 2011
B7: KILOWATT HOURS (KWHS) | K7: 1) | L7: BASE TARIFF
A8: PDE-E-10 | B8: BLOCK 1 | D8: ='Bill Determ'!$B$9 -> 1258409693 | E8: ='Bill Determ'!$B$17 -> 376282319 | F8: ='Bill Determ'!$B$28 -> 1340751925 | G8: ='Bill Determ'!$B$37 -> 132000000 | H8: =SUM('Bill Determ'!$B$41:$C$41) -> 41693555 | L8: or | N8: 1
A9: PDE-E-10 | B9: BLOCK 2 | D9: ='Bill Determ'!$C$9 -> 723159492 | E9: ='Bill Determ'!$C$17 -> 111947923 | F9: ='Bill Determ'!$C$28 -> 147736411 | G9: ='Bill Determ'!$C$37 -> 534573579 | H9: ='Bill Determ'!$D$43 -> 85546282 | K9: 2) | L9: BILLING | N9: =CHOOSE(Base1_Billing2,L7,L9) -> BASE TARIFF
A10: PDE-E-10 | B10: BLOCK 3 | D10: ='Bill Determ'!$D$9 -> 440034579 | G10: ='Bill Determ'!$D$37 -> 396688780 | N10: =CHOOSE(Base1_Billing2,"Base","Billing") -> Base
B11: BLOCK 4
A12: PDE-E-22 | B12: STREET & AREA LIGHTS | I12: ='Bill Determ'!$B$69 -> 25886566
B14: SUBTOTAL | C14: =SUM(D14:I14) -> 5614711104 | D14: =SUM(D8:D12) -> 2421603764 | E14: 488230242 | F14: 1488488336 | G14: 1063262359 | H14: 127239837 | I14: 25886566
B17: SUBTOTAL | C17: =SUM(D17:I17) -> 5614711104 | D17: =D14+D15 -> 2421603764 | E17: =E14+E15 -> 488230242 | F17: 1488488336 | G17: 1063262359 | H17: 127239837 | I17: 25886566
A18: PDE-E-10 | B18: ADJUSTMENT TO ACTUAL | C18: =SUM(D18:I18) -> 1889666 | D18: ='Bill Determ'!$E$11 -> 3422058 | E18: ='Bill Determ'!$D$21 -> 1830176 | F18: ='Bill Determ'!$D$33 -> 32775 | G18: 0 | H18: ='Bill Determ'!$E$45 -> -3395343 | I18: 0
B20: TOTAL BEFORE ADJUSTMENT | C20: =SUM(D20:I20) -> 5616600770 | D20: =D17+D18 -> 2425025822 | E20: 490060418 | F20: 1488521111 | G20: 1063262359 | H20: 123844494 | I20: 25886566
A21: PDE-E-3 | B21: WEATHER & UNBILLED ADJ. KWHS | C21: =SUM(D21:I21) -> -41744515 | D21: =D142+D145 -> -34939612 | E21: -488235 | F21: -6670552 | G21: 0 | H21: 353884 | I21: =I142+I145 -> 0
B23: TOTAL PROFORMA KWHS | C23: =IF(ROUND(SUM(D23:I23),3)<>ROUND(SUM(C20:C21),3),#VALUE!,SUM(D23:I23)) -> 5574856255 | D23: =D20+D21 -> 2390086210 | E23: 489572183 | F23: 1481850559 | G23: 1063262359 | H23: 124198378 | I23: 25886566
A25: PDE-E-10 | B25: TOTAL BILLS | D25: ='Bill Determ'!$F$9 -> 2417371 | E25: ='Bill Determ'!$F$17 -> 339736 | F25: ='Bill Determ'!$F$28 -> 32183 | G25: ='Bill Determ'!$G$37 -> 264 | H25: ='Bill Determ'!$F$41 -> 28803
B26: MINIMUM BILLS
A27: PDE-E-10 | B27: EXCESS DEMAND | E27: ='Bill Determ'!$E$17 -> 230655 | F27: ='Bill Determ'!$E$28 -> 2667634 | G27: ='Bill Determ'!$F$37+'Bill Determ'!F38 -> 1258425
B29: PROPOSED BILL DETERMINANTS
B30: KILOWATT HOURS (KWHS)
B31: BLOCK 1 | D31: ='Bill Determ'!J9 -> 1545098943 | E31: ='Bill Determ'!J17 -> 376282319 | F31: ='Bill Determ'!J28 -> 1340751925 | G31: ='Bill Determ'!J37 -> 132000000 | H31: ='Bill Determ'!J41+'Bill Determ'!K41 -> 41693555 | I31: =I8 -> 0
B32: BLOCK 2 | D32: ='Bill Determ'!K9 -> 536148271 | E32: ='Bill Determ'!K17 -> 111947923 | F32: ='Bill Determ'!K28 -> 147736411 | G32: ='Bill Determ'!K37 -> 534573579 | H32: ='Bill Determ'!L43 -> 85546282 | I32: =I9 -> 0
B33: BLOCK 3 | D33: ='Bill Determ'!L9 -> 340356550 | E33: 0 | F33: 0 | G33: ='Bill Determ'!L37 -> 396688780 | H33: 0 | I33: 0
B34: BLOCK 4 | D34: 0 | E34: 0 | F34: 0 | G34: 0 | H34: 0 | I34: 0
B35: STREET & AREA LIGHTS | D35: 0 | E35: 0 | F35: 0 | G35: 0 | H35: 0 | I35: 25886566
B37: SUBTOTAL | C37: =SUM(D37:I37) -> 5614711104 | D37: =SUM(D31:D35) -> 2421603764 | E37: 488230242 | F37: 1488488336 | G37: 1063262359 | H37: 127239837 | I37: 25886566
C38: =SUM(D38:I38) -> 0 | D38: =D15 -> 0 | E38: =E15 -> 0 | F38: 0 | G38: 0 | H38: 0 | I38: 0
B40: SUBTOTAL | C40: =SUM(D40:I40) -> 5614711104 | D40: =D37+D38 -> 2421603764 | E40: 488230242 | F40: 1488488336 | G40: 1063262359 | H40: 127239837 | I40: 25886566
B41: ADJUSTMENT TO ACTUAL | C41: =SUM(D41:I41) -> 1889666 | D41: ='Bill Determ'!M11 -> 3422058 | E41: ='Bill Determ'!L21 -> 1830176 | F41: ='Bill Determ'!L33 -> 32775 | G41: =G18 -> 0 | H41: ='Bill Determ'!M45 -> -3395343 | I41: 0
B43: TOTAL BEFORE ADJUSTMENT | C43: =SUM(D43:I43) -> 5616600770 | D43: =D40+D41 -> 2425025822 | E43: 490060418 | F43: 1488521111 | G43: 1063262359 | H43: 123844494 | I43: 25886566
B44: WEATHER & UNBILLED ADJ. KWHS | C44: =SUM(D44:I44) -> -41744515 | D44: =D21 -> -34939612 | E44: -488235 | F44: -6670552 | G44: 0 | H44: 353884 | I44: 0
B46: TOTAL PROFORMA KWHS | C46: =IF(ROUND(SUM(D46:I46),3)<>ROUND(SUM(C43:C44),3),#VALUE!,SUM(D46:I46)) -> 5574856255 | D46: =D43+D44 -> 2390086210 | E46: 489572183 | F46: 1481850559 | G46: 1063262359 | H46: 124198378 | I46: 25886566
B48: TOTAL BILLS | D48: =D25 -> 2417371 | E48: =E25 -> 339736 | F48: =F25 -> 32183 | G48: =G25 -> 264 | H48: =H25 -> 28803
B49: MINIMUM BILLS
B50: EXCESS DEMAND | E50: =E27 -> 230655 | F50: =F27 -> 2667634 | G50: =G27 -> 1258425
D55: 1 | E55: 2 | F55: 3 | G55: 4 | H55: 5 | I55: 6 | L55: =SUMPRODUCT(--(ISBLANK(D55:I55))) -> 0
A56: WORK PAPER | D56: RESIDENTIAL | E56: GENERAL SVC. | F56: LG. GEN. SVC. | G56: EX LG GEN SVC | H56: PUMPING | I56: ST & AREA LTG | L56: ="selected in cell "&CELL("address",Base1_Billing2)&":" -> selected in cell $N$8:
A57: REFERENCE | C57: TOTAL | D57: SCHEDULE 1 | E57: SCH. 11,12 | F57: SCH. 21,22 | G57: SCHEDULE 25 | H57: SCH. 30, 31, 32 | I57: SCH. 41-48 | L57: =N10 -> Base
B58: PRESENT RATES | L58: ="Rates_"&$L$57&"_Present" -> Rates_Base_Present | N58: - range name where Present Rates table can be found
A59: PDE-E-23 | B59: BASIC CHARGE | D59: =INDEX(INDIRECT($L$58),$K59,D$55) -> 6 | E59: 12 | F59: 0 | G59: 0 | H59: 10 | I59: 0 | K59: 1 | L59: ="Rates_"&$L$57&"_Proposed" -> Rates_Base_Proposed | N59: - range name where Proposed Rates table can be found
B60: MONTHLY MINIMUM
A62: PDE-E-23 | B62: BLOCK 1 PER KWH | D62: =INDEX(INDIRECT($L$58),$K62,D$55) -> 6.914 | E62: 10.891 | F62: 6.819 | G62: 5.373 | H62: 9.114 | I62: 0 | K62: 2
A63: PDE-E-23 | B63: BLOCK 2 PER KWH | D63: 8.044 | E63: 8.002 | F63: 6.097 | G63: 4.834 | H63: 6.511 | I63: 0 | K63: 3
A64: PDE-E-23 | B64: BLOCK 3 PER KWH | D64: 9.429 | E64: 0 | F64: 0 | G64: 4.391 | H64: 0 | I64: 0 | K64: 4
B65: BLOCK 4 PER KWH | K65: 5
B67: ADJUST TO ACTUAL PER KWH | D67: =(D124-D111)/D14*100 -> 7.708455815 | E67: =(E124-E111-SUM(E117:E120))/E14*100 -> 10.22857166 | F67: =(F124-F111-SUM(F117:F120))/F14*100 -> 6.747339587 | H67: =(H124-H111-SUM(H117:H120))/H14*100 -> 7.363942961
A69: PDE-E-23 | B69: DEMAND BLOCK 1 | D69: =INDEX(INDIRECT($L$58),$K69,D$55) -> 0 | E69: 0 | F69: 400 | G69: 14000 | H69: 0 | I69: 0 | K69: 6
A70: PDE-E-23 | B70: DEMAND BLOCK 2 | D70: 0 | E70: 5.75 | F70: 5.25 | G70: 4.25 | H70: 0 | I70: 0 | K70: 7
B75: PROPOSED RATES
B76: BASIC CHARGE | D76: =INDEX(INDIRECT($L$59),$K76,D$55) -> 7.34 | E76: =INDEX(INDIRECT($L$59),$K76,E$55) -> 12 | H76: =INDEX(INDIRECT($L$59),$K76,H$55) -> 13.01 | K76: 1
B77: MONTHLY MINIMUM
B79: BLOCK 1 PER KWH | D79: =INDEX(INDIRECT($L$59),$K79,D$55) -> 7.034 | E79: 10.661 | F79: 6.538 | G79: 5.245 | H79: 9.168 | K79: 2
B80: BLOCK 2 PER KWH | D80: 8.184 | E80: 7.833 | F80: 5.844 | G80: 4.719 | H80: 6.55 | K80: 3
B81: BLOCK 3 PER KWH | D81: 9.594 | G81: 4.287 | K81: 4
B82: BLOCK 4 PER KWH | K82: 5
B84: ADJUST TO ACTUAL PER KWH | D84: =(D177-D164)/D37*100 -> 7.648420618 | E84: =(E177-E164-SUM(E170:E173))/E37*100 -> 10.01255855 | F84: =(F177-F164-SUM(F170:F173))/F37*100 -> 6.469118662 | H84: =(H177-H164-SUM(H170:H173))/H37*100 -> 7.407858114
B86: DEMAND BLOCK 1 | F86: =INDEX(INDIRECT($L$59),$K86,F$55) -> 400 | G86: =INDEX(INDIRECT($L$59),$K86,G$55) -> 14000 | K86: 6
B87: DEMAND BLOCK 2 | E87: =INDEX(INDIRECT($L$59),$K87,E$55) -> 5.75 | F87: =INDEX(INDIRECT($L$59),$K87,F$55) -> 5.75 | G87: =INDEX(INDIRECT($L$59),$K87,G$55) -> 5.75 | K87: 7
B95: =CHOOSE(Base1_Billing2,"Note: Rates do not include BPA Residential Exchange Program Schedule 59, Energy Efficiency Rider Adjustment Schedule 91, or Power Cost Surcharge Schedule 93.","") -> Note: Rates do not include BPA Residential Exchange Program Schedule 59, Energy Efficiency Rider Adjustment Schedule 91, or Power Cost Surcharge Schedule 93.
A107: WORK PAPER | D107: RESIDENTIAL | E107: GENERAL SVC. | F107: LG. GEN. SVC. | G107: EX LG GEN SVC | H107: PUMPING | I107: ST & AREA LTG
A108: REFERENCE | C108: TOTAL | D108: SCHEDULE 1 | E108: SCH. 11,12 | F108: SCH. 21,22 | G108: SCHEDULE 25 | H108: SCH. 30, 31, 32 | I108: SCH. 41-48
B109: PRESENT REVENUE
B110: =UPPER(CHOOSE(Base1_Billing2,$N$9,$N$10))&" REVENUE" -> BASE TARIFF REVENUE | K110: TOTAL | L110: SCHEDULE 1 | M110: SCH. 11,12 | N110: SCH. 21,22 | O110: SCHEDULE 25
B111: BASIC CHARGE | C111: =SUM(D111:I111) -> 18869088 | D111: =D25*D59 -> 14504226 | E111: =E25*E59 -> 4076832 | H111: =H25*H59 -> 288030 | K111: =C111/C$124 -> 0.04116999997 | L111: =D111/D$124 -> 0.07209845921 | M111: =E111/E$124 -> 0.07366072227 | N111: 0 | O111: 0
B112: MONTHLY MINIMUM | C112: 0 | K112: =C112/C$124 -> 0 | L112: 0 | M112: 0 | N112: 0 | O112: 0
B113: BLOCK 1 | C113: 230305537.9 | D113: =ROUND(D8*D62/100,2) -> 87006446.17 | E113: 40980907.36 | F113: 91425873.77 | G113: 7092360 | H113: 3799950.6 | K113: 0.5024980004 | L113: 0.4324967572 | M113: 0.7404482783 | N113: 0.717806598 | O113: 0.1218838706
B114: BLOCK 2 | C114: 107547716.6 | D114: 58170949.54 | E114: 8958072.8 | F114: 9007488.98 | G114: 25841286.81 | H114: 5569918.42 | K114: 0.234655723 | L114: 0.2891595755 | M114: 0.1618556057 | N114: 0.07071996968 | O114: 0.4440885767
B115: BLOCK 3 | C115: 58909464.78 | D115: =ROUND(D10*D64/100,2) -> 41490860.45 | G115: 17418604.33 | K115: 0.1285331153 | L115: =D115/D$124 -> 0.2062452081 | M115: 0 | N115: 0 | O115: 0.2993428021
B116: BLOCK 4 | C116: 0 | K116: 0 | L116: 0 | M116: 0 | N116: 0 | O116: 0
B117: DEMAND BLOCK 1 | C117: 16569200 | F117: =F25*F69 -> 12873200 | G117: =G25*G69 -> 3696000 | K117: 0.03615193079 | L117: 0 | M117: 0 | N117: 0.1010705998 | O117: 0.06351662715
B118: DEMAND BLOCK 2 | C118: 20679651 | E118: =E27*E70 -> 1326266.25 | F118: =F27*F70 -> 14005078.5 | G118: =G27*G70 -> 5348306.25 | K118: 0.04512042294 | L118: 0 | M118: 0.02396314832 | N118: 0.109957251 | O118: 0.09191189772
A119: PDE-E-24 | B119: POWER FACTOR ADJUSTMENT | C119: 130796 | E119: ='Bill Determ'!G17*0.5 -> 3998.5 | F119: =('Bill Determ'!G28)*0.5 -> 122118 | H119: ='Bill Determ'!G41*0.5 -> 4679.5 | K119: 0.0002853805821 | L119: 0 | M119: 7.224540967e-05 | N119: 0.0009587778877 | O119: 0
A120: PDE-E-31/8 | B120: PRIMARY VOLTAGE DISCOUNT | C120: -1272434.6 | F120: -65365 | G120: ='WA Sch 25'!P145 -> -1207069.6 | K120: -0.002776293822 | L120: 0 | M120: 0 | N120: -0.000513196389 | O120: -0.02074377428
B121: ANNUAL MINIMUM ADJUSTMENT | C121: 0 | K121: 0 | L121: 0 | M121: 0 | N121: 0 | O121: 0
A122: PDE-E-11 | B122: STREET & AREA LIGHT REVENUE | C122: 6582282.6 | I122: ='Lighting summary'!D19 -> 6582282.6 | K122: 0.01436172085 | L122: 0 | M122: 0 | N122: 0 | O122: 0
K123: 0 | L123: 0 | M123: 0 | N123: 0 | O123: 0
B124: SUBTOTAL | C124: =IF(ROUND(SUM(C111:C122),3)<>ROUND(SUM(D124:I124),3),#VALUE!,SUM(D124:I124)) -> 458321302.2 | D124: =SUM(D111:D122) -> 201172482.2 | E124: 55346076.91 | F124: 127368394.2 | G124: 58189487.79 | H124: 9662578.52 | I124: 6582282.6 | K124: 1 | L124: 1 | M124: 1 | N124: 1 | O124: 1
C125: =SUM(D125:I125) -> 0 | D125: =ROUND(D15*D67/100,2) -> 0 | E125: =ROUND(E15*E67/100,2) -> 0 | F125: 0 | G125: =ROUND(G15*G63/100,2) -> 0 | H125: 0
B127: SUBTOTAL | C127: =SUM(D127:I127) -> 458321302.2 | D127: =D124+D125 -> 201172482.2 | E127: 55346076.91 | F127: 127368394.2 | G127: 58189487.79 | H127: 9662578.52 | I127: 6582282.6
B128: ADJUST TO ACTUAL | C128: =SUM(D128:I128) -> 203169.01 | D128: =ROUND(D18*D67/100,2) -> 263787.83 | E128: =ROUND(E18*E67/100,2) -> 187200.86 | F128: 2211.44 | G128: 0 | H128: -250031.12 | I128: 0
B130: ="TOTAL "&UPPER(CHOOSE(Base1_Billing2,$N$9,$N$10))&" REVENUE" -> TOTAL BASE TARIFF REVENUE | C130: =IF(ROUND(SUM(D130:I130),3)<>ROUND(SUM(C127:C128),3),#VALUE!,SUM(D130:I130)) -> 458524471.2 | D130: =D127+D128 -> 201436270 | E130: 55533277.77 | F130: 127370605.7 | G130: 58189487.79 | H130: 9412547.4 | I130: 6582282.6
B132: ADJUSTMENT REVENUE
B133: UNBILLED REVENUE ADJUSTMENT
A134: PDE-E-16 | B134: UNBILLED LOAD KWHS | C134: =SUM(D134:I134) -> -13625801 | D134: =185495186-194042009 -> -8546823 | E134: =27616670+3862471-26847945-3734489 -> 896707 | F134: =94437424+3041696-100982590-2826099 -> -6329569 | H134: =3041697+289685-2674702-302796 -> 353884
A135: PDE-E-5/6 | B135: UNBILLED LOAD RATE | D135: =D67 -> 7.708455815 | E135: =E67 -> 10.22857166 | F135: =F67 -> 6.747339587 | H135: =H67 -> 7.363942961
B136: UNBILLED LOAD REVENUE | C136: =SUM(D136:I136) -> -968125.44 | D136: =ROUND(D134*D135/100,2) -> -658828.07 | E136: =ROUND(E134*E135/100,2) -> 91720.32 | F136: =ROUND(F134*F135/100,2) -> -427077.51 | H136: =ROUND(H134*H135/100,2) -> 26059.82
A138: PDE-E-17 | B138: WEATHER-SENSITIVE KWHS | C138: =SUM(D138:I138) -> 0 | D138: 0 | E138: 0 | F138: 0
A139: PDE-E-5/6 | B139: WEATHER-SENSITIVE RATE | D139: =I226 -> 8.786048951 | E139: =I245 -> 8.002 | F139: =I278 -> 6.594264314
B140: WEATHER-SENSITIVE REVENUE | C140: =SUM(D140:I140) -> 0 | D140: =ROUND(D138*D139/100,2) -> 0 | E140: =ROUND(E138*E139/100,2) -> 0 | F140: =ROUND(F138*F139/100,2) -> 0
A142: PDE-E-16 | B142: TOTAL UNBILLED KWH ADJUST | C142: =IF(ROUND(C134+C138,3)<>ROUND(SUM(D142:I142),3),#VALUE!,C134+C138) -> -13625801 | D142: =D134+D138 -> -8546823 | E142: =E134+E138 -> 896707 | F142: =F134+F138 -> -6329569 | H142: =H134+H138 -> 353884 | I142: =I134+I138 -> 0
B143: TOTAL UNBILLED REVENUE ADJ | C143: =IF(ROUND(C136+C140,3)<>ROUND(SUM(D143:I143),3),#VALUE!,C136+C140) -> -968125.44 | D143: =D136+D140 -> -658828.07 | E143: =E136+E140 -> 91720.32 | F143: =F136+F140 -> -427077.51 | H143: =H136+H140 -> 26059.82
B144: WEATHER NORMALIZATION ADJ
A145: PDE-E-18 | B145: WEATHER-SENSITIVE KWHS | C145: =SUM(D145:I145) -> -28118714 | D145: -26392789 | E145: -1384942 | F145: -340983
A146: PDE-E-5/6 | B146: WEATHER-SENSITIVE RATE | D146: =I226 -> 8.786048951 | E146: =I245 -> 8.002 | F146: =I278 -> 6.594264314
B147: WEATHER-SENSITIVE REVENUE | C147: =SUM(D147:I147) -> -2452191.74 | D147: =ROUND(D145*D146/100,2) -> -2318883.36 | E147: =ROUND(E145*E146/100,2) -> -110823.06 | F147: =ROUND(F145*F146/100,2) -> -22485.32
B149: TOTAL ADJUSTMENT REVENUE | C149: =IF(ROUND(C143+C147,3)<>ROUND(SUM(D149:I149),3),#VALUE!,C143+C147) -> -3420317.18 | D149: =D147+D143 -> -2977711.43 | E149: =E147+E143 -> -19102.74 | F149: =F147+F143 -> -449562.83 | H149: =H147+H143 -> 26059.82
B150: =B130 -> TOTAL BASE TARIFF REVENUE | C150: =C130 -> 458524471.2 | D150: 201436270 | E150: 55533277.77 | F150: 127370605.7 | G150: 58189487.79 | H150: 9412547.4 | I150: 6582282.6
B152: TOTAL PRESENT REVENUE | C152: =IF(ROUND(C149+C150,3)<>ROUND(SUM(D152:I152),3),#VALUE!,SUM(D152:I152)) -> 455104154.1 | D152: =D149+D150 -> 198458558.6 | E152: 55514175.03 | F152: 126921042.9 | G152: 58189487.79 | H152: 9438607.22 | I152: 6582282.6
D153: =D111/D152 -> 0.07308440667
A160: WORK PAPER | D160: RESIDENTIAL | E160: GENERAL SVC. | F160: LG. GEN. SVC. | G160: EX LG GEN SVC | H160: PUMPING | I160: ST & AREA LTG
A161: REFERENCE | C161: TOTAL | D161: SCHEDULE 1 | E161: SCH. 11,12 | F161: SCH. 21,22 | G161: SCHEDULE 25 | H161: SCH. 30, 31, 32 | I161: SCH. 41-48
B162: PROPOSED REVENUE
B163: =UPPER(CHOOSE(Base1_Billing2,$N$9,$N$10))&" REVENUE" -> BASE TARIFF REVENUE | K163: TOTAL | L163: SCHEDULE 1 | M163: SCH. 11,12 | N163: SCH. 21,22 | O163: SCHEDULE 25 | Q163: TOTAL | R163: SCHEDULE 1 | S163: SCH. 11,12 | T163: SCH. 21,22 | U163: SCHEDULE 25
B164: BASIC CHARGE | C164: =SUM(D164:I164) -> 22195062.17 | D164: =D48*D76 -> 17743503.14 | E164: =E48*E76 -> 4076832 | H164: =H48*H76 -> 374727.03 | K164: =C164/C$177 -> 0.04856536129 | L164: =D164/D$177 -> 0.08742453106 | M164: =E164/E$177 -> 0.07509162275 | N164: 0 | O164: 0 | Q164: =K164-K111 -> 0.007395361322 | R164: =L164-L111 -> 0.01532607184 | S164: 0.001430900482 | T164: 0 | U164: 0
B165: MONTHLY MINIMUM | C165: 0 | D165: =D49*D77 -> 0 | K165: =C165/C$177 -> 0 | L165: 0 | M165: 0 | N165: 0 | O165: 0 | Q165: =K165-K112 -> 0 | R165: 0 | S165: 0 | T165: 0 | U165: 0
B166: BLOCK 1 | C166: 247201943.7 | D166: =ROUND(D31*D79/100,2) -> 108682259.7 | E166: 40115458.03 | F166: 87658360.86 | G166: 6923400 | H166: =ROUND(H31*H79/100,2) -> 3822465.12 | K166: 0.5409064239 | L166: 0.5354915266 | M166: 0.7388910902 | N166: 0.7037388387 | O166: 0.1175832223 | Q166: 0.03840842351 | R166: 0.1029947694 | S166: -0.001557188154 | T166: -0.01406775932 | U166: -0.00430064825
B167: BLOCK 2 | C167: 92110779.83 | D167: 43878374.5 | E167: 8768880.81 | F167: 8633715.86 | G167: 25226527.19 | H167: 5603281.47 | K167: 0.2015490323 | L167: 0.2161944169 | M167: 0.1615149925 | N167: 0.06931319629 | O167: 0.42843348 | Q167: -0.03310669075 | R167: -0.07296515863 | S167: -0.0003406132142 | T167: -0.001406773392 | U167: -0.01565509664
B168: BLOCK 3 | C168: 49659855.41 | D168: =ROUND(D33*D81/100,2) -> 32653807.41 | G168: 17006048 | K168: 0.1086615032 | L168: 0.1608895255 | M168: 0 | N168: 0 | O168: 0.2888213772 | Q168: -0.01987161206 | R168: -0.04535568266 | S168: 0 | T168: 0 | U168: -0.01052142489
B169: BLOCK 4 | C169: 0 | D169: =ROUND(D34*D82/100,2) -> 0 | K169: 0 | L169: 0 | M169: 0 | N169: 0 | O169: 0 | Q169: 0 | R169: 0 | S169: 0 | T169: 0 | U169: 0
B170: DEMAND BLOCK 1 | C170: 16569200 | F170: =ROUND(F48*F86,2) -> 12873200 | G170: =ROUND(G48*G86,2) -> 3696000 | K170: 0.03625532464 | L170: 0 | M170: 0 | N170: 0.1033486222 | O170: 0.06277083367 | Q170: 0.0001033938437 | R170: 0 | S170: 0 | T170: 0.002278022407 | U170: -0.0007457934845
B171: DEMAND BLOCK 2 | C171: 23901105.5 | E171: =ROUND(E50*E87,2) -> 1326266.25 | F171: =ROUND(F50*F87,2) -> 15338895.5 | G171: =ROUND(G50*G87,2) -> 7235943.75 | K171: 0.05229838128 | L171: 0 | M171: 0.0244286458 | N171: 0.1231437184 | O171: 0.1228912937 | Q171: 0.007177958339 | R171: 0 | S171: 0.0004654974786 | T171: 0.01318646738 | U171: 0.03097939599
B172: POWER FACTOR ADJUSTMENT | C172: 130796 | E172: =E119 -> 3998.5 | F172: =F119 -> 122118 | H172: =H119 -> 4679.5 | K172: 0.0002861967652 | L172: 0 | M172: 7.364881692e-05 | N172: 0.0009803877081 | O172: 0 | Q172: 8.161831098e-07 | R172: 0 | S172: 1.403407248e-06 | T172: 2.160982043e-05 | U172: 0
B173: PRIMARY VOLTAGE DISCOUNT | C173: -1272434.6 | F173: =F120 -> -65365 | G173: ='WA Sch 25'!P145 -> -1207069.6 | K173: -0.002784233971 | L173: 0 | M173: 0 | N173: -0.0005247632826 | O173: -0.020500207 | Q173: -7.940148237e-06 | R173: 0 | S173: 0 | T173: -1.15668936e-05 | U173: 0.0002435672735
B174: ANNUAL MINIMUM ADJUSTMENT | C174: 0 | K174: 0 | L174: 0 | M174: 0 | N174: 0 | O174: 0 | Q174: 0 | R174: 0 | S174: 0 | T174: 0 | U174: 0
A175: PDE-E-11 | B175: STREET & AREA LIGHT REVENUE | C175: 6517942.081 | I175: ='Lighting summary'!G19 -> 6517942.081 | K175: 0.0142620106 | L175: 0 | M175: 0 | N175: 0 | O175: 0 | Q175: -9.971024128e-05 | R175: 0 | S175: 0 | T175: 0 | U175: 0
K176: 0 | L176: 0 | M176: 0 | N176: 0 | O176: 0 | Q176: 0 | R176: 0 | S176: 0 | T176: 0 | U176: 0
B177: SUBTOTAL | C177: =IF(ROUND(SUM(C164:C175),3)<>ROUND(SUM(D177:I177),3),#VALUE!,SUM(D177:I177)) -> 457014250.1 | D177: =SUM(D164:D175) -> 202957944.7 | E177: 54291435.59 | F177: 124560925.2 | G177: 58880849.34 | H177: 9805153.12 | I177: 6517942.081 | K177: 1 | L177: 1 | M177: 1 | N177: 1 | O177: 1 | Q177: 0 | R177: 0 | S177: 0 | T177: 0 | U177: 0
C178: =SUM(D178:I178) -> 0 | D178: =ROUND(D38*D84/100,2) -> 0 | E178: =ROUND(E38*E84/100,2) -> 0 | F178: 0 | G178: =ROUND(G38*G80/100,2) -> 0 | H178: 0 | I178: 0
B180: SUBTOTAL | C180: =SUM(D180:I180) -> 457014250.1 | D180: =D177+D178 -> 202957944.7 | E180: 54291435.59 | F180: 124560925.2 | G180: 58880849.34 | H180: 9805153.12 | I180: 6517942.081
B181: ADJUST TO ACTUAL | C181: =SUM(D181:I181) -> 195578.89 | D181: =ROUND(D41*D84/100,2) -> 261733.39 | E181: =ROUND(E41*E84/100,2) -> 183247.44 | F181: 2120.25 | G181: 0 | H181: -251522.19 | I181: 0
B183: ="SUBTOTAL "&UPPER(CHOOSE(Base1_Billing2,$N$9,$N$10))&" REVENUE" -> SUBTOTAL BASE TARIFF REVENUE | C183: =IF(ROUND(SUM(D183:I183),3)<>ROUND(SUM(C180:C181),3),#VALUE!,SUM(D183:I183)) -> 457209828.9 | D183: =D180+D181 -> 203219678.1 | E183: 54474683.03 | F183: 124563045.5 | G183: 58880849.34 | H183: 9553630.93 | I183: 6517942.081
B185: ADJUSTMENT REVENUE
B186: UNBILLED REVENUE ADJUSTMENT
B187: UNBILLED LOAD KWHS | C187: =SUM(D187:I187) -> -13625801 | D187: =D134 -> -8546823 | E187: =E134 -> 896707 | F187: =F134 -> -6329569 | H187: =H134 -> 353884
B188: UNBILLED LOAD RATE | D188: =D84 -> 7.648420618 | E188: 10.01255855 | F188: =F84 -> 6.469118662 | H188: =H84 -> 7.407858114
B189: UNBILLED LOAD REVENUE | C189: =SUM(D189:I189) -> -947165.77 | D189: =ROUND(D187*D188/100,2) -> -653696.97 | E189: =ROUND(E187*E188/100,2) -> 89783.31 | F189: =ROUND(F187*F188/100,2) -> -409467.33 | H189: =ROUND(H187*H188/100,2) -> 26215.22
B191: WEATHER-SENSITIVE KWHS | C191: =SUM(D191:I191) -> 0 | D191: =D138 -> 0 | E191: =E138 -> 0 | F191: =F138 -> 0
B192: WEATHER-SENSITIVE RATE | D192: =I235 -> 8.939443336 | E192: =I253 -> 7.833 | F192: =I286 -> 6.321979826
B193: WEATHER-SENSITIVE REVENUE | C193: =SUM(D193:I193) -> 0 | D193: =ROUND(D191*D192/100,2) -> 0 | E193: =ROUND(E191*E192/100,2) -> 0 | F193: =ROUND(F191*F192/100,2) -> 0
B195: TOTAL UNBILLED KWH ADJUST | C195: =IF(ROUND(C187+C191,3)<>ROUND(SUM(D195:I195),3),#VALUE!,SUM(D195:I195)) -> -13625801 | D195: =D187+D191 -> -8546823 | E195: =E187+E191 -> 896707 | F195: =F187+F191 -> -6329569 | H195: =H187+H191 -> 353884
B196: TOTAL UNBILLED REVENUE ADJ | C196: =IF(ROUND(C189+C193,3)<>ROUND(SUM(D196:I196),3),#VALUE!,SUM(D196:I196)) -> -947165.77 | D196: =D189+D193 -> -653696.97 | E196: =E189+E193 -> 89783.31 | F196: =F189+F193 -> -409467.33 | H196: =H189+H193 -> 26215.22
B197: WEATHER NORMALIZATION ADJ
B198: WEATHER-SENSITIVE KWHS | C198: =SUM(D198:I198) -> -28118714 | D198: =D145 -> -26392789 | E198: =E145 -> -1384942 | F198: =F145 -> -340983
B199: WEATHER-SENSITIVE RATE | D199: =I235 -> 8.939443336 | E199: =I253 -> 7.833 | F199: =I286 -> 6.321979826
B200: WEATHER-SENSITIVE REVENUE | C200: =SUM(D200:I200) -> -2489407.81 | D200: =ROUND(D198*D199/100,2) -> -2359368.42 | E200: =ROUND(E198*E199/100,2) -> -108482.51 | F200: =ROUND(F198*F199/100,2) -> -21556.88
B202: TOTAL ADJUSTMENT REVENUE | C202: =IF(ROUND(SUM(D202:I202),3)<>ROUND(C196+C200,3),#VALUE!,SUM(D202:I202)) -> -3436573.58 | D202: =D200+D196 -> -3013065.39 | E202: =E200+E196 -> -18699.2 | F202: =F200+F196 -> -431024.21 | H202: =H200+H196 -> 26215.22
B203: ="TOTAL "&UPPER(CHOOSE(Base1_Billing2,$N$9,$N$10))&" REVENUE" -> TOTAL BASE TARIFF REVENUE | C203: =SUM(D203:I203) -> 457209828.9 | D203: =D183 -> 203219678.1 | E203: 54474683.03 | F203: 124563045.5 | G203: 58880849.34 | H203: 9553630.93 | I203: 6517942.081
B204: TOTAL PROPOSED REVENUE | C204: =IF(ROUND(SUM(D204:I204),3)<>ROUND(SUM(C202:C203),3),#VALUE!,SUM(D204:I204)) -> 453773255.4 | D204: =D202+D203 -> 200206612.7 | E204: 54455983.83 | F204: 124132021.3 | G204: 58880849.34 | H204: 9579846.15 | I204: 6517942.081
B205: TOTAL PRESENT REVENUE | C205: =SUM(D205:I205) -> 455104154.1 | D205: =D152 -> 198458558.6 | E205: 55514175.03 | F205: 126921042.9 | G205: 58189487.79 | H205: 9438607.22 | I205: =I152 -> 6582282.6
B207: TOTAL REVENUE INCREASE | C207: =SUM(D207:I207) -> -1330898.7 | D207: =D204-D205 -> 1748054.14 | E207: -1058191.2 | F207: -2789021.6 | G207: 691361.55 | H207: 141238.93 | I207: -64340.51968
B208: PERCENT REVENUE INCREASE | C208: =C207/C205 -> -0.002924382667 | D208: =D207/D205 -> 0.008808156991 | E208: -0.01906163965 | F208: -0.02197446174 | G208: 0.01188121044 | H208: 0.01496395885 | I208: =I207/I205 -> -0.009774803603
B209: =IF(Base1_Billing2=2,"Pres and Prop Revenues may be incorrect due to Sch 59--for example all of Sch 11 gets benefit of Sch 59 but it s/only be Sch 12; see Billing Rev on Exhibit page for fix","") -> 
C210: =C4 -> 
A216: WORK PAPER | D216: TOTAL | E216: TOTAL | F216: BASELOAD | G216: BASELOAD | H216: WTHR-SENS. | I216: WTHR-SENS.
A217: REFERENCE | C217: RATES | D217: KWHS | E217: REVENUE | F217: KWHS | G217: REVENUE | H217: KWHS | I217: REVENUE
B219: PRESENT BASELOAD AND WEATHER-SENSITIVE RATES
B220: SCHEDULE 1
B221: 0-600 KWHS | C221: =D62 -> 6.914 | D221: =D8 -> 1258409693 | E221: =C221*D221/100 -> 87006446.17 | F221: =MIN(D221,F225) -> 1258409693 | G221: =F221*C221/100 -> 87006446.17 | H221: =D221-F221 -> 0 | I221: =H221*C221/100 -> 0
B222: 601-1300 KWHS | C222: =D63 -> 8.044 | D222: =D9 -> 723159492 | E222: =C222*D222/100 -> 58170949.54 | F222: =MIN(F225-F221,D222) -> 341889909 | G222: =F222*C222/100 -> 27501624.28 | H222: =D222-F222 -> 381269583 | I222: =H222*C222/100 -> 30669325.26
B223: OVER 1300 KWHS | C223: =D64 -> 9.429 | D223: =D10 -> 440034579 | E223: =C223*D223/100 -> 41490860.45 | F223: =MIN(F225-F221-F222,D223) -> 0 | G223: =F223*C223/100 -> 0 | H223: =D223-F223 -> 440034579 | I223: =H223*C223/100 -> 41490860.45
B225: TOTAL | D225: =D221+D222+D223 -> 2421603764 | E225: 186668256.2 | F225: =662*D25 -> 1600299602 | G225: 114508070.5 | H225: 821304162 | I225: 72160185.71
B226: AVERAGE RATE | E226: =E225/D225*100 -> 7.708455815 | G226: =G225/F225*100 -> 7.155414543 | I226: =I225/H225*100 -> 8.786048951
B228: PROPOSED BASELOAD AND WEATHER-SENSITIVE RATES
B229: SCHEDULE 1
B230: 0-600 KWHS | C230: =D79 -> 7.034 | D230: =D221 -> 1258409693 | E230: =C230*D230/100 -> 88516537.81 | F230: =MIN(D230,F234) -> 1258409693 | G230: =F230*C230/100 -> 88516537.81 | H230: =H221 -> 0 | I230: =H230*C230/100 -> 0
B231: 601-1300 KWHS | C231: =D80 -> 8.184 | D231: =D222 -> 723159492 | E231: =C231*D231/100 -> 59183372.83 | F231: =MIN(F234-F230,D231) -> 341889909 | G231: =F231*C231/100 -> 27980270.15 | H231: =H222 -> 381269583 | I231: =H231*C231/100 -> 31203102.67
B232: OVER 1300 KWHS | C232: =D81 -> 9.594 | D232: =D223 -> 440034579 | E232: =C232*D232/100 -> 42216917.51 | F232: =MIN(F234-F230-F231,D232) -> 0 | G232: =F232*C232/100 -> 0 | H232: =H223 -> 440034579 | I232: =H232*C232/100 -> 42216917.51
B234: TOTAL | D234: =D230+D231+D232 -> 2421603764 | E234: 189916828.1 | F234: =F225 -> 1600299602 | G234: 116496808 | H234: 821304162 | I234: 73420020.18
B235: AVERAGE RATE | E235: =E234/D234*100 -> 7.842605424 | G235: =G234/F234*100 -> 7.279687367 | I235: =I234/H234*100 -> 8.939443336
B239: PRESENT BASELOAD AND WEATHER-SENSITIVE RATES
B240: SCHEDULE 11
B241: 0-3650 KWHS | C241: =E62 -> 10.891 | D241: =E8 -> 376282319 | E241: =C241*D241/100 -> 40980907.36 | F241: =MIN(D241,F244) -> 376282319 | G241: =F241*C241/100 -> 40980907.36 | H241: =D241-F241 -> 0 | I241: =H241*C241/100 -> 0
B242: over 3650 KWHS | C242: =E63 -> 8.002 | D242: =E9 -> 111947923 | E242: =C242*D242/100 -> 8958072.798 | F242: =MIN(F244-F241,D242) -> 5580945 | G242: =F242*C242/100 -> 446587.2189 | H242: =D242-F242 -> 106366978 | I242: =H242*C242/100 -> 8511485.58
B244: TOTAL | D244: =D241+D242 -> 488230242 | E244: 49938980.16 | F244: =1124*E25 -> 381863264 | G244: 41427494.58 | H244: 106366978 | I244: 8511485.58
B245: AVERAGE RATE | E245: =E244/D244*100 -> 10.22857166 | G245: =G244/F244*100 -> 10.84877716 | I245: =I244/H244*100 -> 8.002
B247: PROPOSED BASELOAD AND WEATHER-SENSITIVE RATES
B248: SCHEDULE 11
B249: 0-3650 KWHS | C249: =E79 -> 10.661 | D249: =E31 -> 376282319 | E249: =C249*D249/100 -> 40115458.03 | F249: =MIN(D249,F252) -> 376282319 | G249: =F249*C249/100 -> 40115458.03 | H249: =D249-F249 -> 0 | I249: =H249*C249/100 -> 0
B250: over 3650 KWHS | C250: =E80 -> 7.833 | D250: =E32 -> 111947923 | E250: =C250*D250/100 -> 8768880.809 | F250: =MIN(F252-F249,D250) -> 5580945 | G250: =F250*C250/100 -> 437155.4218 | H250: =D250-F250 -> 106366978 | I250: =H250*C250/100 -> 8331725.387
B252: TOTAL | D252: =D249+D250 -> 488230242 | E252: 48884338.84 | F252: =F244 -> 381863264 | G252: 40552613.45 | H252: 106366978 | I252: 8331725.387
B253: AVERAGE RATE | E253: =E252/D252*100 -> 10.01255855 | G253: =G252/F252*100 -> 10.61966868 | I253: =I252/H252*100 -> 7.833
B261: Note: Total Base Load for Sch. 1 = Base Load per bill times total billings (base load per bill on PDE-E-19) =
B262: ="662 X "&TEXT(D25,"#,##0")&" = "&TEXT(F225,"#,##0") -> 662 X 2,417,371 = 1,600,299,602
B263: ="Total Base Load for Sch. 11 = 1,124 X "&TEXT(E25,"#,##0")&" = "&TEXT(F244,"#,##0") -> Total Base Load for Sch. 11 = 1,124 X 339,736 = 381,863,264
B264: =IF(Base1_Billing2=2,"Pres and Prop Revenues may be incorrect due to Sch 59--for example all of Sch 11 gets benefit of Sch 59 but it s/only be Sch 12; see Billing Rev on Exhibit page for fix","") -> 
A269: WORK PAPER | D269: TOTAL | E269: TOTAL | F269: BASELOAD | G269: BASELOAD | H269: WTHR-SENS. | I269: WTHR-SENS.
A270: REFERENCE | C270: RATES | D270: KWHS | E270: REVENUE | F270: KWHS | G270: REVENUE | H270: KWHS | I270: REVENUE
B272: PRESENT BASELOAD AND WEATHER-SENSITIVE RATES
B273: SCHEDULE 21
B274: 0-250000 KWHS | C274: =F62 -> 6.819 | D274: =F8 -> 1340751925 | E274: =C274*D274/100 -> 91425873.77 | F274: =MIN(D274,F277) -> 1013861049 | G274: =F274*C274/100 -> 69135184.93 | H274: =D274-F274 -> 326890876 | I274: =H274*C274/100 -> 22290688.83
B275: OVER 250000 KWHS | C275: =F63 -> 6.097 | D275: =F9 -> 147736411 | E275: =C275*D275/100 -> 9007488.979 | F275: =MIN(F277-F274,D275) -> 0 | G275: =F275*C275/100 -> 0 | H275: =D275-F275 -> 147736411 | I275: =H275*C275/100 -> 9007488.979
B277: TOTAL | D277: =D274+D275 -> 1488488336 | E277: =E274+E275 -> 100433362.7 | F277: =31503*F25 -> 1013861049 | G277: =G274+G275 -> 69135184.93 | H277: =H274+H275 -> 474627287 | I277: =I274+I275 -> 31298177.81
B278: AVERAGE RATE | E278: =E277/D277*100 -> 6.747339587 | G278: =G277/F277*100 -> 6.819 | I278: =I277/H277*100 -> 6.594264314
B280: PROPOSED BASELOAD AND WEATHER-SENSITIVE RATES
B281: SCHEDULE 21
B282: 0-250000 KWHS | C282: =F79 -> 6.538 | D282: =D274 -> 1340751925 | E282: =C282*D282/100 -> 87658360.86 | F282: =MIN(D282,F285) -> 1013861049 | G282: =F282*C282/100 -> 66286235.38 | H282: =H274 -> 326890876 | I282: =H282*C282/100 -> 21372125.47
B283: OVER 250000 KWHS | C283: =F80 -> 5.844 | D283: =D275 -> 147736411 | E283: =C283*D283/100 -> 8633715.859 | F283: =MIN(F285-F282,D283) -> 0 | G283: =F283*C283/100 -> 0 | H283: =H275 -> 147736411 | I283: =H283*C283/100 -> 8633715.859
B285: TOTAL | D285: =D282+D283 -> 1488488336 | E285: =E282+E283 -> 96292076.72 | F285: =F277 -> 1013861049 | G285: =G282+G283 -> 66286235.38 | H285: =H282+H283 -> 474627287 | I285: =I282+I283 -> 30005841.33
B286: AVERAGE RATE | G286: =G285/F285*100 -> 6.538 | I286: =I285/H285*100 -> 6.321979826
B294: Note: Total Base Load for Sch. 21 = Base Load per bill times total billings (base load per bill on PDE-E-19) =
B295: ="31,503 X "&TEXT(F25,"#,##0")&" = "&TEXT(F277,"#,##0") -> 31,503 X 32,183 = 1,013,861,049
D299: =D207/D48 -> 0.7231219949 | E299: =E207/E48 -> -3.114745567 | F299: =F207/F48 -> -86.66133052 | G299: =G207/G48 -> 2618.79375 | H299: =H207/H48 -> 4.90361872
D300: =D23/D25 -> 988.7130316

Sheet Page 1, Exh 1
A1: AVISTA UTILITIES | P1: This worksheet pulls data from 'Pres & Prop Rev' tab.
A2: WASHINGTON ELECTRIC
A3: PROPOSED INCREASE BY SERVICE SCHEDULE
A4: 12 MONTHS ENDED DECEMBER 31, 2011
A5: (000s of Dollars)
D8: Base Tariff | F8: Base Tariff | G8: Base | H8: Total Billed | J8: Percent | M8: Percent
D9: Revenue | E9: Proposed | F9: Revenue | G9: Tariff | H9: Revenue | I9: Total | J9: Increase | K9: Sch. 93 | L9: Net General | M9: Increase
B10: Type of | C10: Schedule | D10: Under Present | E10: General | F10: Under Proposed | G10: Percent | H10: at Present | I10: General | J10: on Billed | K10: ERM | L10: & Sch. 93 | M10: on Billed
A11: No. | B11: Service | C11: Number | D11: Rates(1) | E11: Increase | F11: Rates(1) | G11: Increase | H11: Rates (2) | I11: Increase | J11: Revenue | K11: Decrease | L11: Increase | M11: Revenue
B12: (a) | C12: (b) | D12: (c) | E12: (d) | F12: (e) | G12: (f) | H12: (g) | I12: (h) | J12: (i) | K12: (j) | L12: (k) | M12: (l) | O12: ="col (m) source" -> col (m) source
D13: =IF(Base1_Billing2<>1,"ERROR","") -> 
A14: 1 | B14: Residential | C14: 1 | D14: ='Pres & Prop Rev'!$D$152/1000 -> 198458.5586 | E14: ='Pres & Prop Rev'!$D$207/1000 -> 1748.05414 | F14: =D14+E14+0.4 -> 200207.0127 | G14: =E14/D14 -> 0.008808156991 | H14: 198912.6749 | I14: =E14 -> 1748.05414 | J14: =I14/H14 -> 0.008788048024 | K14: =-D14*($K$47) -> 0 | L14: =E14+K14-0.5 -> 1747.55414 | M14: =(L14)/H14 -> 0.008785534358 | O14: from Pres & Prop Rev tab | Q14: =(E14+K14)/D14 -> 0.008808156991 | R14: =E14+H14+K14 -> 200660.7291
A16: 2 | B16: General Service | C16: 11/12 | D16: ='Pres & Prop Rev'!$E$152/1000 -> 55514.17503 | E16: ='Pres & Prop Rev'!$E$207/1000 -> -1058.1912 | F16: =D16+E16 -> 54455.98383 | G16: =E16/D16 -> -0.01906163965 | H16: 58177.44771 | I16: =E16 -> -1058.1912 | J16: =I16/H16 -> -0.01818902756 | K16: =-D16*($K$47) -> 0 | L16: =E16+K16 -> -1058.1912 | M16: =(L16)/H16 -> -0.01818902756 | O16: from below | Q16: =(E16+K16)/D16 -> -0.01906163965 | R16: =E16+H16+K16 -> 57119.25651
A18: 3 | B18: Large General Service | C18: 21/22 | D18: ='Pres & Prop Rev'!$F$152/1000 -> 126921.0429 | E18: ='Pres & Prop Rev'!$F$207/1000 -> -2789.0216 | F18: =D18+E18 -> 124132.0213 | G18: =E18/D18 -> -0.02197446174 | H18: 132863.2636 | I18: -2789.0216 | J18: =I18/H18 -> -0.02099166861 | K18: =-D18*($K$47)+0.2 -> 0.2 | L18: =E18+K18+0.6 -> -2788.2216 | M18: =(L18)/H18 -> -0.02098564738 | O18: from below | Q18: =(E18+K18)/D18 -> -0.02197288595 | R18: =E18+H18+K18 -> 130074.442
A20: 4 | B20: Extra Large General Service | C20: 25 | D20: ='Pres & Prop Rev'!$G$152/1000+1 -> 58190.48779 | E20: ='Pres & Prop Rev'!$G$207/1000 -> 691.36155 | F20: =D20+E20 -> 58881.84934 | G20: =E20/D20 -> 0.01188100627 | H20: 60965.60255 | I20: 691.36155 | J20: =I20/H20 -> 0.01134019055 | K20: =-D20*($K$47) -> 0 | L20: =E20+K20 -> 691.36155 | M20: =(L20)/H20 -> 0.01134019055 | O20: from Pres & Prop Rev tab | Q20: =(E20+K20)/D20 -> 0.01188100627 | R20: =E20+H20+K20 -> 61656.9641
A22: 5 | B22: Pumping Service | C22: 30/31/32 | D22: ='Pres & Prop Rev'!$H$152/1000 -> 9438.60722 | E22: ='Pres & Prop Rev'!$H$207/1000 -> 141.23893 | F22: =D22+E22 -> 9579.84615 | G22: =E22/D22 -> 0.01496395885 | H22: 9879.51145 | I22: 141.23893 | J22: =I22/H22 -> 0.01429614518 | K22: =-D22*($K$47) -> 0 | L22: =E22+K22 -> 141.23893 | M22: =(L22)/H22 -> 0.01429614518 | O22: from below | Q22: =(E22+K22)/D22 -> 0.01496395885 | R22: =E22+H22+K22 -> 10020.75038
A24: 6 | B24: Street & Area Lights | C24: 41-48 | D24: ='Pres & Prop Rev'!$I$152/1000 -> 6582.2826 | E24: ='Pres & Prop Rev'!$I$207/1000 -> -64.34051968 | F24: =D24+E24 -> 6517.942081 | G24: =E24/D24 -> -0.009774803603 | H24: 6898.500662 | I24: -64.34051968 | J24: =I24/H24 -> -0.009326739654 | K24: =-D24*($K$47) -> 0 | L24: =E24+K24 -> -64.34051968 | M24: =(L24)/H24 -> -0.009326739654 | O24: from Pres & Prop Rev tab | Q24: =(E24+K24)/D24 -> -0.009774803603 | R24: =E24+H24+K24 -> 6834.160142
A26: 7 | B26: Total | D26: =SUM(D14:D24)-0.5 -> 455104.6541 | E26: =SUM(E14:E24) -> -1330.8987 | F26: =SUM(F14:F24) -> 453774.6554 | G26: =E26/D26 -> -0.002924379454 | H26: =SUM(H14:H24) -> 467697.0009 | I26: =E26 -> -1330.8987 | J26: =I26/H26 -> -0.002845643006 | K26: =SUM(K14:K24) -> 0.2 | L26: =SUM(L14:L24) -> -1330.5987 | M26: =(L26)/H26 -> -0.002845001565 | O26: from below | Q26: =(E26+K26)/D26 -> -0.002923939994 | R26: =E26+H26+K26 -> 466366.3022
D27: =ROUND(D26-'Pres & Prop Rev'!C205/1000,0) -> 0 | E27: =ROUND(E26-'Pres & Prop Rev'!C207/1000,0) -> 0 | F27: =ROUND(F26-'Pres & Prop Rev'!C204/1000,0)-1 -> 0
D28: =IF(Base1_Billing2=2,"Exhibit won't work until Base1_Billing2 range set to '1'","") -> 
A31: (1) Excludes all present rate adjustments: Schedule 59 (BPA Residential Exchange), and Schedule 91 (Public Purpose Rider Adjustment).
A33: (2) Includes all present rate adjustments: Schedule 59 (BPA Residential Exchange), and Schedule 91 (Public Purpose Rider Adjustment).
B37: reduce billed revenue for BPA ResEx (already accounted for in Schs 1 & 48)
F38: Billing | I38: Billed Revenue
F39: Determinants | H39: BPA Rate | I39: Impact
B40: Schedule 12 only | F40: ='Rev Runs CY'!J102 -> 49848899 | H40: -0.00364 | I40: =F40*H40 -> -181449.9924
B41: Schedule 22 only | F41: ='Rev Runs CY'!J104 -> 49227849 | H41: -0.00364 | I41: =F41*H41 -> -179189.3704
B42: Schedule 32 only | F42: ='Rev Runs CY'!J109 -> 11495169 | H42: -0.00364 | I42: -41842.41516
B43: Total | F43: =SUM(F40:F42) -> 110571917 | I43: =SUM(I40:I42) -> -402481.7779 | J43: Manually deducted in Column H
I46: ERM Reduction Calculation | K46: =ERM!D23/1000 -> 0 | L46: 1 | M46: =-D14*$K$47 -> 0 | O46: =5911537/'Pres & Prop Rev'!D23 -> 0.002473357227 | P46: =(D14/$D$26)*$M$52 -> 0
K47: =K46/D26 -> 0 | L47: 11 | M47: =-D16*K47 -> 0 | P47: =(D16/$D$26)*$M$52 -> 0
L48: 21 | M48: =-D18*K47 -> 0 | P48: =(D18/$D$26)*$M$52 -> 0
L49: 25 | M49: =-D20*K47 -> 0 | P49: =(D20/$D$26)*$M$52 -> 0
L50: 31 | M50: =-D22*K47 -> 0 | P50: =(D22/$D$26)*$M$52 -> 0
L51: 41-48 | M51: =-D24*K47 -> 0 | P51: =(D24/$D$26)*$M$52 -> 0
M52: =SUM(M46:M51) -> 0 | P52: =SUM(P46:P51) -> 0

Sheet Page 2, Exh 2
A1: AVISTA UTILITIES | O1: This worksheet uses Base & Billing rates from 'Rate Design' tab.
A2: WASHINGTON ELECTRIC
A3: PRESENT AND PROPOSED RATE COMPONENTS BY SCHEDULE
H7: General | I7: Sch. 93 | J7: Proposed | K7: Proposed | L7: Sch. 93 | M7: Proposed Billing
D8: Base Tariff | E8: Present | F8: Present | H8: Rate | I8: ERM | J8: Billing | K8: Base Tariff | L8: ERM | M8: Rate With
A9: Type of Service | D9: Sch. Rate | E9: Other Adj.(1) | F9: Billing Rate | H9: Increase | I9: Decrease | J9: Rate | K9: Rate | L9: Decrease | M9: ERM Decrease (2) | N9: non-printing
B10: (a) | D10: (b) | E10: (c) | F10: (d) | H10: (e) | I10: (f) | J10: (f) | K10: (g) | L10: (h) | M10: (i) | N10: Base | O10: Billing
A11: Residential Service - Schedule 1 | P11: Usage
A12: Basic Charge | D12: ='Rate Design'!D4 -> 6 | E12: =F12-D12 -> 0 | F12: ='Rate Design'!D14 -> 6 | H12: =IF(ROUND(J12-F12,5)<>ROUND(K12-D12,5),#VALUE!,K12-D12) -> 1.34 | J12: ='Rate Design'!D36 -> 7.34 | K12: ='Rate Design'!D26 -> 7.34 | M12: =K12 -> 7.34 | N12: =H12/D12 -> 0.2233333333 | O12: =H12/F12 -> 0.2233333333
A13: Energy Charge:
A14: ="First "&TEXT('Rate Design'!N5,"#,##0")&" kWhs" -> First 600 kWhs | D14: ='Rate Design'!D5/100 -> 0.06914 | E14: =F14-D14 -> 0.00019 | F14: ='Rate Design'!D15/100 -> 0.06933 | H14: =IF(ROUND(J14-F14-I14,5)<>ROUND(K14-D14,5),#VALUE!,K14-D14) -> 0.0012 | I14: 0 | J14: ='Rate Design'!D37/100 -> 0.07053 | K14: ='Rate Design'!D27/100 -> 0.07034 | L14: =ERM!$H$11 -> 0 | M14: =J14+L14 -> 0.07053 | N14: =H14/D14 -> 0.01735608909 | O14: =H14/F14 -> 0.01730852445 | T14: Avg Bill Impact
A15: =TEXT('Rate Design'!N5,"#,##0")&" - "&TEXT('Rate Design'!N6,"#,##0")&" kWhs" -> 600 - 1,300 kWhs | D15: ='Rate Design'!D6/100 -> 0.08044 | E15: =F15-D15 -> 0.00019 | F15: ='Rate Design'!D16/100 -> 0.08063 | H15: =IF(ROUND(J15-F15-I15,5)<>ROUND(K15-D15,5),#VALUE!,K15-D15) -> 0.0014 | I15: =I14 -> 0 | J15: ='Rate Design'!D38/100 -> 0.08203 | K15: ='Rate Design'!D28/100 -> 0.08184 | L15: =L14 -> 0 | M15: =J15+L15 -> 0.08203 | N15: =H15/D15 -> 0.01740427648 | O15: =H15/F15 -> 0.01736326429
A16: ="All over "&TEXT('Rate Design'!N6,"#,##0")&" kWhs" -> All over 1,300 kWhs | D16: ='Rate Design'!D7/100 -> 0.09429 | E16: =F16-D16 -> 0.00019 | F16: ='Rate Design'!D17/100 -> 0.09448 | H16: =IF(ROUND(J16-F16-I16,5)<>ROUND(K16-D16,5),#VALUE!,K16-D16) -> 0.00165 | I16: =I14 -> 0 | J16: ='Rate Design'!D39/100 -> 0.09613 | K16: ='Rate Design'!D29/100 -> 0.09594 | L16: =L14 -> 0 | M16: =J16+L16 -> 0.09613 | N16: =H16/D16 -> 0.01749920458 | O16: =H16/F16 -> 0.01746401355 | T16: 1 | U16: 11 | V16: 21 | W16: 25 | X16: 31
S17: Without ERM | T17: ='Pres & Prop Rev'!D207/'Pres & Prop Rev'!D25 -> 0.7231219949 | U17: ='Pres & Prop Rev'!E207/'Pres & Prop Rev'!E25 -> -3.114745567 | V17: ='Pres & Prop Rev'!F207/'Pres & Prop Rev'!F25 -> -86.66133052 | W17: ='Pres & Prop Rev'!G207/'Pres & Prop Rev'!G25 -> 2618.79375 | X17: ='Pres & Prop Rev'!H207/'Pres & Prop Rev'!H25 -> 4.90361872
A18: General Services - Schedule 11 | P18: Usage | S18: With ERM | T18: =('Pres & Prop Rev'!D207-5911530)/'Pres & Prop Rev'!D25 -> -1.722315631 | U18: =('Pres & Prop Rev'!E207-1653613)/'Pres & Prop Rev'!E25 -> -7.982092566 | V18: =('Pres & Prop Rev'!F207-3780626)/'Pres & Prop Rev'!F25 -> -204.1340956 | W18: =('Pres & Prop Rev'!G207-1733333)/'Pres & Prop Rev'!G25 -> -3946.861553 | X18: =('Pres & Prop Rev'!H207-281150)/'Pres & Prop Rev'!H25 -> -4.857517273
A19: Basic Charge | D19: ='Rate Design'!E4 -> 12 | E19: =F19-D19 -> 0 | F19: ='Rate Design'!E14 -> 12 | H19: =IF(ROUND(J19-F19,5)<>ROUND(K19-D19,5),#VALUE!,K19-D19) -> 0 | J19: ='Rate Design'!E36 -> 12 | K19: ='Rate Design'!E26 -> 12 | M19: =K19 -> 12 | N19: =H19/D19 -> 0 | O19: =H19/F19 -> 0
A20: Energy Charge:
A21: ="First "&TEXT('Rate Design'!O5,"#,##0")&" kWhs" -> First 3,650 kWhs | D21: ='Rate Design'!E5/100 -> 0.10891 | E21: =F21-D21 -> 0.00544 | F21: ='Rate Design'!E15/100 -> 0.11435 | H21: =IF(ROUND(J21-F21-I21,5)<>ROUND(K21-D21,5),#VALUE!,K21-D21) -> -0.0023 | I21: 0 | J21: ='Rate Design'!E37/100 -> 0.11205 | K21: ='Rate Design'!E27/100 -> 0.10661 | L21: =ERM!H13 -> 0 | M21: =J21+L21 -> 0.11205 | N21: =H21/D21 -> -0.0211183546 | O21: =H21/F21 -> -0.02011368605
A22: ="All over "&TEXT('Rate Design'!O5,"#,##0")&" kWhs" -> All over 3,650 kWhs | D22: ='Rate Design'!E6/100 -> 0.08002 | E22: =F22-D22 -> 0.00544 | F22: ='Rate Design'!E16/100 -> 0.08546 | H22: =IF(ROUND(J22-F22-I22,5)<>ROUND(K22-D22,5),#VALUE!,K22-D22) -> -0.00169 | I22: =I21 -> 0 | J22: ='Rate Design'!E38/100 -> 0.08377 | K22: ='Rate Design'!E28/100 -> 0.07833 | L22: =L21 -> 0 | M22: =J22+L22 -> 0.08377 | N22: =H22/D22 -> -0.02111972007 | O22: =H22/F22 -> -0.01977533349
A23: Demand Charge:
A24: =TEXT('Rate Design'!O10,"#,##0")&" kW or less" -> 20 kW or less | D24: no charge | F24: no charge | H24: no charge | K24: no charge | M24: no charge
A25: ="Over "&TEXT('Rate Design'!O10,"#,##0")&" kW" -> Over 20 kW | D25: ='Rate Design'!E10 -> 5.75 | E25: =F25-D25 -> 0 | F25: ='Rate Design'!E20 -> 5.75 | H25: =IF(ROUND(J25-F25,5)<>ROUND(K25-D25,5),#VALUE!,K25-D25) -> 0 | J25: ='Rate Design'!E42 -> 5.75 | K25: ='Rate Design'!E32 -> 5.75 | M25: ='Rate Design'!E32 -> 5.75 | N25: =H25/D25 -> 0 | O25: =H25/F25 -> 0
A27: Large General Service - Schedule 21 | P27: Usage
A28: Energy Charge:
A29: ="First "&TEXT('Rate Design'!P5,"#,##0")&" kWhs" -> First 250,000 kWhs | D29: ='Rate Design'!F5/100 -> 0.06819 | E29: =F29-D29 -> 0.00401 | F29: ='Rate Design'!F15/100 -> 0.0722 | H29: =IF(ROUND(J29-F29-I29,5)<>ROUND(K29-D29,5),#VALUE!,K29-D29) -> -0.00281 | I29: 0 | J29: ='Rate Design'!F37/100 -> 0.06939 | K29: ='Rate Design'!F27/100 -> 0.06538 | L29: =ERM!H15 -> 0 | M29: =J29+L29 -> 0.06939 | N29: =H29/D29 -> -0.04120838833 | O29: =H29/F29 -> -0.03891966759
A30: ="All over "&TEXT('Rate Design'!P5,"#,##0")&" kWhs" -> All over 250,000 kWhs | D30: ='Rate Design'!F6/100 -> 0.06097 | E30: =F30-D30 -> 0.00401 | F30: ='Rate Design'!F16/100 -> 0.06498 | H30: =IF(ROUND(J30-F30-I30,5)<>ROUND(K30-D30,5),#VALUE!,K30-D30) -> -0.00253 | I30: =I29 -> 0 | J30: ='Rate Design'!F38/100 -> 0.06245 | K30: ='Rate Design'!F28/100 -> 0.05844 | L30: =L29 -> 0 | M30: =J30+L30 -> 0.06245 | N30: =H30/D30 -> -0.04149581762 | O30: =H30/F30 -> -0.03893505694
A31: Demand Charge:
A32: =TEXT('Rate Design'!P10,"#,##0")&" kW or less" -> 50 kW or less | D32: ='Rate Design'!F9 -> 400 | E32: =F32-D32 -> 0 | F32: ='Rate Design'!F19 -> 400 | H32: =IF(ROUND(J32-F32,5)<>ROUND(K32-D32,5),#VALUE!,K32-D32) -> 0 | J32: ='Rate Design'!F41 -> 400 | K32: ='Rate Design'!F31 -> 400 | M32: =K32 -> 400 | N32: =H32/D32 -> 0 | O32: =H32/F32 -> 0
A33: ="Over "&TEXT('Rate Design'!P10,"#,##0")&" kW" -> Over 50 kW | D33: ='Rate Design'!F10 -> 5.25 | E33: =F33-D33 -> 0 | F33: ='Rate Design'!F20 -> 5.25 | H33: =IF(ROUND(J33-F33,5)<>ROUND(K33-D33,5),#VALUE!,K33-D33) -> 0.5 | J33: ='Rate Design'!F42 -> 5.75 | K33: ='Rate Design'!F32 -> 5.75 | M33: ='Rate Design'!F32 -> 5.75 | N33: =H33/D33 -> 0.09523809524 | O33: =H33/F33 -> 0.09523809524
A34: Primary Voltage Discount | D34: 0.2 | E34: =F34-D34 -> 0 | F34: 0.2 | H34: =IF(ROUND(J34-F34,5)<>ROUND(K34-D34,5),#VALUE!,K34-D34) -> 0 | J34: 0.2 | K34: 0.2 | M34: 0.2 | N34: =H34/D34 -> 0 | O34: =H34/F34 -> 0
A36: Extra Large General Service - Schedule 25 | P36: Usage
A37: Energy Charge:
A38: ="First "&TEXT('Rate Design'!Q5,"#,##0")&" kWhs" -> First 500,000 kWhs | D38: ='Rate Design'!G5/100 -> 0.05373 | E38: =F38-D38 -> 0.00261 | F38: ='Rate Design'!G15/100 -> 0.05634 | H38: =IF(ROUND(J38-F38-I38,5)<>ROUND(K38-D38,5),#VALUE!,K38-D38) -> -0.00128 | I38: 0 | J38: ='Rate Design'!G37/100 -> 0.05506 | K38: ='Rate Design'!G27/100 -> 0.05245 | L38: =ERM!H17 -> 0 | M38: =J38+L38 -> 0.05506 | N38: =H38/D38 -> -0.02382281779 | O38: =H38/F38 -> -0.02271920483
A39: =TEXT('Rate Design'!Q27,"#,##0")&" - "&TEXT('Rate Design'!Q28,"#,##0")&" kWhs" -> 500,000 - 6,000,000 kWhs | D39: ='Rate Design'!G6/100 -> 0.04834 | E39: =F39-D39 -> 0.00261 | F39: ='Rate Design'!G16/100 -> 0.05095 | H39: =IF(ROUND(J39-F39-I39,5)<>ROUND(K39-D39,5),#VALUE!,K39-D39) -> -0.00115 | I39: =I38 -> 0 | J39: ='Rate Design'!G38/100 -> 0.0498 | K39: ='Rate Design'!G28/100 -> 0.04719 | L39: =L38 -> 0 | M39: =J39+L39 -> 0.0498 | N39: =H39/D39 -> -0.02378982209 | O39: =H39/F39 -> -0.02257114818
A40: ="All over "&TEXT('Rate Design'!Q28,"#,##0")&" kWhs" -> All over 6,000,000 kWhs | D40: ='Rate Design'!G7/100 -> 0.04391 | E40: =F40-D40 -> 0.00261 | F40: ='Rate Design'!G17/100 -> 0.04652 | H40: =IF(ROUND(J40-F40-I40,5)<>ROUND(K40-D40,5),#VALUE!,K40-D40) -> -0.00104 | I40: =I39 -> 0 | J40: ='Rate Design'!G39/100 -> 0.04548 | K40: ='Rate Design'!G29/100 -> 0.04287 | L40: =L38 -> 0 | M40: 0.04548 | N40: =H40/D40 -> -0.02368480984 | O40: =H40/F40 -> -0.02235597592
A41: Demand Charge:
A42: =TEXT('Rate Design'!Q10,"#,##0")&" kva or less" -> 3,000 kva or less | D42: ='Rate Design'!G9 -> 14000 | E42: =F42-D42 -> 0 | F42: ='Rate Design'!G19 -> 14000 | H42: =IF(ROUND(J42-F42,5)<>ROUND(K42-D42,5),#VALUE!,K42-D42) -> 0 | J42: ='Rate Design'!G41 -> 14000 | K42: ='Rate Design'!G31 -> 14000 | M42: ='Rate Design'!G31 -> 14000 | N42: =H42/D42 -> 0 | O42: =H42/F42 -> 0
A43: ="Over "&TEXT('Rate Design'!Q10,"#,##0")&" kva" -> Over 3,000 kva | D43: ='Rate Design'!G10 -> 4.25 | E43: =F43-D43 -> 0 | F43: ='Rate Design'!G20 -> 4.25 | H43: =IF(ROUND(J43-F43,5)<>ROUND(K43-D43,5),#VALUE!,K43-D43) -> 1.5 | J43: ='Rate Design'!G42 -> 5.75 | K43: ='Rate Design'!G32 -> 5.75 | M43: ='Rate Design'!G32 -> 5.75 | N43: =H43/D43 -> 0.3529411765 | O43: =H43/F43 -> 0.3529411765
A44: Primary Volt. Discount
A45: 11 - 60 kv | D45: 0.2 | E45: =F45-D45 -> 0 | F45: 0.2 | H45: =IF(ROUND(J45-F45,5)<>ROUND(K45-D45,5),#VALUE!,K45-D45) -> 0 | J45: 0.2 | K45: 0.2 | M45: =K45 -> 0.2 | N45: =H45/D45 -> 0 | O45: =H45/F45 -> 0
A46: 60 - 115 kv | D46: 1.1 | E46: =F46-D46 -> 0 | F46: 1.1 | H46: =IF(ROUND(J46-F46,5)<>ROUND(K46-D46,5),#VALUE!,K46-D46) -> 0 | J46: 1.1 | K46: 1.1 | M46: =K46 -> 1.1 | N46: =H46/D46 -> 0 | O46: =H46/F46 -> 0
A47: 115 or higher kv | D47: 1.35 | E47: =F47-D47 -> 0 | F47: 1.35 | H47: =IF(ROUND(J47-F47,5)<>ROUND(K47-D47,5),#VALUE!,K47-D47) -> 0 | J47: 1.35 | K47: 1.35 | M47: 1.35 | N47: =H47/D47 -> 0 | O47: =H47/F47 -> 0
A48: Annual Minimum | D48: Present: | E48: =6000000*D38+5000000*D39+12*F42 -> 732080 | I48: Proposed: | J48: =6000000*K38+5000000*K39+12*K42 -> 718650 | M48: =J48 -> 718650 | N48: =J48/E48-1 -> -0.01834498962
A50: Pumping Service - Schedule 31 | P50: Usage
A51: Basic Charge | D51: ='Rate Design'!H4 -> 10 | E51: =F51-D51 -> 0 | F51: ='Rate Design'!H14 -> 10 | H51: =IF(ROUND(J51-F51,5)<>ROUND(K51-D51,5),#VALUE!,K51-D51) -> 3.01 | J51: ='Rate Design'!H36 -> 13.01 | K51: ='Rate Design'!H26 -> 13.01 | M51: =K51 -> 13.01 | N51: =H51/D51 -> 0.301 | O51: =H51/F51 -> 0.301
A52: Energy Charge:
A53: First 165 kW/kWh | D53: ='Rate Design'!H5/100 -> 0.09114 | E53: =F53-D53 -> 0.00355 | F53: ='Rate Design'!H15/100 -> 0.09469 | H53: =IF(ROUND(J53-F53-I53,5)<>ROUND(K53-D53,5),#VALUE!,K53-D53) -> 0.00054 | I53: 0 | J53: ='Rate Design'!H37/100 -> 0.09523 | K53: ='Rate Design'!H27/100 -> 0.09168 | L53: =ERM!H19 -> 0 | M53: =J53+L53 -> 0.09523 | N53: =H53/D53 -> 0.005924950625 | O53: =H53/F53 -> 0.005702819728
A54: All additional kWhs | D54: ='Rate Design'!H6/100 -> 0.06511 | E54: =F54-D54 -> 0.00355 | F54: ='Rate Design'!H16/100 -> 0.06866 | H54: =IF(ROUND(J54-F54-I54,5)<>ROUND(K54-D54,5),#VALUE!,K54-D54) -> 0.00039 | I54: =I53 -> 0 | J54: ='Rate Design'!H38/100 -> 0.06905 | K54: ='Rate Design'!H28/100 -> 0.0655 | L54: =L53 -> 0 | M54: =J54+L54 -> 0.06905 | N54: =H54/D54 -> 0.005989863308 | O54: =H54/F54 -> 0.005680163123
A58: (1) Includes all present rate adjustments: Sch. 59 (BPA Residential Exchange) and Sch. 91 (Public Purpose Rider Adjustment).
A60: (2) Includes all present rate adjustments: Sch. 59 (BPA Residential Exchange), Sch. 91 (Public Purpose Rider Adjustment) and
A61: the Proposed Sch. 93 (ERM Refund).

Sheet Page 3, Revenue Stability
B1: AVISTA UTILITIES
B2: WASHINGTON ELECTRIC
B3: COLLECTION OF REVENUE AND DIFFERENCE IN RATES
B4: 12 MONTHS ENDED DECEMBER 31, 2011
A5: Line No. | B5: A | C5: B | D5: C | E5: D | F5: E | G5: F | H5: G | I5: H | J5: I
A6: 1 | C6: Rates | H6: Revenues Collected by Rate Design (Sch. 1)
A7: 2 | C7: Current | D7: Proposed | E7: Revised | H7: Current | I7: Proposed | J7: Revised
A8: 3 | B8: Base | C8: ='Page 4-6, Crossover'!C6 -> 6 | D8: ='Page 4-6, Crossover'!F6 -> 10 | E8: ='Page 4-6, Crossover'!I6 -> 7.34 | G8: Base | H8: ='Pres & Prop Rev'!L111 -> 0.07209845921 | I8: 0.1103076578 | J8: ='Pres & Prop Rev'!L164 -> 0.08742453106
A9: 4 | B9: 0-600 | C9: ='Page 4-6, Crossover'!C8 -> 0.06933 | D9: ='Page 4-6, Crossover'!F8 -> 0.07276 | E9: ='Page 4-6, Crossover'!I8 -> 0.07053 | G9: 1st Block | H9: ='Pres & Prop Rev'!L113 -> 0.4324967572 | I9: 0.4167173028 | J9: ='Pres & Prop Rev'!L166 -> 0.5354915266
A10: 5 | B10: 600-800 | C10: ='Page 4-6, Crossover'!C9 -> 0.08063 | D10: ='Page 4-6, Crossover'!F9 -> 0.08406 | E10: =E9 -> 0.07053 | G10: Sub-Total | H10: =SUM(H8:H9) -> 0.5045952164 | I10: =SUM(I8:I9) -> 0.5270249606 | J10: =SUM(J8:J9) -> 0.6229160577
A11: 6 | B11: 800-1300 | C11: =C10 -> 0.08063 | D11: =D10 -> 0.08406 | E11: ='Page 4-6, Crossover'!I9 -> 0.08203
A12: 7 | B12: 1300-1500 | C12: ='Page 4-6, Crossover'!C10 -> 0.09448 | D12: ='Page 4-6, Crossover'!F10 -> 0.09791 | E12: =E11 -> 0.08203 | G12: 2nd Block | H12: ='Pres & Prop Rev'!L114 -> 0.2891595755 | I12: 0.2767598519 | J12: ='Pres & Prop Rev'!L167 -> 0.2161944169
A13: 8 | B13: 1500+ | C13: =C12 -> 0.09448 | D13: =D12 -> 0.09791 | E13: ='Page 4-6, Crossover'!I10 -> 0.09613 | G13: 3rd Block | H13: ='Pres & Prop Rev'!L115 -> 0.2062452081 | I13: 0.1962151875 | J13: ='Pres & Prop Rev'!L168 -> 0.1608895255
A14: 9 | G14: Sub-Total | H14: =SUM(H12:H13) -> 0.4954047836 | I14: 0.4729750394 | J14: 0.3770839423
A15: 10 | C15: Difference in Rates
A16: 11 | C16: Current | D16: Proposed | E16: Revised | G16: Grand Total | H16: =H14+H10 -> 1 | I16: =I14+I10 -> 1 | J16: =J14+J10 -> 1
A17: 12 | B17: Base | C17: =$E8-C8 -> 1.34 | D17: -2.66 | E17: 0
A18: 13 | B18: 0-600 | C18: 0.0012 | D18: -0.00223 | E18: 0
A19: 14 | B19: 600-800 | C19: -0.0101 | D19: -0.01353 | E19: 0 | H19: Difference in Revenues
A20: 15 | B20: 800-1300 | C20: 0.0014 | D20: -0.00203 | E20: 0 | H20: Current | I20: Proposed | J20: Revised
A21: 16 | B21: 1300-1500 | C21: -0.01245 | D21: -0.01588 | E21: 0 | G21: Base | H21: =$J8-H8 -> 0.01532607184 | I21: -0.02288312679 | J21: 0
A22: 17 | B22: 1500+ | C22: 0.00165 | D22: -0.00178 | E22: 0 | G22: 1st Block | H22: 0.1029947694 | I22: 0.1187742238 | J22: 0
A23: 18 | G23: 2nd Block | H23: =$J12-H12 -> -0.07296515863 | I23: -0.06056543506 | J23: 0
A24: 19 | G24: 3rd Block | H24: -0.04535568266 | I24: -0.035325662 | J24: 0
A25: 20 | H25: =SUM(H21:H24) -> 8.326672685e-17 | I25: =SUM(I21:I24) -> 1.526556659e-16 | J25: =SUM(J21:J24) -> 0
A26: 21

Sheet Page 4-6, Crossover
A1: Line No. | B1: (a) | C1: (b) | D1: (c) | F1: (d) | G1: (e) | I1: (f) | J1: (g)
A2: 1 | B2: Bill Comparison
A3: 2 | B3: Schedule 1 - Residential
A4: 3 | C4: Current | F4: Proposed | I4: Revised | O4: 3/4-inch | P4: 0.75
A5: 4 | B5: Customer Count | C5: ='Bill Determ'!F9/12 -> 201447.5833 | F5: =C5 -> 201447.5833 | I5: =F5 -> 201447.5833 | O5: 1-inch | P5: 1
A6: 5 | B6: Base | C6: ='Rate Design'!D4 -> 6 | F6: 10 | I6: ='Rate Design'!D26 -> 7.34 | O6: 1 1/2-inch | P6: 1.5
A7: 6 | B7: Allowance | C7: 0 | F7: 0 | I7: 0 | O7: 2-inch | P7: 2
A8: 7 | B8: Rate 1 | C8: ='Rate Design'!D15/100 -> 0.06933 | F8: =7.276/100 -> 0.07276 | G8: 7.276 | H8: 7.276 | I8: ='Rate Design'!D37/100 -> 0.07053 | O8: 3-inch | P8: 3
A9: 8 | B9: Rate 2 | C9: ='Rate Design'!D16/100 -> 0.08063 | F9: =8.406/100 -> 0.08406 | G9: 8.406 | H9: 8.406 | I9: ='Rate Design'!D38/100 -> 0.08203 | O9: 4-inch | P9: 4
A10: 9 | B10: Rate 3 | C10: ='Rate Design'!D17/100 -> 0.09448 | F10: =9.791/100 -> 0.09791 | G10: 9.791 | H10: 9.791 | I10: ='Rate Design'!D39/100 -> 0.09613 | O10: 6-inch | P10: 6
A11: 10 | B11: Block 1 | C11: ='Rate Design'!N5 -> 600 | F11: =C11 -> 600 | I11: ='Rate Design'!N27 -> 800
A12: 11 | B12: Block 2 | C12: ='Rate Design'!N6 -> 1300 | F12: =C12 -> 1300 | I12: ='Rate Design'!N28 -> 1500
A13: 12 | B13: Block 3 (Over) | C13: =C12+1 -> 1301 | F13: =F12+1 -> 1301 | I13: =I12+1 -> 1501
A14: 13 | B14: Usage Per kWh | C14: 1 | F14: 1 | I14: 1
A15: 14
A16: 15 | B16: =B14 -> Usage Per kWh | C16: Current Monthly Bill | D16: Proposed vs. Current | F16: Proposed Monthly Bill | G16: Revised vs. Proposed | I16: Revised Monthly Bill | J16: Revised vs. Current
A17: 16 | B17: 0 | C17: =(($C$6)+(IF($B17<$C$7,0,((IF(($B17-$C$7)>$C$11,($C$11/$C$14*$C$8),(IF(($B17-$C$7)>$C$11,$C$11,+($B17-$C$7)))/$C$14*$C$8)))+((IF(($B17-$C$7)>$C$12,(((($C$12-$C$11)/$C$14)*$C$9)),((IF(($B17-$C$7)>($C$12),($C$12-$C$11),(+($B17-$C$7)-(IF(($B17-$C$7)>$C$11,$C$11,+($B17-$C$7)))))))/$C$14*$C$9)))+((IF((IF(($B17-$C$7)>($C$13),($B17-$C$7)-($C$12),0))<1,0,(IF(($B17-$C$7)>($C$13),($B17-$C$7)-($C$12),0))/$C$14*$C$10)))))) -> 6 | D17: =(F17-C17)/C17 -> 0.6666666667 | F17: =(($F$6)+(IF($B17<$F$7,0,((IF(($B17-$F$7)>$F$11,($F$11/$F$14*$F$8),(IF(($B17-$F$7)>$F$11,$F$11,+($B17-$F$7)))/$F$14*$F$8)))+((IF(($B17-$F$7)>$F$12,(((($F$12-$F$11)/$F$14)*$F$9)),((IF(($B17-$F$7)>($F$12),($F$12-$F$11),(+($B17-$F$7)-(IF(($B17-$F$7)>$F$11,$F$11,+($B17-$F$7)))))))/$F$14*$F$9)))+((IF((IF(($B17-$F$7)>($F$13),($B17-$F$7)-($F$12),0))<1,0,(IF(($B17-$F$7)>($F$13),($B17-$F$7)-($F$12),0))/$F$14*$F$10)))))) -> 10 | G17: =(I17-F17)/F17 -> -0.266 | I17: =(($I$6)+(IF($B17<$I$7,0,((IF(($B17-$I$7)>$I$11,($I$11/$I$14*$I$8),(IF(($B17-$I$7)>$I$11,$I$11,+($B17-$I$7)))/$I$14*$I$8)))+((IF(($B17-$I$7)>$I$12,(((($I$12-$I$11)/$I$14)*$I$9)),((IF(($B17-$I$7)>($I$12),($I$12-$I$11),(+($B17-$I$7)-(IF(($B17-$I$7)>$I$11,$I$11,+($B17-$I$7)))))))/$I$14*$I$9)))+((IF((IF(($B17-$I$7)>($I$13),($B17-$I$7)-($I$12),0))<1,0,(IF(($B17-$I$7)>($I$13),($B17-$I$7)-($I$12),0))/$I$14*$I$10)))))) -> 7.34 | J17: =(+I17-C17)/C17 -> 0.2233333333
A18: 17 | B18: 50 | C18: =(($C$6)+(IF($B18<$C$7,0,((IF(($B18-$C$7)>$C$11,($C$11/$C$14*$C$8),(IF(($B18-$C$7)>$C$11,$C$11,+($B18-$C$7)))/$C$14*$C$8)))+((IF(($B18-$C$7)>$C$12,(((($C$12-$C$11)/$C$14)*$C$9)),((IF(($B18-$C$7)>($C$12),($C$12-$C$11),(+($B18-$C$7)-(IF(($B18-$C$7)>$C$11,$C$11,+($B18-$C$7)))))))/$C$14*$C$9)))+((IF((IF(($B18-$C$7)>($C$13),($B18-$C$7)-($C$12),0))<1,0,(IF(($B18-$C$7)>($C$13),($B18-$C$7)-($C$12),0))/$C$14*$C$10)))))) -> 9.4665 | D18: =(F18-C18)/C18 -> 0.4406591665 | F18: =(($F$6)+(IF($B18<$F$7,0,((IF(($B18-$F$7)>$F$11,($F$11/$F$14*$F$8),(IF(($B18-$F$7)>$F$11,$F$11,+($B18-$F$7)))/$F$14*$F$8)))+((IF(($B18-$F$7)>$F$12,(((($F$12-$F$11)/$F$14)*$F$9)),((IF(($B18-$F$7)>($F$12),($F$12-$F$11),(+($B18-$F$7)-(IF(($B18-$F$7)>$F$11,$F$11,+($B18-$F$7)))))))/$F$14*$F$9)))+((IF((IF(($B18-$F$7)>($F$13),($B18-$F$7)-($F$12),0))<1,0,(IF(($B18-$F$7)>($F$13),($B18-$F$7)-($F$12),0))/$F$14*$F$10)))))) -> 13.638 | G18: =(I18-F18)/F18 -> -0.2032189471 | I18: =(($I$6)+(IF($B18<$I$7,0,((IF(($B18-$I$7)>$I$11,($I$11/$I$14*$I$8),(IF(($B18-$I$7)>$I$11,$I$11,+($B18-$I$7)))/$I$14*$I$8)))+((IF(($B18-$I$7)>$I$12,(((($I$12-$I$11)/$I$14)*$I$9)),((IF(($B18-$I$7)>($I$12),($I$12-$I$11),(+($B18-$I$7)-(IF(($B18-$I$7)>$I$11,$I$11,+($B18-$I$7)))))))/$I$14*$I$9)))+((IF((IF(($B18-$I$7)>($I$13),($B18-$I$7)-($I$12),0))<1,0,(IF(($B18-$I$7)>($I$13),($B18-$I$7)-($I$12),0))/$I$14*$I$10)))))) -> 10.8665 | J18: =(+I18-C18)/C18 -> 0.1478899276
A19: 18 | B19: 100 | C19: =(($C$6)+(IF($B19<$C$7,0,((IF(($B19-$C$7)>$C$11,($C$11/$C$14*$C$8),(IF(($B19-$C$7)>$C$11,$C$11,+($B19-$C$7)))/$C$14*$C$8)))+((IF(($B19-$C$7)>$C$12,(((($C$12-$C$11)/$C$14)*$C$9)),((IF(($B19-$C$7)>($C$12),($C$12-$C$11),(+($B19-$C$7)-(IF(($B19-$C$7)>$C$11,$C$11,+($B19-$C$7)))))))/$C$14*$C$9)))+((IF((IF(($B19-$C$7)>($C$13),($B19-$C$7)-($C$12),0))<1,0,(IF(($B19-$C$7)>($C$13),($B19-$C$7)-($C$12),0))/$C$14*$C$10)))))) -> 12.933 | D19: 0.3358076239 | F19: =(($F$6)+(IF($B19<$F$7,0,((IF(($B19-$F$7)>$F$11,($F$11/$F$14*$F$8),(IF(($B19-$F$7)>$F$11,$F$11,+($B19-$F$7)))/$F$14*$F$8)))+((IF(($B19-$F$7)>$F$12,(((($F$12-$F$11)/$F$14)*$F$9)),((IF(($B19-$F$7)>($F$12),($F$12-$F$11),(+($B19-$F$7)-(IF(($B19-$F$7)>$F$11,$F$11,+($B19-$F$7)))))))/$F$14*$F$9)))+((IF((IF(($B19-$F$7)>($F$13),($B19-$F$7)-($F$12),0))<1,0,(IF(($B19-$F$7)>($F$13),($B19-$F$7)-($F$12),0))/$F$14*$F$10)))))) -> 17.276 | G19: -0.1668789072 | I19: =(($I$6)+(IF($B19<$I$7,0,((IF(($B19-$I$7)>$I$11,($I$11/$I$14*$I$8),(IF(($B19-$I$7)>$I$11,$I$11,+($B19-$I$7)))/$I$14*$I$8)))+((IF(($B19-$I$7)>$I$12,(((($I$12-$I$11)/$I$14)*$I$9)),((IF(($B19-$I$7)>($I$12),($I$12-$I$11),(+($B19-$I$7)-(IF(($B19-$I$7)>$I$11,$I$11,+($B19-$I$7)))))))/$I$14*$I$9)))+((IF((IF(($B19-$I$7)>($I$13),($B19-$I$7)-($I$12),0))<1,0,(IF(($B19-$I$7)>($I$13),($B19-$I$7)-($I$12),0))/$I$14*$I$10)))))) -> 14.393 | J19: 0.1128895075
A20: 19 | B20: 150 | C20: 16.3995 | D20: 0.275282783 | F20: 20.914 | G20: -0.1431816008 | I20: 17.9195 | J20: 0.09268575261
A21: 20 | B21: 200 | C21: 19.866 | D21: 0.2358803987 | F21: 24.552 | G21: -0.1265070055 | I21: 21.446 | J21: 0.07953287023
A22: 21 | B22: 250 | C22: 23.3325 | D22: 0.2081860066 | F22: 28.19 | G22: -0.1141362185 | I22: 24.9725 | J22: 0.07028822458
A23: 22 | B23: 300 | C23: 26.799 | D23: 0.1876562558 | F23: 31.828 | G23: -0.1045934397 | I23: 28.499 | J23: 0.06343520281
A24: 23 | B24: 350 | C24: 30.2655 | D24: 0.1718293106 | F24: 35.466 | G24: -0.09700840241 | I24: 32.0255 | J24: 0.05815202128
A25: 24 | B25: 400 | C25: 33.732 | D25: 0.1592553065 | F25: 39.104 | G25: -0.09083469722 | I25: 35.552 | J25: 0.05395470177
A26: 25 | B26: 450 | C26: 37.1985 | D26: 0.1490248263 | F26: 42.742 | G26: -0.0857119461 | I26: 39.0785 | J26: 0.0505396723
A27: 26 | B27: 500 | C27: 40.665 | D27: 0.1405385467 | F27: 46.38 | G27: -0.08139284174 | I27: 42.605 | J27: 0.04770687323
A28: 27 | B28: 550 | C28: 44.1315 | D28: 0.1333854503 | F28: 50.018 | G28: -0.07770202727 | I28: 46.1315 | J28: 0.04531910313
A29: 28 | B29: 600 | C29: 47.598 | D29: 0.1272742552 | F29: 53.656 | G29: -0.07451170419 | I29: 49.658 | J29: 0.04327912938
A30: 29 | B30: 650 | C30: 51.6295 | D30: 0.1206577635 | F30: 57.859 | G30: -0.08079123386 | I30: 53.1845 | J30: 0.03011844004
A31: 30 | B31: 700 | C31: 55.661 | D31: 0.1149997305 | F31: 62.062 | G31: -0.08622023138 | I31: 56.711 | J31: 0.01886419576
A32: 31 | B32: 750 | C32: 59.6925 | D32: 0.1101059597 | F32: 66.265 | G32: -0.09096053724 | I32: 60.2375 | J32: 0.009130125225
A33: 32 | B33: 800 | C33: 63.724 | D33: 0.1058313979 | F33: 70.468 | G33: -0.0951353806 | I33: 63.764 | J33: 0.0006277069864
A34: 33 | B34: 850 | C34: 67.7555 | D34: 0.102065515 | F34: 74.671 | G34: -0.09113979992 | I34: 67.8655 | J34: 0.00162348444
A35: 34 | B35: 900 | C35: 71.787 | D35: 0.09872260994 | F35: 78.874 | G35: -0.08757004843 | I35: 71.967 | J35: 0.002507417778
A36: 35 | B36: 950 | C36: 75.8185 | D36: 0.09573520974 | F36: 83.077 | G36: -0.08436149596 | I36: 76.0685 | J36: 0.003297348273
A37: 36 | B37: 1000 | C37: 79.85 | D37: 0.09304946775 | F37: 87.28 | G37: -0.0814619615 | I37: 80.17 | J37: 0.004007514089 | U37: =I17/I37 -> 0.09155544468 | V37: =I37-C37 -> 0.32
A38: 37 | B38: 1100 | C38: 87.913 | D38: 0.08841695767 | F38: 95.686 | G38: -0.07642706352 | I38: 88.373 | J38: 0.005232445713
A39: 38 | B39: 1200 | C39: 95.976 | D39: 0.08456280737 | F39: 104.092 | G39: -0.0722053568 | I39: 96.576 | J39: 0.006251562891
A40: 39 | B40: 1300 | C40: 104.039 | D40: 0.08130604869 | F40: 112.498 | G40: -0.06861455315 | I40: 104.779 | J40: 0.007112717346
A41: 40 | B41: 1400 | C41: 113.487 | D41: 0.07755954426 | F41: 122.289 | G41: -0.07610659994 | I41: 112.982 | J41: -0.004449848881
A42: 41 | B42: 1500 | C42: 122.935 | D42: 0.07438890471 | F42: 132.08 | G42: -0.08248788613 | I42: 121.185 | J42: -0.01423516492
A43: 42 | B43: 1600 | C43: 132.383 | D43: 0.07167083387 | F43: 141.871 | G43: -0.07804977761 | I43: 130.798 | J43: -0.01197283639
A44: 43 | B44: 1700 | C44: 141.831 | D44: 0.06931488885 | F44: 151.662 | G44: -0.07418470019 | I44: 140.411 | J44: -0.01001191559
A45: 44 | B45: 1800 | C45: 151.279 | D45: 0.06725322087 | F45: 161.453 | G45: -0.07078840282 | I45: 150.024 | J45: -0.008295930037
A46: 45 | B46: 1900 | C46: 160.727 | D46: 0.06543393456 | F46: 171.244 | G46: -0.06778047698 | I46: 159.637 | J46: -0.006781685716
A47: 46 | B47: 2000 | C47: 170.175 | D47: 0.06381665932 | F47: 181.035 | G47: -0.06509790924 | I47: 169.25 | J47: -0.00543558102
A48: 47 | B48: 2100 | C48: 179.623 | D48: 0.06236951838 | F48: 190.826 | G48: -0.06269061868 | I48: 178.863 | J48: -0.004231083993
A49: 48 | B49: 2200 | C49: 189.071 | D49: 0.06106700657 | F49: 200.617 | G49: -0.06051830104 | I49: 188.476 | J49: -0.003146965955
A50: 49 | B50: 2300 | C50: 198.519 | D50: 0.05988847415 | F50: 210.408 | G50: -0.05854815406 | I50: 198.089 | J50: -0.002166039523
A51: 50 | B51: 2600 | C51: 226.863 | D51: 0.05694185478 | F51: 239.781 | G51: -0.05360307948 | I51: 226.928 | J51: 0.000286516532
A52: 51 | B52: 2800 | C52: 245.759 | D52: 0.05535504295 | F52: 259.363 | G52: -0.05092862128 | I52: 246.154 | J52: 0.001607265655
A53: 52 | B53: 3000 | C53: 264.655 | D53: 0.05399482345 | F53: 278.945 | G53: -0.04862965818 | I53: 265.38 | J53: 0.002739415465
A54: 53 | B54: 3200 | C54: 283.551 | D54: 0.05281589555 | F54: 298.527 | G54: -0.04663229792 | I54: 284.606 | J54: 0.003720671061
A55: 54 | B55: 3400 | C55: 302.447 | D55: 0.05178427956 | F55: 318.109 | G55: -0.04488084273 | I55: 303.832 | J55: 0.004579314723
A56: 55 | B56: 3600 | C56: 321.343 | D56: 0.05087398823 | F56: 337.691 | G56: -0.04333251404 | I56: 323.058 | J56: 0.005336976377
A57: 56 | B57: 3800 | C57: 340.239 | D57: 0.05006480739 | F57: 357.273 | G57: -0.04195391199 | I57: 342.284 | J57: 0.006010480868
A58: 57 | B58: 4000 | C58: 359.135 | D58: 0.04934077715 | F58: 376.855 | G58: -0.04071857876 | I58: 361.51 | J58: 0.006613112061
A59: 58 | B59: 4200 | C59: 378.031 | D59: 0.04868912867 | F59: 396.437 | G59: -0.03960528407 | I59: 380.736 | J59: 0.00715549783
A60: 59 | B60: 4400 | C60: 396.927 | D60: 0.0480995246 | F60: 416.019 | G60: -0.03859679486 | I60: 399.962 | J60: 0.007646242256
A61: 60 | B61: 4600 | C61: 415.823 | D61: 0.04756350659 | F61: 435.601 | G61: -0.03767897686 | I61: 419.188 | J61: 0.008092385462
A62: 61 | B62: 4800 | C62: 434.719 | D62: 0.04707408694 | F62: 455.183 | G62: -0.03684012804 | I62: 438.414 | J62: 0.008499743512
A63: 62 | B63: 5300 | C63: 481.959 | D63: 0.04601843725 | F63: 504.138 | G63: -0.03502810738 | I63: 486.479 | J63: 0.009378391108
A64: 63 | B64: 5800 | C64: 529.199 | D64: 0.0451512569 | F64: 553.093 | G64: -0.03353685547 | I64: 534.544 | J64: 0.01010017026
A65: 64 | B65: 6300 | C65: 576.439 | D65: 0.04442620989 | F65: 602.048 | G65: -0.03228812321 | I65: 582.609 | J65: 0.01070364774
A66: 65 | B66: 6800 | C66: 623.679 | D66: 0.04381099893 | F66: 651.003 | G66: -0.03122719865 | I66: 630.674 | J66: 0.01121570552
A67: 66 | B67: 7300 | C67: 670.919 | D67: 0.04328242306 | F67: 699.958 | G67: -0.03031467602 | I67: 678.739 | J67: 0.01165565441
A68: 67 | B68: 7800 | C68: 718.159 | D68: 0.04282338591 | F68: 748.913 | G68: -0.02952145309 | I68: 726.804 | J68: 0.01203772424
A69: 68 | B69: 8300 | C69: 765.399 | D69: 0.04242101179 | F69: 797.868 | G69: -0.02882557014 | I69: 774.869 | J69: 0.01237263179
A70: 69 | B70: 8800 | C70: 812.639 | D70: 0.04206541896 | F70: 846.823 | G70: -0.02821014545 | I70: 822.934 | J70: 0.01266860193
A71: 70 | B71: 9300 | C71: 859.879 | D71: 0.04174889723 | F71: 895.778 | G71: -0.02766198768 | I71: 870.999 | J71: 0.01293205207
A72: 71 | B72: 9800 | C72: 907.119 | D72: 0.04146534247 | F72: 944.733 | G72: -0.02717063975 | I72: 919.064 | J72: 0.01316806285
A73: 72 | B73: 10300 | C73: 954.359 | D73: 0.04120985918 | F73: 993.688 | G73: -0.02672770528 | I73: 967.129 | J73: 0.01338070894
A74: 73 | B74: 10800 | C74: 1001.599 | D74: 0.04097847542 | F74: 1042.643 | G74: -0.02632636482 | I74: 1015.194 | J74: 0.0135732963
A75: 74 | B75: 11300 | C75: 1048.839 | D75: 0.04076793483 | F75: 1091.598 | G75: -0.02596102228 | I75: 1063.259 | J75: 0.01374853529
A76: 75 | B76: 11800 | C76: 1096.079 | D76: 0.04057554246 | F76: 1140.553 | G76: -0.02562704232 | I76: 1111.324 | J76: 0.01390866899
A77: 76 | B77: 12300 | C77: 1143.319 | D77: 0.04039904873 | F77: 1189.508 | G77: -0.0253205527 | I77: 1159.389 | J77: 0.01405556979
A78: 77 | B78: 12800 | C78: 1190.559 | D78: 0.04023656114 | F78: 1238.463 | G78: -0.02503829343 | I78: 1207.454 | J78: 0.01419081289
A79: 78 | B79: 13300 | C79: 1237.799 | D79: 0.04008647608 | F79: 1287.418 | G79: -0.02477750039 | I79: 1255.519 | J79: 0.01431573301
A80: 79 | B80: 13800 | C80: 1285.039 | D80: 0.03994742572 | F80: 1336.373 | G80: -0.02453581448 | I80: 1303.584 | J80: 0.01443146862
A81: 80 | B81: 14300 | C81: 1332.279 | D81: 0.03981823627 | F81: 1385.328 | G81: -0.02431121005 | I81: 1351.649 | J81: =(+I81-C81)/C81 -> 0.01453899671
A82: 81 | B82: 14800 | C82: 1379.519 | D82: =(F82-C82)/C82 -> 0.0396978947 | F82: 1434.283 | G82: =(I82-F82)/F82 -> -0.02410193804 | I82: 1399.714 | J82: 0.01463916046
A83: 82 | B83: 15300 | C83: =(($C$6)+(IF($B83<$C$7,0,((IF(($B83-$C$7)>$C$11,($C$11/$C$14*$C$8),(IF(($B83-$C$7)>$C$11,$C$11,+($B83-$C$7)))/$C$14*$C$8)))+((IF(($B83-$C$7)>$C$12,(((($C$12-$C$11)/$C$14)*$C$9)),((IF(($B83-$C$7)>($C$12),($C$12-$C$11),(+($B83-$C$7)-(IF(($B83-$C$7)>$C$11,$C$11,+($B83-$C$7)))))))/$C$14*$C$9)))+((IF((IF(($B83-$C$7)>($C$13),($B83-$C$7)-($C$12),0))<1,0,(IF(($B83-$C$7)>($C$13),($B83-$C$7)-($C$12),0))/$C$14*$C$10)))))) -> 1426.759 | D83: 0.03958552215 | F83: =(($F$6)+(IF($B83<$F$7,0,((IF(($B83-$F$7)>$F$11,($F$11/$F$14*$F$8),(IF(($B83-$F$7)>$F$11,$F$11,+($B83-$F$7)))/$F$14*$F$8)))+((IF(($B83-$F$7)>$F$12,(((($F$12-$F$11)/$F$14)*$F$9)),((IF(($B83-$F$7)>($F$12),($F$12-$F$11),(+($B83-$F$7)-(IF(($B83-$F$7)>$F$11,$F$11,+($B83-$F$7)))))))/$F$14*$F$9)))+((IF((IF(($B83-$F$7)>($F$13),($B83-$F$7)-($F$12),0))<1,0,(IF(($B83-$F$7)>($F$13),($B83-$F$7)-($F$12),0))/$F$14*$F$10)))))) -> 1483.238 | G83: -0.02390648028 | I83: =(($I$6)+(IF($B83<$I$7,0,((IF(($B83-$I$7)>$I$11,($I$11/$I$14*$I$8),(IF(($B83-$I$7)>$I$11,$I$11,+($B83-$I$7)))/$I$14*$I$8)))+((IF(($B83-$I$7)>$I$12,(((($I$12-$I$11)/$I$14)*$I$9)),((IF(($B83-$I$7)>($I$12),($I$12-$I$11),(+($B83-$I$7)-(IF(($B83-$I$7)>$I$11,$I$11,+($B83-$I$7)))))))/$I$14*$I$9)))+((IF((IF(($B83-$I$7)>($I$13),($B83-$I$7)-($I$12),0))<1,0,(IF(($B83-$I$7)>($I$13),($B83-$I$7)-($I$12),0))/$I$14*$I$10)))))) -> 1447.779 | J83: 0.01473269137
A84: 83 | B84: 15800 | C84: 1473.999 | D84: 0.03948035243 | F84: 1532.193 | G84: -0.02372351264 | I84: 1495.844 | J84: 0.01482022715
A85: 84 | B85: 16300 | C85: 1521.239 | D85: 0.03938171451 | F85: 1581.148 | G85: -0.02355187497 | I85: 1543.909 | J85: 0.01490232633
A86: 85 | B86: 16800 | C86: 1568.479 | D86: 0.03928901821 | F86: 1630.103 | G86: -0.02339054649 | I86: 1591.974 | J86: 0.01497948012
A87: 86 | B87: 17300 | C87: 1615.719 | D87: 0.03920174238 | F87: 1679.058 | G87: -0.02323862547 | I87: 1640.039 | J87: 0.01505212231
A88: 87 | B88: 17800 | C88: 1662.959 | D88: 0.03911942507 | F88: 1728.013 | G88: -0.02309531236 | I88: 1688.104 | J88: 0.01512063737
A89: 88 | B89: 18300 | C89: 1710.199 | D89: 0.03904165539 | F89: 1776.968 | G89: -0.02295989573 | I89: 1736.169 | J89: 0.01518536732
A90: 89 | B90: 18800 | C90: 1757.439 | D90: 0.0389680666 | F90: 1825.923 | G90: -0.02283174044 | I90: 1784.234 | J90: 0.01524661738
A91: 90 | B91: 19300 | C91: 1804.679 | D91: 0.0388983304 | F91: 1874.878 | G91: -0.02271027768 | I91: 1832.299 | J91: 0.01530466083
A92: 91 | B92: 19800 | C92: 1851.919 | D92: 0.03883215195 | F92: 1923.833 | G92: -0.02259499655 | I92: 1880.364 | J92: 0.01535974306
A93: 92 | B93: 20800 | C93: 1946.399 | D93: 0.03870943214 | F93: 2021.743 | G93: -0.02238118297 | I93: 1976.494 | J93: 0.01546188628
A94: 93 | B94: 21800 | C94: 2040.879 | D94: 0.03859807465 | F94: 2119.653 | G94: -0.02218712214 | I94: 2072.624 | J94: 0.01555457232
A95: 94 | B95: 22800 | C95: 2135.359 | D95: 0.0384965713 | F95: 2217.563 | G95: -0.02201019768 | I95: 2168.754 | J95: 0.01563905648
A96: 95 | B96: 23800 | C96: 2229.839 | D96: 0.0384036695 | F96: 2315.473 | G96: -0.02184823576 | I96: 2264.884 | J96: 0.01571638132
A97: 96 | B97: 24800 | C97: 2324.319 | D97: 0.03831832033 | F97: 2413.383 | G97: -0.0216994153 | I97: 2361.014 | J97: 0.01578741989
A98: 97 | B98: 25800 | C98: 2418.799 | D98: 0.03823963876 | F98: 2511.293 | G98: -0.02156219923 | I98: 2457.144 | J98: 0.01585290882
A99: 98 | B99: 26800 | C99: 2513.279 | D99: 0.03816687284 | F99: 2609.203 | G99: -0.0214352812 | I99: 2553.274 | J99: 0.01591347399
A100: 99 | B100: 27800 | C100: 2607.759 | D100: 0.03809937958 | F100: 2707.113 | G100: -0.02131754382 | I100: 2649.404 | J100: 0.01596965057
A101: 100 | B101: 28800 | C101: 2702.239 | D101: 0.03803660594 | F101: 2805.023 | G101: -0.02120802575 | I101: 2745.534 | J101: 0.01602189888
A102: 101 | B102: 29800 | C102: 2796.719 | D102: 0.03797807359 | F102: 2902.933 | G102: -0.02110589531 | I102: 2841.664 | J102: 0.01607061703
A103: 102 | B103: 30800 | C103: 2891.199 | D103: 0.03792336674 | F103: 3000.843 | G103: -0.0210104294 | I103: 2937.794 | J103: 0.01611615112
A104: 103 | B104: 31800 | C104: 2985.679 | D104: 0.03787212222 | F104: 3098.753 | G104: -0.02092099628 | I104: 3033.924 | J104: 0.01615880341
A105: 104 | B105: 32800 | C105: 3080.159 | D105: 0.03782402142 | F105: 3196.663 | G105: -0.02083704163 | I105: 3130.054 | J105: 0.01619883909
A106: 105 | B106: 33800 | C106: 3174.639 | D106: 0.03777878367 | F106: 3294.573 | G106: -0.020758077 | I106: 3226.184 | J106: 0.01623649177
A107: 106 | B107: 34800 | C107: 3269.119 | D107: 0.03773616072 | F107: 3392.483 | G107: -0.02068367034 | I107: 3322.314 | J107: 0.01627196807
A108: 107 | B108: 35800 | C108: 3363.599 | D108: 0.03769593224 | F108: 3490.393 | G108: -0.02061343809 | I108: 3418.444 | J108: 0.01630545139
A109: 108 | B109: 36800 | C109: 3458.079 | D109: 0.03765790197 | F109: 3588.303 | G109: -0.02054703853 | I109: 3514.574 | J109: 0.01633710508
A110: 109 | B110: 37800 | C110: 3552.559 | D110: 0.03762189453 | F110: 3686.213 | G110: -0.02048416627 | I110: 3610.704 | J110: 0.01636707511
A111: 110 | B111: 38800 | C111: 3647.039 | D111: 0.03758775269 | F111: 3784.123 | G111: -0.02042454751 | I111: 3706.834 | J111: 0.01639549234
A112: 111 | B112: 39800 | C112: 3741.519 | D112: 0.03755533515 | F112: 3882.033 | G112: -0.02036793608 | I112: 3802.964 | J112: 0.0164224744
A113: 112 | B113: 49800 | C113: 4686.319 | D113: 0.03730305171 | F113: 4861.133 | G113: -0.01992724741 | I113: 4764.264 | J113: 0.01663245716
A114: 113 | B114: 59800 | C114: 5631.119 | D114: 0.03713542548 | F114: 5840.233 | G114: -0.01963431938 | I114: 5725.564 | J114: 0.01677197729
A115: 114 | B115: 69800 | C115: 6575.919 | D115: 0.03701596689 | F115: 6819.333 | G115: -0.01942550686 | I115: 6686.864 | J115: 0.01687140611
A116: 115 | B116: 79800 | C116: 7520.719 | D116: 0.03692652258 | F116: 7798.433 | G116: -0.01926912753 | I116: 7648.164 | J116: 0.01694585318
A117: 116 | B117: 89800 | C117: 8465.519 | D117: 0.03685704326 | F117: 8777.533 | G117: -0.01914763522 | I117: 8609.464 | J117: 0.01700368282
A118: 117 | B118: 99800 | C118: 9410.319 | D118: 0.03680151544 | F118: 9756.633 | G118: -0.01905052696 | I118: 9570.764 | J118: 0.01704990022
A119: 118 | B119: 109800 | C119: 10355.119 | D119: 0.03675612033 | F119: 10735.733 | G119: -0.01897113127 | I119: 10532.064 | J119: 0.01708768388
A120: 119 | B120: 119800 | C120: 11299.919 | D120: 0.0367183163 | F120: 11714.833 | G120: -0.01890500701 | I120: 11493.364 | J120: 0.01711914926
A121: 120 | B121: 129800 | C121: 12244.719 | D121: 0.03668634617 | F121: 12693.933 | G121: -0.01884908326 | I121: 12454.664 | J121: 0.01714575892
A122: 121 | B122: 139800 | C122: 13189.519 | D122: 0.03665895625 | F122: 13673.033 | G122: -0.01880116869 | I122: 13415.964 | J122: 0.01716855634
A123: 122 | B123: 149800 | C123: 14134.319 | D123: 0.03663522806 | F123: 14652.133 | G123: -0.01875965772 | I123: 14377.264 | J123: 0.01718830599
A124: 123 | B124: 159800 | C124: 15079.119 | D124: 0.0366144733 | F124: 15631.233 | G124: -0.01872334703 | I124: 15338.564 | J124: 0.01720558078
A125: 124 | B125: 169800 | C125: 16023.919 | D125: 0.03659616602 | F125: 16610.333 | G125: -0.01869131703 | I125: 16299.864 | J125: 0.01722081845
A126: 125 | B126: 179800 | C126: 16968.719 | D126: 0.0365798974 | F126: 17589.433 | G126: -0.01866285286 | I126: 17261.164 | J126: 0.01723435929
A127: 126 | B127: 189800 | C127: 17913.519 | D127: 0.03656534487 | F127: 18568.533 | G127: -0.01863739047 | I127: 18222.464 | J127: 0.01724647178
A128: 127 | B128: 199800 | C128: 18858.319 | D128: 0.03655225049 | F128: 19547.633 | G128: -0.0186144788 | I128: 19183.764 | J128: 0.01725737061
A129: 128 | B129: 209800 | C129: 19803.119 | D129: 0.03654040558 | F129: 20526.733 | G129: -0.01859375284 | I129: 20145.064 | J129: 0.01726722947
A130: 129 | B130: 219800 | C130: 20747.919 | D130: 0.03652963943 | F130: 21505.833 | G130: -0.01857491407 | I130: 21106.364 | J130: 0.01727619045
A131: 130 | B131: 229800 | C131: 21692.719 | D131: 0.03651981109 | F131: 22484.933 | G131: -0.01855771596 | I131: 22067.664 | J131: 0.01728437085
A132: 131 | B132: 239800 | C132: 22637.519 | D132: 0.03651080315 | F132: 23464.033 | G132: -0.01854195312 | I132: 23028.964 | J132: 0.01729186842
A133: 132 | B133: 249800 | C133: 23582.319 | D133: 0.03650251699 | F133: 24443.133 | G133: -0.01852745309 | I133: 23990.264 | J133: 0.01729876523
A134: 133 | B134: 349800 | C134: 33030.319 | D134: 0.03644572733 | F134: 34234.133 | G134: -0.01842807002 | I134: 33603.264 | J134: 0.0173460329

Sheet Rate Design (hidden)
A1: PRESENT RATES | D1: 1 | E1: 2 | F1: 3 | G1: 4 | H1: 5 | I1: 6 | N1: Tiers - used for bill comparisons
C2: TOTAL | D2: SCH. 1 | E2: SCH. 11,12 | F2: SCH. 21,22 | G2: SCH. 25 | H2: SCH. 30, 31, 32 | L2: Range Name | N2: SCHEDULE 1 | O2: SCH. 11,12 | P2: SCH. 21,22 | Q2: SCHEDULE 25 | R2: SCH. 30, 31, 32
B3: Base Tariff Rates
A4: 1 | B4: BASIC CHARGE | D4: 6 | E4: 12 | F4: 0 | G4: 0 | H4: 10
A5: 2 | B5: BLOCK 1 PER KWH | D5: 6.914 | E5: 10.891 | F5: 6.819 | G5: 5.373 | H5: 9.114 | N5: 600 | O5: 3650 | P5: 250000 | Q5: 500000
A6: 3 | B6: BLOCK 2 PER KWH | D6: 8.044 | E6: 8.002 | F6: 6.097 | G6: 4.834 | H6: 6.511 | N6: 1300 | O6: 9999999 | P6: 9999999 | Q6: 9999999
A7: 4 | B7: BLOCK 3 PER KWH | D7: 9.429 | E7: 0 | F7: 0 | G7: 4.391 | H7: 0 | L7: Rates_Base_Present | N7: 9999999 | O7: 9999999 | P7: 9999999 | Q7: 9999999
A8: 5 | B8: BLOCK 4 PER KWH
A9: 6 | B9: DEMAND CHARGE | D9: 0 | E9: 0 | F9: 400 | G9: 14000 | H9: 0
A10: 7 | B10: DEMAND BLOCK 1 | D10: 0 | E10: 5.75 | F10: 5.25 | G10: 4.25 | H10: 0 | N10: 0 | O10: 20 | P10: 50 | Q10: 3000
B12: Billing Rates | D12: =IF(D13<>'Pres & Prop Rev'!D$5,#VALUE!,"") ->  | E12: =IF(E13<>'Pres & Prop Rev'!E$5,#VALUE!,"") ->  | F12: =IF(F13<>'Pres & Prop Rev'!F$5,#VALUE!,"") ->  | G12: =IF(G13<>'Pres & Prop Rev'!G$5,#VALUE!,"") ->  | H12: =IF(H13<>'Pres & Prop Rev'!H$5,#VALUE!,"") -> 
D13: SCHEDULE 1 | E13: SCH. 11,12 | F13: SCH. 21,22 | G13: SCHEDULE 25 | H13: SCH. 30, 31, 32
A14: 1 | B14: BASIC CHARGE | D14: =D4 -> 6 | E14: =E4 -> 12 | F14: =F4 -> 0 | G14: =G4 -> 0 | H14: =H4 -> 10
A15: 2 | B15: BLOCK 1 PER KWH | D15: =D5-0.364+0.383 -> 6.933 | E15: =E5-0+0.544 -> 11.435 | F15: =F5-0+0.401 -> 7.22 | G15: =G5+0.261 -> 5.634 | H15: =H5-0+0.355 -> 9.469 | N15: =N5 -> 600 | O15: =O5 -> 3650 | P15: =P5 -> 250000 | Q15: =Q5 -> 500000
A16: 3 | B16: BLOCK 2 PER KWH | D16: =D6-0.364+0.383 -> 8.063 | E16: =E6-0+0.544 -> 8.546 | F16: =F6-0+0.401 -> 6.498 | G16: =G6+0.261 -> 5.095 | H16: =H6-0+0.355 -> 6.866 | N16: =N6 -> 1300 | O16: 9999999 | P16: 9999999 | Q16: 9999999
A17: 4 | B17: BLOCK 3 PER KWH | D17: =D7-0.364+0.383 -> 9.448 | G17: 4.652 | L17: Rates_Billing_Present | N17: 9999999 | O17: 9999999 | P17: 9999999 | Q17: 9999999
A18: 5 | B18: BLOCK 4 PER KWH
A19: 6 | B19: DEMAND CHARGE | F19: =F9 -> 400 | G19: =G9 -> 14000
A20: 7 | B20: DEMAND BLOCK 1 | E20: =E10 -> 5.75 | F20: =F10 -> 5.25 | G20: =G10 -> 4.25 | N20: =N10 -> 0 | O20: =O10 -> 20 | P20: =P10 -> 50 | Q20: =Q10 -> 3000
A22: PROPOSED RATES
B24: Base Tariff Rates | D24: =IF(D25<>'Pres & Prop Rev'!D$5,#VALUE!,"") ->  | E24: =IF(E25<>'Pres & Prop Rev'!E$5,#VALUE!,"") ->  | F24: =IF(F25<>'Pres & Prop Rev'!F$5,#VALUE!,"") ->  | G24: =IF(G25<>'Pres & Prop Rev'!G$5,#VALUE!,"") ->  | H24: =IF(H25<>'Pres & Prop Rev'!H$5,#VALUE!,"") -> 
D25: SCHEDULE 1 | E25: SCH. 11,12 | F25: SCH. 21,22 | G25: SCHEDULE 25 | H25: SCH. 30, 31, 32 | T25: Rounding
A26: 1 | B26: BASIC CHARGE | D26: =ROUND(D62,$T26) -> 7.34 | E26: =ROUND(E62,$T26) -> 12 | F26: =ROUND(F62,$T26) -> 0 | G26: =ROUND(G62,$T26) -> 0 | H26: =ROUND(H62,$T26) -> 13.01 | T26: 3 | U26: 2
A27: 2 | B27: BLOCK 1 PER KWH | D27: =ROUND(D85,$T27) -> 7.034 | E27: 10.661 | F27: 6.538 | G27: 5.245 | H27: 9.168 | N27: 800 | O27: 3650 | P27: 250000 | Q27: 500000 | T27: 3 | U27: 3
A28: 3 | B28: BLOCK 2 PER KWH | D28: 8.184 | E28: 7.833 | F28: 5.844 | G28: 4.719 | H28: 6.55 | N28: 1500 | O28: 9999999 | P28: 9999999 | Q28: 6000000 | T28: 3 | U28: 3
A29: 4 | B29: BLOCK 3 PER KWH | D29: 9.594 | E29: 0 | F29: 0 | G29: 4.287 | H29: 0 | L29: Rates_Base_Proposed | N29: 9999999 | O29: 9999999 | P29: 9999999 | Q29: 99999999 | T29: 3 | U29: 3
A30: 5 | B30: BLOCK 4 PER KWH | T30: 3 | U30: 3
A31: 6 | B31: DEMAND CHARGE | D31: =ROUND(D66,$T31) -> 0 | E31: =ROUND(E66,$T31) -> 0 | F31: =ROUND(F66,$T31) -> 400 | G31: =ROUND(G66,$T31) -> 14000 | H31: =ROUND(H66,$T31) -> 0 | T31: 2 | U31: 2
A32: 7 | B32: DEMAND BLOCK 1 | D32: =ROUND(D69,$T32) -> 0 | E32: =ROUND(E69,$T32) -> 5.75 | F32: =ROUND(F69,$T32) -> 5.75 | G32: =ROUND(G69,$T32) -> 5.75 | H32: =ROUND(H69,$T32) -> 0 | N32: 0 | O32: 20 | P32: 50 | Q32: 3000 | T32: 2 | U32: 2
B34: Billing Rates | D34: =IF(D35<>'Pres & Prop Rev'!D$5,#VALUE!,"") ->  | E34: =IF(E35<>'Pres & Prop Rev'!E$5,#VALUE!,"") ->  | F34: =IF(F35<>'Pres & Prop Rev'!F$5,#VALUE!,"") ->  | G34: =IF(G35<>'Pres & Prop Rev'!G$5,#VALUE!,"") ->  | H34: =IF(H35<>'Pres & Prop Rev'!H$5,#VALUE!,"") -> 
D35: SCHEDULE 1 | E35: SCH. 11,12 | F35: SCH. 21,22 | G35: SCHEDULE 25 | H35: SCH. 30, 31, 32 | S35: LIRAP/DSM increase
A36: 1 | B36: BASIC CHARGE | D36: =D26 -> 7.34 | E36: =E26 -> 12 | F36: =F26 -> 0 | G36: =G26 -> 0 | H36: =H26 -> 13.01 | S36: 1 | T36: 11 | U36: 21 | V36: 25 | W36: 31
A37: 2 | B37: BLOCK 1 PER KWH | D37: =D27-0.364+0.383+0*ERM -> 7.053 | E37: =E27+0.544+0*ERM -> 11.205 | F37: =F27+0.401+0*ERM -> 6.939 | G37: =G27+0.261+0*ERM -> 5.506 | H37: =H27+0.355+0*ERM -> 9.523 | N37: =N27 -> 800 | O37: 3650 | P37: 250000 | Q37: 500000 | S37: 0 | T37: 0 | U37: 0 | V37: 0 | W37: 0
A38: 3 | B38: BLOCK 2 PER KWH | D38: =D28-0.364+0.383+0*ERM -> 8.203 | E38: =E28+0.544+0*ERM -> 8.377 | F38: =F28+0.401+0*ERM -> 6.245 | G38: =G28+0.261+0*ERM -> 4.98 | H38: =H28+0.355+0*ERM -> 6.905 | N38: 1500 | O38: 9999999 | P38: 9999999 | Q38: 6000000 | S38: =S$37 -> 0 | T38: =T$37 -> 0 | U38: =U$37 -> 0 | V38: =V$37 -> 0 | W38: =W$37 -> 0
A39: 4 | B39: BLOCK 3 PER KWH | D39: =D29-0.364+0.383+0*ERM -> 9.613 | G39: =G29+0.261+0*ERM -> 4.548 | L39: Rates_Billing_Proposed | N39: 9999999 | O39: 9999999 | P39: 9999999 | Q39: 99999999 | S39: =S$37 -> 0 | T39: 0 | U39: 0 | V39: 0 | W39: 0
A40: 5 | B40: BLOCK 4 PER KWH | S40: 0 | T40: 0 | U40: 0 | V40: 0 | W40: 0
A41: 6 | B41: DEMAND CHARGE | F41: =F31 -> 400 | G41: =G31 -> 14000
A42: 7 | B42: DEMAND BLOCK 1 | E42: =E32 -> 5.75 | F42: =F32 -> 5.75 | G42: =G32 -> 5.75 | N42: =N32 -> 0 | O42: =O32 -> 20 | P42: =P32 -> 50 | Q42: =Q32 -> 3000
D45: 0 | E45: 0) ERM=0; 1) ERM as is
B47: Proposed Rate Workup - from Pres & Prop Rev tab
B49: KILOWATT HOURS (KWHS)
B50: BLOCK 1 | C50: =SUM(D50:H50) -> 3435826742 | D50: ='Pres & Prop Rev'!D31 -> 1545098943 | E50: ='Pres & Prop Rev'!E31 -> 376282319 | F50: ='Pres & Prop Rev'!F31 -> 1340751925 | G50: ='Pres & Prop Rev'!G31 -> 132000000 | H50: ='Pres & Prop Rev'!H31 -> 41693555
B51: BLOCK 2 | C51: =SUM(D51:H51) -> 1415952466 | D51: ='Pres & Prop Rev'!D32 -> 536148271 | E51: ='Pres & Prop Rev'!E32 -> 111947923 | F51: ='Pres & Prop Rev'!F32 -> 147736411 | G51: ='Pres & Prop Rev'!G32 -> 534573579 | H51: ='Pres & Prop Rev'!H32 -> 85546282
B52: BLOCK 3 | C52: =SUM(D52:H52) -> 737045330 | D52: ='Pres & Prop Rev'!D33 -> 340356550 | E52: ='Pres & Prop Rev'!E33 -> 0 | F52: ='Pres & Prop Rev'!F33 -> 0 | G52: ='Pres & Prop Rev'!G33 -> 396688780 | H52: ='Pres & Prop Rev'!H33 -> 0
B53: ADJ. TO ACTUAL/EE ADJ | C53: =SUM(D53:H53) -> 1889666 | D53: ='Pres & Prop Rev'!D41+'Pres & Prop Rev'!D38 -> 3422058 | E53: ='Pres & Prop Rev'!E41+'Pres & Prop Rev'!E38 -> 1830176 | F53: ='Pres & Prop Rev'!F41+'Pres & Prop Rev'!F38 -> 32775 | G53: ='Pres & Prop Rev'!G41+'Pres & Prop Rev'!G38 -> 0 | H53: ='Pres & Prop Rev'!H41+'Pres & Prop Rev'!H38 -> -3395343
B54: WEATHER & U/B KWHS | C54: =SUM(D54:H54) -> -41744515 | D54: ='Pres & Prop Rev'!D44 -> -34939612 | E54: ='Pres & Prop Rev'!E44 -> -488235 | F54: ='Pres & Prop Rev'!F44 -> -6670552 | G54: ='Pres & Prop Rev'!G44 -> 0 | H54: ='Pres & Prop Rev'!H44 -> 353884
B55: TOTAL PROFORMA KWHS | C55: =IF(ROUND(SUM(D55:I55),3)<>ROUND(SUM(C50:C54),3),#VALUE!,SUM(D55:I55)) -> 5548969689 | D55: =SUM(D50:D54) -> 2390086210 | E55: =SUM(E50:E54) -> 489572183 | F55: =SUM(F50:F54) -> 1481850559 | G55: =SUM(G50:G54) -> 1063262359 | H55: =SUM(H50:H54) -> 124198378
B56: TOTAL BILLS | D56: ='Pres & Prop Rev'!D48 -> 2417371 | E56: ='Pres & Prop Rev'!E48 -> 339736 | F56: ='Pres & Prop Rev'!F48 -> 32183 | G56: ='Pres & Prop Rev'!G48 -> 264 | H56: ='Pres & Prop Rev'!H48 -> 28803
B57: EXCESS DEMAND | D57: ='Pres & Prop Rev'!D50 -> 0 | E57: ='Pres & Prop Rev'!E50 -> 230655 | F57: ='Pres & Prop Rev'!F50 -> 2667634 | G57: ='Pres & Prop Rev'!G50 -> 1258425 | H57: ='Pres & Prop Rev'!H50 -> 0
J58: Proposed rates: | K58: Formulas to copy
B59: Proposed Revenue | C59: =SUM(D59:I59) -> 447256482.4 | D59: =ROR!D46 -> 200211947.1 | E59: =ROR!E46 -> 54454170.69 | F59: =ROR!F46 -> 124131166.1 | G59: =ROR!G46 -> 58879167.37 | H59: =ROR!H46 -> 9580031.156 | J59: same as current | K59: FLOOR | L59: CEILING | M59: OTHER
B60: Targeted Rate Increase | C60: =ROR!C47 -> -0.00288285121 | D60: =ROR!D47 -> 0.008832792065 | E60: =ROR!E47 -> -0.01909120787 | F60: =ROR!F47 -> -0.02198086935 | G60: =ROR!G47 -> 0.01184339863 | H60: =ROR!H47 -> 0.01494132384 | J60: diff than current
B61: Present Basic Charge | D61: =D4 -> 6 | E61: =E4 -> 12 | F61: =F4 -> 0 | G61: =G4 -> 0 | H61: =H4 -> 10
B62: BASIC CHARGE | D62: 7.34 | E62: 12 | F62: 0 | G62: 0 | H62: 13.01 | K62: =FLOOR(K61*(1+K$60),$K63) -> 0 | L62: =CEILING(L61*(1+L$60),$L63) -> 0 | M62: =M61*(1+M$60) -> 0
B63: % D in Basic Charge | D63: =IF(D61,D62/D61-1,0) -> 0.2233333333 | E63: =IF(E61,E62/E61-1,0) -> 0 | F63: =IF(F61,F62/F61-1,0) -> 0 | G63: =IF(G61,G62/G61-1,0) -> 0 | H63: =IF(H61,H62/H61-1,0) -> 0.301 | K63: 0.05 | L63: 0.05
B64: Basic Charge Revenue | C64: =SUM(D64:I64) -> 22195062.17 | D64: =D56*D62 -> 17743503.14 | E64: =E56*E62 -> 4076832 | F64: =F56*F62 -> 0 | G64: =G56*G62 -> 0 | H64: =H56*H62 -> 374727.03
B65: Present Demand Block 1 | D65: =D9 -> 0 | E65: =E9 -> 0 | F65: =F9 -> 400 | G65: =G9 -> 14000 | H65: =H9 -> 0
B66: DEMAND BLOCK 1 | F66: 400 | G66: 14000 | K66: =FLOOR(K65*(1+K$60),$K67) -> 0 | L66: =CEILING(L65*(1+L$60),$L67) -> 0 | M66: =M65*(1+M$60) -> 0
B67: % D in Demand Block 1 | D67: =IF(D65,D66/D65-1,0) -> 0 | E67: =IF(E65,E66/E65-1,0) -> 0 | F67: =IF(F65,F66/F65-1,0) -> 0 | G67: =IF(G65,G66/G65-1,0) -> 0 | H67: =IF(H65,H66/H65-1,0) -> 0 | K67: 5 | L67: 10
B68: Present Demand Block 2 | D68: =D10 -> 0 | E68: =E10 -> 5.75 | F68: =F10 -> 5.25 | G68: =G10 -> 4.25 | H68: =H10 -> 0
B69: DEMAND BLOCK 2 | D69: 0 | E69: 5.75 | F69: 5.75 | G69: 5.75 | H69: 0 | K69: =FLOOR(K68*(1+K$60),$K70) -> 0 | L69: =CEILING(L68*(1+L$60),$L70) -> 0 | M69: =M68*(1+M$60) -> 0
B70: % D in Demand Block 2 | D70: =IF(D68,D69/D68-1,0) -> 0 | E70: =IF(E68,E69/E68-1,0) -> 0 | F70: =IF(F68,F69/F68-1,0) -> 0.09523809524 | G70: =IF(G68,G69/G68-1,0) -> 0.3529411765 | H70: =IF(H68,H69/H68-1,0) -> 0 | K70: 0.05 | L70: 0.05
B71: Demand Revenue | C71: =SUM(D71:I71) -> 40470305.5 | D71: =D56*D66+D57*D69 -> 0 | E71: =E56*E66+E57*E69 -> 1326266.25 | F71: =F56*F66+F57*F69 -> 28212095.5 | G71: =G56*G66+G57*G69 -> 10931943.75 | H71: =H56*H66+H57*H69 -> 0
B72: Pwr Fctr/Prim Voltg Disc | C72: =SUM(D72:I72) -> -1141638.6 | D72: ='Pres & Prop Rev'!D172+'Pres & Prop Rev'!D173 -> 0 | E72: ='Pres & Prop Rev'!E172+'Pres & Prop Rev'!E173 -> 3998.5 | F72: ='Pres & Prop Rev'!F172+'Pres & Prop Rev'!F173 -> 56753 | G72: ='Pres & Prop Rev'!G172+'Pres & Prop Rev'!G173 -> -1207069.6 | H72: ='Pres & Prop Rev'!H172+'Pres & Prop Rev'!H173 -> 4679.5
B74: Present Block 1 Base Rate | D74: =D5 -> 6.914 | E74: =E5 -> 10.891 | F74: =F5 -> 6.819 | G74: =G5 -> 5.373 | H74: =H5 -> 9.114
B75: Present Block 2 Base Rate | D75: =D6 -> 8.044 | E75: 8.002 | F75: 6.097 | G75: 4.834 | H75: 6.511
B76: Present Block 3 Base Rate | D76: 9.429 | E76: 0 | F76: 0 | G76: 4.391 | H76: 0
B78: 1) Flat Rate Increase | D78: 0.09380246751 | E78: 1 | F78: 1 | G78: 1 | H78: 1
B79: 2) % Rate Increase | D79: 0.01742121958 | E79: -0.02115490667 | F79: -0.04124253615 | G79: -0.02379154647 | H79: 0.005955894409 | M79: =M$60 -> 0
B80: Method ---> | D80: 2 | E80: 2 | F80: 2 | G80: 2 | H80: 2
A82: Calculated | B82: BLOCK 1 PER KWH | D82: =CHOOSE(D$80,D74+D$78,D74*(1+D$79)) -> 7.034450312 | E82: =CHOOSE(E$80,E74+E$78,E74*(1+E$79)) -> 10.66060191 | F82: =CHOOSE(F$80,F74+F$78,F74*(1+F$79)) -> 6.537767146 | G82: =CHOOSE(G$80,G74+G$78,G74*(1+G$79)) -> 5.245168021 | H82: =CHOOSE(H$80,H74+H$78,H74*(1+H$79)) -> 9.168282022
B83: BLOCK 2 PER KWH | D83: =CHOOSE(D$80,D75+D$78,D75*(1+D$79)) -> 8.18413629 | E83: 7.832718437 | F83: 5.845544257 | G83: 4.718991664 | H83: 6.549778828 | M83: =0.75*M82 -> 0
B84: BLOCK 3 PER KWH | D84: =CHOOSE(D$80,D76+D$78+1,D76*(1+D$79)) -> 9.593264679 | E84: 0 | F84: 0 | G84: =CHOOSE(G$80,G76+G$78,G76*(1+G$79)) -> 4.286531319 | H84: 0
A85: Input | B85: BLOCK 1 PER KWH | D85: =D82 -> 7.034450312 | E85: =E82 -> 10.66060191 | F85: 6.537767146 | G85: 5.245168021 | H85: =H82 -> 9.168282022 | M85: =M82 -> 0
B86: BLOCK 2 PER KWH | D86: =D83 -> 8.18413629 | E86: =E83 -> 7.832718437 | F86: =F83-0.002 -> 5.843544257 | G86: 4.718991664 | H86: =H83 -> 6.549778828 | J86: =G86-G85 -> -0.5261763565 | M86: =M83 -> 0 | N86: =0.75*(N85-N74)+N75 -> 0
B87: BLOCK 3 PER KWH | D87: =D84+0.001 -> 9.594264679 | E87: =E84 -> 0 | F87: 0 | G87: =G84 -> 4.286531319 | H87: 0 | J87: =G87-G86 -> -0.4324603449 | M87: =M84 -> 0
B88: Blocks 1-3 Revenue | C88: =SUM(D88:I88) -> 388973806.2 | D88: =SUMPRODUCT(D50:D52,D85:D87)/100 -> 185223030.9 | E88: =SUMPRODUCT(E50:E52,E85:E87)/100 -> 48882525.7 | F88: =SUMPRODUCT(F50:F52,F85:F87)/100 -> 96288281.42 | G88: =SUMPRODUCT(G50:G52,G85:G87)/100 -> 49154293.22 | H88: =SUMPRODUCT(H50:H52,H85:H87)/100 -> 9425674.974
B89: Adj. to Actual Revenue | C89: =SUM(D89:I89) -> 195578.89 | D89: ='Pres & Prop Rev'!D181+'Pres & Prop Rev'!D178 -> 261733.39 | E89: ='Pres & Prop Rev'!E181+'Pres & Prop Rev'!E178 -> 183247.44 | F89: ='Pres & Prop Rev'!F181+'Pres & Prop Rev'!F178 -> 2120.25 | G89: ='Pres & Prop Rev'!G181+'Pres & Prop Rev'!G178 -> 0 | H89: ='Pres & Prop Rev'!H181+'Pres & Prop Rev'!H178 -> -251522.19
B90: Weather & U/B Revenue | C90: =SUM(D90:I90) -> -3436573.58 | D90: ='Pres & Prop Rev'!D202 -> -3013065.39 | E90: ='Pres & Prop Rev'!E202 -> -18699.2 | F90: ='Pres & Prop Rev'!F202 -> -431024.21 | G90: ='Pres & Prop Rev'!G202 -> 0 | H90: ='Pres & Prop Rev'!H202 -> 26215.22
B92: Revenue Remaining | C92: =IF(ROUND(C59-C64-C71-C72-SUM(C88:C90),3)<>ROUND(SUM(D92:I92),3),#VALUE!,SUM(D92:I92)) -> -58.21584811 | D92: =D59-D64-D71-D72-SUM(D88:D90) -> -3254.9555 | E92: =E59-E64-E71-E72-SUM(E88:E90) -> 0 | F92: =F59-F64-F71-F72-SUM(F88:F90) -> 2940.11822 | G92: =G59-G64-G71-G72-SUM(G88:G90) -> 0 | H92: =H59-H64-H71-H72-SUM(H88:H90) -> 256.6214319 | J92: there will be some remainder in Schs. 21 & 25 because some components of their revenue don't change w/a rate change.
B93: Revenue Remaining - ¢/kWh | C93: =C92/C55*100 -> -1.049128962e-06 | D93: =D92/D55*100 -> -0.0001361856943 | E93: 0 | F93: 0.0001984085509 | G93: 0 | H93: 0.0002066222088
B94: check - < $6k is rounding | C94: =SUM(D94:I94) -> 1227.305338 | D94: =D59-'Pres & Prop Rev'!D204-D92 -> 8589.335992 | E94: =E59-'Pres & Prop Rev'!E204-E92 -> -1813.14356 | F94: =F59-'Pres & Prop Rev'!F204-F92 -> -3795.297357 | G94: =G59-'Pres & Prop Rev'!G204-G92 -> -1681.973992 | H94: =H59-'Pres & Prop Rev'!H204-H92 -> -71.61574598
A95: =IF(Base1_Billing2=2,"MAKE SURE TO CHANGE Base1_Billing2 to '1' before designing Base Rates","") -> 
B96: Proposed Target | C96: =SUM(D96:I96) -> 447256482.4 | D96: =D59 -> 200211947.1 | E96: =E59 -> 54454170.69 | F96: =F59 -> 124131166.1 | G96: =G59 -> 58879167.37 | H96: =H59 -> 9580031.156
B97: Proposed Actual | C97: =SUM(D97:I97) -> 447255313.3 | D97: ='Pres & Prop Rev'!D204 -> 200206612.7 | E97: ='Pres & Prop Rev'!E204 -> 54455983.83 | F97: ='Pres & Prop Rev'!F204 -> 124132021.3 | G97: ='Pres & Prop Rev'!G204 -> 58880849.34 | H97: ='Pres & Prop Rev'!H204 -> 9579846.15
C98: =SUM(D98:H98) -> -1169.08949 | D98: =D97-D96 -> -5334.380492 | E98: =E97-E96 -> 1813.14356 | F98: =F97-F96 -> 855.1791375 | G98: =G97-G96 -> 1681.973992 | H98: =H97-H96 -> -185.0056859
B99: Rate D Check
B100: Basic Charge | C100: ='Pres & Prop Rev'!C164/'Pres & Prop Rev'!C111-1 -> 0.1762657618 | D100: ='Pres & Prop Rev'!D164/'Pres & Prop Rev'!D111-1 -> 0.2233333333 | E100: ='Pres & Prop Rev'!E164/'Pres & Prop Rev'!E111-1 -> 0 | F100: ='Pres & Prop Rev'!F164/'Pres & Prop Rev'!F111-1 ->  | G100: ='Pres & Prop Rev'!G164/'Pres & Prop Rev'!G111-1 ->  | H100: ='Pres & Prop Rev'!H164/'Pres & Prop Rev'!H111-1 -> 0.301
B101: Demand Charge | C101: =SUM('Pres & Prop Rev'!C170:C171)/SUM('Pres & Prop Rev'!C117:C118)-1 -> 0.08648466767 | D101: =SUM('Pres & Prop Rev'!D170:D171)/SUM('Pres & Prop Rev'!D117:D118)-1 ->  | E101: =SUM('Pres & Prop Rev'!E170:E171)/SUM('Pres & Prop Rev'!E117:E118)-1 -> 0 | F101: =SUM('Pres & Prop Rev'!F170:F171)/SUM('Pres & Prop Rev'!F117:F118)-1 -> 0.04962434629 | G101: =SUM('Pres & Prop Rev'!G170:G171)/SUM('Pres & Prop Rev'!G117:G118)-1 -> 0.2087100379 | H101: =SUM('Pres & Prop Rev'!H170:H171)/SUM('Pres & Prop Rev'!H117:H118)-1 -> 
B102: Adj. to Actual Revenue | C102: ='Pres & Prop Rev'!C181/'Pres & Prop Rev'!C128-1 -> -0.03735865032 | D102: ='Pres & Prop Rev'!D181/'Pres & Prop Rev'!D128-1 -> -0.007788228896 | E102: ='Pres & Prop Rev'!E181/'Pres & Prop Rev'!E128-1 -> -0.02111859956 | F102: ='Pres & Prop Rev'!F181/'Pres & Prop Rev'!F128-1 -> -0.04123557501 | G102: ='Pres & Prop Rev'!G181/'Pres & Prop Rev'!G128-1 ->  | H102: ='Pres & Prop Rev'!H181/'Pres & Prop Rev'!H128-1 -> 0.005963537659
B103: Weather & U/B Revenue | C103: ='Pres & Prop Rev'!C202/'Pres & Prop Rev'!C149-1 -> 0.004752892537 | D103: ='Pres & Prop Rev'!D202/'Pres & Prop Rev'!D149-1 -> 0.01187286305 | E103: ='Pres & Prop Rev'!E202/'Pres & Prop Rev'!E149-1 -> -0.02112471823 | F103: ='Pres & Prop Rev'!F202/'Pres & Prop Rev'!F149-1 -> -0.04123699462 | G103: ='Pres & Prop Rev'!G202/'Pres & Prop Rev'!G149-1 ->  | H103: ='Pres & Prop Rev'!H202/'Pres & Prop Rev'!H149-1 -> 0.005963203123
B104: Block Energy Charges | C104: =SUM('Pres & Prop Rev'!C166:C169)/SUM('Pres & Prop Rev'!C113:C116)-1 -> -0.01963425481 | D104: =SUM('Pres & Prop Rev'!D166:D169)/SUM('Pres & Prop Rev'!D113:D116)-1 -> -0.007788226182 | E104: =SUM('Pres & Prop Rev'!E166:E169)/SUM('Pres & Prop Rev'!E113:E116)-1 -> -0.02111859947 | F104: =SUM('Pres & Prop Rev'!F166:F169)/SUM('Pres & Prop Rev'!F113:F116)-1 -> -0.04123416678 | G104: =SUM('Pres & Prop Rev'!G166:G169)/SUM('Pres & Prop Rev'!G113:G116)-1 -> -0.02375814235 | H104: =SUM('Pres & Prop Rev'!H166:H169)/SUM('Pres & Prop Rev'!H113:H116)-1 -> 0.005963538005
B105: Overall Revenue | C105: ='Pres & Prop Rev'!C208 -> -0.002924382667 | D105: ='Pres & Prop Rev'!D208 -> 0.008808156991 | E105: ='Pres & Prop Rev'!E208 -> -0.01906163965 | F105: ='Pres & Prop Rev'!F208 -> -0.02197446174 | G105: ='Pres & Prop Rev'!G208 -> 0.01188121044 | H105: ='Pres & Prop Rev'!H208 -> 0.01496395885
B107: Avg. Usage | D107: =D55/D56 -> 988.7130316 | E107: =E55/E56 -> 1441.037108 | F107: =F55/F56 -> 46044.51291 | G107: =G55/G56 -> 4027508.936 | H107: =H55/H56 -> 4311.994514
B108: Bill Compare: | C108: =INDEX($D$2:$I$2,K108) -> SCH. 1 | F108: =INDEX($D$2:$I$2,L108) -> SCH. 11,12 | K108: 1 | L108: 2
B109: =IF(Base1_Billing2=2,"BILLING RATES","BASE RATES") -> BASE RATES | C109: Pres | D109: Prop | E109: % Incr | F109: Pres | G109: Prop | H109: % Incr
B110: 100
B111: 200
B112: 300
B113: 400
B114: 500
B115: 600
B116: 700
B117: 800
B118: 900
B119: 1000 | C119: =ROUND(D14+600*D15/100+400*D16/100,2) -> 79.85 | D119: =ROUND(D36+600*D37/100+400*D38/100,2) -> 82.47 | E119: =D119/C119-1 -> 0.0328115216 | F119: =D119-C119 -> 2.62
B120: 1100
B121: 1200
B122: 1300
B123: 1400
B124: 1500
D125: 2425727000 | E125: =395341000+52692000 -> 448033000
D126: =205474*12 -> 2465688 | E126: =(19967+8691)*12 -> 343896
D127: =D125/D126 -> 983.7931644 | E127: =E125/E126 -> 1302.815386

Sheet ROR (hidden)
B1: AVISTA UTILITIES
B2: WASHINGTON ELECTRIC
B3: PRESENT & PROPOSED RATE OF RETURN BY RATE SCHEDULE
B4: 12 MONTHS ENDED DECEMBER 31, 2011
C7: Total | D7: Sch 1 | E7: Sch 11 | F7: Sch 21 | G7: Sch 25 | H7: Sch 31 | I7: Schs 41-48 | L7: COS Line
B8: Total Rate Base | C8: =SUM(D8:I8) -> 1125272000 | D8: 554418683.5 | E8: 107874129.4 | F8: 281841171.6 | G8: 134516160.5 | H8: 25064802.34 | I8: 21557052.8 | J8: from COS | L8: 16
B10: Revenue From Retail Rates | C10: =SUM(D10:I10) -> 455105000 | D10: 198459000 | E10: 55514000 | F10: 126921000 | G10: 58190000 | H10: 9439000 | I10: 6582000 | J10: from COS | L10: 17
B11: Other Operating Revenues | C11: =SUM(D11:I11) -> 67978000 | D11: 31176133.17 | E11: 5847444.563 | F11: 17541023.67 | G11: 11558990.18 | H11: 1426408.144 | I11: 428000.2742 | J11: from COS | L11: 18
B12: Total Revenues | C12: =IF(ROUND(C10+C11,0)<>ROUND(SUM(D12:I12),0),#VALUE!,SUM(D12:I12)) -> 523083000 | D12: =D10+D11 -> 229635133.2 | E12: 61361444.56 | F12: 144462023.7 | G12: 69748990.18 | H12: 10865408.14 | I12: 7010000.274
B14: Total Operating Exp b4 conv items & taxes | C14: =SUM(D14:I14) -> 378470760.9 | D14: =D17-D15-D16 -> 182249419.3 | E14: =E17-E15-E16 -> 34494573.14 | F14: 92761406.79 | G14: 56680253.72 | H14: 7964884.302 | I14: 4320223.622
B15: Revenue Related conversion items | C15: =SUM(D15:I15) -> 21296239.13 | D15: 9286714.762 | E15: 2597728.918 | F15: 5939156.825 | G15: 2722949.99 | H15: 441689.7225 | I15: 307998.9144 | J15: from COS | L15: 1111
B16: Income Taxes | C16: =SUM(D16:I16) -> 29418000 | D16: 6957572.017 | E16: 6960395.268 | F16: 12315901.07 | G16: 2054627.335 | H16: 559488.7856 | I16: 570015.5286 | J16: from COS | L16: 36
B17: Total Expenses | C17: =IF(ROUND(SUM(C14:C16),0)<>ROUND(SUM(D17:I17),0),#VALUE!,SUM(D17:I17)) -> 429185000 | D17: 198493706.1 | E17: 44052697.32 | F17: 111016464.7 | G17: 61457831.05 | H17: 8966062.81 | I17: 5198238.065 | J17: from COS | L17: 37
D18: .
B19: Net Operating Income | C19: =IF(ROUND(C12-C17,0)<>ROUND(SUM(D19:I19),0),#VALUE!,ROUND(SUM(D19:I19),-3)) -> 93898000 | D19: =D12-D17 -> 31141427.09 | E19: 17308747.24 | F19: 33445558.99 | G19: 8291159.13 | H19: 1899345.334 | I19: 1811762.209
B20: Present Rate of Return | C20: =C19/C8 -> 0.08344471381 | D20: 0.05616951236 | E20: 0.1604531814 | F20: 0.1186681094 | G20: 0.0616369 | H20: 0.07577739126 | I20: =I19/I8 -> 0.08404498637
B21: Present Return Ratio | C21: =C20/$C20 -> 1 | D21: 0.6731344598 | E21: 1.922868137 | F21: 1.422116561 | G21: 0.7386555383 | H21: 0.9081149398 | I21: 1.007193656
B23: Interest Expense | C23: =SUM(D23:I23) -> 34872000 | D23: 17181346.67 | E23: 3343002.082 | F23: 8734213.004 | G23: 4168634.381 | H23: 776754.2312 | I23: 668049.6318 | J23: from COS | L23: 41
B25: Proposed Misc Revenue Increase | C25: 0
B26: Proposed Rate Revenue Increase | C26: =G26*1000 -> -1312000 | D26: =C26/C10 -> -0.00288285121 | G26: -1312 | H26: bc | I26: -20380
B27: Proposed Rev Increase | C27: =C25+C26 -> -1312000 | H27: att | I27: -1312
D28: change | H28: co | I28: 40983
B29: Proposed Rate Revenues | C29: =C10+C26 -> 453793000 | D29: =C29-C10 -> -1312000 | F29: Uncollectibles | G29: 0.004338
B30: incremental conversion expenses | C30: =ROUND(C27*G29,-3)+ROUND(C27*G30,-3)+ROUND(C27*G31,-3) -> -60000 | F30: Commiss Fees | G30: 0.002
B31: incremental Income Taxes | C31: =ROUND(C27*G32,-3) -> -439000 | F31: Excise Tax | G31: 0.038562
B32: Proposed Return | C32: =C19+C27-C30-C31 -> 93085000 | D32: =C32-C19 -> -813000 | F32: Federal Inc Tax | G32: 0.334285
B33: Proposed Return % | C33: =C32/C8 -> 0.08272222183
E34: 0.3 | F34: 0.45 | G34: -0.5 | H34: 1.75 | I34: 1
B35: Allocation of incremental Misc Rev | C35: =SUM(D35:I35) -> 0 | D35: 0 | E35: 0 | F35: 0 | G35: 0 | H35: 0 | I35: 0 | J35: from COS
B37: Target Relative Return | C37: =C38/C33 -> 1 | D37: =D39/D8/C33 -> 0.7034468715 | E37: 1.864673291 | F37: 1.358785238 | G37: 0.7846544121 | H37: 0.9595339474 | I37: 1 | J37: Input | K37: =D26 -> -0.00288285121
B38: Target Return % | C38: =C39/C8 -> 0.08272222183 | D38: =D39/D8 -> 0.05819068815 | E38: =E39/E8 -> 0.1542499176 | F38: 0.1124017339 | G38: 0.06490835634 | H38: 0.07937478005 | I38: 0.08272222183
B39: Target Return (NOI b4 Interest) | C39: =C32 -> 93085000 | D39: =$C$32-SUM(E39:I39) -> 32262004.71 | E39: =E8*E37*$C$32/$C$8 -> 16639575.56 | F39: =F8*F37*$C$32/$C$8 -> 31679436.37 | G39: =G8*G37*$C$32/$C$8 -> 8731222.876 | H39: =H8*H37*$C$32/$C$8 -> 1989513.173 | I39: =I8*I37*$C$32/$C$8 -> 1783247.304 | J39: =ROUND(C39-SUM(D39:I39),0) -> 0
B40: Target Return after Interest Expense | C40: =C39-C23 -> 58213000 | D40: =D39-D23 -> 15080658.04 | E40: 13296573.48 | F40: 22945223.37 | G40: 4562588.494 | H40: 1212758.942 | I40: 1115197.672 | J40: 0
B41: Target Return b4 Income Taxes & Interest | C41: =C40+C16+C31+C23 -> 122064000 | D41: =D40+D23+D40/$C40*SUM($C$16,$C$31) -> 39769303.59 | E41: =E40+E23+E40/$C40*SUM($C$16,$C$31) -> 23258739.72 | F41: 43101792.68 | G41: 11002523.99 | H41: 2593236.42 | I41: 2338403.598 | J41: 0
B42: Target Return b4 Misc Rev | C42: =C41-C11-$C$25*C35 -> 54086000 | D42: =D41-D11-$C$25*D35 -> 8593170.42 | E42: 17411295.15 | F42: 25560769.01 | G42: -556466.1819 | H42: 1166828.275 | I42: 1910403.323 | J42: 0
B43: =B14 -> Total Operating Exp b4 conv items & taxes | C43: 378470760.9 | D43: =D14 -> 182249419.3 | E43: 34494573.14 | F43: 92761406.79 | G43: 56680253.72 | H43: 7964884.302 | I43: =I14 -> 4320223.622 | J43: 0
B44: Conversion Items | C44: =C15+C30 -> 21236239.13 | D44: =$C44*D46/$C46 -> 9369357.361 | E44: 2548302.399 | F44: 5808990.281 | G44: 2755379.827 | H44: 448318.5781 | I44: 305890.6847 | J44: =ROUND(C44-SUM(D44:I44),0) -> 0
B45: Incremental Rate Revenue | C45: =C26 -> -1312000 | D45: =(D42-D10+D14+($C$44*D10)/$C$29)/(1-$C$44/$C$29) -> 1752947.08 | E45: =(E42-E10+E14+($C$44*E10)/$C$29)/(1-$C$44/$C$29) -> -1059829.314 | F45: =(F42-F10+F14+($C$44*F10)/$C$29)/(1-$C$44/$C$29) -> -2789833.919 | G45: =(G42-G10+G14+($C$44*G10)/$C$29)/(1-$C$44/$C$29) -> 689167.366 | H45: 141031.1557 | I45: =(I42-I10+I14+($C$44*I10)/$C$29)/(1-$C$44/$C$29) -> -45482.36949 | J45: =ROUND(C45-SUM(D45:I45),0)+1 -> 1
B46: Target Rate Revenue | C46: =C42+C43+C44 -> 453793000 | D46: =D10+D45 -> 200211947.1 | E46: =E10+E45 -> 54454170.69 | F46: =F10+F45 -> 124131166.1 | G46: 58879167.37 | H46: 9580031.156 | I46: 6536517.631 | J46: =ROUND(C46-SUM(D46:I46),0) -> 0
B47: Change in Rate Revenue | C47: =C46/C10-1 -> -0.00288285121 | D47: =D46/D10-1 -> 0.008832792065 | E47: =E46/E10-1 -> -0.01909120787 | F47: -0.02198086935 | G47: 0.01184339863 | H47: 0.01494132384 | I47: -0.00691011387
E48: =E58*E34 -> -0.08112743275 | F48: =F58*F34 -> -0.07342788749 | G48: -0.01869611514 | H48: -0.02816112919 | I48: -0.0624378671
B49: Incremental Rate Revenue - rounded | C49: =SUM(D49:I49) -> -1312000 | D49: =ROUND(D45,-3) -> 1753000 | E49: =ROUND(E45,-3) -> -1060000 | F49: -2790000 | G49: 689000 | H49: 141000 | I49: -45000
B50: Target Rate Revenue - rounded | C50: =SUM(D50:I50) -> 453793000 | D50: =ROUND(D46,-3) -> 200212000 | E50: =ROUND(E46,-3) -> 54454000 | F50: 124131000 | G50: 58879000 | H50: 9580000 | I50: =ROUND(I46,-3) -> 6537000
B52: ERM Revenue decrease | C52: =SUM(D52:I52) -> -13556305 | D52: -5911537 | E52: -1653615 | F52: -3780630 | G52: -1733305 | H52: -281150 | I52: -196068
B53: Net Increase | C53: =SUM(D53:I53) -> -14868305 | D53: =D45+D52 -> -4158589.92 | E53: =E45+E52 -> -2713444.314 | F53: -6570463.919 | G53: -1044137.634 | H53: -140118.8443 | I53: -241550.3695
B54: Present Billed | C54: =SUM(D54:I54) -> 467293516 | D54: 198912674 | E54: 57995997 | F54: 132684074 | G54: 60964602 | H54: 9837669 | I54: 6898500
B55: Net Increase as % of billed | C55: =C53/C54 -> -0.0318179142 | D55: =D53/D54 -> -0.02090661111 | E55: =E53/E54 -> -0.04678675174 | F55: -0.04951961242 | G55: -0.01712694908 | H55: -0.014243094 | I55: -0.03501491186
B58: Base Case | C58: -0.04478087474 | D58: 0.06918032016 | E58: -0.2704247758 | F58: -0.1631730833 | G58: 0.03739223029 | H58: -0.01609207382 | I58: -0.0624378671
E60: 1.869970117 | F60: 1.328676882 | G60: 0.8590840419
E61: 30 | F61: 50 | G61: 0
F62: 1.262895543 | G62: 0.8309540349
E63: 40 | F63: 60 | G63: -20
F64: 1.361567551 | G64: 0.8028240279
F65: 45 | G65: -40

Sheet Exh 3 (hidden)
A1: AVISTA UTILITIES | L1: This worksheet pulls data from 'ROR' tab.
A2: WASHINGTON ELECTRIC
A3: PRESENT & PROPOSED RATES OF RETURN BY RATE SCHEDULE
A4: 12 MONTHS ENDED DECEMBER 31, 2011
D9: Present Rates | G9: Base | I9: Proposed Rates
D10: Present | E10: Present | G10: Tariff | I10: Proposed | J10: Proposed
A11: Line | B11: Type of | C11: Sch. | D11: Rate of | E11: Relative | G11: Proposed | I11: Rate of | J11: Relative
A12: No. | B12: Service | C12: Number | D12: Return | E12: ROR | G12: Increase | I12: Return | J12: ROR
B13: (a) | C13: (b) | D13: (c) | E13: (d) | G13: (e) | I13: (f) | J13: (g)
A14: 1 | B14: Residential | C14: 1 | D14: =INDEX(ROR!$C$20:$I$20,$A14+1) -> 0.05616951236 | E14: =INDEX(ROR!$C$21:$I$21,$A14+1) -> 0.6731344598 | G14: =INDEX(ROR!$C$47:$I$47,$A14+1) -> 0.008832792065 | I14: =INDEX(ROR!$C$38:$I$38,$A14+1) -> 0.05819068815 | J14: =INDEX(ROR!$C$37:$I$37,$A14+1) -> 0.7034468715
A15: 2 | B15: General Service | C15: 11/12 | D15: =INDEX(ROR!$C$20:$I$20,$A15+1) -> 0.1604531814 | E15: =INDEX(ROR!$C$21:$I$21,$A15+1) -> 1.922868137 | G15: =INDEX(ROR!$C$47:$I$47,$A15+1) -> -0.01909120787 | I15: =INDEX(ROR!$C$38:$I$38,$A15+1) -> 0.1542499176 | J15: =INDEX(ROR!$C$37:$I$37,$A15+1) -> 1.864673291
A16: 3 | B16: Large General Service | C16: 21/22 | D16: =INDEX(ROR!$C$20:$I$20,$A16+1) -> 0.1186681094 | E16: =INDEX(ROR!$C$21:$I$21,$A16+1) -> 1.422116561 | G16: =INDEX(ROR!$C$47:$I$47,$A16+1) -> -0.02198086935 | I16: =INDEX(ROR!$C$38:$I$38,$A16+1) -> 0.1124017339 | J16: =INDEX(ROR!$C$37:$I$37,$A16+1) -> 1.358785238
A17: 4 | B17: Extra Large General Svc. | C17: 25 | D17: =INDEX(ROR!$C$20:$I$20,$A17+1) -> 0.0616369 | E17: =INDEX(ROR!$C$21:$I$21,$A17+1) -> 0.7386555383 | G17: =INDEX(ROR!$C$47:$I$47,$A17+1) -> 0.01184339863 | I17: =INDEX(ROR!$C$38:$I$38,$A17+1) -> 0.06490835634 | J17: =INDEX(ROR!$C$37:$I$37,$A17+1) -> 0.7846544121
A18: 5 | B18: Pumping Service | C18: 30/31/32 | D18: =INDEX(ROR!$C$20:$I$20,$A18+1) -> 0.07577739126 | E18: =INDEX(ROR!$C$21:$I$21,$A18+1) -> 0.9081149398 | G18: =INDEX(ROR!$C$47:$I$47,$A18+1) -> 0.01494132384 | I18: =INDEX(ROR!$C$38:$I$38,$A18+1) -> 0.07937478005 | J18: =INDEX(ROR!$C$37:$I$37,$A18+1) -> 0.9595339474
A19: 6 | B19: Street & Area Lights | C19: 41-48 | D19: =INDEX(ROR!$C$20:$I$20,$A19+1) -> 0.08404498637 | E19: =INDEX(ROR!$C$21:$I$21,$A19+1) -> 1.007193656 | G19: =INDEX(ROR!$C$47:$I$47,$A19+1) -> -0.00691011387 | I19: =INDEX(ROR!$C$38:$I$38,$A19+1) -> 0.08272222183 | J19: =INDEX(ROR!$C$37:$I$37,$A19+1) -> 1
A20: 7 | B20: Total | D20: =INDEX(ROR!$C$20:$I$20,1) -> 0.08344471381 | E20: =INDEX(ROR!$C$21:$I$21,1) -> 1 | G20: =INDEX(ROR!$C$47:$I$47,1) -> -0.00288285121 | I20: =INDEX(ROR!$C$38:$I$38,1) -> 0.08272222183 | J20: =INDEX(ROR!$C$37:$I$37,1) -> 1

Sheet ERM (hidden)
A1: AVISTA UTILITIES
A2: WASHINGTON ELECTRIC
A3: PROPOSED ERM DECREASE BY SERVICE SCHEDULE
A4: 12 MONTHS ENDED DECEMBER 31, 2011
A5: (000s of Dollars)
D9: ERM Revenue | F9: Billing | H9: ERM
D10: Offset | F10: Determinants | H10: kWh Rate
B11: Residential | C11: 1 | D11: 0 | F11: ='Pres & Prop Rev'!D46 -> 2390086210 | H11: =D11/F11 -> 0
B13: General Service | C13: 11/12 | D13: 0 | F13: ='Pres & Prop Rev'!E46 -> 489572183 | H13: =D13/F13 -> 0
B15: Large General Service | C15: 21/22 | D15: 0 | F15: ='Pres & Prop Rev'!F46 -> 1481850559 | H15: =D15/F15 -> 0
B17: Extra Large General Service | C17: 25 | D17: 0 | F17: ='Pres & Prop Rev'!G46 -> 1063262359 | H17: =D17/F17 -> 0
B19: Pumping Service | C19: 30/31/32 | D19: 0 | F19: ='Pres & Prop Rev'!H46 -> 124198378 | H19: =D19/F19 -> 0
B21: Street & Area Lights | C21: 41-48 | D21: 0 | F21: ='Pres & Prop Rev'!I46 -> 25886566 | H21: =D21/F21 -> 0
B23: Total | D23: =SUM(D11:D21) -> 0 | F23: =SUM(F11:F21) -> 5574856255

Sheet Bill Determ (hidden)
A1: AVISTA UTILITIES
A2: WASHINGTON ELECTRIC
A3: ACTUAL / PRO FORMA BILLING DETERMINANTS BY RATE SCHEDULE
A4: 12 MONTHS ENDED DECEMBER 31, 2011
A6: Present | D6: 0 | I6: Proposed | P6: Proposed
A8: Schedule 1 | B8: 0-600 kwhs | C8: 601-1300 kwhs | D8: over 1300 kwhs | E8: Total kwhs | F8: Total Billings(2) | I8: Schedule 1 | J8: 0-800 kwhs | K8: 801-1500 kwhs | L8: over 1500 kwhs | M8: Total kwhs | N8: Total Billings(2) | P8: Schedule 1 | Q8: 0-800 kwhs | R8: 801-1500 kwhs | S8: over 1500 kwhs | T8: Total kwhs | U8: Total Billings(2)
A9: kwhs per billing run(1) | B9: 1258409693 | C9: 723159492 | D9: =440034579-(440034579*D6) -> 440034579 | E9: =B9+C9+D9 -> 2421603764 | F9: ='Rev Runs CY'!I100*12 -> 2417371 | I9: kwhs per billing run(1) | J9: =1540720296+4378647 -> 1545098943 | K9: =534592649+1555622 -> 536148271 | L9: =(339372340+984210)-((339372340+984210)*D6) -> 340356550 | M9: =J9+K9+L9 -> 2421603764 | N9: =G9 -> 0 | P9: kwhs per billing run(1) | Q9: =1540720296+4378647 -> 1545098943 | R9: =534592649+1555622 -> 536148271 | S9: =339372340+984210 -> 340356550 | T9: =Q9+R9+S9 -> 2421603764 | U9: =N9 -> 0
A10: Total kwhs per Rev. Run(2) | E10: ='Rev Runs CY'!J100 -> 2425025822 | I10: Total kwhs per Rev. Run(2) | M10: =E10 -> 2425025822 | P10: Total kwhs per Rev. Run(2) | T10: =L10 -> 0
A11: Adjust. kwhs to Actual | E11: =E10-E9 -> 3422058 | I11: Adjust. kwhs to Actual | M11: =M10-M9 -> 3422058 | P11: Adjust. kwhs to Actual | T11: =T10-T9 -> -2421603764
A14: Schedule 11,12 | B14: 0-3,650 kwhs | C14: over 3,650 kwhs | D14: Total kwhs | E14: kw over 20(1) | F14: Total Billings(2) | G14: kvar billed(1) | I14: Schedule 11,12 | J14: 0-3,650 kwhs | K14: over 3,650 kwhs | L14: Total kwhs | M14: kw over 20(1) | N14: Total Billings(2) | O14: kvar billed(1) | P14: Proposed
A15: kwhs per Revenue Run(1) | B15: 360711380 | C15: 82577095 | D15: =B15+C15 -> 443288475 | E15: 178118 | F15: =SUM('Rev Runs CY'!I101:I102)*12 -> 335404 | G15: 7997 | I15: kwhs per Revenue Run(1) | J15: =B15 -> 360711380 | K15: =C15 -> 82577095 | L15: =J15+K15 -> 443288475 | M15: =E15 -> 178118 | N15: =F15 -> 335404 | O15: =G15 -> 7997
A16: Shifted from Sch 21 | B16: 15570939 | C16: 29370828 | D16: =SUM(B16:C16) -> 44941767 | E16: 52537 | F16: =(352+9)*12 -> 4332 | G16: 0 | I16: Shifted from Sch 21 | J16: =B16 -> 15570939 | K16: =C16 -> 29370828 | L16: =SUM(J16:K16) -> 44941767 | M16: =E16 -> 52537 | N16: =F16 -> 4332 | O16: 0 | P16: Schedule 1 | Q16: 0-800 kwhs | R16: 801-1700 kwhs | S16: over 1700 kwhs | T16: Total kwhs | U16: Total Billings(2)
A17: Total by Block | B17: =SUM(B15:B16) -> 376282319 | C17: =SUM(C15:C16) -> 111947923 | D17: 488230242 | E17: 230655 | F17: 339736 | G17: 7997 | I17: Total by Block | J17: =SUM(J15:J16) -> 376282319 | K17: =SUM(K15:K16) -> 111947923 | L17: 488230242 | M17: 230655 | N17: 339736 | O17: 7997 | P17: kwhs per billing run(1) | Q17: =1540720296+4378647 -> 1545098943 | R17: 619895784 | S17: 256609037 | T17: =Q17+R17+S17 -> 2421603764 | U17: =M17 -> 230655
A18: Total kwhs per Rev. Run(2) | D18: =SUM('Rev Runs CY'!J101:J102) -> 445118651 | I18: Total kwhs per Rev. Run(2) | L18: =D18 -> 445118651 | P18: Total kwhs per Rev. Run(2) | T18: =L18 -> 445118651
A19: Schedule Shifting from 21 | D19: =D16 -> 44941767 | I19: Schedule Shifting from 21 | L19: =L16 -> 44941767 | P19: Adjust. kwhs to Actual | T19: =T18-T17 -> -1976485113
A20: Total Adjusted kwhs | D20: =D18+D19 -> 490060418 | I20: Total Adjusted kwhs | L20: =L18+L19 -> 490060418
A21: Adjust. kwhs to Actual | D21: =D20-D17 -> 1830176 | I21: Adjust. kwhs to Actual | L21: =L20-L17 -> 1830176
A24: Schedule 21,22 | B24: 0-250,000 kwhs | C24: over 250,000 kwhs | D24: Total kwhs | E24: kw over 50(1) | F24: Total Billings(2) | G24: kvar billed(1) | I24: Schedule 21,22 | J24: 0-250,000 kwhs | K24: over 250,000 kwhs | L24: Total kwhs | M24: kw over 50(1) | N24: Total Billings(2) | O24: kvar billed(1)
A25: kwhs per Revenue Run(1) | B25: 1385138692 | C25: 147736411 | D25: =B25+C25 -> 1532875103 | E25: 2651934 | F25: =SUM('Rev Runs CY'!I103:I104)*12 -> 36503 | G25: 244236 | I25: kwhs per Revenue Run(1) | J25: =B25 -> 1385138692 | K25: =C25 -> 147736411 | L25: =J25+K25 -> 1532875103 | M25: =E25 -> 2651934 | N25: =F25 -> 36503 | O25: =G25 -> 244236
A26: Special Contract Shifted to Sched 21 | B26: 555000 | C26: =555000-B26 -> 0 | D26: =SUM(B26:C26) -> 555000 | E26: 15700 | F26: 12 | G26: 0 | I26: Special Contract Shifted to Sched 21 | J26: =B26 -> 555000 | K26: =C26 -> 0 | L26: =SUM(J26:K26) -> 555000 | M26: =E26 -> 15700 | N26: =F26 -> 12 | O26: 0
A27: Shifted to Sch 011 | B27: =-D16 -> -44941767 | D27: =SUM(B27:C27) -> -44941767 | E27: 0 | F27: =-F16 -> -4332 | G27: 0 | I27: Shifted to Sch 011 | J27: =-L16 -> -44941767 | L27: =SUM(J27:K27) -> -44941767 | M27: 0 | N27: -4332 | O27: 0
A28: Total | B28: =SUM(B25:B27) -> 1340751925 | C28: =SUM(C25:C27) -> 147736411 | D28: =SUM(B28:C28) -> 1488488336 | E28: =SUM(E25:E27) -> 2667634 | F28: =SUM(F25:F27) -> 32183 | G28: =SUM(G25:G27) -> 244236 | I28: Total | J28: =SUM(J25:J27) -> 1340751925 | K28: =SUM(K25:K27) -> 147736411 | L28: =SUM(J28:K28) -> 1488488336 | M28: =SUM(M25:M27) -> 2667634 | N28: =SUM(N25:N27) -> 32183 | O28: =SUM(O25:O27) -> 244236
A29: Total kwhs per Rev. Run(2) | D29: =SUM('Rev Runs CY'!J103:J104) -> 1532907878 | I29: Total kwhs per Rev. Run(2) | L29: =D29 -> 1532907878
A30: Schedule Shifting to Sch. 21 | D30: =D26 -> 555000 | I30: Schedule Shifting to Sch. 21 | L30: =L26 -> 555000
A31: Schedule Shifting to Sch. 11 | D31: =D27 -> -44941767 | I31: Schedule Shifting to Sch. 11 | L31: =L27 -> -44941767
A32: Total adjusted kwhs | D32: =D29+D30+D31 -> 1488521111 | I32: Total adjusted kwhs | L32: =L29+L30+L31 -> 1488521111
A33: Adjust. kwhs to Actual | D33: =D32-D28 -> 32775 | I33: Adjust. kwhs to Actual | L33: =L32-L28 -> 32775
A36: Schedule 25(3) | B36: 0-500,000 kwhs | C36: 500,001-6M kwhs | D36: > 6M kwhs | E36: Total kwhs | F36: kva over 3,000 | G36: Total Billings(2) | I36: Schedule 25(3) | J36: 0-500,000 kwhs | K36: 500,001-6M kwhs | L36: > 6M kwhs | M36: Total kwhs | N36: kva over 3,000 | O36: Total Billings(2)
A37: Total | B37: ='WA Sch 25'!Q26 -> 132000000 | C37: ='WA Sch 25'!R26 -> 534573579 | D37: ='WA Sch 25'!S26 -> 396688780 | E37: =SUM(B37:D37) -> 1063262359 | F37: ='WA Sch 25'!P87 -> 1258425 | G37: =22*12 -> 264 | I37: Total | J37: =B37 -> 132000000 | K37: =C37 -> 534573579 | L37: =D37 -> 396688780 | M37: =SUM(J37:L37) -> 1063262359 | N37: =F37 -> 1258425 | O37: =G37 -> 264
A40: Schedule 30, 31, & 32 | B40: Block 1 kwhs | C40: Block 2 kwhs | D40: Block 3 kwhs | E40: Total kwhs | F40: Total Billings(2) | G40: kvar billed(1) | I40: Schedule 30, 31, & 32 | J40: Block 1 kwhs | K40: Block 2 kwhs | L40: Block 3 kwhs | M40: Total kwhs | N40: Total Billings(2) | O40: kvar billed(1)
A41: kwhs per billing run (31& 32)(1) | B41: 32797555 | C41: 8896000 | D41: 64976222 | E41: =B41+C41+D41 -> 106669777 | F41: =SUM('Rev Runs CY'!I107:I109)*12 -> 28803 | G41: 9359 | I41: kwhs per billing run (31& 32)(1) | J41: =B41 -> 32797555 | K41: =C41 -> 8896000 | L41: 64976222 | M41: =J41+K41+L41 -> 106669777 | N41: =F41 -> 28803 | O41: =G41 -> 9359
A42: Schedule 30(1) | D42: ='Rev Runs CY'!J107 -> 20570060 | E42: =D42 -> 20570060 | I42: Schedule 30(1) | L42: =D42 -> 20570060 | M42: =L42 -> 20570060
A43: Total Schs. 30,31&32 | D43: =D41+D42 -> 85546282 | E43: =E41+E42 -> 127239837 | I43: Total Schs. 30,31&32 | L43: =L41+L42 -> 85546282 | M43: =M41+M42 -> 127239837
A44: Total kwhs per Rev. Run(2) | E44: =SUM('Rev Runs CY'!J107:J109) -> 123844494 | I44: Total kwhs per Rev. Run(2) | M44: =E44 -> 123844494
A45: Adjust kwhs to Actual | E45: =E44-E43 -> -3395343 | I45: Adjust kwhs to Actual | M45: =M44-M43 -> -3395343
A49: (1) From workpaper PDE-E-24
A50: (2) From workpaper PDE-E-22
A51: (3) From workpaper PDE-E-7/8
A62: Revenue Runs from this sheet | B62: =E10+D18+D29+E37+E44 -> 5590159204
A64: actual Revenue Runs | B64: ='Rev Runs CY'!J124 -> 5618259236
A65: less:
A66: Sch 25 Unbilled | B66: ='Rev Runs CY'!J105-E37 -> 1658466 | C66: rev. runs too high
A68: Sch 28 W-to-E spec. contract | B68: ='Rev Runs CY'!J106 -> 555000 | C68: not shown on this sheet
A69: Schs 41-48 St & Area Lt | B69: =SUM('Rev Runs CY'!J110:J117) -> 25886566 | C69: not shown on this sheet
B70: =B64-SUM(B66:B69) -> 5590159204
A71: Diff | B71: =B62-B70 -> 0
A73: from Present Rev tab | B73: ='Pres & Prop Rev'!C20-'Pres & Prop Rev'!C15 -> 5616600770
A74: this sheet + SAL | B74: =B62+B69+B68 -> 5616600770
A75: Diff | B75: =B73-B74 -> 0
A78: Rev. Run customers | B78: ='Rev Runs CY'!I124*12 -> 2822301
A79: less:
A80: normalize Sch 25 | B80: ='Rev Runs CY'!I105*12-G37 -> 0 | C80: rev. runs too high
A81: Sch 28 W-to-E spec. contract | B81: ='Rev Runs CY'!I106*12 -> 7 | C81: not shown on this sheet
A82: Schs 41-48 St & Area Lt | B82: =SUM('Rev Runs CY'!I110:I117)*12 -> 3949 | C82: not shown on this sheet
B83: =B78-SUM(B79:B82) -> 2818345
A85: from Present Rev tab | B85: =SUM('Pres & Prop Rev'!D25:I25) -> 2818357
A86: Diff | B86: =B83-B85 -> -12

Sheet WA Sch 25 (hidden)
A1: Washington Schedule 25 Billing Determinants | Q1: 1st | R1: =Q2 -> 500000 | S1: =R2 -> 6000000
P2: 12-mo Ended | Q2: 500000 | R2: 6000000 | S2: 99999999
B3: KWHs | C3: Acct No. | D3: 2011-01-01 | E3: 2011-02-01 | F3: 2011-03-01 | G3: 2011-04-01 | H3: 2011-05-01 | I3: 2011-06-01 | J3: 2011-07-01 | K3: 2011-08-01 | L3: 2011-09-01 | M3: 2011-10-01 | N3: 2011-11-01 | O3: 2011-12-01 | P3: Total | Q3: kwhs/mo | R3: kwhs/mo | S3: kwhs/mo
A4: 1 | B4: BF Goodrich | C4: 770037736 | D4: 3808627 | E4: 3753763 | F4: 4253588 | G4: 3819085 | H4: 4680921 | I4: 5224187 | J4: 4726982 | K4: 4284815 | L4: 5079488 | M4: 5089606 | N4: 4978063 | O4: 5523869 | P4: =SUM(D4:O4) -> 55222994 | Q4: =Q$2*12-SUMPRODUCT(--($D4:$O4<=Q$2),Q$2-$D4:$O4) -> 6000000 | R4: =R$2*12-SUM($Q4:Q4)-SUMPRODUCT(--($D4:$O4<=R$2),R$2-$D4:$O4) -> 49222994 | S4: =S$2*12-SUM($Q4:R4)-SUMPRODUCT(--($D4:$O4<=S$2),S$2-$D4:$O4) -> 0
A5: 2 | B5: Boise Cascade Plywood | C5: 500017 | D5: 3001425 | E5: 3160004 | F5: 3471363 | G5: 3323930 | H5: 3270439 | I5: 3358841 | J5: 3356501 | K5: 3551117 | L5: 3367795 | M5: 3703568 | N5: 3265731 | O5: 3060271 | P5: 39890985 | Q5: =Q$2*12-SUMPRODUCT(--($D5:$O5<=Q$2),Q$2-$D5:$O5) -> 6000000 | R5: =R$2*12-SUM($Q5:Q5)-SUMPRODUCT(--($D5:$O5<=R$2),R$2-$D5:$O5) -> 33890985 | S5: =S$2*12-SUM($Q5:R5)-SUMPRODUCT(--($D5:$O5<=S$2),S$2-$D5:$O5) -> 0
A6: 3 | B6: Boise Cascade Sawmill | C6: 500018 | D6: 1237491 | E6: 1126556 | F6: 1216452 | G6: 1130891 | H6: 1085836 | I6: 1087957 | J6: 1035857 | K6: 1110990 | L6: 1058347 | M6: 1116412 | N6: 976569 | O6: 1099981 | P6: 13283339 | Q6: 6000000 | R6: =R$2*12-SUM($Q6:Q6)-SUMPRODUCT(--($D6:$O6<=R$2),R$2-$D6:$O6) -> 7283339 | S6: =S$2*12-SUM($Q6:R6)-SUMPRODUCT(--($D6:$O6<=S$2),S$2-$D6:$O6) -> 0
A7: 4 | B7: City of Spokane Sewage Treatment Plt | C7: 1900002 | D7: 2077618 | E7: 1816199 | F7: 1857284 | G7: 1791579 | H7: 1721989 | I7: 1619417 | J7: 1696208 | K7: 1711256 | L7: 1498340 | M7: 1373715 | N7: 1505059 | O7: 1542673 | P7: 20211337 | Q7: 6000000 | R7: =R$2*12-SUM($Q7:Q7)-SUMPRODUCT(--($D7:$O7<=R$2),R$2-$D7:$O7) -> 14211337 | S7: =S$2*12-SUM($Q7:R7)-SUMPRODUCT(--($D7:$O7<=S$2),S$2-$D7:$O7) -> 0
A8: 5 | B8: Deaconess Medical Center | C8: 1900011 | D8: 1620463 | E8: 1471483 | F8: 1626423 | G8: 1577045 | H8: 1627693 | I8: 1621439 | J8: 1696758 | K8: 1731335 | L8: 1634308 | M8: 1631862 | N8: 1616614 | O8: 1726530 | P8: 19581953 | Q8: 6000000 | R8: =R$2*12-SUM($Q8:Q8)-SUMPRODUCT(--($D8:$O8<=R$2),R$2-$D8:$O8) -> 13581953 | S8: =S$2*12-SUM($Q8:R8)-SUMPRODUCT(--($D8:$O8<=S$2),S$2-$D8:$O8) -> 0
A9: 6 | B9: Gonzaga University | C9: 622922 | D9: 2608040 | E9: 2458257 | F9: 2393636 | G9: 2257396 | H9: 1789833 | I9: 1698894 | J9: 1889577 | K9: 2135927 | L9: 2340523 | M9: 2294200 | N9: 2411660 | O9: 2367851 | P9: 26645794 | Q9: 6000000 | R9: =R$2*12-SUM($Q9:Q9)-SUMPRODUCT(--($D9:$O9<=R$2),R$2-$D9:$O9) -> 20645794 | S9: =S$2*12-SUM($Q9:R9)-SUMPRODUCT(--($D9:$O9<=S$2),S$2-$D9:$O9) -> 0
A10: 7 | B10: Honeywell Electronics | C10: 2304636 | D10: 1033819 | E10: 973357 | F10: 1040092 | G10: 989989 | H10: 1060583 | I10: 1104470 | J10: 1158300 | K10: 1233033 | L10: 1053279 | M10: 981021 | N10: 920135 | O10: 945742 | P10: 12493820 | Q10: 6000000 | R10: =R$2*12-SUM($Q10:Q10)-SUMPRODUCT(--($D10:$O10<=R$2),R$2-$D10:$O10) -> 6493820 | S10: =S$2*12-SUM($Q10:R10)-SUMPRODUCT(--($D10:$O10<=S$2),S$2-$D10:$O10) -> 0
A11: 8 | B11: Huntwood Industries | C11: 610074869 | D11: 940187 | E11: 829238 | F11: 1023028 | G11: 910463 | H11: 955178 | I11: 955866 | J11: 899521 | K11: 1012641 | L11: 874477 | M11: 899081 | N11: 876530 | O11: 857970 | P11: 11034180 | Q11: 6000000 | R11: =R$2*12-SUM($Q11:Q11)-SUMPRODUCT(--($D11:$O11<=R$2),R$2-$D11:$O11) -> 5034180 | S11: =S$2*12-SUM($Q11:R11)-SUMPRODUCT(--($D11:$O11<=S$2),S$2-$D11:$O11) -> 0
A12: 9 | B12: Inland Empire Paper | C12: 2500004 | D12: 40074428 | E12: 37687828 | F12: 40094314 | G12: 36786244 | H12: 41048816 | I12: 40260902 | J12: 36657858 | K12: 39970160 | L12: 39552316 | M12: 40136742 | N12: 38372952 | O12: 38046220 | P12: 468688780 | Q12: 6000000 | R12: =R$2*12-SUM($Q12:Q12)-SUMPRODUCT(--($D12:$O12<=R$2),R$2-$D12:$O12) -> 66000000 | S12: =S$2*12-SUM($Q12:R12)-SUMPRODUCT(--($D12:$O12<=S$2),S$2-$D12:$O12) -> 396688780
A13: 10 | B13: JR Simplot | C13: 290048778 | D13: 1852628 | E13: 4577828 | F13: 5181296 | G13: 4548092 | H13: 4526802 | I13: 5147415 | J13: 3569030 | K13: 5393909 | L13: 4720477 | M13: 5035477 | N13: 4140066 | O13: 4241937 | P13: 52934957 | Q13: 6000000 | R13: =R$2*12-SUM($Q13:Q13)-SUMPRODUCT(--($D13:$O13<=R$2),R$2-$D13:$O13) -> 46934957 | S13: =S$2*12-SUM($Q13:R13)-SUMPRODUCT(--($D13:$O13<=S$2),S$2-$D13:$O13) -> 0
A14: 11 | B14: McCaine Foods Inc | C14: 2500003 | D14: 5582527 | E14: 5005728 | F14: 5638517 | G14: 5393416 | H14: 5831000 | I14: 5750758 | J14: 5375770 | K14: 5536675 | L14: 5572577 | M14: 5817582 | N14: 5192902 | O14: 4470687 | P14: 65168139 | Q14: 6000000 | R14: =R$2*12-SUM($Q14:Q14)-SUMPRODUCT(--($D14:$O14<=R$2),R$2-$D14:$O14) -> 59168139 | S14: =S$2*12-SUM($Q14:R14)-SUMPRODUCT(--($D14:$O14<=S$2),S$2-$D14:$O14) -> 0
A15: 12 | B15: Sacred Heart Medical Center | C15: 500020 | D15: 3416015 | E15: 3062398 | F15: 3395246 | G15: 3238681 | H15: 3592249 | I15: 3799339 | J15: 4415403 | K15: 4704884 | L15: 4218584 | M15: 3528722 | N15: 3326377 | O15: 3414385 | P15: 44112283 | Q15: 6000000 | R15: =R$2*12-SUM($Q15:Q15)-SUMPRODUCT(--($D15:$O15<=R$2),R$2-$D15:$O15) -> 38112283 | S15: =S$2*12-SUM($Q15:R15)-SUMPRODUCT(--($D15:$O15<=S$2),S$2-$D15:$O15) -> 0
A16: 13 | B16: Spokane County Courthouse | C16: 1900012 | D16: 1093567 | E16: 989220 | F16: 1044105 | G16: 1002889 | H16: 1113452 | I16: 1173726 | J16: 1276653 | K16: 1372497 | L16: 1214121 | M16: 1099898 | N16: 1007689 | O16: 1031419 | P16: 13419236 | Q16: 6000000 | R16: =R$2*12-SUM($Q16:Q16)-SUMPRODUCT(--($D16:$O16<=R$2),R$2-$D16:$O16) -> 7419236 | S16: =S$2*12-SUM($Q16:R16)-SUMPRODUCT(--($D16:$O16<=S$2),S$2-$D16:$O16) -> 0
A17: 14 | B17: Spokane Steel Foundry | C17: 2400169 | D17: 1192411 | E17: 1128101 | F17: 1244587 | G17: 1093990 | H17: 1132945 | I17: 1205398 | J17: 1215859 | K17: 1315650 | L17: 1174974 | M17: 1175660 | N17: 1181463 | O17: 1161407 | P17: 14222445 | Q17: 6000000 | R17: =R$2*12-SUM($Q17:Q17)-SUMPRODUCT(--($D17:$O17<=R$2),R$2-$D17:$O17) -> 8222445 | S17: =S$2*12-SUM($Q17:R17)-SUMPRODUCT(--($D17:$O17<=S$2),S$2-$D17:$O17) -> 0
A18: 15 | B18: Stimson Lumber - Colville | C18: 610018682 | D18: 925588 | E18: 920455 | F18: 947927 | G18: 840147 | H18: 647266 | I18: 784594 | J18: 791335 | K18: 852327 | L18: 683936 | M18: 898997 | N18: 909682 | O18: 989852 | P18: 10192106 | Q18: 6000000 | R18: =R$2*12-SUM($Q18:Q18)-SUMPRODUCT(--($D18:$O18<=R$2),R$2-$D18:$O18) -> 4192106 | S18: =S$2*12-SUM($Q18:R18)-SUMPRODUCT(--($D18:$O18<=S$2),S$2-$D18:$O18) -> 0
A19: 16 | B19: Triumph Composite / Boeing | C19: 690067830 | D19: 1222670 | E19: 1088388 | F19: 1190406 | G19: 1232482 | H19: 1324373 | I19: 1362539 | J19: 1380603 | K19: 1604950 | L19: 1392447 | M19: 1341157 | N19: 1238017 | O19: 1163921 | P19: 15541953 | Q19: 6000000 | R19: =R$2*12-SUM($Q19:Q19)-SUMPRODUCT(--($D19:$O19<=R$2),R$2-$D19:$O19) -> 9541953 | S19: =S$2*12-SUM($Q19:R19)-SUMPRODUCT(--($D19:$O19<=S$2),S$2-$D19:$O19) -> 0
A20: 17 | B20: Vaagen Brothers Lumber | C20: 1300001 | D20: 1847240 | E20: 1645211 | F20: 1777349 | G20: 1447997 | H20: 868763 | I20: 991565 | J20: 1442034 | K20: 1672367 | L20: 1581350 | M20: 1561134 | N20: 1848767 | O20: 2099518 | P20: 18783295 | Q20: 6000000 | R20: =R$2*12-SUM($Q20:Q20)-SUMPRODUCT(--($D20:$O20<=R$2),R$2-$D20:$O20) -> 12783295 | S20: =S$2*12-SUM($Q20:R20)-SUMPRODUCT(--($D20:$O20<=S$2),S$2-$D20:$O20) -> 0
A21: 18 | B21: WSU - MP-A South Campus Feeder | C21: 290081951 | D21: 2573906 | E21: 2465210 | F21: 2457336 | G21: 2347330 | H21: 2268174 | I21: 2129641 | J21: 2173186 | K21: 2206523 | L21: 2223424 | M21: 2377810 | N21: 2392370 | O21: 2411315 | P21: 28026225 | Q21: 6000000 | R21: =R$2*12-SUM($Q21:Q21)-SUMPRODUCT(--($D21:$O21<=R$2),R$2-$D21:$O21) -> 22026225 | S21: =S$2*12-SUM($Q21:R21)-SUMPRODUCT(--($D21:$O21<=S$2),S$2-$D21:$O21) -> 0
A22: 19 | B22: WSU - MP-B East Campus EA | C22: 500033 | D22: 3940208 | E22: 3697898 | F22: 3860872 | G22: 3676575 | H22: 3509151 | I22: 3758823 | J22: 4324597 | K22: 4595556 | L22: 4066558 | M22: 3736381 | N22: 3805277 | O22: 4007245 | P22: 46979141 | Q22: 6000000 | R22: =R$2*12-SUM($Q22:Q22)-SUMPRODUCT(--($D22:$O22<=R$2),R$2-$D22:$O22) -> 40979141 | S22: =S$2*12-SUM($Q22:R22)-SUMPRODUCT(--($D22:$O22<=S$2),S$2-$D22:$O22) -> 0
A23: 20 | B23: WSU - MP-C East Campus EB | C23: 410031282 | D23: 2613496 | E23: 2296266 | F23: 2465438 | G23: 2370283 | H23: 2370686 | I23: 2199527 | J23: 2255190 | K23: 2257651 | L23: 2209095 | M23: 2429083 | N23: 2411073 | O23: 2405281 | P23: 28283069 | Q23: 6000000 | R23: =R$2*12-SUM($Q23:Q23)-SUMPRODUCT(--($D23:$O23<=R$2),R$2-$D23:$O23) -> 22283069 | S23: =S$2*12-SUM($Q23:R23)-SUMPRODUCT(--($D23:$O23<=S$2),S$2-$D23:$O23) -> 0
A24: 21 | B24: WSU - MP -D Casp East (no PVD) | C24: 500032 | D24: 2766760 | E24: 2622520 | F24: 2699488 | G24: 2498504 | H24: 2369024 | I24: 2224232 | J24: 2247752 | K24: 2404560 | L24: 2399408 | M24: 2482640 | N24: 2500720 | O24: 2561944 | P24: 29777552 | Q24: 6000000 | R24: =R$2*12-SUM($Q24:Q24)-SUMPRODUCT(--($D24:$O24<=R$2),R$2-$D24:$O24) -> 23777552 | S24: =S$2*12-SUM($Q24:R24)-SUMPRODUCT(--($D24:$O24<=S$2),S$2-$D24:$O24) -> 0
A25: 22 | B25: WSU - MP-E Casp West (no PVD) | C25: 500034 | D25: 2292496 | E25: 2249680 | F25: 2249168 | G25: 2267088 | H25: 1989584 | I25: 1980192 | J25: 2436168 | K25: 3319504 | L25: 3205520 | M25: 2480944 | N25: 2195880 | O25: 2102552 | P25: 28768776 | Q25: 6000000 | R25: =R$2*12-SUM($Q25:Q25)-SUMPRODUCT(--($D25:$O25<=R$2),R$2-$D25:$O25) -> 22768776 | S25: =S$2*12-SUM($Q25:R25)-SUMPRODUCT(--($D25:$O25<=S$2),S$2-$D25:$O25) -> 0
B26: Schedule 25 Total | D26: =SUM(D4:D25) -> 87721610 | E26: =SUM(E4:E25) -> 85025588 | F26: 91127915 | G26: 84544096 | H26: 88784757 | I26: 89439722 | J26: 86021142 | K26: 93978327 | L26: 91121344 | M26: 91191692 | N26: 87073596 | O26: 87232570 | P26: =IF(ROUND(SUM(P4:P25),0)<>ROUND(SUM(D26:O26),0),#VALUE!,SUM(P4:P25)) -> 1063262359 | Q26: 132000000 | R26: 534573579 | S26: 396688780
S27: =SUM(Q26:S26) -> 1063262359
B28: Revenue Run Total | D28: 88890396 | E28: 87721610 | F28: 85025588 | G28: 91127915 | H28: 84544096 | I28: 88784757 | J28: 89439722 | K28: 86021142 | L28: 93978328 | M28: 91121343 | N28: 91191692 | O28: 87074236 | P28: =SUM(D28:O28) -> 1064920825
B29: Booked Unbilled Reversal | D29: -89312583 | E29: -87614262 | F29: -84392705 | G29: -91127915 | H29: -84816114 | I29: -88659121 | J29: -89636083 | K29: -86021142 | L29: -93975839 | M29: -91104442 | N29: -91477767 | O29: -87074236 | P29: =SUM(D29:O29) -> -1065212209
B30: Gross Booked Unbilled | D30: 87614262 | E30: 84392705 | F30: 91127915 | G30: 84816114 | H30: 88659121 | I30: 89636083 | J30: 86021142 | K30: 93975839 | L30: 91104442 | M30: 91477767 | N30: 87074236 | O30: 87272600 | P30: =SUM(D30:O30) -> 1063172226
B31: Gross Unbilled True-up | D31: 107348 | E31: 632883 | F31: 0 | G31: -272018 | H31: 125636 | I31: -196361 | J31: 0 | K31: 2488 | L31: 16902 | M31: -286075 | N31: -640 | O31: -40030 | P31: 90133
B32: Unbilled Reversal True-up | D32: 422187 | E32: -107348 | F32: -632883 | G32: 0 | H32: 272018 | I32: -125636 | J32: 196361 | K32: 0 | L32: -2488 | M32: -16902 | N32: 286075 | O32: 640 | P32: 292024
L33: -1 | M33: 1 | O33: -640 | P33: -640
B34: Adj Revenue Runs, Sch 25 | D34: =SUM(D28:D32) -> 87721610 | E34: 85025588 | F34: 91127915 | G34: 84544096 | H34: 88784757 | I34: 89439722 | J34: 86021142 | K34: 93978327 | L34: =SUM(L28:L33) -> 91121344 | M34: =SUM(M28:M33) -> 91191692 | N34: 87073596 | O34: =SUM(O28:O33) -> 87232570 | P34: =IF(ROUND(SUM(P28:P33),0)<>ROUND(SUM(D34:O34),0),#VALUE!,SUM(P28:P33)) -> 1063262359
D35: =D34-D26 -> 0 | E35: 0 | F35: 0 | G35: 0 | H35: 0 | I35: 0 | J35: 0 | K35: 0 | L35: 0 | M35: 0 | N35: 0 | O35: 0 | P35: 0
B38: KVA | D38: =D$3 -> 2011-01-01 | E38: =E$3 -> 2011-02-01 | F38: 2011-03-01 | G38: 2011-04-01 | H38: 2011-05-01 | I38: 2011-06-01 | J38: 2011-07-01 | K38: 2011-08-01 | L38: 2011-09-01 | M38: 2011-10-01 | N38: 2011-11-01 | O38: 2011-12-01 | P38: Total | Q38: Peak | R38: Month
A39: 1 | B39: =B4 -> BF Goodrich | C39: 770037736 | D39: 7496 | E39: 7980 | F39: 8166 | G39: 8133 | H39: 8676 | I39: 10163 | J39: 9085 | K39: 9405 | L39: 10267 | M39: 9534 | N39: 9468 | O39: 10368 | P39: =SUM(D39:O39) -> 108741 | Q39: =MAX(D39:O39) -> 10368 | R39: =INDEX($D$38:$O$38,MATCH(Q39,$D39:$O39,0)) -> 2011-12-01
A40: 2 | B40: Boise Cascade Plywood | C40: 500017 | D40: 6104 | E40: 5603 | F40: 5689 | G40: 5642 | H40: 5869 | I40: 5526 | J40: 5430 | K40: 5535 | L40: 5984 | M40: 5618 | N40: 5589 | O40: 5798 | P40: 68387 | Q40: =MAX(D40:O40) -> 6104 | R40: =INDEX($D$38:$O$38,MATCH(Q40,$D40:$O40,0)) -> 2011-01-01
A41: 3 | B41: Boise Cascade Sawmill | C41: 500018 | D41: 2944 | E41: 2919 | F41: 2759 | G41: 2811 | H41: 2884 | I41: 2638 | J41: 2525 | K41: 2644 | L41: 2755 | M41: 3048 | N41: 2942 | O41: 3079 | P41: 33948 | Q41: 3079 | R41: 2011-12-01
A42: 4 | B42: City of Spokane Sewage Treatment Plt | C42: 1900002 | D42: 4364 | E42: 3746 | F42: 3884 | G42: 3498 | H42: 3733 | I42: 3199 | J42: 3241 | K42: 3250 | L42: 3087 | M42: 2943 | N42: 3273 | O42: 2893 | P42: 41111 | Q42: 4364 | R42: 2011-01-01
A43: 5 | B43: Deaconess Medical Center | C43: 1900011 | D43: 2930 | E43: 2938 | F43: 2953 | G43: 2768 | H43: 2761 | I43: 3388 | J43: 3406 | K43: 3334 | L43: 3365 | M43: 2737 | N43: 2867 | O43: 3014 | P43: 36461 | Q43: 3406 | R43: 2011-07-01
A44: 6 | B44: Gonzaga University | C44: 622922 | D44: 5062 | E44: 4972 | F44: 4659 | G44: 4307 | H44: 4007 | I44: 4438 | J44: 4816 | K44: 5987 | L44: 5711 | M44: 4604 | N44: 4849 | O44: 5025 | P44: 58437 | Q44: 5987 | R44: 2011-08-01
A45: 7 | B45: Honeywell Electronics | C45: 2304636 | D45: 2819 | E45: 2701 | F45: 2765 | G45: 2736 | H45: 2821 | I45: 3144 | J45: 3138 | K45: 3199 | L45: 3115 | M45: 3489 | N45: 2584 | O45: 2563 | P45: 35074 | Q45: 3489 | R45: 2011-10-01
A46: 8 | B46: Huntwood Industries | C46: 610074869 | D46: 4245 | E46: 4254 | F46: 4178 | G46: 4188 | H46: 4196 | I46: 4358 | J46: 4348 | K46: 4350 | L46: 4256 | M46: 4215 | N46: 4199 | O46: 4131 | P46: 50918 | Q46: 4358 | R46: 2011-06-01
A47: 9 | B47: =B12 -> Inland Empire Paper | C47: =C12 -> 2500004 | D47: 61896 | E47: 63632 | F47: 63567 | G47: 61637 | H47: 64319 | I47: 63321 | J47: 62470 | K47: 59803 | L47: 69925 | M47: 58380 | N47: 59044 | O47: 60531 | P47: 748525 | Q47: 69925 | R47: 2011-09-01
A48: 10 | B48: JR Simplot | C48: 290048778 | D48: 8756 | E48: 8729 | F48: 9001 | G48: 9019 | H48: 8903 | I48: 9262 | J48: 8094 | K48: 8364 | L48: 8274 | M48: 7751 | N48: 7872 | O48: 7655 | P48: 101680 | Q48: 9262 | R48: 2011-06-01
A49: 11 | B49: McCaine Foods Inc | C49: 2500003 | D49: 8618 | E49: 8717 | F49: 8822 | G49: 8715 | H49: 9056 | I49: 9292 | J49: 9236 | K49: 8848 | L49: 9132 | M49: 9211 | N49: 8930 | O49: 8744 | P49: 107321 | Q49: 9292 | R49: 2011-06-01
A50: 12 | B50: Sacred Heart Medical Center | C50: 500020 | D50: 5753 | E50: 5582 | F50: 5603 | G50: 6036 | H50: 7500 | I50: 7949 | J50: 8312 | K50: 8606 | L50: 8642 | M50: 7571 | N50: 5664 | O50: 5605 | P50: 82823 | Q50: 8642 | R50: 2011-09-01
A51: 13 | B51: Spokane County Courthouse | C51: 1900012 | D51: 2274 | E51: 2255 | F51: 2453 | G51: 2369 | H51: 2704 | I51: 2998 | J51: 3022 | K51: 3120 | L51: 3063 | M51: 2692 | N51: 2195 | O51: 2154 | P51: 31299 | Q51: 3120 | R51: 2011-08-01
A52: 14 | B52: Spokane Steel Foundry | C52: 2400169 | D52: 5315 | E52: 4986 | F52: 4808 | G52: 5495 | H52: 5099 | I52: 5141 | J52: 4869 | K52: 5300 | L52: 5082 | M52: 4950 | N52: 4816 | O52: 5019 | P52: 60880 | Q52: 5495 | R52: 2011-04-01
A53: 15 | B53: Stimson Lumber - Colville | C53: 610018682 | D53: 3759 | E53: 3783 | F53: 3664 | G53: 3587 | H53: 3526 | I53: 3578 | J53: 3603 | K53: 3659 | L53: 3564 | M53: 3721 | N53: 3733 | O53: 3834 | P53: 44011 | Q53: 3834 | R53: 2011-12-01
A54: 16 | B54: Triumph Composite / Boeing | C54: 690067830 | D54: 3006 | E54: 2878 | F54: 2904 | G54: 2893 | H54: 3318 | I54: 3594 | J54: 3717 | K54: 3710 | L54: 3672 | M54: 3159 | N54: 3006 | O54: 2919 | P54: 38776 | Q54: 3717 | R54: 2011-07-01
A55: 17 | B55: Vaagen Brothers Lumber | C55: 1300001 | D55: 4587 | E55: 4348 | F55: 4293 | G55: 4142 | H55: 3899 | I55: 3822 | J55: 3917 | K55: 4029 | L55: 4038 | M55: 4319 | N55: 4482 | O55: 4676 | P55: 50552 | Q55: 4676 | R55: 2011-12-01
A56: 18 | B56: WSU - MP-A South Campus Feeder | C56: 290081951 | D56: 5064 | E56: 5441 | F56: 5215 | G56: 4856 | H56: 4392 | I56: 4360 | J56: 4344 | K56: 4593 | L56: 4638 | M56: 4748 | N56: 4967 | O56: 5042 | P56: 57660 | Q56: 5441 | R56: 2011-02-01
A57: 19 | B57: WSU - MP-B East Campus EA | C57: 500033 | D57: 8136 | E57: 8619 | F57: 7876 | G57: 7610 | H57: 7568 | I57: 7833 | J57: 10113 | K57: 10500 | L57: 10416 | M57: 7375 | N57: 7748 | O57: 8326 | P57: 102120 | Q57: 10500 | R57: 2011-08-01
A58: 20 | B58: WSU - MP-C East Campus EB | C58: 410031282 | D58: 4884 | E58: 4912 | F58: 4720 | G58: 4885 | H58: 4750 | I58: 4338 | J58: 4184 | K58: 4440 | L58: 4449 | M58: 4588 | N58: 4667 | O58: 4659 | P58: 55476 | Q58: 4912 | R58: 2011-02-01
A59: 21 | B59: WSU - MP -D Casp East (no PVD) | C59: 500032 | D59: 5331 | E59: 5390 | F59: 5286 | G59: 4931 | H59: 4674 | I59: 4330 | J59: 4444 | K59: 4736 | L59: 4783 | M59: 4690 | N59: 5084 | O59: 5048 | P59: 58727 | Q59: 5390 | R59: 2011-02-01
A60: 22 | B60: WSU - MP-E Casp West (no PVD) | C60: 500034 | D60: 4926 | E60: 4983 | F60: 4793 | G60: 4845 | H60: 4859 | I60: 5186 | J60: 5929 | K60: 7678 | L60: 7705 | M60: 6362 | N60: 4748 | O60: 4772 | P60: 66786 | Q60: 7705 | R60: 2011-09-01
B61: Schedule 25 Total | D61: =SUM(D39:D60) -> 168269 | E61: =SUM(E39:E60) -> 169368 | F61: 168058 | G61: 165103 | H61: 169514 | I61: 171858 | J61: 172243 | K61: 175090 | L61: 185923 | M61: 165705 | N61: 162727 | O61: 165855 | P61: =IF(ROUND(SUM(P39:P60),0)<>ROUND(SUM(D61:O61),0),#VALUE!,SUM(P39:P60)) -> 2039713
P63: =P$2 -> 12-mo Ended
B64: KVA in excess of 3,000 | D64: =D$3 -> 2011-01-01 | E64: =E$3 -> 2011-02-01 | F64: 2011-03-01 | G64: 2011-04-01 | H64: 2011-05-01 | I64: 2011-06-01 | J64: 2011-07-01 | K64: 2011-08-01 | L64: 2011-09-01 | M64: 2011-10-01 | N64: 2011-11-01 | O64: 2011-12-01 | P64: Total
A65: 1 | B65: =B4 -> BF Goodrich | C65: 770037736 | D65: =IF(D39>3000,D39-3000,0) -> 4496 | E65: =IF(E39>3000,E39-3000,0) -> 4980 | F65: 5166 | G65: =MAX(0,G39-3000) -> 5133 | H65: =MAX(0,H39-3000) -> 5676 | I65: 7163 | J65: 6085 | K65: 6405 | L65: 7267 | M65: 6534 | N65: 6468 | O65: 7368 | P65: =SUM(D65:O65) -> 72741
A66: 2 | B66: Boise Cascade Plywood | C66: 500017 | D66: 3104 | E66: 2603 | F66: 2689 | G66: =MAX(0,G40-3000) -> 2642 | H66: 2869 | I66: 2526 | J66: 2430 | K66: 2535 | L66: 2984 | M66: 2618 | N66: 2589 | O66: 2798 | P66: 32387
A67: 3 | B67: Boise Cascade Sawmill | C67: 500018 | D67: 0 | E67: 0 | F67: 0 | G67: 0 | H67: 0 | I67: 0 | J67: 0 | K67: 0 | L67: 0 | M67: 48 | N67: 0 | O67: 79 | P67: 127
A68: 4 | B68: City of Spokane Sewage Treatment Plt | C68: 1900002 | D68: 1364 | E68: 746 | F68: 884 | G68: 498 | H68: 733 | I68: 199 | J68: 241 | K68: 250 | L68: 87 | M68: 0 | N68: 273 | O68: 0 | P68: 5275
A69: 5 | B69: Deaconess Medical Center | C69: 1900011 | D69: 0 | E69: 0 | F69: 0 | G69: 0 | H69: 0 | I69: 388 | J69: 406 | K69: 334 | L69: 365 | M69: 0 | N69: 0 | O69: 14 | P69: 1507
A70: 6 | B70: Gonzaga University | C70: 622922 | D70: 2062 | E70: 1972 | F70: 1659 | G70: 1307 | H70: 1007 | I70: 1438 | J70: 1816 | K70: 2987 | L70: 2711 | M70: 1604 | N70: 1849 | O70: 2025 | P70: 22437
A71: 7 | B71: Honeywell Electronics | C71: 2304636 | D71: 0 | E71: 0 | F71: 0 | G71: 0 | H71: 0 | I71: 144 | J71: 138 | K71: 199 | L71: 115 | M71: 489 | N71: 0 | O71: 0 | P71: 1085
A72: 8 | B72: Huntwood Industries | C72: 610074869 | D72: 1245 | E72: 1254 | F72: 1178 | G72: 1188 | H72: 1196 | I72: 1358 | J72: 1348 | K72: 1350 | L72: 1256 | M72: 1215 | N72: 1199 | O72: 1131 | P72: 14918
A73: 9 | B73: =B12 -> Inland Empire Paper | C73: 2500004 | D73: 58896 | E73: 60632 | F73: 60567 | G73: 58637 | H73: 61319 | I73: 60321 | J73: 59470 | K73: 56803 | L73: 66925 | M73: 55380 | N73: 56044 | O73: 57531 | P73: 712525
A74: 10 | B74: JR Simplot | C74: 290048778 | D74: 5756 | E74: 5729 | F74: 6001 | G74: 6019 | H74: 5903 | I74: 6262 | J74: 5094 | K74: 5364 | L74: 5274 | M74: 4751 | N74: 4872 | O74: 4655 | P74: 65680
A75: 11 | B75: McCaine Foods Inc | C75: 2500003 | D75: 5618 | E75: 5717 | F75: 5822 | G75: 5715 | H75: 6056 | I75: 6292 | J75: 6236 | K75: 5848 | L75: 6132 | M75: 6211 | N75: 5930 | O75: 5744 | P75: 71321
A76: 12 | B76: =B15 -> Sacred Heart Medical Center | C76: 500020 | D76: 2753 | E76: 2582 | F76: 2603 | G76: 3036 | H76: 4500 | I76: 4949 | J76: 5312 | K76: 5606 | L76: 5642 | M76: 4571 | N76: 2664 | O76: 2605 | P76: 46823
A77: 13 | B77: Spokane County Courthouse | C77: 1900012 | D77: 0 | E77: 0 | F77: 0 | G77: 0 | H77: 0 | I77: 0 | J77: 22 | K77: 120 | L77: 63 | M77: 0 | N77: 0 | O77: 0 | P77: 205
A78: 14 | B78: Spokane Steel Foundry | C78: 2400169 | D78: 2315 | E78: 1986 | F78: 1808 | G78: 2495 | H78: 2099 | I78: 2141 | J78: 1869 | K78: 2300 | L78: 2082 | M78: 1950 | N78: 1816 | O78: 2019 | P78: 24880
A79: 15 | B79: Stimson Lumber - Colville | C79: 610018682 | D79: 759 | E79: 783 | F79: 664 | G79: 587 | H79: 526 | I79: 578 | J79: 603 | K79: 659 | L79: 564 | M79: 721 | N79: 733 | O79: 834 | P79: 8011
A80: 16 | B80: Triumph Composite / Boeing | C80: 690067830 | D80: 6 | E80: 0 | F80: 0 | G80: 0 | H80: 318 | I80: 594 | J80: 717 | K80: 710 | L80: 672 | M80: 159 | N80: 6 | O80: 0 | P80: 3182
A81: 17 | B81: Vaagen Brothers Lumber | C81: 1300001 | D81: 1587 | E81: 1348 | F81: 1293 | G81: 1142 | H81: 899 | I81: 822 | J81: 917 | K81: 1029 | L81: 1038 | M81: 1319 | N81: 1482 | O81: 1676 | P81: 14552
A82: 18 | B82: WSU - MP-A South Campus Feeder | C82: 290081951 | D82: 2064 | E82: 2441 | F82: 2215 | G82: 1856 | H82: 1392 | I82: 1360 | J82: 1344 | K82: 1593 | L82: 1638 | M82: 1748 | N82: 1967 | O82: 2042 | P82: 21660
A83: 19 | B83: WSU - MP-B East Campus EA | C83: 500033 | D83: 5136 | E83: 5619 | F83: 4876 | G83: 4610 | H83: 4568 | I83: 4833 | J83: 7113 | K83: 7500 | L83: 7416 | M83: 4375 | N83: 4748 | O83: 5326 | P83: 66120
A84: 20 | B84: WSU - MP-C East Campus EB | C84: 410031282 | D84: 1884 | E84: 1912 | F84: 1720 | G84: 1885 | H84: 1750 | I84: 1338 | J84: 1184 | K84: 1440 | L84: 1449 | M84: 1588 | N84: 1667 | O84: 1659 | P84: 19476
A85: 21 | B85: WSU - MP -D Casp East (no PVD) | C85: 500032 | D85: 2331 | E85: 2390 | F85: 2286 | G85: 1931 | H85: 1674 | I85: 1330 | J85: 1444 | K85: 1736 | L85: 1783 | M85: 1690 | N85: 2084 | O85: 2048 | P85: 22727
A86: 22 | B86: WSU - MP-E Casp West (no PVD) | C86: 500034 | D86: 1926 | E86: 1983 | F86: 1793 | G86: 1845 | H86: 1859 | I86: 2186 | J86: 2929 | K86: 4678 | L86: 4705 | M86: 3362 | N86: 1748 | O86: 1772 | P86: 30786
B87: Schedule 25 Total | D87: =SUM(D65:D86) -> 103302 | E87: =SUM(E65:E86) -> 104677 | F87: 103224 | G87: 100526 | H87: 104344 | I87: 106222 | J87: 106718 | K87: 109446 | L87: 120168 | M87: 100333 | N87: 98139 | O87: 101326 | P87: =IF(ROUND(SUM(P65:P86),0)<>ROUND(SUM(D87:O87),0),#VALUE!,SUM(P65:P86)) -> 1258425
P89: =P$2 -> 12-mo Ended
B90: KW | D90: =D$3 -> 2011-01-01 | E90: =E$3 -> 2011-02-01 | F90: 2011-03-01 | G90: 2011-04-01 | H90: 2011-05-01 | I90: 2011-06-01 | J90: 2011-07-01 | K90: 2011-08-01 | L90: 2011-09-01 | M90: 2011-10-01 | N90: 2011-11-01 | O90: 2011-12-01 | P90: Total
A91: 1 | B91: =B4 -> BF Goodrich | C91: 770037736 | D91: 7132 | E91: 7568 | F91: 7720 | G91: 7652 | H91: 8299 | I91: 9652 | J91: 8652 | K91: 8862 | L91: 9811 | M91: 9072 | N91: 9022 | O91: 9912 | P91: =SUM(D91:O91) -> 103354
A92: 2 | B92: Boise Cascade Plywood | C92: 500017 | D92: 5846 | E92: 5561 | F92: 5586 | G92: 5552 | H92: 5132 | I92: 4939 | J92: 5284 | K92: 5376 | L92: 5762 | M92: 5561 | N92: 5552 | O92: 5636 | P92: 65787
A93: 3 | B93: Boise Cascade Sawmill | C93: 500018 | D93: 2733 | E93: 2772 | F93: 2624 | G93: 2587 | H93: 2570 | I93: 2428 | J93: 2274 | K93: 2416 | L93: 2514 | M93: 2817 | N93: 2789 | O93: 2850 | P93: 31374
A94: 4 | B94: City of Spokane Sewage Treatment Plt | C94: 1900002 | D94: 3692 | E94: 3163 | F94: 3196 | G94: 2911 | H94: 3112 | I94: 2587 | J94: 2608 | K94: 2629 | L94: 2457 | M94: 2390 | N94: 2684 | O94: 2331 | P94: 33760
A95: 5 | B95: Deaconess Medical Center | C95: 1900011 | D95: 2780 | E95: 2776 | F95: 2747 | G95: 2596 | H95: 2600 | I95: 3133 | J95: 3142 | K95: 3066 | L95: 3095 | M95: 2604 | N95: 2738 | O95: 2885 | P95: 34162
A96: 6 | B96: Gonzaga University | C96: 622922 | D96: 4911 | E96: 4799 | F96: 4502 | G96: 4110 | H96: 3802 | I96: 3982 | J96: 4301 | K96: 5410 | L96: 5236 | M96: 4262 | N96: 4693 | O96: 4855 | P96: 54863
A97: 7 | B97: Honeywell Electronics | C97: 2304636 | D97: 2352 | E97: 2223 | F97: 2279 | G97: 2234 | H97: 2246 | I97: 2506 | J97: 2512 | K97: 2484 | L97: 2394 | M97: 2038 | N97: 2097 | O97: 2083 | P97: 27448
A98: 8 | B98: Huntwood Industries | C98: 610074869 | D98: 3604 | E98: 3620 | F98: 3520 | G98: 3553 | H98: 3562 | I98: 3679 | J98: 3662 | K98: 3654 | L98: 3553 | M98: 3536 | N98: 3528 | O98: 3469 | P98: 42940
A99: 9 | B99: =B12 -> Inland Empire Paper | C99: 2500004 | D99: 61824 | E99: 63560 | F99: 63408 | G99: 61296 | H99: 64000 | I99: 63000 | J99: 62248 | K99: 59452 | L99: 69688 | M99: 58024 | N99: 58716 | O99: 60180 | P99: 745396
A100: 10 | B100: JR Simplot | C100: 290048778 | D100: 7627 | E100: 7610 | F100: 7745 | G100: 7795 | H100: 7720 | I100: 7988 | J100: 7972 | K100: 8215 | L100: 8005 | M100: 7568 | N100: 7678 | O100: 7476 | P100: 93399
A101: 11 | B101: McCaine Foods Inc | C101: 2500003 | D101: 8523 | E101: 8613 | F101: 8691 | G101: 8062 | H101: 8882 | I101: 9128 | J101: 9061 | K101: 8680 | L101: 8904 | M101: 8949 | N101: 8702 | O101: 8534 | P101: 104729
A102: 12 | B102: Sacred Heart Medical Center | C102: 500020 | D102: 5699 | E102: 5536 | F102: 5544 | G102: 5939 | H102: 7232 | I102: 7652 | J102: 7984 | K102: 8249 | L102: 8295 | M102: 7304 | N102: 5611 | O102: 5552 | P102: 80597
A103: 13 | B103: Spokane County Courthouse | C103: 1900012 | D103: 2071 | E103: 2050 | F103: 2192 | G103: 2146 | H103: 2386 | I103: 2667 | J103: 2654 | K103: 2780 | L103: 2705 | M103: 2377 | N103: 1995 | O103: 1966 | P103: 27989
A104: 14 | B104: Spokane Steel Foundry | C104: 2400169 | D104: 4750 | E104: 4236 | F104: 4253 | G104: 4780 | H104: 4497 | I104: 4492 | J104: 4083 | K104: 4588 | L104: 4382 | M104: 4653 | N104: 4153 | O104: 4576 | P104: 53443
A105: 15 | B105: Stimson Lumber - Colville | C105: 610018682 | D105: 3301 | E105: 3301 | F105: 3158 | G105: 3100 | H105: 3058 | I105: 3032 | J105: 3058 | K105: 2948 | L105: 2898 | M105: 3083 | N105: 3142 | O105: 3301 | P105: 37380
A106: 16 | B106: Triumph Composite / Boeing | C106: 690067830 | D106: 2671 | E106: 2554 | F106: 2579 | G106: 2562 | H106: 2881 | I106: 3150 | J106: 3268 | K106: 3259 | L106: 3192 | M106: 2755 | N106: 2663 | O106: 2587 | P106: 34121
A107: 17 | B107: Vaagen Brothers Lumber | C107: 1300001 | D107: 4151 | E107: 3910 | F107: 3857 | G107: 3715 | H107: 3472 | I107: 3394 | J107: 3494 | K107: 3550 | L107: 3584 | M107: 3909 | N107: 4088 | O107: 4256 | P107: 45380
A108: 18 | B108: WSU - MP-A South Campus Feeder | C108: 290081951 | D108: 4547 | E108: 4928 | F108: 4704 | G108: 4402 | H108: 3842 | I108: 3830 | J108: 3842 | K108: 4088 | L108: 4133 | M108: 4234 | N108: 4525 | O108: 4592 | P108: 51667
A109: 19 | B109: WSU - MP-B East Campus EA | C109: 500033 | D109: 7517 | E109: 8014 | F109: 7222 | G109: 7000 | H109: 6961 | I109: 9057 | J109: 9292 | K109: 9656 | L109: 9555 | M109: 6635 | N109: 7236 | O109: 7726 | P109: 95871
A110: 20 | B110: WSU - MP-C East Campus EB | C110: 410031282 | D110: 4418 | E110: 4452 | F110: 4379 | G110: 4469 | H110: 4343 | I110: 3948 | J110: 3814 | K110: 4049 | L110: 4032 | M110: 4150 | N110: 4225 | O110: 4208 | P110: 50487
A111: 21 | B111: WSU - MP -D Casp East (no PVD) | C111: 500032 | D111: 4928 | E111: 4992 | F111: 4880 | G111: 4528 | H111: 4224 | I111: 3920 | J111: 4000 | K111: 4336 | L111: 4352 | M111: 4272 | N111: 4720 | O111: 4688 | P111: 53840
A112: 22 | B112: WSU - MP-E Casp West (no PVD) | C112: 500034 | D112: 4576 | E112: 4656 | F112: 4432 | G112: 4448 | H112: 4464 | I112: 4736 | J112: 5456 | K112: 7104 | L112: 7184 | M112: 5872 | N112: 4384 | O112: 4416 | P112: 61728
B113: Schedule 25 Total | D113: =SUM(D91:D112) -> 159653 | E113: =SUM(E91:E112) -> 160894 | F113: 159218 | G113: 155437 | H113: 159285 | I113: 162900 | J113: 162661 | K113: 164851 | L113: 175731 | M113: 156065 | N113: 154941 | O113: 158079 | P113: =IF(ROUND(SUM(P91:P112),0)<>ROUND(SUM(D113:O113),0),#VALUE!,SUM(P91:P112)) -> 1929715
B119: IEP KWHs | D119: =D$3 -> 2011-01-01 | E119: =E$3 -> 2011-02-01 | F119: 2011-03-01 | G119: 2011-04-01 | H119: 2011-05-01 | I119: 2011-06-01 | J119: 2011-07-01 | K119: 2011-08-01 | L119: 2011-09-01 | M119: 2011-10-01 | N119: 2011-11-01 | O119: 2011-12-01 | P119: Total
B120: Inland Empire Paper 60 KV | D120: 4019508 | E120: 3236076 | F120: 3713112 | G120: 4143348 | H120: 4642272 | I120: 4350888 | J120: 5228064 | K120: 4669884 | L120: 4453164 | M120: 4868748 | N120: 4685256 | O120: 4893552 | P120: 52903872
B121: Inland Empire Paper 4.16 KV | D121: 1653680 | E121: 1470280 | F121: 1662260 | G121: 1674400 | H121: 1772960 | I121: 1704110 | J121: 2798490 | K121: 1755620 | L121: 1738600 | M121: 1774890 | N121: 1723080 | O121: 1748140 | P121: 21476510
B122: Inland Empire Paper 115 KV | D122: 34401240 | E122: 32981472 | F122: 34718832 | G122: 30968496 | H122: 34633584 | I122: 34205904 | J122: 28631304 | K122: 33544656 | L122: 33360552 | M122: 33493104 | N122: 31964616 | O122: 31404528 | P122: 394308288
A123: * | B123: Total Inland Empire Paper | D123: =SUM(D120:D122) -> 40074428 | E123: 37687828 | F123: 40094204 | G123: 36786244 | H123: 41048816 | I123: 40260902 | J123: 36657858 | K123: 39970160 | L123: 39552316 | M123: 40136742 | N123: 38372952 | O123: 38046220 | P123: 468688670
D124: =D12 -> 40074428 | E124: 37687828 | F124: 40094314 | G124: 36786244 | H124: 41048816 | I124: 40260902 | J124: 36657858 | K124: 39970160 | L124: 39552316 | M124: 40136742 | N124: 38372952 | O124: 38046220 | P124: =SUM(D124:O124) -> 468688780
B125: IEP KVA
B126: Inland Empire Paper 60 KV | D126: 8200 | E126: 6234 | F126: 8807 | G126: 8767 | H126: 8787 | I126: 9046 | J126: 15928 | K126: 11685 | L126: 8929 | M126: 9146 | N126: 11084 | O126: 9665 | P126: 116278
B127: Inland Empire Paper 4.16 KV | D127: 2992 | E127: 2992 | F127: 3288 | G127: 3264 | H127: 3272 | I127: 3272 | J127: 12889 | K127: 3578 | L127: 17613 | M127: 3256 | N127: 3949 | O127: 3280 | P127: 63645
B128: Inland Empire Paper 115 KV | D128: 53856 | E128: 56304 | F128: 52272 | G128: 52272 | H128: 54864 | I128: 53856 | J128: 52704 | K128: 50256 | L128: 50112 | M128: 49104 | N128: 49680 | O128: 51408 | P128: 626688
A129: * | B129: Total Inland Empire Paper | D129: =SUM(D126:D128) -> 65048 | E129: 65530 | F129: 64367 | G129: 64303 | H129: 66923 | I129: 66174 | J129: 81521 | K129: 65519 | L129: 76654 | M129: 61506 | N129: 64713 | O129: 64353 | P129: 806611
D130: =D47 -> 61896 | E130: 63632 | F130: 63567 | G130: 61637 | H130: 64319 | I130: 63321 | J130: 62470 | K130: 59803 | L130: 69925 | M130: 58380 | N130: 59044 | O130: 60531 | P130: =SUM(D130:O130) -> 748525
B131: IEP KW
B132: Inland Empire Paper 60 KV | D132: 7848 | E132: 6048 | F132: 7272 | G132: 7272 | H132: 7344 | I132: 7560 | J132: 13824 | K132: 9864 | L132: 7056 | M132: 7632 | N132: 9288 | O132: 8064 | P132: 99072
B133: Inland Empire Paper 4.16 KV | D133: 2420 | E133: 2420 | F133: 2640 | G133: 2580 | H133: 2620 | I133: 2620 | J133: 11840 | K133: 2520 | L133: 17560 | M133: 2600 | N133: 2680 | O133: 2600 | P133: 55100
B134: Inland Empire Paper 115 KV | D134: 53856 | E134: 56304 | F134: 52272 | G134: 52272 | H134: 54864 | I134: 53856 | J134: 52704 | K134: 50256 | L134: 50112 | M134: 49104 | N134: 49680 | O134: 51408 | P134: 626688
A135: * | B135: Total Inland Empire Paper | D135: =SUM(D132:D134) -> 64124 | E135: 64772 | F135: 62184 | G135: 62124 | H135: 64828 | I135: 64036 | J135: 78368 | K135: 62640 | L135: 74728 | M135: 59336 | N135: 61648 | O135: 62072 | P135: 780860
D136: =D99 -> 61824 | E136: 63560 | F136: 63408 | G136: 61296 | H136: 64000 | I136: 63000 | J136: 62248 | K136: 59452 | L136: 69688 | M136: 58024 | N136: 58716 | O136: 60180 | P136: =SUM(D136:O136) -> 745396
B138: Calc Revenue for IEP | D138: =500000*0.05571+MIN(5500000,D12-500000)*0.05076+MAX(0,D12-6000000)*0.04799+11000+D73*3.5-D126*1-D128*1.2 -> 2086575.6 | E138: =500000*0.05571+MIN(5500000,E12-500000)*0.05076+MAX(0,E12-6000000)*0.04799+11000+E73*3.5-E126*1-E128*1.2 -> 1977147.066 | F138: 2094672.229 | G138: 1929202.95 | H138: 2140020.38 | I138: 2099665.987 | J138: 1918277.805 | K138: 2075081.278 | L138: 2093384.745 | M138: 2082016.449 | N138: 1997066.966 | O138: =500000*0.05571+MIN(5500000,O12-500000)*0.05076+MAX(0,O12-6000000)*0.04799+11000+O73*3.5-O126*1-O128*1.2 -> 1985936.998 | P138: =SUM(D138:O138) -> 24479048.45
B139: Revenue for IEP per Handbill Report | P139: =SUM(D139:O139) -> 0
B141: Primary Voltage Discount
B142: >11 and <60 | C142: -0.2 | D142: =(D61-D60-D59-D47)*$C142 -> -19223.2 | E142: =(E61-E60-E59-E47)*$C142 -> -19072.6 | F142: =(F61-F60-F59-F47)*$C142 -> -18882.4 | G142: -18738 | H142: -19132.4 | I142: -19804.2 | J142: -19880 | K142: -20574.6 | L142: -20702 | M142: -19254.6 | N142: -18770.2 | O142: =(O61-O60-O59-O47)*$C142 -> -19100.8 | P142: =SUM(D142:O142) -> -233135
B143: >60 and <115 | C143: =-1.1 -> -1.1 | D143: =D126*$C143 -> -9020 | E143: =E126*$C143 -> -6857.4 | F143: -9687.7 | G143: -9643.7 | H143: -9665.7 | I143: -9950.6 | J143: -17520.8 | K143: -12853.5 | L143: -9821.9 | M143: -10060.6 | N143: -12192.4 | O143: =O126*$C143 -> -10631.5 | P143: =SUM(D143:O143) -> -127905.8
B144: >115 | C144: -1.35 | D144: =D128*$C144 -> -72705.6 | E144: =E128*$C144 -> -76010.4 | F144: -70567.2 | G144: -70567.2 | H144: -74066.4 | I144: -72705.6 | J144: -71150.4 | K144: -67845.6 | L144: -67651.2 | M144: -66290.4 | N144: -67068 | O144: =O128*$C144 -> -69400.8 | P144: =SUM(D144:O144) -> -846028.8
D145: =SUM(D142:D144) -> -100948.8 | E145: -101940.4 | F145: -99137.3 | G145: -98948.9 | H145: -102864.5 | I145: -102460.4 | J145: -108551.2 | K145: -101273.7 | L145: -98175.1 | M145: -95605.6 | N145: -98030.6 | O145: -99133.1 | P145: -1207069.6
B147: Base Revenues
B148: BF Goodrich | C148: 770037736 | D148: =500000*0.05373+MIN(5500000,D4-500000)*0.04834+MAX(0,D4-6000000)*0.04391+14000+D65*4.25-0.2*D39 -> 218412.8292 | E148: =500000*0.05373+MIN(5500000,E4-500000)*0.04834+MAX(0,E4-6000000)*0.04391+14000+E65*4.25-0.2*E39 -> 217720.9034 | F148: 242635.7439 | G148: 221498.2189 | H148: 265358.5211 | I148: 297642.3496 | J148: 269241.5599 | K148: 249163.2071 | L148: 291068.7999 | M148: 288589.254 | N148: 282929.9654 | O148: =500000*0.05373+MIN(5500000,O4-500000)*0.04834+MAX(0,O4-6000000)*0.04391+14000+O65*4.25-0.2*O39 -> 312959.2275 | P148: =SUM(D148:O148) -> 3157220.58
B149: Boise Cascade Plywood | C149: 500017 | D149: =500000*0.05373+MIN(5500000,D5-500000)*0.04834+MAX(0,D5-6000000)*0.04391+14000+D66*4.25-0.2*D40 -> 173755.0845 | E149: 179391.7434 | F149: 194791.1374 | G149: 187473.8762 | H149: 185807.4713 | I149: 188691.6739 | J149: 188189.7583 | K149: 198022.7458 | L149: 190979.4103 | M149: 205728.3771 | N149: 184445.8865 | O149: 175360.4001 | P149: =SUM(D149:O149) -> 2252637.565
B150: Boise Cascade Sawmill | C150: 500018 | D150: 75926.51494 | E150: 70568.91704 | F150: 74946.48968 | G150: 70800.07094 | H150: 68607.51224 | I150: 68759.24138 | J150: 66263.32738 | K150: 69871.4566 | L150: 67304.49398 | M150: 70256.75608 | N150: 63313.94546 | O150: 69588.03154 | P150: 836206.7573
B151: City of Spokane Sewage Treatment Plt | C151: 1900002 | D151: 122051.2541 | E151: 106911.3597 | F151: 109456.3086 | G151: 104716.8289 | H151: 102304.5983 | I151: 95183.56778 | J151: 99065.74472 | K151: 99829.61504 | L151: 88877.1056 | M151: 82511.7831 | N151: 89955.20206 | O151: 90689.21282 | P151: 1191552.581
B152: Deaconess Medical Center | C152: 1900011 | D152: 94442.18142 | E152: 87238.88822 | F152: 94725.68782 | G152: 92375.7553 | H152: 94825.47962 | I152: 96046.76126 | J152: 99760.58172 | K152: 101140.4339 | L152: 96575.69872 | M152: 95031.80908 | N152: 94268.72076 | O152: 99612.1602 | P152: 1146044.158
B153: Gonzaga University | C153: 622922 | D153: 150518.7536 | E153: 142913.7434 | F153: 138522.3142 | G153: 130510.8726 | H153: 106693.8772 | I153: 104043.436 | J153: 114791.9522 | K153: 131443.0612 | L153: 140215.4318 | M153: 133492.828 | N153: 140163.0944 | O153: 138758.1673 | P153: 1572067.532
B154: Honeywell Electronics | C154: 2304636 | D154: 66106.01046 | E154: 63206.87738 | F154: 66420.04728 | G154: 64003.86826 | H154: 67399.38222 | I154: 70068.2798 | J154: 72646.122 | K154: 76505.76522 | L154: 67476.25686 | M154: 65498.00514 | N154: 60657.5259 | O154: 61899.56828 | P154: 801887.7088
B155: Huntwood Industries | C155: 610074869 | D155: 66585.88958 | E155: 61259.06492 | F155: 70319.07352 | G155: 64918.18142 | H155: 67112.10452 | I155: 67801.46244 | J155: 65037.24514 | K155: 70513.56594 | L155: 63454.01818 | M155: 64477.32554 | N155: 63322.4102 | O155: 62149.8198 | P155: 786950.1612
B156: Inland Empire Paper | C156: 2500004 | D156: =500000*0.05373+MIN(5500000,D12-500000)*0.04834+MAX(0,D12-6000000)*0.04391+14000+D73*4.25-1.1*D126-1.35*D128 -> 1971525.533 | E156: =500000*0.05373+MIN(5500000,E12-500000)*0.04834+MAX(0,E12-6000000)*0.04391+14000+E73*4.25-1.1*E126-1.35*E128 -> 1872965.727 | F156: 1980971.178 | G156: 1827555.324 | H156: 2022602.161 | I156: 1984839.257 | J156: 1816997.845 | K156: 1959078.376 | L156: 1986975.346 | M156: 1964693.341 | N156: 1887157.922 | O156: =500000*0.05373+MIN(5500000,O12-500000)*0.04834+MAX(0,O12-6000000)*0.04391+14000+O73*4.25-1.1*O126-1.35*O128 -> 1878358.97 | P156: 23153720.98
B157: JR Simplot | C157: 290048778 | D157: =500000*0.05373+MIN(5500000,D13-500000)*0.04834+MAX(0,D13-6000000)*0.04391+14000+D74*4.25-0.2*D48 -> 128962.8375 | E157: =500000*0.05373+MIN(5500000,E13-500000)*0.04834+MAX(0,E13-6000000)*0.04391+14000+E74*4.25-0.2*E48 -> 260589.6555 | F157: 290862.8986 | G157: 260326.7173 | H157: 258827.7587 | I157: 290282.1411 | J157: 209252.6102 | K157: 298560.7611 | L157: 265642.5582 | M157: 278751.5082 | N157: 235957.3904 | O157: 240002.9846 | P157: 3018019.821
B158: McCaine Foods Inc | C158: 2500003 | D158: =500000*0.05373+MIN(5500000,D14-500000)*0.04834+MAX(0,D14-6000000)*0.04391+14000+D75*4.25-0.2*D49 -> 308707.2552 | E158: 281225.7415 | F158: 312240.0118 | G158: 299958.4794 | H158: 322492.34 | I158: 319569.2417 | J158: 301215.5218 | K158: 307422.2695 | L158: 310307.9722 | M158: 322471.4639 | N158: 291136.3827 | O158: 255471.2096 | P158: 3632217.889
B159: Sacred Heart Medical Center | C159: 500020 | D159: 192374.8151 | E159: 174588.4193 | F159: 190763.3416 | G159: 184948.6395 | H159: 207969.3167 | I159: 219798.4973 | J159: 251049.181 | K159: 266233.3926 | L159: 242871.4506 | M159: 205185.9715 | N159: 187681.2642 | O159: 191696.6209 | P159: 2515160.91
B160: Spokane County Courthouse | C160: 1900012 | D160: 69103.22878 | E160: 64062.8948 | F160: 66676.4357 | G160: 64700.85426 | H160: 69978.46968 | I160: 72833.31484 | J160: 77897.50602 | K160: 82927.50498 | L160: 75040.75914 | M160: 69325.66932 | N160: 64967.68626 | O160: 66122.99446 | P160: 843637.3182
B161: Spokane Steel Foundry | C161: 2400169 | D161: 83111.89774 | E161: 78670.70234 | F161: 83580.73558 | G161: 79083.2266 | H161: 79362.5113 | I161: 83034.98932 | J161: 82439.07406 | K161: 89008.521 | L161: 81325.34316 | M161: 80823.9044 | N161: 80561.72142 | O161: 80414.36438 | P161: 981416.9913
B162: Stimson Lumber - Colville | C162: 610018682 | D162: 63911.87392 | E162: 63760.9447 | F162: 64606.99118 | G162: 59085.05598 | H162: 49514.13844 | I162: 56363.17396 | J162: 56790.2839 | K162: 59965.43718 | L162: 51440.66624 | M162: 62472.56498 | N162: 63037.67788 | O162: 67322.14568 | P162: 718270.954
B163: Triumph Composite / Boeing | C163: 690067830 | D163: 75223.1678 | E163: 68732.07592 | F163: 73658.42604 | G163: 75694.57988 | H163: 81403.09082 | I163: 84365.83526 | J163: 85737.19902 | K163: 96553.783 | L163: 86127.48798 | M163: 81570.47938 | N163: 75965.04178 | O163: 72375.14114 | P163: 957406.308
B164: Vaagen Brothers Lumber | C164: 1300001 | D164: 111817.9316 | E164: 101083.8997 | F164: 107248.7007 | G164: 90716.27498 | H164: 61731.95342 | I164: 67356.3521 | J164: 89516.77356 | K164: 101104.6708 | L164: 96741.359 | M164: 96902.16756 | N164: 111466.4968 | O164: 124373.5001 | P164: 1160060.08
B165: WSU - MP-A South Campus Feeder | C165: 290081951 | D165: 148876.816 | E165: 145149.3014 | F165: 143853.3722 | G165: 137081.7322 | H165: 131376.1312 | I165: 124549.8459 | J165: 126590.0112 | K165: 129209.9718 | L165: 130209.2162 | M165: 138117.7354 | N165: 139708.5158 | O165: 140928.0671 | P165: 1635650.717
B166: WSU - MP-B East Campus EA | C166: 500033 | D166: 227365.4547 | E166: 217608.3393 | F166: 222477.3525 | G166: 212491.1355 | H166: 204227.7593 | I166: 217370.1538 | J166: 253953.669 | K166: 268619.177 | L166: 242707.2137 | M166: 214430.4075 | N166: 219271.4902 | O166: 231375.5233 | P166: 2731897.676
B167: WSU - MP-C East Campus EB | C167: 410031282 | D167: 150061.5966 | E167: 134840.0984 | F167: 142240.2729 | G167: 138308.7302 | H167: 137781.4612 | I167: 127839.0352 | J167: 129906.0846 | K167: 131061.8493 | L167: 128751.1023 | M167: 139948.2722 | N167: 139397.6188 | O167: 139085.2335 | P167: 1639221.355
B168: WSU - MP -D Casp East (no PVD) | C168: 500032 | D168: =500000*0.05373+MIN(5500000,D24-500000)*0.04834+MAX(0,D24-6000000)*0.04391+14000+D85*4.25 -> 160346.9284 | E168: =500000*0.05373+MIN(5500000,E24-500000)*0.04834+MAX(0,E24-6000000)*0.04391+14000+E85*4.25 -> 153625.1168 | F168: 156903.7499 | G168: 145679.4334 | H168: 138328.1202 | I168: 129866.8749 | J168: 131488.3317 | K168: 140309.4304 | L168: 140260.1327 | M168: 143888.3176 | N168: 146436.8048 | O168: 149243.373 | P168: 1736376.614
B169: WSU - MP-E Casp West (no PVD) | C169: 500034 | D169: =500000*0.05373+MIN(5500000,D25-500000)*0.04834+MAX(0,D25-6000000)*0.04391+14000+D86*4.25 -> 135699.7566 | E169: =500000*0.05373+MIN(5500000,E25-500000)*0.04834+MAX(0,E25-6000000)*0.04391+14000+E86*4.25 -> 133872.2812 | F169: 133040.0311 | G169: 134127.2839 | H169: 120772.2406 | I169: 121707.9813 | J169: 146907.6111 | K169: 197041.3234 | L169: 191646.0868 | M169: 150912.333 | N169: 130272.8392 | O169: 125863.3637 | P169: 1721863.132
B170: Schedule 25 Total | P170: =SUM(P148:P169) -> 58189487.79
P171: =P170-'Pres & Prop Rev'!G152 -> -0.001340001822

Sheet Lighting summary (hidden)
B1: AVISTA UTILITIES
B2: WASHINGTON ELECTRIC
B3: STREET & AREA LIGHT REVENUE UNDER PRESENT & PROPOSED RATES
B4: 12 MONTHS ENDED DECEMBER 31, 2011
C7: ="Present "&IF(Base1_Billing2=2,"Billing ","")&"Rates(1)" -> Present Rates(1) | D7: ="Present "&IF(Base1_Billing2=2,"Billing","")&" Rates" -> Present Rates | F7: ="Proposed "&IF(Base1_Billing2=2,"Billing ","")&"Rates(2)" -> Proposed Rates(2) | G7: ="Proposed "&IF(Base1_Billing2=2,"Billing ","")&"Rates" -> Proposed Rates | I7: % Revenue Change
C8: Monthly | D8: Annual | F8: Monthly | G8: Annual | L8: Target Base
C9: Revenue | D9: Revenue | F9: Revenue | G9: Revenue | I9: Base Rates | J9: Billing Rates | L9: % Change
B11: Schedule 41 | C11: ='St Lts'!Y$52*IF(Base1_Billing2=2,1+$I$36,1) -> 1858.64 | D11: =C11*12 -> 22303.68 | F11: ='St Lts'!BI$52*IF(Base1_Billing2=2,1+$D$36,1) -> 1845.73 | G11: =F11*12 -> 22148.76 | I11: =G11/D11-1 -> -0.006945938966 | J11: 0 | L11: =ROR!I47 -> -0.00691011387
B12: Schedule 42 | C12: ='St Lts'!Z$52*IF(Base1_Billing2=2,1+$I$36,1) -> 345303.66 | D12: =C12*12 -> 4143643.92 | F12: ='St Lts'!BJ$52*IF(Base1_Billing2=2,1+$D$36,1) -> 353138.48 | G12: =F12*12 -> 4237661.76 | I12: =G12/D12-1 -> 0.02268965235 | J12: 0 | L12: =L11 -> -0.00691011387
B13: Schedule 44 | C13: ='St Lts'!AA$52*IF(Base1_Billing2=2,1+$I$36,1) -> 2674.38 | D13: 32092.56 | F13: ='St Lts'!BK$52*IF(Base1_Billing2=2,1+$D$36,1) -> 2666.06 | G13: =F13*12 -> 31992.72 | I13: -0.003111001428 | J13: 0 | L13: =L11 -> -0.00691011387
B14: Schedule 45 | C14: ='St Lts'!AB$52*IF(Base1_Billing2=2,1+$I$36,1) -> 5814.28 | D14: 69771.36 | F14: ='St Lts'!BL$52*IF(Base1_Billing2=2,1+$D$36,1) -> 5774.9 | G14: 69298.8 | I14: =G14/D14-1 -> -0.006772979629 | J14: 0 | L14: =L11 -> -0.00691011387
B15: Schedule 46 | C15: ='St Lts'!AC$52*IF(Base1_Billing2=2,1+$I$36,1) -> 14200.12 | D15: 170401.44 | F15: ='St Lts'!BM$52*IF(Base1_Billing2=2,1+$D$36,1) -> 14102.05 | G15: 169224.6 | I15: -0.006906279665 | J15: 0 | L15: =L11 -> -0.00691011387
B16: Schedule 47 | C16: =IF(Base1_Billing2=1,'Area Lts'!S40,'Area Lts'!S49) -> 109285.24 | D16: 1311422.88 | F16: =IF(Base1_Billing2=1,'Area Lts'!AL40,'Area Lts'!AL49) -> 103043.56 | G16: 1236522.72 | I16: -0.05711365963 | J16: 0 | L16: =L11 -> -0.00691011387
B17: Schedule 48 | C17: =IF(Base1_Billing2=1,'Area Lts'!T40,'Area Lts'!T49) -> 69387.23002 | D17: 832646.7603 | F17: =IF(Base1_Billing2=1,'Area Lts'!AM40,'Area Lts'!AM49) -> 62591.06005 | G17: 751092.7206 | I17: -0.09794554374 | J17: 0 | L17: =L11 -> -0.00691011387
B19: Total | C19: =SUM(C11:C17) -> 548523.55 | D19: =SUM(D11:D17) -> 6582282.6 | F19: =SUM(F11:F17) -> 543161.84 | G19: =SUM(G11:G17) -> 6517942.081 | I19: =G19/D19-1 -> -0.009774803603 | J19: 0 | L19: =L11 -> -0.00691011387
C20: =ROUND(C19-CHOOSE(Base1_Billing2,'St Lts'!AC53+'Area Lts'!T41,'St Lts'!AC59+'Area Lts'!T50),0) -> 0 | F20: =ROUND(F19-CHOOSE(Base1_Billing2,'St Lts'!BM53+'Area Lts'!AM41,'St Lts'!BM59+'Area Lts'!AM50),0) -> 0 | L20: =I19-L19 -> -0.002864689733
B21: (1) from PDE-E-12/15
B22: (2) from PDE-E-14/15
C23: Billed | D23: =D19*(1+I36)+'Area Lts'!T48*12 -> 6898500.662 | F23: b4 Sch 91 | G23: =G19*(1+J36)+'Area Lts'!AM48*12 -> 6833212.671 | I23: =G23/D23-1 -> -0.009464084192 | K23: =G23-D23 -> -65287.99106
C24: Diff | D24: =D23-D19 -> 316218.0618 | F24: b4 Sch 91 | G24: =G23-G19 -> 315270.5904
C25: Pres 91 | D25: =D$19*(I33+I34) -> 328455.9018 | F25: 91 b4 Sch 91 | G25: =G$19*(J33+J34) -> 327508.4304
C26: Pres 93 | D26: =D$19*I35 -> 0 | F26: 93 b4 Sch 91 | G26: =G$19*J35 -> 0
C27: add'l 91 | D27: =D25*($L$33+L34) -> 0
C28: Billed | D28: =D23 -> 6898500.662 | F28: w/Sch 91 | G28: =G19*(1+D36)+'Area Lts'!AM48*12 -> 6833212.671 | I28: =G28/D28-1 -> -0.009464084192 | K28: =G28-D23 -> -65287.99106 | L28: =K28-J$19 -> -65287.99106
J31: Revised
D32: Proposed | I32: Present | J32: Present | K32: Proposed
D33: =K33 -> 0.04168806931 | G33: Sch 91-DSM | I33: 0.0414 | J33: =(L19+(1+I33))/(1+L19)-1 -> 0.04168806931 | K33: =J33*(1+L33) -> 0.04168806931 | L33: 0
D34: =K34 -> 0.008559144664 | G34: Sch 91-LIRAP | I34: 0.0085 | J34: =(L19+(1+I34))/(1+L19)-1 -> 0.008559144664 | K34: =J34*(1+L34) -> 0.008559144664 | L34: 0 | M34: Reflects additional LIRAP funding
D35: =K35 -> 0 | G35: Sch 93 - surch | I35: 0 | J35: =(L19+(1+I35))/(1+L19)-1 -> 0 | K35: =J35*(1+$L$35) -> 0 | L35: 0
D36: =K36 -> 0.05024721397 | G36: Total adder | I36: =I33+I34+I35 -> 0.0499 | J36: =J33+J34+J35 -> 0.05024721397 | K36: =K33+K34+K35 -> 0.05024721397
B39: copy of Total above | C39: 488916.6501 | D39: 5866999.801 | F39: 556466.5401 | G39: 6677598.481
B40: diff from curr Total above | C40: =C19-C39 -> 59606.89997 | D40: =D19-D39 -> 715282.7997 | F40: =F19-F39 -> -13304.7 | G40: =G19-G39 -> -159656.4
B41: % diff | C41: =C40/C39 -> 0.1219162816 | D41: =D40/D39 -> 0.1219162816 | F41: =F40/F39 -> -0.02390925427 | G41: =G40/G39 -> -0.02390925427

Sheet St Lts (hidden)
A1: Street Light Summary | I1: WASHINGTON Street Lights | BB1: % rate increase --> | BC1: ='Lighting summary'!L11 -> -0.00691011387 | BD1: ='Lighting summary'!L12 -> -0.00691011387 | BE1: ='Lighting summary'!L13 -> -0.00691011387 | BF1: ='Lighting summary'!L14 -> -0.00691011387 | BG1: ='Lighting summary'!L15 -> -0.00691011387 | BU1: compare input Present Billing Rates to calculated Present Billing Rates | CB1: =1+'Lighting summary'!K36 -> 1.050247214
A2: DWWPAOAE Report, as of 01/10/12 | M2: Number of Lights(1) | S2: Present Rates | Y2: Monthly Revenue at Present Rates | AE2: Number of Lights(1) | AK2: Revised Present Rates | AQ2: Monthly Revenue at Revised Present Rates | AW2: Number of Lights | BC2: Proposed Rates | BI2: Monthly Revenue at Proposed Rates | BO2: Present Billing Rates | BU2: =1+'Lighting summary'!I36 -> 1.0499 | BV2: Sch 91 & 93 | CB2: New Billing Rates | CH2: Increase
I3: Fixture Type | J3: Pole Facility | K3: Size | L3: Sched | M3: 041 | N3: 042 | O3: 044 | P3: 045 | Q3: 046 | S3: 041 | T3: 042 | U3: 044 | V3: 045 | W3: 046 | Y3: 041 | Z3: 042 | AA3: 044 | AB3: 045 | AC3: 046 | AE3: 041 | AF3: 042 | AG3: 044 | AH3: 045 | AI3: 046 | AK3: 041 | AL3: 042 | AM3: 044 | AN3: 045 | AO3: 046 | AQ3: 041 | AR3: 042 | AS3: 044 | AT3: 045 | AU3: 046 | AW3: 041 | AX3: 042 | AY3: 044 | AZ3: 045 | BA3: 046 | BC3: 041 | BD3: 042 | BE3: 044 | BF3: 045 | BG3: 046 | BI3: 041 | BJ3: 042 | BK3: 044 | BL3: 045 | BM3: 046 | BO3: 041 | BP3: 042 | BQ3: 044 | BR3: 045 | BS3: 046 | BU3: 041 | BV3: 042 | BW3: 044 | BX3: 045 | BY3: 046 | CB3: 041 | CC3: 042 | CD3: 044 | CE3: 045 | CF3: 046 | CH3: 041 | CI3: 042 | CJ3: 044 | CK3: 045 | CL3: 046
I4: Single Mercury Vapor | J4: Direct Burial | K4: 4000 | L4: 214 | M4: =SUMIF($G:$G,TEXT(M$3,"000")&TEXT($L4,"000"),$E:$E) -> 75 | N4: 0 | O4: 0 | P4: 0 | Q4: 0 | R4: =IF(SUM(M4:Q4)>0,0,1) -> 0 | S4: 13.06 | T4: 0 | U4: 0 | V4: 0 | W4: 0 | Y4: =IF(AND(M4<>0,S4=0),#VALUE!,M4*S4) -> 979.5 | Z4: =IF(AND(N4<>0,T4=0),#VALUE!,N4*T4) -> 0 | AA4: =IF(AND(O4<>0,U4=0),#VALUE!,O4*U4) -> 0 | AB4: =IF(AND(P4<>0,V4=0),#VALUE!,P4*V4) -> 0 | AC4: =IF(AND(Q4<>0,W4=0),#VALUE!,Q4*W4) -> 0 | AE4: =SUMIF($G:$G,TEXT(AE$3,"000")&TEXT($L4,"000"),$E:$E) -> 75 | AF4: 0 | AG4: 0 | AH4: 0 | AI4: 0 | AJ4: =IF(SUM(AE4:AI4)>0,0,1) -> 0 | AK4: 13.06 | AL4: 0 | AM4: 0 | AN4: 0 | AO4: 0 | AQ4: =IF(AND(AE4<>0,AK4=0),#VALUE!,AE4*AK4) -> 979.5 | AR4: =IF(AND(AF4<>0,AL4=0),#VALUE!,AF4*AL4) -> 0 | AS4: =IF(AND(AG4<>0,AM4=0),#VALUE!,AG4*AM4) -> 0 | AT4: =IF(AND(AH4<>0,AN4=0),#VALUE!,AH4*AN4) -> 0 | AU4: =IF(AND(AI4<>0,AO4=0),#VALUE!,AI4*AO4) -> 0 | AW4: =M4 -> 75 | AX4: =N4 -> 0 | AY4: 0 | AZ4: 0 | BA4: 0 | BC4: =ROUND(AK4*(1+BC$1),2) -> 12.97 | BD4: =ROUND(AL4*(1+BD$1),2) -> 0 | BE4: =ROUND(AM4*(1+BE$1),2) -> 0 | BF4: =ROUND(AN4*(1+BF$1),2) -> 0 | BG4: =ROUND(AO4*(1+BG$1),2) -> 0 | BI4: =IF(AND(AW4<>0,BC4=0),#VALUE!,AW4*BC4) -> 972.75 | BJ4: =IF(AND(AX4<>0,BD4=0),#VALUE!,AX4*BD4) -> 0 | BK4: =IF(AND(AY4<>0,BE4=0),#VALUE!,AY4*BE4) -> 0 | BL4: =IF(AND(AZ4<>0,BF4=0),#VALUE!,AZ4*BF4) -> 0 | BM4: =IF(AND(BA4<>0,BG4=0),#VALUE!,BA4*BG4) -> 0 | BN4: =SUM(BI4:BM4)-SUM(Y4:AC4) -> -6.75 | BO4: 13.71 | BU4: =ROUND(S4*$BU$2-BO4,2) -> 0 | BV4: =ROUND(T4*$BU$2-BP4,2) -> 0 | BW4: =ROUND(U4*$BU$2-BQ4,2) -> 0 | BX4: =ROUND(V4*$BU$2-BR4,2) -> 0 | BY4: =ROUND(W4*$BU$2-BS4,2) -> 0 | CB4: =BC4*$CB$1 -> 13.62170637 | CC4: =BD4*$CB$1 -> 0 | CD4: 0 | CE4: 0 | CF4: 0 | CH4: =CB4-BO4 -> -0.08829363481 | CI4: =CC4-BP4 -> 0 | CJ4: 0 | CK4: 0 | CL4: 0
B5: State | C5: Sched | D5: Rate Sub | E5: # of Lights | I5: Single High-Pressure Sodium Vapor | J5: Direct Burial | K5: 50W | L5: 234 | M5: 0 | N5: 130 | O5: 0 | P5: 0 | Q5: 0 | R5: 0 | S5: 0 | T5: 12.26 | U5: 0 | V5: 0 | W5: 0 | Y5: =IF(AND(M5<>0,S5=0),#VALUE!,M5*S5) -> 0 | Z5: =IF(AND(N5<>0,T5=0),#VALUE!,N5*T5) -> 1593.8 | AA5: =IF(AND(O5<>0,U5=0),#VALUE!,O5*U5) -> 0 | AB5: =IF(AND(P5<>0,V5=0),#VALUE!,P5*V5) -> 0 | AC5: =IF(AND(Q5<>0,W5=0),#VALUE!,Q5*W5) -> 0 | AE5: 0 | AF5: 130 | AG5: 0 | AH5: 0 | AI5: 0 | AJ5: 0 | AK5: 0 | AL5: 12.26 | AM5: 0 | AN5: 0 | AO5: 0 | AQ5: =IF(AND(AE5<>0,AK5=0),#VALUE!,AE5*AK5) -> 0 | AR5: =IF(AND(AF5<>0,AL5=0),#VALUE!,AF5*AL5) -> 1593.8 | AS5: =IF(AND(AG5<>0,AM5=0),#VALUE!,AG5*AM5) -> 0 | AT5: =IF(AND(AH5<>0,AN5=0),#VALUE!,AH5*AN5) -> 0 | AU5: =IF(AND(AI5<>0,AO5=0),#VALUE!,AI5*AO5) -> 0 | AW5: =M5 -> 0 | AX5: 130 | AY5: 0 | AZ5: 0 | BA5: 0 | BC5: =ROUND(AK5*(1+BC$1),2) -> 0 | BD5: =ROUND(AL5*(1+BD$1),2) -> 12.18 | BE5: =ROUND(AM5*(1+BE$1),2) -> 0 | BF5: =ROUND(AN5*(1+BF$1),2) -> 0 | BG5: =ROUND(AO5*(1+BG$1),2) -> 0 | BI5: =IF(AND(AW5<>0,BC5=0),#VALUE!,AW5*BC5) -> 0 | BJ5: =IF(AND(AX5<>0,BD5=0),#VALUE!,AX5*BD5) -> 1583.4 | BK5: 0 | BL5: 0 | BM5: 0 | BN5: -10.4 | BP5: 12.87 | BU5: 0 | BV5: 0 | BW5: 0 | BX5: 0 | BY5: 0 | CB5: =BC5*$CB$1 -> 0 | CC5: =BD5*$CB$1 -> 12.79201107 | CD5: =BE5*$CB$1 -> 0 | CE5: =BF5*$CB$1 -> 0 | CF5: =BG5*$CB$1 -> 0 | CH5: =CB5-BO5 -> 0 | CI5: =CC5-BP5 -> -0.07798893384 | CJ5: =CD5-BQ5 -> 0 | CK5: =CE5-BR5 -> 0 | CL5: =CF5-BS5 -> 0
I6: High-Pressure Sodium Vapor | J6: Dusk to Dawn | K6: 70W | L6: 335 | M6: 0 | N6: 0 | O6: 0 | P6: 0 | Q6: 41 | R6: 0 | S6: 0 | T6: 0 | U6: 0 | V6: 0 | W6: 3.16 | Y6: 0 | Z6: 0 | AA6: 0 | AB6: 0 | AC6: 129.56 | AE6: 0 | AF6: 0 | AG6: 0 | AH6: 0 | AI6: 41 | AJ6: 0 | AK6: 0 | AL6: 0 | AM6: 0 | AN6: 0 | AO6: 3.16 | AQ6: 0 | AR6: 0 | AS6: 0 | AT6: 0 | AU6: 129.56 | AW6: 0 | AX6: 0 | AY6: 0 | AZ6: 0 | BA6: 41 | BC6: 0 | BD6: 0 | BE6: 0 | BF6: 0 | BG6: 3.14 | BI6: 0 | BJ6: 0 | BK6: 0 | BL6: 0 | BM6: 128.74 | BN6: -0.82 | BS6: 3.32 | BU6: 0 | BV6: 0 | BW6: 0 | BX6: 0 | BY6: 0 | CB6: 0 | CC6: 0 | CD6: 0 | CE6: 0 | CF6: 3.297776252 | CH6: 0 | CI6: 0 | CJ6: 0 | CK6: 0 | CL6: -0.02222374813
B7: 2 | C7: 041 | D7: 214 | E7: =75 -> 75 | G7: =IF(OR(ISBLANK(C7),ISBLANK(D7)),"",TEXT(C7,"000")&TEXT(D7,"000")) -> 041214 | I7: Single Mercury Vapor | J7: Wood Pole | K7: 7000 | L7: 411 | M7: 34 | N7: 0 | O7: 0 | P7: 0 | Q7: 0 | R7: 0 | S7: 14.15 | T7: 0 | U7: 0 | V7: 0 | W7: 0 | Y7: 481.1 | Z7: 0 | AA7: 0 | AB7: 0 | AC7: 0 | AE7: 34 | AF7: 0 | AG7: 0 | AH7: 0 | AI7: 0 | AJ7: 0 | AK7: 14.15 | AL7: 0 | AM7: 0 | AN7: 0 | AO7: 0 | AQ7: 481.1 | AR7: 0 | AS7: 0 | AT7: 0 | AU7: 0 | AW7: 34 | AX7: 0 | AY7: 0 | AZ7: 0 | BA7: 0 | BC7: 14.05 | BD7: 0 | BE7: 0 | BF7: 0 | BG7: 0 | BI7: 477.7 | BJ7: 0 | BK7: 0 | BL7: 0 | BM7: 0 | BN7: -3.4 | BO7: 14.86 | BU7: 0 | BV7: 0 | BW7: 0 | BX7: 0 | BY7: 0 | CB7: 14.75597336 | CC7: 0 | CD7: 0 | CE7: 0 | CF7: 0 | CH7: -0.1040266437 | CI7: 0 | CJ7: 0 | CK7: 0 | CL7: 0
B8: 2 | C8: 041 | D8: 411 | E8: 34 | G8: 041411 | I8: Mercury Vapor | J8: Dusk to Dawn | K8: 7000 | L8: 415 | M8: 0 | N8: 0 | O8: 0 | P8: 87 | Q8: 0 | R8: 0 | S8: 0 | T8: 0 | U8: 0 | V8: 6.22 | W8: 0 | Y8: 0 | Z8: 0 | AA8: 0 | AB8: 541.14 | AC8: 0 | AE8: 0 | AF8: 0 | AG8: 0 | AH8: 87 | AI8: 0 | AJ8: 0 | AK8: 0 | AL8: 0 | AM8: 0 | AN8: 6.22 | AO8: 0 | AQ8: 0 | AR8: 0 | AS8: 0 | AT8: 541.14 | AU8: 0 | AW8: 0 | AX8: 0 | AY8: 0 | AZ8: 87 | BA8: 0 | BC8: 0 | BD8: 0 | BE8: 0 | BF8: 6.18 | BG8: 0 | BI8: 0 | BJ8: 0 | BK8: 0 | BL8: 537.66 | BM8: 0 | BN8: -3.48 | BR8: 6.53 | BU8: 0 | BV8: 0 | BW8: 0 | BX8: 0 | BY8: 0 | CB8: 0 | CC8: 0 | CD8: 0 | CE8: 6.490527782 | CF8: 0 | CH8: 0 | CI8: 0 | CJ8: 0 | CK8: -0.03947221766 | CL8: 0
B9: 2 | C9: 041 | D9: 511 | E9: 6 | G9: 041511 | I9: Mercury Vapor | J9: Dusk to 1 AM | K9: 7000 | L9: 419 | M9: 0 | N9: 0 | O9: 0 | P9: 16 | Q9: 0 | R9: =IF(SUM(M9:Q9)>0,0,1) -> 0 | S9: 0 | T9: 0 | U9: 0 | V9: 4.2 | W9: 0 | Y9: 0 | Z9: 0 | AA9: 0 | AB9: 67.2 | AC9: 0 | AE9: 0 | AF9: 0 | AG9: 0 | AH9: 16 | AI9: 0 | AJ9: =IF(SUM(AE9:AI9)>0,0,1) -> 0 | AK9: 0 | AL9: 0 | AM9: 0 | AN9: 4.2 | AO9: 0 | AQ9: 0 | AR9: 0 | AS9: 0 | AT9: 67.2 | AU9: 0 | AW9: =M9 -> 0 | AX9: =N9 -> 0 | AY9: =O9 -> 0 | AZ9: =P9 -> 16 | BA9: =Q9 -> 0 | BC9: 0 | BD9: 0 | BE9: 0 | BF9: 4.17 | BG9: 0 | BI9: 0 | BJ9: 0 | BK9: 0 | BL9: 66.72 | BM9: 0 | BN9: -0.48 | BR9: 4.41 | BU9: 0 | BV9: 0 | BW9: 0 | BX9: 0 | BY9: 0 | CB9: =BC9*$CB$1 -> 0 | CC9: =BD9*$CB$1 -> 0 | CD9: =BE9*$CB$1 -> 0 | CE9: =BF9*$CB$1 -> 4.379530882 | CF9: =BG9*$CB$1 -> 0 | CH9: 0 | CI9: 0 | CJ9: 0 | CK9: -0.03046911774 | CL9: 0
B10: 2 | C10: 041 | D10: 611 | E10: 12 | G10: 041611 | I10: Single High-Pressure Sodium Vapor | J10: Wood Pole | K10: 100W | L10: 421 | M10: 0 | N10: 9 | O10: 0 | P10: 0 | Q10: 0 | R10: 0 | S10: 0 | T10: 23.26 | U10: 0 | V10: 0 | W10: 0 | Y10: 0 | Z10: 209.34 | AA10: 0 | AB10: 0 | AC10: 0 | AE10: 0 | AF10: 9 | AG10: 0 | AH10: 0 | AI10: 0 | AJ10: =IF(SUM(AE10:AI10)>0,0,1) -> 0 | AK10: 0 | AL10: 23.26 | AM10: 0 | AN10: 0 | AO10: 0 | AQ10: 0 | AR10: 209.34 | AS10: 0 | AT10: 0 | AU10: 0 | AW10: 0 | AX10: 9 | AY10: 0 | AZ10: 0 | BA10: 0 | BC10: 0 | BD10: 23.1 | BE10: 0 | BF10: 0 | BG10: 0 | BI10: 0 | BJ10: 207.9 | BK10: 0 | BL10: 0 | BM10: 0 | BN10: -1.44 | BP10: 24.42 | BU10: 0 | BV10: 0 | BW10: 0 | BX10: 0 | BY10: 0 | CB10: 0 | CC10: 24.26071064 | CD10: 0 | CE10: 0 | CF10: 0 | CH10: 0 | CI10: -0.1592893573 | CJ10: 0 | CK10: 0 | CL10: 0
B11: 2 | C11: 041 | E11: =SUM(E7:E10) -> 127 | I11: Single High-Pressure Sodium Vapor | J11: Wood Pole | K11: 100W | L11: 431 | M11: 0 | N11: 11920 | O11: 0 | P11: 0 | Q11: 0 | R11: 0 | S11: 0 | T11: 13.12 | U11: 6.67 | V11: 0 | W11: 0 | Y11: 0 | Z11: 156390.4 | AA11: 0 | AB11: 0 | AC11: 0 | AE11: 0 | AF11: 11920 | AG11: 0 | AH11: 0 | AI11: 0 | AJ11: 0 | AK11: 0 | AL11: =13.12+1 -> 14.12 | AM11: 6.67 | AN11: 0 | AO11: 0 | AQ11: 0 | AR11: 168310.4 | AS11: 0 | AT11: 0 | AU11: 0 | AW11: 0 | AX11: 11920 | AY11: 0 | AZ11: 0 | BA11: 0 | BC11: 0 | BD11: 14.02 | BE11: 6.62 | BF11: 0 | BG11: 0 | BI11: 0 | BJ11: =IF(AND(AX11<>0,BD11=0),#VALUE!,AX11*BD11) -> 167118.4 | BK11: 0 | BL11: 0 | BM11: 0 | BN11: 10728 | BP11: 13.77 | BQ11: 7 | BU11: 0 | BV11: 0 | BW11: 0 | BX11: 0 | BY11: 0 | CB11: 0 | CC11: 14.72446594 | CD11: 6.952636556 | CE11: 0 | CF11: 0 | CH11: 0 | CI11: 0.9544659399 | CJ11: -0.04736344352 | CK11: 0 | CL11: 0
I12: Single High-Pressure Sodium Vapor | J12: Pedestal Base | K12: 100W | L12: 432 | M12: 0 | N12: 140 | O12: 4 | P12: 0 | Q12: 0 | R12: 0 | S12: 0 | T12: 23.26 | U12: 6.67 | V12: 0 | W12: 0 | Y12: 0 | Z12: 3256.4 | AA12: 26.68 | AB12: 0 | AC12: 0 | AE12: 0 | AF12: 140 | AG12: 4 | AH12: 0 | AI12: 0 | AJ12: 0 | AK12: 0 | AL12: 23.26 | AM12: 6.67 | AN12: 0 | AO12: 0 | AQ12: 0 | AR12: 3256.4 | AS12: 26.68 | AT12: 0 | AU12: 0 | AW12: 0 | AX12: 140 | AY12: 4 | AZ12: 0 | BA12: 0 | BC12: 0 | BD12: 23.1 | BE12: 6.62 | BF12: 0 | BG12: 0 | BI12: 0 | BJ12: 3234 | BK12: 26.48 | BL12: 0 | BM12: 0 | BN12: -22.6 | BP12: 24.42 | BQ12: 7 | BU12: 0 | BV12: 0 | BW12: 0 | BX12: 0 | BY12: 0 | CB12: 0 | CC12: 24.26071064 | CD12: 6.952636556 | CE12: 0 | CF12: 0 | CH12: 0 | CI12: -0.1592893573 | CJ12: -0.04736344352 | CK12: 0 | CL12: 0
B13: 2 | C13: 042 | D13: 234 | E13: 130 | G13: 042234 | I13: Single High-Pressure Sodium Vapor | J13: Direct Burial | K13: 100W | L13: 433 | M13: 0 | N13: 81 | O13: 10 | P13: 0 | Q13: 0 | R13: 0 | S13: 0 | T13: 23.26 | U13: 6.67 | V13: 0 | W13: 0 | Y13: 0 | Z13: 1884.06 | AA13: 66.7 | AB13: 0 | AC13: 0 | AE13: 0 | AF13: 81 | AG13: 10 | AH13: 0 | AI13: 0 | AJ13: 0 | AK13: 0 | AL13: 23.26 | AM13: 6.67 | AN13: 0 | AO13: 0 | AQ13: 0 | AR13: 1884.06 | AS13: 66.7 | AT13: 0 | AU13: 0 | AW13: 0 | AX13: 81 | AY13: 10 | AZ13: 0 | BA13: 0 | BC13: 0 | BD13: 23.1 | BE13: 6.62 | BF13: 0 | BG13: 0 | BI13: 0 | BJ13: 1871.1 | BK13: 66.2 | BL13: 0 | BM13: 0 | BN13: -13.46 | BP13: 24.42 | BQ13: 7 | BU13: 0 | BV13: 0 | BW13: 0 | BX13: 0 | BY13: 0 | CB13: 0 | CC13: 24.26071064 | CD13: 6.952636556 | CE13: 0 | CF13: 0 | CH13: 0 | CI13: -0.1592893573 | CJ13: -0.04736344352 | CK13: 0 | CL13: 0
B14: 2 | C14: 042 | D14: 421 | E14: 9 | G14: 042421 | I14: Single High-Pressure Sodium Vapor | J14: Direct Burial | K14: 100W | L14: 434 | M14: =SUMIF($G:$G,TEXT(M$3,"000")&TEXT($L14,"000"),$E:$E) -> 0 | N14: 2415 | O14: 0 | P14: 0 | Q14: 0 | R14: 0 | S14: 0 | T14: 13.12 | U14: 0 | V14: 0 | W14: 0 | Y14: 0 | Z14: 31684.8 | AA14: 0 | AB14: 0 | AC14: 0 | AE14: 0 | AF14: 2415 | AG14: 0 | AH14: 0 | AI14: 0 | AJ14: 0 | AK14: 0 | AL14: 13.12 | AM14: 0 | AN14: 0 | AO14: 0 | AQ14: 0 | AR14: 31684.8 | AS14: 0 | AT14: 0 | AU14: 0 | AW14: 0 | AX14: 2415 | AY14: 0 | AZ14: 0 | BA14: 0 | BC14: 0 | BD14: 13.03 | BE14: 0 | BF14: 0 | BG14: 0 | BI14: 0 | BJ14: 31467.45 | BK14: 0 | BL14: 0 | BM14: 0 | BN14: -217.35 | BP14: 13.77 | BU14: 0 | BV14: 0 | BW14: 0 | BX14: 0 | BY14: 0 | CB14: 0 | CC14: 13.6847212 | CD14: 0 | CE14: 0 | CF14: 0 | CH14: 0 | CI14: -0.08527880197 | CJ14: 0 | CK14: 0 | CL14: 0
B15: 2 | C15: 042 | D15: 431 | E15: =11916+4 -> 11920 | G15: 042431 | I15: Single High-Pressure Sodium Vapor | J15: No Pole / Dusk to Dawn (046) | K15: 100W | L15: 435 | M15: 0 | N15: 338 | O15: 48 | P15: 0 | Q15: 83 | R15: 0 | S15: 0 | T15: 12.43 | U15: 6.67 | V15: 0 | W15: 4.46 | Y15: 0 | Z15: 4201.34 | AA15: 320.16 | AB15: 0 | AC15: 370.18 | AE15: 0 | AF15: 338 | AG15: 48 | AH15: 0 | AI15: 83 | AJ15: 0 | AK15: 0 | AL15: 12.43 | AM15: 6.67 | AN15: 0 | AO15: 4.46 | AQ15: 0 | AR15: 4201.34 | AS15: 320.16 | AT15: 0 | AU15: 370.18 | AW15: 0 | AX15: 338 | AY15: 48 | AZ15: 0 | BA15: 83 | BC15: 0 | BD15: 12.34 | BE15: 6.62 | BF15: 0 | BG15: 4.43 | BI15: 0 | BJ15: 4170.92 | BK15: 317.76 | BL15: 0 | BM15: 367.69 | BN15: -35.31 | BP15: 13.05 | BQ15: 7 | BS15: 4.68 | BU15: 0 | BV15: 0 | BW15: 0 | BX15: 0 | BY15: 0 | CB15: 0 | CC15: 12.96005062 | CD15: 6.952636556 | CE15: 0 | CF15: 4.652595158 | CH15: 0 | CI15: -0.08994937961 | CJ15: -0.04736344352 | CK15: 0 | CL15: -0.02740484211
B16: 2 | C16: 042 | D16: 432 | E16: 140 | G16: 042432 | I16: Single High-Pressure Sodium Vapor | J16: Developer Contributed | K16: 100W | L16: 436 | M16: 0 | N16: 597 | O16: 0 | P16: 0 | Q16: 0 | R16: 0 | S16: 0 | T16: 13.12 | U16: 0 | V16: 0 | W16: 0 | Y16: 0 | Z16: 7832.64 | AA16: 0 | AB16: 0 | AC16: 0 | AE16: 0 | AF16: 597 | AG16: 0 | AH16: 0 | AI16: 0 | AJ16: 0 | AK16: 0 | AL16: 13.12 | AM16: 0 | AN16: 0 | AO16: 0 | AQ16: 0 | AR16: 7832.64 | AS16: 0 | AT16: 0 | AU16: 0 | AW16: 0 | AX16: 597 | AY16: 0 | AZ16: 0 | BA16: 0 | BC16: 0 | BD16: 13.03 | BE16: 0 | BF16: 0 | BG16: 0 | BI16: 0 | BJ16: 7778.91 | BK16: 0 | BL16: 0 | BM16: 0 | BN16: -53.73 | BP16: 13.77 | BU16: 0 | BV16: 0 | BW16: 0 | BX16: 0 | BY16: 0 | CB16: 0 | CC16: 13.6847212 | CD16: 0 | CE16: 0 | CF16: 0 | CH16: 0 | CI16: -0.08527880197 | CJ16: 0 | CK16: 0 | CL16: 0
B17: 2 | C17: 042 | D17: 433 | E17: 81 | G17: 042433 | I17: Decorative Sodium Vapor | J17: No Pole | K17: Kim Light 100W | L17: 438 | M17: 0 | N17: 32 | O17: 0 | P17: 0 | Q17: 0 | R17: 0 | S17: 0 | T17: 13.12 | U17: 0 | V17: 0 | W17: 0 | Y17: 0 | Z17: 419.84 | AA17: 0 | AB17: 0 | AC17: 0 | AE17: 0 | AF17: 32 | AG17: 0 | AH17: 0 | AI17: 0 | AJ17: 0 | AK17: 0 | AL17: 13.12 | AM17: 0 | AN17: 0 | AO17: 0 | AQ17: 0 | AR17: 419.84 | AS17: 0 | AT17: 0 | AU17: 0 | AW17: 0 | AX17: 32 | AY17: 0 | AZ17: 0 | BA17: 0 | BC17: 0 | BD17: 13.03 | BE17: 0 | BF17: 0 | BG17: 0 | BI17: 0 | BJ17: 416.96 | BK17: 0 | BL17: 0 | BM17: 0 | BN17: -2.88 | BP17: 13.77 | BU17: 0 | BV17: 0 | BW17: 0 | BX17: 0 | BY17: 0 | CB17: 0 | CC17: 13.6847212 | CD17: 0 | CE17: 0 | CF17: 0 | CH17: 0 | CI17: -0.08527880197 | CJ17: 0 | CK17: 0 | CL17: 0
B18: 2 | C18: 042 | D18: 434 | E18: =2223+192 -> 2415 | G18: 042434 | I18: Double High-Pressure Sodium Vapor | J18: Wood Pole | K18: 100W | L18: 441 | M18: 0 | N18: 23 | O18: 0 | P18: 0 | Q18: 0 | R18: 0 | S18: 0 | T18: 25.56 | U18: 11.7 | V18: 0 | W18: 0 | Y18: 0 | Z18: 587.88 | AA18: 0 | AB18: 0 | AC18: 0 | AE18: 0 | AF18: 23 | AG18: 0 | AH18: 0 | AI18: 0 | AJ18: 0 | AK18: 0 | AL18: 25.56 | AM18: 11.7 | AN18: 0 | AO18: 0 | AQ18: 0 | AR18: 587.88 | AS18: 0 | AT18: 0 | AU18: 0 | AW18: 0 | AX18: 23 | AY18: 0 | AZ18: 0 | BA18: 0 | BC18: 0 | BD18: 25.38 | BE18: 11.62 | BF18: 0 | BG18: 0 | BI18: 0 | BJ18: 583.74 | BK18: 0 | BL18: 0 | BM18: 0 | BN18: -4.14 | BP18: 26.84 | BQ18: 12.28 | BU18: 0 | BV18: 0 | BW18: 0 | BX18: 0 | BY18: 0 | CB18: 0 | CC18: 26.65527429 | CD18: 12.20387263 | CE18: 0 | CF18: 0 | CH18: 0 | CI18: -0.1847257094 | CJ18: -0.07612737367 | CK18: 0 | CL18: 0
B19: 2 | C19: 042 | D19: 435 | E19: 338 | G19: 042435 | I19: Decorative Sodium Vapor | J19: Direct Burial | K19: Granville 100W | L19: 474 | M19: 0 | N19: 176 | O19: 0 | P19: 0 | Q19: 0 | R19: 0 | S19: 0 | T19: 22.85 | U19: 0 | V19: 0 | W19: 0 | Y19: 0 | Z19: 4021.6 | AA19: 0 | AB19: 0 | AC19: 0 | AE19: 0 | AF19: 176 | AG19: 0 | AH19: 0 | AI19: 0 | AJ19: 0 | AK19: 0 | AL19: 22.85 | AM19: 0 | AN19: 0 | AO19: 0 | AQ19: 0 | AR19: 4021.6 | AS19: 0 | AT19: 0 | AU19: 0 | AW19: 0 | AX19: 176 | AY19: 0 | AZ19: 0 | BA19: 0 | BC19: 0 | BD19: 22.69 | BE19: 0 | BF19: 0 | BG19: 0 | BI19: 0 | BJ19: 3993.44 | BK19: 0 | BL19: 0 | BM19: 0 | BN19: -28.16 | BP19: 23.99 | BU19: 0 | BV19: 0 | BW19: 0 | BX19: 0 | BY19: 0 | CB19: 0 | CC19: 23.83010928 | CD19: 0 | CE19: 0 | CF19: 0 | CH19: 0 | CI19: -0.159890715 | CJ19: 0 | CK19: 0 | CL19: 0
B20: 2 | C20: 042 | D20: 436 | E20: 597 | G20: 042436 | I20: Decorative Sodium Vapor (Capital Only) | J20: Direct Burial | K20: Granville 100W | L20: 478 | M20: 0 | N20: 30 | O20: 0 | P20: 0 | Q20: 0 | R20: 0 | S20: 0 | T20: 16.17 | U20: 0 | V20: 0 | W20: 0 | Y20: =IF(AND(M20<>0,S20=0),#VALUE!,M20*S20) -> 0 | Z20: 485.1 | AA20: =IF(AND(O20<>0,U20=0),#VALUE!,O20*U20) -> 0 | AB20: =IF(AND(P20<>0,V20=0),#VALUE!,P20*V20) -> 0 | AC20: =IF(AND(Q20<>0,W20=0),#VALUE!,Q20*W20) -> 0 | AE20: =SUMIF($G:$G,TEXT(AE$3,"000")&TEXT($L20,"000"),$E:$E) -> 0 | AF20: 30 | AG20: 0 | AH20: 0 | AI20: 0 | AJ20: 0 | AK20: 0 | AL20: 16.17 | AM20: 0 | AN20: 0 | AO20: 0 | AQ20: 0 | AR20: 485.1 | AS20: 0 | AT20: 0 | AU20: 0 | AW20: 0 | AX20: 30 | AY20: 0 | AZ20: 0 | BA20: 0 | BC20: 0 | BD20: 16.06 | BE20: 0 | BF20: 0 | BG20: 0 | BI20: =IF(AND(AW20<>0,BC20=0),#VALUE!,AW20*BC20) -> 0 | BJ20: 481.8 | BK20: =IF(AND(AY20<>0,BE20=0),#VALUE!,AY20*BE20) -> 0 | BL20: =IF(AND(AZ20<>0,BF20=0),#VALUE!,AZ20*BF20) -> 0 | BM20: =IF(AND(BA20<>0,BG20=0),#VALUE!,BA20*BG20) -> 0 | BN20: -3.3 | BP20: 16.98 | BU20: 0 | BV20: 0 | BW20: 0 | BX20: 0 | BY20: 0 | CB20: 0 | CC20: 16.86697026 | CD20: 0 | CE20: 0 | CF20: 0 | CH20: 0 | CI20: -0.1130297436 | CJ20: 0 | CK20: 0 | CL20: 0
B21: 2 | C21: 042 | D21: 438 | E21: 32 | G21: 042438 | I21: Decorative Sodium Vapor | J21: Direct Burial | K21: Post Top 100W | L21: 484 | M21: 0 | N21: 161 | O21: 0 | P21: 0 | Q21: 0 | R21: 0 | S21: 0 | T21: 21.75 | U21: 0 | V21: 0 | W21: 0 | Y21: 0 | Z21: 3501.75 | AA21: 0 | AB21: 0 | AC21: 0 | AE21: 0 | AF21: 161 | AG21: 0 | AH21: 0 | AI21: 0 | AJ21: 0 | AK21: 0 | AL21: 21.75 | AM21: 0 | AN21: 0 | AO21: 0 | AQ21: 0 | AR21: 3501.75 | AS21: 0 | AT21: 0 | AU21: 0 | AW21: 0 | AX21: 161 | AY21: 0 | AZ21: 0 | BA21: 0 | BC21: 0 | BD21: 21.6 | BE21: 0 | BF21: 0 | BG21: 0 | BI21: 0 | BJ21: 3477.6 | BK21: 0 | BL21: 0 | BM21: 0 | BN21: -24.15 | BP21: 22.84 | BU21: 0 | BV21: 0 | BW21: 0 | BX21: 0 | BY21: 0 | CB21: 0 | CC21: 22.68533982 | CD21: 0 | CE21: 0 | CF21: 0 | CH21: 0 | CI21: -0.1546601782 | CJ21: 0 | CK21: 0 | CL21: 0
B22: 2 | C22: 042 | D22: 441 | E22: 23 | G22: 042441 | I22: Single Mercury Vapor | J22: Wood Pole | K22: 10000 | L22: 511 | M22: 6 | N22: 0 | O22: 0 | P22: 0 | Q22: 0 | R22: 0 | S22: 17.3 | T22: 0 | U22: 0 | V22: 0 | W22: 0 | Y22: 103.8 | Z22: 0 | AA22: 0 | AB22: 0 | AC22: 0 | AE22: 6 | AF22: 0 | AG22: 0 | AH22: 0 | AI22: 0 | AJ22: 0 | AK22: 17.3 | AL22: 0 | AM22: 0 | AN22: 0 | AO22: 0 | AQ22: 103.8 | AR22: 0 | AS22: 0 | AT22: 0 | AU22: 0 | AW22: 6 | AX22: =N22 -> 0 | AY22: =O22 -> 0 | AZ22: =P22 -> 0 | BA22: =Q22 -> 0 | BC22: 17.18 | BD22: 0 | BE22: 0 | BF22: 0 | BG22: 0 | BI22: 103.08 | BJ22: 0 | BK22: 0 | BL22: 0 | BM22: 0 | BN22: -0.72 | BO22: 18.16 | BU22: 0 | BV22: 0 | BW22: 0 | BX22: 0 | BY22: 0 | CB22: 18.04324714 | CC22: 0 | CD22: 0 | CE22: 0 | CF22: 0 | CH22: -0.116752864 | CI22: 0 | CJ22: 0 | CK22: 0 | CL22: 0
B23: 2 | C23: 042 | D23: 474 | E23: 176 | G23: 042474 | I23: Mercury Vapor | J23: Dusk to Dawn | K23: 10000 | L23: 515 | M23: 0 | N23: 0 | O23: 0 | P23: 7 | Q23: 0 | R23: 0 | S23: 0 | T23: 0 | U23: 0 | V23: 8.58 | W23: 0 | Y23: 0 | Z23: 0 | AA23: 0 | AB23: 60.06 | AC23: 0 | AE23: 0 | AF23: 0 | AG23: 0 | AH23: 7 | AI23: 0 | AJ23: 0 | AK23: 0 | AL23: 0 | AM23: 0 | AN23: 8.58 | AO23: 0 | AQ23: 0 | AR23: 0 | AS23: 0 | AT23: 60.06 | AU23: 0 | AW23: =SUMIF($G:$G,TEXT(AW$3,"000")&TEXT($L23,"000"),$E:$E) -> 0 | AX23: =SUMIF($G:$G,TEXT(AX$3,"000")&TEXT($L23,"000"),$E:$E) -> 0 | AY23: =SUMIF($G:$G,TEXT(AY$3,"000")&TEXT($L23,"000"),$E:$E) -> 0 | AZ23: =SUMIF($G:$G,TEXT(AZ$3,"000")&TEXT($L23,"000"),$E:$E) -> 7 | BA23: =SUMIF($G:$G,TEXT(BA$3,"000")&TEXT($L23,"000"),$E:$E) -> 0 | BC23: 0 | BD23: 0 | BE23: 0 | BF23: 8.52 | BG23: 0 | BI23: =IF(AND(AW23<>0,BC23=0),#VALUE!,AW23*BC23) -> 0 | BJ23: =IF(AND(AX23<>0,BD23=0),#VALUE!,AX23*BD23) -> 0 | BK23: =IF(AND(AY23<>0,BE23=0),#VALUE!,AY23*BE23) -> 0 | BL23: =IF(AND(AZ23<>0,BF23=0),#VALUE!,AZ23*BF23) -> 59.64 | BM23: =IF(AND(BA23<>0,BG23=0),#VALUE!,BA23*BG23) -> 0 | BN23: -0.42 | BR23: 9.01 | BU23: 0 | BV23: 0 | BW23: 0 | BX23: 0 | BY23: 0 | CB23: 0 | CC23: 0 | CD23: 0 | CE23: 8.948106263 | CF23: 0 | CH23: 0 | CI23: 0 | CJ23: 0 | CK23: -0.06189373697 | CL23: 0
B24: 3 | C24: 042 | D24: 478 | E24: 30 | G24: =IF(OR(ISBLANK(C24),ISBLANK(D24)),"",TEXT(C24,"000")&TEXT(D24,"000")) -> 042478 | I24: Single High-Pressure Sodium Vapor | J24: Pedestal Base | K24: 200W | L24: 522 | M24: =SUMIF($G:$G,TEXT(M$3,"000")&TEXT($L24,"000"),$E:$E) -> 0 | N24: 174 | O24: 0 | P24: 0 | Q24: 0 | R24: 0 | S24: 0 | T24: 52.73 | U24: 0 | V24: 0 | W24: 0 | Y24: 0 | Z24: 9175.02 | AA24: 0 | AB24: 0 | AC24: 0 | AE24: 0 | AF24: 174 | AG24: 0 | AH24: 0 | AI24: 0 | AJ24: 0 | AK24: 0 | AL24: 52.73 | AM24: 0 | AN24: 0 | AO24: 0 | AQ24: 0 | AR24: 9175.02 | AS24: 0 | AT24: 0 | AU24: 0 | AW24: 0 | AX24: 174 | AY24: 0 | AZ24: 0 | BA24: 0 | BC24: 0 | BD24: 52.37 | BE24: 0 | BF24: 0 | BG24: 0 | BI24: 0 | BJ24: 9112.38 | BK24: 0 | BL24: 0 | BM24: 0 | BN24: -62.64 | BP24: 55.36 | BU24: 0 | BV24: 0 | BW24: 0 | BX24: 0 | BY24: 0 | CB24: 0 | CC24: 55.0014466 | CD24: 0 | CE24: 0 | CF24: 0 | CH24: 0 | CI24: -0.3585534044 | CJ24: 0 | CK24: 0 | CL24: 0
B25: 2 | C25: 042 | D25: 484 | E25: 161 | G25: 042484 | I25: Single High-Pressure Sodium Vapor | J25: Wood Pole | K25: 200W | L25: 531 | M25: 0 | N25: 2987 | O25: 2 | P25: 0 | Q25: 0 | R25: 0 | S25: 0 | T25: 21.02 | U25: 10.4 | V25: 0 | W25: 0 | Y25: 0 | Z25: 62786.74 | AA25: 20.8 | AB25: 0 | AC25: 0 | AE25: 0 | AF25: 2987 | AG25: 2 | AH25: 0 | AI25: 0 | AJ25: 0 | AK25: 0 | AL25: 21.02 | AM25: 10.4 | AN25: 0 | AO25: 0 | AQ25: 0 | AR25: 62786.74 | AS25: 20.8 | AT25: 0 | AU25: 0 | AW25: 0 | AX25: 2987 | AY25: 2 | AZ25: 0 | BA25: 0 | BC25: 0 | BD25: 20.87 | BE25: 10.33 | BF25: 0 | BG25: 0 | BI25: 0 | BJ25: 62338.69 | BK25: 20.66 | BL25: 0 | BM25: 0 | BN25: -448.19 | BP25: 22.07 | BQ25: 10.92 | BU25: 0 | BV25: 0 | BW25: 0 | BX25: 0 | BY25: 0 | CB25: 0 | CC25: 21.91865936 | CD25: 10.84905372 | CE25: 0 | CF25: 0 | CH25: 0 | CI25: -0.1513406444 | CJ25: -0.07094627969 | CK25: 0 | CL25: 0
B26: 2 | C26: 042 | D26: 522 | E26: 174 | G26: 042522 | I26: Single High-Pressure Sodium Vapor | J26: Pedestal Base | K26: 200W | L26: 532 | M26: 0 | N26: 715 | O26: 89 | P26: 0 | Q26: 0 | R26: 0 | S26: 0 | T26: 31.13 | U26: 10.4 | V26: 0 | W26: 0 | Y26: 0 | Z26: 22257.95 | AA26: 925.6 | AB26: 0 | AC26: 0 | AE26: 0 | AF26: 715 | AG26: 89 | AH26: 0 | AI26: 0 | AJ26: 0 | AK26: 0 | AL26: 31.13 | AM26: 10.4 | AN26: 0 | AO26: 0 | AQ26: 0 | AR26: 22257.95 | AS26: 925.6 | AT26: 0 | AU26: 0 | AW26: 0 | AX26: 715 | AY26: 89 | AZ26: 0 | BA26: 0 | BC26: 0 | BD26: 30.91 | BE26: 10.33 | BF26: 0 | BG26: 0 | BI26: 0 | BJ26: 22100.65 | BK26: 919.37 | BL26: 0 | BM26: 0 | BN26: -163.53 | BP26: 32.68 | BQ26: 10.92 | BU26: 0 | BV26: 0 | BW26: 0 | BX26: 0 | BY26: 0 | CB26: 0 | CC26: 32.46314138 | CD26: 10.84905372 | CE26: 0 | CF26: 0 | CH26: 0 | CI26: -0.2168586162 | CJ26: -0.07094627969 | CK26: 0 | CL26: 0
B27: 2 | C27: 042 | D27: 531 | E27: =2960+27 -> 2987 | G27: 042531 | I27: Single High-Pressure Sodium Vapor | J27: Direct Burial | K27: 200W | L27: 533 | M27: 0 | N27: 47 | O27: 1 | P27: 0 | Q27: 0 | R27: 0 | S27: 0 | T27: 31.13 | U27: 10.4 | V27: 0 | W27: 0 | Y27: 0 | Z27: 1463.11 | AA27: 10.4 | AB27: 0 | AC27: 0 | AE27: 0 | AF27: 47 | AG27: 1 | AH27: 0 | AI27: 0 | AJ27: 0 | AK27: 0 | AL27: 31.13 | AM27: 10.4 | AN27: 0 | AO27: 0 | AQ27: 0 | AR27: 1463.11 | AS27: 10.4 | AT27: 0 | AU27: 0 | AW27: 0 | AX27: 47 | AY27: 1 | AZ27: 0 | BA27: 0 | BC27: 0 | BD27: 30.91 | BE27: 10.33 | BF27: 0 | BG27: 0 | BI27: 0 | BJ27: 1452.77 | BK27: 10.33 | BL27: 0 | BM27: 0 | BN27: -10.41 | BP27: 32.68 | BQ27: 10.92 | BU27: 0 | BV27: 0 | BW27: 0 | BX27: 0 | BY27: 0 | CB27: 0 | CC27: 32.46314138 | CD27: 10.84905372 | CE27: 0 | CF27: 0 | CH27: 0 | CI27: -0.2168586162 | CJ27: -0.07094627969 | CK27: 0 | CL27: 0
B28: 2 | C28: 042 | D28: 532 | E28: 715 | G28: 042532 | I28: Single High-Pressure Sodium Vapor | J28: No Pole / Dusk to Dawn (046) | K28: 200W | L28: 535 | M28: 0 | N28: 348 | O28: 20 | P28: 0 | Q28: 326 | R28: 0 | S28: 0 | T28: 20.29 | U28: 10.4 | V28: 0 | W28: 8.21 | Y28: 0 | Z28: 7060.92 | AA28: 208 | AB28: 0 | AC28: 2676.46 | AE28: 0 | AF28: 348 | AG28: 20 | AH28: 0 | AI28: 326 | AJ28: 0 | AK28: 0 | AL28: =20.29-3 -> 17.29 | AM28: 10.4 | AN28: 0 | AO28: 8.21 | AQ28: 0 | AR28: 6016.92 | AS28: 208 | AT28: 0 | AU28: 2676.46 | AW28: 0 | AX28: 348 | AY28: 20 | AZ28: 0 | BA28: 326 | BC28: 0 | BD28: 17.17 | BE28: 10.33 | BF28: 0 | BG28: 8.15 | BI28: 0 | BJ28: 5975.16 | BK28: 206.6 | BL28: 0 | BM28: 2656.9 | BN28: -1106.72 | BP28: 21.3 | BQ28: 10.92 | BS28: 8.62 | BU28: 0 | BV28: 0 | BW28: 0 | BX28: 0 | BY28: 0 | CB28: 0 | CC28: 18.03274466 | CD28: 10.84905372 | CE28: 0 | CF28: 8.559514794 | CH28: 0 | CI28: -3.267255336 | CJ28: -0.07094627969 | CK28: 0 | CL28: -0.06048520614
B29: 2 | C29: 042 | D29: 533 | E29: 47 | G29: 042533 | I29: Single High-Pressure Sodium Vapor | J29: Developer Contributed | K29: 200W | L29: 536 | M29: 0 | N29: 547 | O29: 0 | P29: 0 | Q29: 0 | R29: 0 | S29: 0 | T29: 21.02 | U29: 0 | V29: 0 | W29: 0 | Y29: 0 | Z29: 11497.94 | AA29: 0 | AB29: 0 | AC29: 0 | AE29: 0 | AF29: 547 | AG29: 0 | AH29: 0 | AI29: 0 | AJ29: 0 | AK29: 0 | AL29: 21.02 | AM29: 0 | AN29: 0 | AO29: 0 | AQ29: 0 | AR29: 11497.94 | AS29: 0 | AT29: 0 | AU29: 0 | AW29: 0 | AX29: 547 | AY29: 0 | AZ29: 0 | BA29: 0 | BC29: 0 | BD29: 20.87 | BE29: 0 | BF29: 0 | BG29: 0 | BI29: 0 | BJ29: 11415.89 | BK29: 0 | BL29: 0 | BM29: 0 | BN29: -82.05 | BP29: 22.07 | BU29: 0 | BV29: 0 | BW29: 0 | BX29: 0 | BY29: 0 | CB29: 0 | CC29: 21.91865936 | CD29: 0 | CE29: 0 | CF29: 0 | CH29: 0 | CI29: -0.1513406444 | CJ29: 0 | CK29: 0 | CL29: 0
B30: 2 | C30: 042 | D30: 535 | E30: 348 | G30: 042535 | I30: Single High-Pressure Sodium Vapor (Capital Only) | J30: Direct Burial | K30: 200W | L30: 538 | M30: 0 | N30: 21 | O30: 0 | P30: 0 | Q30: 0 | R30: 0 | S30: 0 | T30: 20.74 | U30: 0 | V30: 0 | W30: 0 | Y30: 0 | Z30: 435.54 | AA30: 0 | AB30: 0 | AC30: 0 | AE30: 0 | AF30: 21 | AG30: 0 | AH30: 0 | AI30: 0 | AJ30: 0 | AK30: 0 | AL30: 20.74 | AM30: 0 | AN30: 0 | AO30: 0 | AQ30: 0 | AR30: 435.54 | AS30: 0 | AT30: 0 | AU30: 0 | AW30: 0 | AX30: 21 | AY30: 0 | AZ30: 0 | BA30: 0 | BC30: 0 | BD30: 20.6 | BE30: 0 | BF30: 0 | BG30: 0 | BJ30: 432.6 | BP30: 21.77 | BU30: 0 | BV30: 0 | BW30: 0 | BX30: 0 | BY30: 0 | CB30: 0 | CC30: 21.63509261 | CD30: 0 | CE30: 0 | CF30: 0 | CH30: 0 | CI30: -0.1349073922 | CJ30: 0 | CK30: 0 | CL30: 0
B31: 2 | C31: 042 | D31: 536 | E31: 547 | G31: 042536 | I31: Double High-Pressure Sodium Vapor | J31: Wood Pole | K31: 200W | L31: 541 | M31: 0 | N31: 7 | O31: 0 | P31: 0 | Q31: 0 | R31: 0 | S31: 0 | T31: 42.05 | U31: 0 | V31: 0 | W31: 0 | Y31: 0 | Z31: 294.35 | AA31: 0 | AB31: 0 | AC31: 0 | AE31: 0 | AF31: 7 | AG31: 0 | AH31: 0 | AI31: 0 | AJ31: 0 | AK31: 0 | AL31: 42.05 | AM31: 0 | AN31: 0 | AO31: 0 | AQ31: 0 | AR31: 294.35 | AS31: 0 | AT31: 0 | AU31: 0 | AW31: 0 | AX31: 7 | AY31: 0 | AZ31: 0 | BA31: 0 | BC31: 0 | BD31: 41.76 | BE31: 0 | BF31: 0 | BG31: 0 | BI31: 0 | BJ31: 292.32 | BK31: 0 | BL31: 0 | BM31: 0 | BN31: =SUM(BI31:BM31)-SUM(Y31:AC31) -> -2.03 | BP31: 44.15 | BU31: 0 | BV31: 0 | BW31: 0 | BX31: 0 | BY31: 0 | CB31: 0 | CC31: 43.85832366 | CD31: 0 | CE31: 0 | CF31: 0 | CH31: 0 | CI31: -0.2916763446 | CJ31: 0 | CK31: 0 | CL31: 0
B32: 3 | C32: 042 | D32: 538 | E32: 21 | G32: =IF(OR(ISBLANK(C32),ISBLANK(D32)),"",TEXT(C32,"000")&TEXT(D32,"000")) -> 042538 | I32: Double High-Pressure Sodium Vapor | J32: Pedestal Base | K32: 200W | L32: 542 | M32: 0 | N32: 22 | O32: 0 | P32: 0 | Q32: 0 | R32: 0 | S32: 0 | T32: 52.73 | U32: 19.11 | V32: 0 | W32: 0 | Y32: 0 | Z32: 1160.06 | AA32: 0 | AB32: 0 | AC32: 0 | AE32: 0 | AF32: 22 | AG32: 0 | AH32: 0 | AI32: 0 | AJ32: 0 | AK32: 0 | AL32: 52.73 | AM32: 19.11 | AN32: 0 | AO32: 0 | AQ32: 0 | AR32: 1160.06 | AS32: 0 | AT32: 0 | AU32: 0 | AW32: 0 | AX32: 22 | AY32: 0 | AZ32: 0 | BA32: 0 | BC32: 0 | BD32: 52.37 | BE32: 18.98 | BF32: 0 | BG32: 0 | BI32: 0 | BJ32: 1152.14 | BK32: 0 | BL32: 0 | BM32: 0 | BN32: -7.92 | BP32: 55.36 | BQ32: 20.06 | BU32: 0 | BV32: 0 | BW32: 0 | BX32: 0 | BY32: 0 | CB32: 0 | CC32: 55.0014466 | CD32: 19.93369212 | CE32: 0 | CF32: 0 | CH32: 0 | CI32: -0.3585534044 | CJ32: -0.1263078788 | CK32: 0 | CL32: 0
B33: 2 | C33: 042 | D33: 541 | E33: 7 | G33: 042541 | I33: Single Mercury Vapor | J33: Wood Pole | K33: 20000 | L33: 611 | M33: 12 | N33: 0 | O33: 0 | P33: 0 | Q33: 0 | R33: 0 | S33: 24.52 | T33: 0 | U33: 0 | V33: 0 | W33: 0 | Y33: 294.24 | Z33: 0 | AA33: 0 | AB33: 0 | AC33: 0 | AE33: 12 | AF33: 0 | AG33: 0 | AH33: 0 | AI33: 0 | AJ33: 0 | AK33: 24.52 | AL33: 0 | AM33: 0 | AN33: 0 | AO33: 0 | AQ33: 294.24 | AR33: 0 | AS33: 0 | AT33: 0 | AU33: 0 | AW33: 12 | AX33: 0 | AY33: 0 | AZ33: 0 | BA33: 0 | BC33: 24.35 | BD33: 0 | BE33: 0 | BF33: 0 | BG33: 0 | BI33: 292.2 | BJ33: 0 | BK33: 0 | BL33: 0 | BM33: 0 | BN33: -2.04 | BO33: 25.74 | BU33: 0 | BV33: 0 | BW33: 0 | BX33: 0 | BY33: 0 | CB33: 25.57351966 | CC33: 0 | CD33: 0 | CE33: 0 | CF33: 0 | CH33: -0.1664803398 | CI33: 0 | CJ33: 0 | CK33: 0 | CL33: 0
B34: 2 | C34: 042 | D34: 542 | E34: 22 | G34: 042542 | I34: Mercury Vapor | J34: Dusk to Dawn | K34: 20000 | L34: 615 | M34: =SUMIF($G:$G,TEXT(M$3,"000")&TEXT($L34,"000"),$E:$E) -> 0 | N34: 0 | O34: 0 | P34: 326 | Q34: 0 | R34: 0 | S34: 0 | T34: 0 | U34: 0 | V34: 13.26 | W34: 0 | Y34: 0 | Z34: 0 | AA34: 0 | AB34: 4322.76 | AC34: 0 | AE34: 0 | AF34: 0 | AG34: 0 | AH34: 326 | AI34: 0 | AJ34: 0 | AK34: 0 | AL34: 0 | AM34: 0 | AN34: 13.26 | AO34: 0 | AQ34: 0 | AR34: 0 | AS34: 0 | AT34: 4322.76 | AU34: 0 | AW34: 0 | AX34: 0 | AY34: 0 | AZ34: 326 | BA34: 0 | BC34: 0 | BD34: 0 | BE34: 0 | BF34: 13.17 | BG34: 0 | BI34: 0 | BJ34: 0 | BK34: 0 | BL34: 4293.42 | BM34: 0 | BN34: -29.34 | BR34: 13.92 | BU34: 0 | BV34: 0 | BW34: 0 | BX34: 0 | BY34: 0 | CB34: 0 | CC34: 0 | CD34: 0 | CE34: 13.83175581 | CF34: 0 | CH34: 0 | CI34: 0 | CJ34: 0 | CK34: -0.08824419201 | CL34: 0
B35: 2 | C35: 042 | D35: 631 | E35: =88+4 -> 92 | G35: 042631 | I35: Single High-Pressure Sodium Vapor | J35: Wood Pole | K35: 250W | L35: 631 | M35: 0 | N35: 92 | O35: 0 | P35: 0 | Q35: 0 | R35: 0 | S35: 0 | T35: 24.77 | U35: 10.79 | V35: 0 | W35: 0 | Y35: 0 | Z35: 2278.84 | AA35: 0 | AB35: 0 | AC35: 0 | AE35: 0 | AF35: 92 | AG35: 0 | AH35: 0 | AI35: 0 | AJ35: 0 | AK35: 0 | AL35: 24.77 | AM35: =10.79+1.3 -> 12.09 | AN35: 0 | AO35: 0 | AQ35: 0 | AR35: 2278.84 | AS35: 0 | AT35: 0 | AU35: 0 | AW35: 0 | AX35: 92 | AY35: 0 | AZ35: 0 | BA35: 0 | BC35: 0 | BD35: 24.6 | BE35: 12.01 | BF35: 0 | BG35: 0 | BI35: 0 | BJ35: 2263.2 | BK35: 0 | BL35: 0 | BM35: 0 | BN35: -15.64 | BP35: 26.01 | BQ35: 11.33 | BU35: 0 | BV35: 0 | BW35: 0 | BX35: 0 | BY35: 0 | CB35: 0 | CC35: 25.83608146 | CD35: 12.61346904 | CE35: 0 | CF35: 0 | CH35: 0 | CI35: -0.1739185363 | CJ35: 1.28346904 | CK35: 0 | CL35: 0
B36: 2 | C36: 042 | D36: 632 | E36: 120 | G36: 042632 | I36: Single High-Pressure Sodium Vapor | J36: Pedestal Base | K36: 250W | L36: 632 | M36: 0 | N36: 120 | O36: 5 | P36: 0 | Q36: 0 | R36: 0 | S36: 0 | T36: 34.89 | U36: 10.79 | V36: 0 | W36: 0 | Y36: 0 | Z36: 4186.8 | AA36: 53.95 | AB36: 0 | AC36: 0 | AE36: =SUMIF($G:$G,TEXT(AE$3,"000")&TEXT($L36,"000"),$E:$E) -> 0 | AF36: 120 | AG36: 5 | AH36: 0 | AI36: 0 | AJ36: 0 | AK36: 0 | AL36: 34.89 | AM36: =10.79+1.3 -> 12.09 | AN36: 0 | AO36: 0 | AQ36: 0 | AR36: 4186.8 | AS36: 60.45 | AT36: 0 | AU36: 0 | AW36: 0 | AX36: 120 | AY36: 5 | AZ36: 0 | BA36: 0 | BC36: 0 | BD36: 34.65 | BE36: 12.01 | BF36: 0 | BG36: 0 | BI36: 0 | BJ36: 4158 | BK36: 60.05 | BL36: 0 | BM36: 0 | BN36: -22.7 | BP36: 36.63 | BQ36: 11.33 | BU36: 0 | BV36: 0 | BW36: 0 | BX36: 0 | BY36: 0 | CB36: 0 | CC36: 36.39106596 | CD36: 12.61346904 | CE36: 0 | CF36: 0 | CH36: 0 | CI36: -0.2389340359 | CJ36: 1.28346904 | CK36: 0 | CL36: 0
B37: 2 | C37: 042 | D37: 633 | E37: 52 | G37: 042633 | I37: Single High-Pressure Sodium Vapor | J37: Direct Burial | K37: 250W | L37: 633 | M37: 0 | N37: 52 | O37: 0 | P37: 0 | Q37: 0 | R37: 0 | S37: 0 | T37: 34.89 | U37: 10.79 | V37: 0 | W37: 0 | Y37: 0 | Z37: 1814.28 | AA37: 0 | AB37: 0 | AC37: 0 | AE37: 0 | AF37: 52 | AG37: 0 | AH37: 0 | AI37: 0 | AJ37: 0 | AK37: 0 | AL37: 34.89 | AM37: =1.3+10.79 -> 12.09 | AN37: 0 | AO37: 0 | AQ37: 0 | AR37: 1814.28 | AS37: 0 | AT37: 0 | AU37: 0 | AW37: 0 | AX37: 52 | AY37: 0 | AZ37: 0 | BA37: 0 | BC37: 0 | BD37: 34.65 | BE37: 12.01 | BF37: 0 | BG37: 0 | BI37: 0 | BJ37: 1801.8 | BK37: 0 | BL37: 0 | BM37: 0 | BN37: -12.48 | BP37: 36.63 | BQ37: 11.33 | BU37: 0 | BV37: 0 | BW37: 0 | BX37: 0 | BY37: 0 | CB37: 0 | CC37: 36.39106596 | CD37: 12.61346904 | CE37: 0 | CF37: 0 | CH37: 0 | CI37: -0.2389340359 | CJ37: 1.28346904 | CK37: 0 | CL37: 0
B38: 2 | C38: 042 | D38: 636 | E38: 21 | G38: 042636 | I38: Single High-Pressure Sodium Vapor | J38: Dusk to Dawn (046) | K38: 250W | L38: 635 | M38: 0 | N38: 0 | O38: 3 | P38: 0 | Q38: 408 | R38: 0 | S38: 0 | T38: 0 | U38: 10.79 | V38: 0 | W38: 9.88 | Y38: 0 | Z38: 0 | AA38: 32.37 | AB38: 0 | AC38: 4031.04 | AE38: 0 | AF38: 0 | AG38: 3 | AH38: 0 | AI38: 408 | AJ38: 0 | AK38: 0 | AL38: 0 | AM38: =10.79+1.3 -> 12.09 | AN38: 0 | AO38: 9.88 | AQ38: 0 | AR38: 0 | AS38: 36.27 | AT38: 0 | AU38: 4031.04 | AW38: 0 | AX38: 0 | AY38: 3 | AZ38: 0 | BA38: 408 | BC38: 0 | BD38: 0 | BE38: 12.01 | BF38: 0 | BG38: 9.81 | BI38: 0 | BJ38: 0 | BK38: 36.03 | BL38: 0 | BM38: 4002.48 | BN38: -24.9 | BQ38: 11.33 | BS38: 10.37 | BU38: 0 | BV38: 0 | BW38: 0 | BX38: 0 | BY38: 0 | CB38: 0 | CC38: 0 | CD38: 12.61346904 | CE38: 0 | CF38: 10.30292517 | CH38: 0 | CI38: 0 | CJ38: 1.28346904 | CK38: 0 | CL38: -0.06707483095
B39: 2 | C39: 042 | D39: 831 | E39: =96+1 -> 97 | G39: 042831 | I39: Single High-Pressure Sodium Vapor | J39: Developer Contributed | K39: 250W | L39: 636 | M39: 0 | N39: 21 | O39: 0 | P39: 0 | Q39: 0 | R39: 0 | S39: 0 | T39: 24.77 | U39: 0 | V39: 0 | W39: 0 | Y39: 0 | Z39: 520.17 | AA39: 0 | AB39: 0 | AC39: 0 | AE39: 0 | AF39: 21 | AG39: 0 | AH39: 0 | AI39: 0 | AJ39: 0 | AK39: 0 | AL39: 24.77 | AM39: 0 | AN39: 0 | AO39: 0 | AQ39: 0 | AR39: 520.17 | AS39: 0 | AT39: 0 | AU39: 0 | AW39: 0 | AX39: 21 | AY39: 0 | AZ39: 0 | BA39: 0 | BC39: 0 | BD39: 24.6 | BE39: 0 | BF39: 0 | BG39: 0 | BI39: 0 | BJ39: 516.6 | BK39: 0 | BL39: 0 | BM39: 0 | BN39: -3.57 | BP39: 26.01 | BU39: 0 | BV39: 0 | BW39: 0 | BX39: 0 | BY39: 0 | CB39: 0 | CC39: 25.83608146 | CD39: 0 | CE39: 0 | CF39: 0 | CH39: 0 | CI39: -0.1739185363 | CJ39: 0 | CK39: 0 | CL39: 0
B40: 2 | C40: 042 | D40: 832 | E40: 5 | G40: 042832 | I40: Mercury Vapor | J40: Dusk to Dawn | K40: 35000 | L40: 715 | M40: 0 | N40: 0 | O40: 0 | P40: 6 | Q40: 0 | R40: 0 | S40: 0 | T40: 0 | U40: 0 | V40: 21.53 | W40: 0 | Y40: 0 | Z40: 0 | AA40: 0 | AB40: 129.18 | AC40: 0 | AE40: 0 | AF40: 0 | AG40: 0 | AH40: 6 | AI40: 0 | AJ40: 0 | AK40: 0 | AL40: 0 | AM40: 0 | AN40: 21.53 | AO40: 0 | AQ40: 0 | AR40: 0 | AS40: 0 | AT40: 129.18 | AU40: 0 | AW40: 0 | AX40: 0 | AY40: 0 | AZ40: 6 | BA40: 0 | BC40: 0 | BD40: 0 | BE40: 0 | BF40: 21.38 | BG40: 0 | BI40: 0 | BJ40: 0 | BK40: 0 | BL40: 128.28 | BM40: 0 | BN40: -0.9 | BR40: 22.6 | BU40: 0 | BV40: 0 | BW40: 0 | BX40: 0 | BY40: 0 | CB40: 0 | CC40: 0 | CD40: 0 | CE40: 22.45428543 | CF40: 0 | CH40: 0 | CI40: 0 | CJ40: 0 | CK40: -0.1457145653 | CL40: 0
B41: 2 | C41: 042 | D41: 835 | E41: =4+2 -> 6 | G41: =IF(OR(ISBLANK(C41),ISBLANK(D41)),"",TEXT(C41,"000")&TEXT(D41,"000")) -> 042835 | I41: Single High-Pressure Sodium Vapor | J41: Pedestal Base | K41: 310W | L41: 732 | M41: 0 | N41: 0 | O41: 26 | P41: 0 | Q41: 0 | R41: 0 | S41: 0 | T41: 0 | U41: 14.17 | V41: 0 | W41: 0 | Y41: 0 | Z41: 0 | AA41: 368.42 | AB41: 0 | AC41: 0 | AE41: 0 | AF41: 0 | AG41: 26 | AH41: 0 | AI41: 0 | AJ41: 0 | AK41: 0 | AL41: 0 | AM41: 14.17 | AN41: 0 | AO41: 0 | AQ41: 0 | AR41: 0 | AS41: 368.42 | AT41: 0 | AU41: 0 | AW41: 0 | AX41: 0 | AY41: 26 | AZ41: 0 | BA41: 0 | BC41: 0 | BD41: 0 | BE41: 14.07 | BF41: 0 | BG41: 0 | BI41: 0 | BJ41: 0 | BK41: 365.82 | BL41: 0 | BM41: 0 | BN41: -2.6 | BQ41: 14.88 | BU41: 0 | BV41: 0 | BW41: 0 | BX41: 0 | BY41: 0 | CB41: 0 | CC41: 0 | CD41: 14.7769783 | CE41: 0 | CF41: 0 | CH41: 0 | CI41: 0 | CJ41: -0.1030216994 | CK41: 0 | CL41: 0
B42: 2 | C42: 042 | D42: 836 | E42: 3 | G42: 042836 | I42: Single High-Pressure Sodium Vapor | J42: No Pole / Dusk to Dawn (046) | K42: 310W | L42: 735 | M42: 0 | N42: 0 | O42: 30 | P42: 0 | Q42: 442 | R42: 0 | S42: 0 | T42: 0 | U42: 14.17 | V42: 0 | W42: 11.94 | Y42: 0 | Z42: 0 | AA42: 425.1 | AB42: 0 | AC42: 5277.48 | AE42: 0 | AF42: 0 | AG42: 30 | AH42: 0 | AI42: 442 | AJ42: 0 | AK42: 0 | AL42: 0 | AM42: 14.17 | AN42: 0 | AO42: 11.94 | AQ42: 0 | AR42: 0 | AS42: 425.1 | AT42: 0 | AU42: 5277.48 | AW42: 0 | AX42: 0 | AY42: 30 | AZ42: 0 | BA42: 442 | BC42: 0 | BD42: 0 | BE42: 14.07 | BF42: 0 | BG42: 11.86 | BI42: 0 | BJ42: 0 | BK42: 422.1 | BL42: 0 | BM42: 5242.12 | BN42: -38.36 | BQ42: 14.88 | BS42: 12.54 | BU42: 0 | BV42: 0 | BW42: 0 | BX42: 0 | BY42: 0 | CB42: 0 | CC42: 0 | CD42: 14.7769783 | CE42: 0 | CF42: 12.45593196 | CH42: 0 | CI42: 0 | CJ42: -0.1030216994 | CK42: 0 | CL42: -0.08406804231
B43: 2 | C43: 042 | D43: 842 | E43: 3 | G43: 042842 | I43: Mercury Vapor | J43: Dusk to 1 AM | K43: 55000 | L43: 819 | M43: 0 | N43: 0 | O43: 0 | P43: 34 | Q43: 0 | R43: 0 | S43: 0 | T43: 0 | U43: 0 | V43: 20.41 | W43: 0 | Y43: 0 | Z43: 0 | AA43: 0 | AB43: 693.94 | AC43: 0 | AE43: 0 | AF43: 0 | AG43: 0 | AH43: 34 | AI43: 0 | AJ43: 0 | AK43: 0 | AL43: 0 | AM43: 0 | AN43: 20.41 | AO43: 0 | AQ43: 0 | AR43: 0 | AS43: 0 | AT43: 693.94 | AU43: 0 | AW43: 0 | AX43: 0 | AY43: 0 | AZ43: 34 | BA43: 0 | BC43: 0 | BD43: 0 | BE43: 0 | BF43: 20.27 | BG43: 0 | BI43: 0 | BJ43: 0 | BK43: 0 | BL43: 689.18 | BM43: 0 | BN43: -4.76 | BR43: 21.43 | BU43: 0 | BV43: 0 | BW43: 0 | BX43: 0 | BY43: 0 | CB43: 0 | CC43: 0 | CD43: 0 | CE43: 21.28851103 | CF43: 0 | CH43: 0 | CI43: 0 | CJ43: 0 | CK43: -0.1414889728 | CL43: 0
E44: =SUM(E13:E43) -> 21319 | I44: Single High-Pressure Sodium Vapor | J44: Wood Pole | K44: 400W | L44: 831 | M44: =SUMIF($G:$G,TEXT(M$3,"000")&TEXT($L44,"000"),$E:$E) -> 0 | N44: 97 | O44: 0 | P44: 0 | Q44: 0 | R44: 0 | S44: 0 | T44: 36.4 | U44: 18.21 | V44: 0 | W44: 0 | Y44: 0 | Z44: 3530.8 | AA44: 0 | AB44: 0 | AC44: 0 | AE44: 0 | AF44: 97 | AG44: 0 | AH44: 0 | AI44: 0 | AJ44: 0 | AK44: 0 | AL44: =36.4-5 -> 31.4 | AM44: 18.21 | AN44: 0 | AO44: 0 | AQ44: 0 | AR44: 3045.8 | AS44: 0 | AT44: 0 | AU44: 0 | AW44: 0 | AX44: 97 | AY44: 0 | AZ44: 0 | BA44: 0 | BC44: 0 | BD44: 31.18 | BE44: 18.08 | BF44: 0 | BG44: 0 | BI44: 0 | BJ44: 3024.46 | BK44: 0 | BL44: 0 | BM44: 0 | BN44: -506.34 | BP44: 38.22 | BQ44: 19.12 | BU44: 0 | BV44: 0 | BW44: 0 | BX44: 0 | BY44: 0 | CB44: 0 | CC44: 32.74670813 | CD44: 18.98846963 | CE44: 0 | CF44: 0 | CH44: 0 | CI44: -5.473291868 | CJ44: -0.1315303714 | CK44: 0 | CL44: 0
I45: Single High-Pressure Sodium Vapor | J45: Pedestal Base | K45: 400W | L45: 832 | M45: 0 | N45: 5 | O45: 1 | P45: 0 | Q45: 0 | R45: 0 | S45: 0 | T45: 46.54 | U45: 18.21 | V45: 0 | W45: 0 | Y45: 0 | Z45: 232.7 | AA45: 18.21 | AB45: 0 | AC45: 0 | AE45: 0 | AF45: 5 | AG45: 1 | AH45: 0 | AI45: 0 | AJ45: 0 | AK45: 0 | AL45: 46.54 | AM45: 18.21 | AN45: 0 | AO45: 0 | AQ45: 0 | AR45: 232.7 | AS45: 18.21 | AT45: 0 | AU45: 0 | AW45: 0 | AX45: 5 | AY45: 1 | AZ45: 0 | BA45: 0 | BC45: 0 | BD45: 46.22 | BE45: 18.08 | BF45: 0 | BG45: 0 | BI45: 0 | BJ45: 231.1 | BK45: 18.08 | BL45: 0 | BM45: 0 | BN45: -1.73 | BP45: 48.86 | BQ45: 19.12 | BU45: 0 | BV45: 0 | BW45: 0 | BX45: 0 | BY45: 0 | CB45: 0 | CC45: 48.54242623 | CD45: 18.98846963 | CE45: 0 | CF45: 0 | CH45: 0 | CI45: -0.3175737703 | CJ45: -0.1315303714 | CK45: 0 | CL45: 0
B46: 2 | C46: 044 | D46: 432 | E46: 4 | G46: 044432 | I46: Single High-Pressure Sodium Vapor | J46: No Pole / Dusk to Dawn (046) | K46: 400W | L46: 835 | M46: 0 | N46: 6 | O46: 9 | P46: 0 | Q46: 68 | R46: 0 | S46: 0 | T46: 30.57 | U46: 18.21 | V46: 0 | W46: 15.13 | Y46: 0 | Z46: 183.42 | AA46: 163.89 | AB46: 0 | AC46: 1028.84 | AE46: 0 | AF46: 6 | AG46: 9 | AH46: 0 | AI46: 68 | AJ46: 0 | AK46: 0 | AL46: =30.57-6 -> 24.57 | AM46: 18.21 | AN46: 0 | AO46: 15.13 | AQ46: 0 | AR46: 147.42 | AS46: 163.89 | AT46: 0 | AU46: 1028.84 | AW46: 0 | AX46: 6 | AY46: 9 | AZ46: 0 | BA46: 68 | BC46: 0 | BD46: 24.4 | BE46: 18.08 | BF46: 0 | BG46: 15.03 | BI46: 0 | BJ46: 146.4 | BK46: 162.72 | BL46: 0 | BM46: 1022.04 | BN46: -44.99 | BP46: 32.1 | BQ46: 19.12 | BS46: 15.88 | BU46: 0 | BV46: 0 | BW46: 0 | BX46: 0 | BY46: 0 | CB46: 0 | CC46: 25.62603202 | CD46: 18.98846963 | CE46: 0 | CF46: 15.78521563 | CH46: 0 | CI46: -6.473967979 | CJ46: -0.1315303714 | CK46: 0 | CL46: -0.09478437403
B47: 2 | C47: 044 | D47: 433 | E47: 10 | G47: 044433 | I47: Single High-Pressure Sodium Vapor | J47: Developer Contributed | K47: 400W | L47: 836 | M47: 0 | N47: 3 | O47: 0 | P47: 0 | Q47: 0 | R47: 0 | S47: 0 | T47: 36.4 | U47: 0 | V47: 0 | W47: 0 | Y47: 0 | Z47: 109.2 | AA47: 0 | AB47: 0 | AC47: 0 | AE47: 0 | AF47: 3 | AG47: 0 | AH47: 0 | AI47: 0 | AJ47: 0 | AK47: 0 | AL47: =36.4-5 -> 31.4 | AM47: 0 | AN47: 0 | AO47: 0 | AQ47: 0 | AR47: 94.2 | AS47: 0 | AT47: 0 | AU47: 0 | AW47: 0 | AX47: 3 | AY47: 0 | AZ47: 0 | BA47: 0 | BC47: 0 | BD47: 31.18 | BE47: 0 | BF47: 0 | BG47: 0 | BI47: 0 | BJ47: 93.54 | BK47: 0 | BL47: 0 | BM47: 0 | BN47: -15.66 | BP47: 38.22 | BU47: 0 | BV47: 0 | BW47: 0 | BX47: 0 | BY47: 0 | CB47: 0 | CC47: 32.74670813 | CD47: 0 | CE47: 0 | CF47: 0 | CH47: 0 | CI47: -5.473291868 | CJ47: 0 | CK47: 0 | CL47: 0
B48: 2 | C48: 044 | D48: 435 | E48: 48 | G48: 044435 | I48: Double High-Pressure Sodium Vapor | J48: Pedestal Base | K48: 400W | L48: 842 | M48: 0 | N48: 3 | O48: 0 | P48: 0 | Q48: 0 | R48: 0 | S48: 0 | T48: 82.29 | U48: 0 | V48: 0 | W48: 0 | Y48: 0 | Z48: 246.87 | AA48: 0 | AB48: 0 | AC48: 0 | AE48: 0 | AF48: 3 | AG48: 0 | AH48: 0 | AI48: 0 | AJ48: 0 | AK48: 0 | AL48: 82.29 | AM48: 0 | AN48: 0 | AO48: 0 | AQ48: 0 | AR48: 246.87 | AS48: 0 | AT48: 0 | AU48: 0 | AW48: 0 | AX48: 3 | AY48: 0 | AZ48: 0 | BA48: 0 | BC48: 0 | BD48: 81.72 | BE48: 0 | BF48: 0 | BG48: 0 | BI48: 0 | BJ48: 245.16 | BK48: 0 | BL48: 0 | BM48: 0 | BN48: -1.71 | BP48: 86.4 | BU48: 0 | BV48: 0 | BW48: 0 | BX48: 0 | BY48: 0 | CB48: 0 | CC48: 85.82620233 | CD48: 0 | CE48: 0 | CF48: 0 | CH48: 0 | CI48: -0.5737976744 | CJ48: 0 | CK48: 0 | CL48: 0
B49: 2 | C49: 044 | D49: 531 | E49: 2 | G49: 044531 | I49: Double High-Pressure Sodium Vapor | J49: No Pole | K49: 400W | L49: 845 | M49: 0 | N49: 0 | O49: 1 | P49: 0 | Q49: 0 | R49: 0 | S49: 0 | T49: 0 | U49: 34.1 | V49: 0 | W49: 0 | Y49: 0 | Z49: 0 | AA49: 34.1 | AB49: 0 | AC49: 0 | AE49: 0 | AF49: 0 | AG49: 1 | AH49: 0 | AI49: 0 | AJ49: 0 | AK49: 0 | AL49: 0 | AM49: 34.1 | AN49: 0 | AO49: 0 | AQ49: 0 | AR49: 0 | AS49: 34.1 | AT49: 0 | AU49: 0 | AW49: 0 | AX49: 0 | AY49: 1 | AZ49: 0 | BA49: 0 | BC49: 0 | BD49: 0 | BE49: 33.86 | BF49: 0 | BG49: 0 | BI49: 0 | BJ49: 0 | BK49: 33.86 | BL49: 0 | BM49: 0 | BN49: -0.24 | BQ49: 35.8 | BU49: 0 | BV49: 0 | BW49: 0 | BX49: 0 | BY49: 0 | CB49: 0 | CC49: 0 | CD49: 35.56137067 | CE49: 0 | CF49: 0 | CH49: 0 | CI49: 0 | CJ49: -0.238629335 | CK49: 0 | CL49: 0
B50: 2 | C50: 044 | D50: 532 | E50: 89 | G50: 044532 | I50: Single High-Pressure Sodium Vapor | J50: Dust to Dawn (046) | K50: 150W | L50: 935 | M50: 0 | N50: 0 | O50: 0 | P50: 0 | Q50: 112 | R50: 0 | S50: 0 | T50: 0 | U50: 0 | V50: 0 | W50: 6.13 | Y50: 0 | Z50: 0 | AA50: 0 | AB50: 0 | AC50: 686.56 | AE50: 0 | AF50: 0 | AG50: 0 | AH50: 0 | AI50: 112 | AJ50: 0 | AK50: 0 | AL50: 0 | AM50: 0 | AN50: 0 | AO50: 6.13 | AQ50: 0 | AR50: 0 | AS50: 0 | AT50: 0 | AU50: 686.56 | AW50: 0 | AX50: 0 | AY50: 0 | AZ50: 0 | BA50: 112 | BC50: 0 | BD50: 0 | BE50: 0 | BF50: 0 | BG50: 6.09 | BI50: 0 | BJ50: 0 | BK50: 0 | BL50: 0 | BM50: 682.08 | BN50: -4.48 | BS50: 6.44 | BU50: 0 | BV50: 0 | BW50: 0 | BX50: 0 | BY50: 0 | CB50: 0 | CC50: 0 | CD50: 0 | CE50: 0 | CF50: 6.396005533 | CH50: 0 | CI50: 0 | CJ50: 0 | CK50: 0 | CL50: -0.04399446692
B51: 2 | C51: 044 | D51: 533 | E51: 1 | G51: 044533 | S51: 0 | T51: 0 | U51: 0 | V51: 0 | W51: 0 | AK51: 0 | AL51: 0 | AM51: 0 | AN51: 0 | AO51: 0 | BC51: 0 | BD51: 0 | BE51: 0 | BF51: 0 | BG51: 0 | BN51: 0 | CB51: 0 | CC51: 0 | CD51: 0 | CE51: 0 | CF51: 0
B52: 2 | C52: 044 | D52: 535 | E52: 20 | G52: 044535 | M52: =SUM(M4:M51) -> 127 | N52: =SUM(N4:N51) -> 21319 | O52: =SUM(O4:O51) -> 249 | P52: =SUM(P4:P51) -> 476 | Q52: =SUM(Q4:Q51) -> 1480 | Y52: =ROUND(SUM(Y4:Y51),2) -> 1858.64 | Z52: =ROUND(SUM(Z4:Z51),2) -> 345303.66 | AA52: =ROUND(SUM(AA4:AA51),2) -> 2674.38 | AB52: =ROUND(SUM(AB4:AB51),2) -> 5814.28 | AC52: =ROUND(SUM(AC4:AC51),2) -> 14200.12 | AE52: =SUM(AE4:AE51) -> 127 | AF52: =SUM(AF4:AF51) -> 21319 | AG52: =SUM(AG4:AG51) -> 249 | AH52: =SUM(AH4:AH51) -> 476 | AI52: =SUM(AI4:AI51) -> 1480 | AQ52: =ROUND(SUM(AQ4:AQ51),2) -> 1858.64 | AR52: =ROUND(SUM(AR4:AR51),2) -> 355643.66 | AS52: =ROUND(SUM(AS4:AS51),2) -> 2684.78 | AT52: =ROUND(SUM(AT4:AT51),2) -> 5814.28 | AU52: =ROUND(SUM(AU4:AU51),2) -> 14200.12 | AW52: =SUM(AW4:AW51) -> 127 | AX52: =SUM(AX4:AX51) -> 21319 | AY52: =SUM(AY4:AY51) -> 249 | AZ52: =SUM(AZ4:AZ51) -> 476 | BA52: =SUM(BA4:BA51) -> 1480 | BC52: 0 | BD52: 0 | BE52: 0 | BF52: 0 | BG52: 0 | BI52: =ROUND(SUM(BI4:BI51),2) -> 1845.73 | BJ52: =ROUND(SUM(BJ4:BJ51),2) -> 353138.48 | BK52: =ROUND(SUM(BK4:BK51),2) -> 2666.06 | BL52: =ROUND(SUM(BL4:BL51),2) -> 5774.9 | BM52: =ROUND(SUM(BM4:BM51),2) -> 14102.05 | CB52: 0 | CC52: 0 | CD52: 0 | CE52: 0 | CF52: 0
B53: 2 | C53: 044 | D53: 632 | E53: 5 | G53: 044632 | K53: Total | Q53: =SUM(M52:Q52) -> 23651 | AC53: =SUM(Y52:AC52) -> 369851.08 | AI53: =SUM(AE52:AI52) -> 23651 | AU53: =SUM(AQ52:AU52) -> 380201.48 | BA53: =SUM(AW52:BA52) -> 23651 | BC53: 0 | BD53: 0 | BE53: 0 | BF53: 0 | BG53: 0 | BM53: =SUM(BI52:BM52) -> 377527.22 | CB53: 0 | CC53: 0 | CD53: 0 | CE53: 0 | CF53: 0
B54: 2 | C54: 044 | D54: 635 | E54: =3 -> 3 | G54: =IF(OR(ISBLANK(C54),ISBLANK(D54)),"",TEXT(C54,"000")&TEXT(D54,"000")) -> 044635 | I54: (1) from Street Light Report and Area Light Report, 1/10/12, PDE-E-25-30 | Q54: =ROUND(Q53-E79,0) -> 0 | Y54: =(1868*1.045)/1.0516 -> 1856.276151 | Z54: =(347129*1.045)/1.0516 -> 344950.3661 | AA54: =(2688*1.045)/1.0516 -> 2671.129707 | AB54: =(5842*1.045)/1.0516 -> 5805.334728 | AC54: =(14016*1.045)/1.0516 -> 13928.03347 | AD54: Dec '11 revenue | AQ54: =(1868*1.045)/1.0516 -> 1856.276151 | AR54: =(347129*1.045)/1.0516 -> 344950.3661 | AS54: =(2688*1.045)/1.0516 -> 2671.129707 | AT54: =(5842*1.045)/1.0516 -> 5805.334728 | AU54: =(14016*1.045)/1.0516 -> 13928.03347 | BA54: =BA53-Q53 -> 0 | BC54: 0 | BD54: 0 | BE54: 0 | BF54: 0 | BG54: 0 | BM54: =BM53/AC53-1 -> 0.0207546778 | CB54: 0 | CC54: 0 | CD54: 0 | CE54: 0 | CF54: 0
B55: 2 | C55: 044 | D55: 732 | E55: 26 | G55: =IF(OR(ISBLANK(C55),ISBLANK(D55)),"",TEXT(C55,"000")&TEXT(D55,"000")) -> 044732 | Y55: =Y52-Y54 -> 2.363849372 | Z55: =Z52-Z54 -> 353.2938912 | AA55: =AA52-AA54 -> 3.250292887 | AB55: =AB52-AB54 -> 8.945271967 | AC55: =AC52-AC54 -> 272.0865272 | AQ55: =AQ52-AQ54 -> 2.363849372 | AR55: =AR52-AR54 -> 10693.29389 | AS55: =AS52-AS54 -> 13.65029289 | AT55: =AT52-AT54 -> 8.945271967 | AU55: =AU52-AU54 -> 272.0865272 | BC55: 0 | BD55: 0 | BE55: 0 | BF55: 0 | BG55: 0 | CB55: 0 | CC55: 0 | CD55: 0 | CE55: 0 | CF55: 0
B56: 2 | C56: 044 | D56: 735 | E56: 30 | G56: 044735 | I56: no customer count - taken out of exhibit to limit print range | AC56: =SUM(Y55:AC55) -> 639.9398326 | AU56: =SUM(AQ55:AU55) -> 10990.33983 | BC56: 0 | BD56: 0 | BE56: 0 | BF56: 0 | BG56: 0 | CB56: 0 | CC56: 0 | CD56: 0 | CE56: 0 | CF56: 0
B57: 2 | C57: 044 | D57: 832 | E57: 1 | G57: 044832 | I57: Single High-Pressure Sodium Vapor | J57: Dusk to 1 AM (046) | K57: 100W | L57: 439 | M57: =SUMIF($G:$G,TEXT(M$3,"000")&TEXT($L57,"000"),$E:$E) -> 0 | N57: 0 | O57: 0 | P57: 0 | Q57: 0 | R57: =IF(SUM(M57:Q57)>0,0,1) -> 1 | S57: 0 | T57: 0 | U57: 0 | V57: 0 | W57: 3.45 | AC57: =AC56/SUM(Y54:AC54) -> 0.001733262524 | AE57: =SUMIF($G:$G,TEXT(AE$3,"000")&TEXT($L57,"000"),$E:$E) -> 0 | AF57: 0 | AG57: 0 | AH57: 0 | AI57: 0 | AJ57: =IF(SUM(AE57:AI57)>0,0,1) -> 1 | AK57: 0 | AL57: 0 | AM57: 0 | AN57: 0 | AO57: 3.45 | AU57: =AU56/SUM(AQ54:AU54) -> 0.02976708619 | AW57: =SUMIF($G:$G,TEXT(AW$3,"000")&TEXT($L57,"000"),$E:$E) -> 0 | AX57: 0 | AY57: 0 | AZ57: 0 | BA57: 0 | BC57: 0 | BD57: 0 | BE57: 0 | BF57: 0 | BG57: 3.43 | BS57: 3.62 | BU57: =ROUND(S57*$BU$2-BO57,2) -> 0 | BV57: =ROUND(T57*$BU$2-BP57,2) -> 0 | BW57: =ROUND(U57*$BU$2-BQ57,2) -> 0 | BX57: =ROUND(V57*$BU$2-BR57,2) -> 0 | BY57: =ROUND(W57*$BU$2-BS57,2) -> 0 | CB57: 0 | CC57: 0 | CD57: 0 | CE57: 0 | CF57: 3.602347944 | CH57: 0 | CI57: 0 | CJ57: 0 | CK57: 0 | CL57: -0.01765205608
B58: 2 | C58: 044 | D58: 835 | E58: 9 | G58: 044835 | I58: Double High-Pressure Sodium Vapor | J58: Pedestal Base | K58: 100W | L58: 442 | M58: 0 | N58: 0 | O58: 0 | P58: 0 | Q58: 0 | R58: 1 | S58: 0 | T58: 36.21 | U58: 11.7 | V58: 0 | W58: 0 | Y58: Surch Rate | AE58: 0 | AF58: 0 | AG58: 0 | AH58: 0 | AI58: 0 | AJ58: 1 | AK58: 0 | AL58: 36.21 | AM58: 11.7 | AN58: 0 | AO58: 0 | AQ58: Surch Rate | AW58: 0 | AX58: 0 | AY58: 0 | AZ58: 0 | BA58: 0 | BC58: 0 | BD58: 35.96 | BE58: 11.62 | BF58: 0 | BG58: 0 | BI58: Surch Rate | BP58: 38.02 | BQ58: 12.28 | BU58: 0 | BV58: 0 | BW58: 0 | BX58: 0 | BY58: 0 | CB58: 0 | CC58: 37.76688981 | CD58: 12.20387263 | CE58: 0 | CF58: 0 | CH58: 0 | CI58: -0.2531101856 | CJ58: -0.07612737367 | CK58: 0 | CL58: 0
B59: 2 | C59: 044 | D59: 845 | E59: 1 | G59: 044845 | I59: Double High-Pressure Sodium Vapor | J59: Direct Burial | K59: 100W | L59: 443 | M59: 0 | N59: 0 | O59: 0 | P59: 0 | Q59: 0 | R59: 1 | S59: 0 | T59: 0 | U59: 11.7 | V59: 0 | W59: 0 | Y59: =1+'Lighting summary'!I36 -> 1.0499 | AB59: Billed | AC59: =AC53*$Y$59 -> 388306.6489 | AE59: 0 | AF59: 0 | AG59: 0 | AH59: 0 | AI59: 0 | AJ59: 1 | AK59: 0 | AL59: 0 | AM59: 11.7 | AN59: 0 | AO59: 0 | AQ59: =1+'Lighting summary'!AA36 -> 1 | AT59: Billed | AU59: =AU53*$Y$59 -> 399173.5339 | AW59: 0 | AX59: 0 | AY59: 0 | AZ59: 0 | BA59: 0 | BC59: 0 | BD59: 0 | BE59: 11.62 | BF59: 0 | BG59: 0 | BI59: =1+'Lighting summary'!D36 -> 1.050247214 | BL59: Billed | BM59: =BM53*BI59 -> 396496.911 | BQ59: 12.28 | BU59: 0 | BV59: 0 | BW59: 0 | BX59: 0 | BY59: 0 | CB59: 0 | CC59: 0 | CD59: 12.20387263 | CE59: 0 | CF59: 0 | CH59: 0 | CI59: 0 | CJ59: -0.07612737367 | CK59: 0 | CL59: 0
E60: =SUM(E46:E59) -> 249 | I60: Double High-Pressure Sodium Vapor | J60: Developer Contributed | K60: 100W | L60: 446 | M60: 0 | N60: 0 | O60: 0 | P60: 0 | Q60: 0 | R60: 1 | S60: 0 | T60: 25.56 | U60: 0 | V60: 0 | W60: 0 | AE60: 0 | AF60: 0 | AG60: 0 | AH60: 0 | AI60: 0 | AJ60: 1 | AK60: 0 | AL60: 25.56 | AM60: 0 | AN60: 0 | AO60: 0 | AW60: 0 | AX60: 0 | AY60: 0 | AZ60: 0 | BA60: 0 | BC60: 0 | BD60: 25.38 | BE60: 0 | BF60: 0 | BG60: 0 | BP60: 26.84 | BU60: 0 | BV60: 0 | BW60: 0 | BX60: 0 | BY60: 0 | CB60: 0 | CC60: 26.65527429 | CD60: 0 | CE60: 0 | CF60: 0 | CH60: 0 | CI60: -0.1847257094 | CJ60: 0 | CK60: 0 | CL60: 0
I61: LED (Dusk to Dawn) | K61: 100W | L61: 495 | M61: 0 | N61: 0 | O61: 0 | P61: 0 | Q61: 0 | R61: 1 | S61: 0 | T61: 0 | U61: 0 | V61: 0 | W61: 4.46 | AE61: 0 | AF61: 0 | AG61: 0 | AH61: 0 | AI61: 0 | AJ61: 1 | AK61: 0 | AL61: 0 | AM61: 0 | AN61: 0 | AO61: 4.46 | AW61: 0 | AX61: 0 | AY61: 0 | AZ61: 0 | BA61: 0 | BC61: 0 | BD61: 0 | BE61: 0 | BF61: 0 | BG61: 4.43 | BS61: 4.68 | BU61: 0 | BV61: 0 | BW61: 0 | BX61: 0 | BY61: 0 | CB61: 0 | CC61: 0 | CD61: 0 | CE61: 0 | CF61: 4.652595158 | CH61: 0 | CI61: 0 | CJ61: 0 | CK61: 0 | CL61: -0.02740484211
B62: 2 | C62: 045 | D62: 415 | E62: =6+81 -> 87 | G62: 045415 | I62: LED (Dusk to 11:00) | K62: 100W | L62: 499 | M62: 0 | N62: 0 | O62: 0 | P62: 0 | Q62: 0 | R62: 1 | S62: 0 | T62: 0 | U62: 0 | V62: 0 | W62: 2.47 | AE62: 0 | AF62: 0 | AG62: 0 | AH62: 0 | AI62: 0 | AJ62: 1 | AK62: 0 | AL62: 0 | AM62: 0 | AN62: 0 | AO62: 2.47 | AW62: 0 | AX62: 0 | AY62: 0 | AZ62: 0 | BA62: 0 | BC62: 0 | BD62: 0 | BE62: 0 | BF62: 0 | BG62: 2.45 | BS62: 2.59 | BU62: 0 | BV62: 0 | BW62: 0 | BX62: 0 | BY62: 0 | CB62: 0 | CC62: 0 | CD62: 0 | CE62: 0 | CF62: 2.573105674 | CH62: 0 | CI62: 0 | CJ62: 0 | CK62: 0 | CL62: -0.01689432577
B63: 2 | C63: 045 | D63: 419 | E63: 16 | G63: =IF(OR(ISBLANK(C63),ISBLANK(D63)),"",TEXT(C63,"000")&TEXT(D63,"000")) -> 045419 | I63: Decorative Sodium Vapor | J63: No Pole | K63: Granville 100W | L63: 475 | M63: 0 | N63: 0 | O63: 0 | P63: 0 | Q63: 0 | R63: 1 | S63: 0 | T63: 17.54 | U63: 0 | V63: 0 | W63: 0 | AE63: 0 | AF63: 0 | AG63: 0 | AH63: 0 | AI63: 0 | AJ63: 1 | AK63: 0 | AL63: 17.54 | AM63: 0 | AN63: 0 | AO63: 0 | AW63: 0 | AX63: 0 | AY63: 0 | AZ63: 0 | BA63: 0 | BC63: 0 | BD63: 17.42 | BE63: 0 | BF63: 0 | BG63: 0 | BP63: 18.42 | BU63: 0 | BV63: 0 | BW63: 0 | BX63: 0 | BY63: 0 | CB63: 0 | CC63: 18.29530647 | CD63: 0 | CE63: 0 | CF63: 0 | CH63: 0 | CI63: -0.1246935326 | CJ63: 0 | CK63: 0 | CL63: 0
B64: 2 | C64: 045 | D64: 515 | E64: 7 | G64: =IF(OR(ISBLANK(C64),ISBLANK(D64)),"",TEXT(C64,"000")&TEXT(D64,"000")) -> 045515 | I64: Single High-Pressure Sodium Vapor | J64: Dusk to 1 AM (046) | K64: 200W | L64: 539 | M64: 0 | N64: 0 | O64: 0 | P64: 0 | Q64: 0 | R64: 1 | S64: 0 | T64: 0 | U64: 0 | V64: 0 | W64: 6.15 | AE64: 0 | AF64: 0 | AG64: 0 | AH64: 0 | AI64: 0 | AJ64: 1 | AK64: 0 | AL64: 0 | AM64: 0 | AN64: 0 | AO64: 6.15 | AW64: 0 | AX64: 0 | AY64: 0 | AZ64: 0 | BA64: 0 | BC64: 0 | BD64: 0 | BE64: 0 | BF64: 0 | BG64: 6.11 | BS64: 6.46 | BU64: 0 | BV64: 0 | BW64: 0 | BX64: 0 | BY64: 0 | CB64: 0 | CC64: 0 | CD64: 0 | CE64: 0 | CF64: 6.417010477 | CH64: 0 | CI64: 0 | CJ64: 0 | CK64: 0 | CL64: -0.04298952264
B65: 2 | C65: 045 | D65: 615 | E65: =34+292 -> 326 | G65: 045615 | I65: Double High-Pressure Sodium Vapor | J65: Direct Burial | K65: 200W | L65: 543 | M65: 0 | N65: 0 | O65: 0 | P65: 0 | Q65: 0 | R65: 1 | S65: 0 | T65: 0 | U65: 19.11 | V65: 0 | W65: 0 | AE65: 0 | AF65: 0 | AG65: 0 | AH65: 0 | AI65: 0 | AJ65: 1 | AK65: 0 | AL65: 0 | AM65: 19.11 | AN65: 0 | AO65: 0 | AW65: 0 | AX65: 0 | AY65: 0 | AZ65: 0 | BA65: 0 | BC65: 0 | BD65: 0 | BE65: 18.98 | BF65: 0 | BG65: 0 | BQ65: 20.06 | BU65: 0 | BV65: 0 | BW65: 0 | BX65: 0 | BY65: 0 | CB65: 0 | CC65: 0 | CD65: 19.93369212 | CE65: 0 | CF65: 0 | CH65: 0 | CI65: 0 | CJ65: -0.1263078788 | CK65: 0 | CL65: 0
B66: 2 | C66: 045 | D66: 715 | E66: 6 | G66: 045715 | I66: Mercury Vapor | J66: Dusk to 1 AM | K66: 20000 | L66: 619 | M66: 0 | N66: 0 | O66: 0 | P66: 0 | Q66: 0 | R66: 1 | S66: 0 | T66: 0 | U66: 0 | V66: 8.83 | W66: 0 | AE66: 0 | AF66: 0 | AG66: 0 | AH66: 0 | AI66: 0 | AJ66: 1 | AK66: 0 | AL66: 0 | AM66: 0 | AN66: 8.83 | AO66: 0 | AW66: 0 | AX66: 0 | AY66: 0 | AZ66: 0 | BA66: 0 | BC66: 0 | BD66: 0 | BE66: 0 | BF66: 8.77 | BG66: 0 | BR66: 9.27 | BU66: 0 | BV66: 0 | BW66: 0 | BX66: 0 | BY66: 0 | CB66: 0 | CC66: 0 | CD66: 0 | CE66: 9.210668067 | CF66: 0 | CH66: 0 | CI66: 0 | CJ66: 0 | CK66: =CE66-BR66 -> -0.05933193348 | CL66: 0
B67: 2 | C67: 045 | D67: 819 | E67: 34 | G67: 045819 | I67: Single High-Pressure Sodium Vapor | J67: Dusk to 1 AM (046) | K67: 250W | L67: 639 | M67: 0 | N67: 0 | O67: 0 | P67: 0 | Q67: 0 | R67: 1 | S67: 0 | T67: 0 | U67: 0 | V67: 0 | W67: 7.6 | AE67: 0 | AF67: 0 | AG67: 0 | AH67: 0 | AI67: 0 | AJ67: 1 | AK67: 0 | AL67: 0 | AM67: 0 | AN67: 0 | AO67: 7.6 | AW67: 0 | AX67: 0 | AY67: 0 | AZ67: 0 | BA67: 0 | BC67: 0 | BD67: 0 | BE67: 0 | BF67: 0 | BG67: 7.55 | BS67: 7.98 | BU67: 0 | BV67: 0 | BW67: 0 | BX67: 0 | BY67: 0 | CB67: 0 | CC67: 0 | CD67: 0 | CE67: 0 | CF67: 7.929366465 | CH67: =CB67-BO67 -> 0 | CI67: 0 | CJ67: 0 | CK67: 0 | CL67: -0.05063353453
E68: =SUM(E62:E67) -> 476 | I68: Double High-Pressure Sodium Vapor | J68: Pedestal Base | K68: 250W | L68: 642 | M68: 0 | N68: 0 | O68: 0 | P68: 0 | Q68: 0 | R68: 1 | S68: 0 | T68: 0 | U68: 21.39 | V68: 0 | W68: 0 | AE68: 0 | AF68: 0 | AG68: 0 | AH68: 0 | AI68: 0 | AJ68: 1 | AK68: 0 | AL68: 0 | AM68: 21.39 | AN68: 0 | AO68: 0 | AW68: 0 | AX68: 0 | AY68: 0 | AZ68: 0 | BA68: 0 | BC68: 0 | BD68: 0 | BE68: 21.24 | BF68: 0 | BG68: 0 | BQ68: 22.46 | BU68: 0 | BV68: 0 | BW68: 0 | BX68: 0 | BY68: 0 | CB68: 0 | CC68: 0 | CD68: 22.30725082 | CE68: 0 | CF68: 0 | CH68: 0 | CI68: 0 | CJ68: -0.1527491753 | CK68: 0 | CL68: 0
I69: Single High-Pressure Sodium Vapor | J69: Wood Pole | K69: 310W | L69: 731 | M69: =SUMIF($G:$G,TEXT(M$3,"000")&TEXT($L69,"000"),$E:$E) -> 0 | N69: 0 | O69: 0 | P69: 0 | Q69: 0 | R69: 1 | S69: 0 | T69: 0 | U69: 14.17 | V69: 0 | W69: 0 | AE69: 0 | AF69: 0 | AG69: 0 | AH69: 0 | AI69: 0 | AJ69: 1 | AK69: 0 | AL69: 0 | AM69: 14.17 | AN69: 0 | AO69: 0 | AW69: =SUMIF($G:$G,TEXT(AW$3,"000")&TEXT($L69,"000"),$E:$E) -> 0 | AX69: 0 | AY69: 0 | AZ69: 0 | BA69: 0 | BC69: 0 | BD69: 0 | BE69: 14.07 | BF69: 0 | BG69: 0 | BQ69: 14.88 | BU69: 0 | BV69: 0 | BW69: 0 | BX69: 0 | BY69: 0 | CB69: 0 | CC69: 0 | CD69: 14.7769783 | CE69: 0 | CF69: 0 | CH69: 0 | CI69: 0 | CJ69: -0.1030216994 | CK69: 0 | CL69: 0
B70: 2 | C70: 046 | D70: 335 | E70: 41 | G70: 046335 | I70: Single High-Pressure Sodium Vapor | J70: Direct Burial | K70: 310W | L70: 733 | M70: 0 | N70: 0 | O70: 0 | P70: 0 | Q70: 0 | R70: 1 | S70: 0 | T70: 0 | U70: 14.17 | V70: 0 | W70: 0 | AE70: 0 | AF70: 0 | AG70: 0 | AH70: 0 | AI70: 0 | AJ70: 1 | AK70: 0 | AL70: 0 | AM70: 14.17 | AN70: 0 | AO70: 0 | AW70: 0 | AX70: 0 | AY70: 0 | AZ70: 0 | BA70: 0 | BC70: 0 | BD70: 0 | BE70: 14.07 | BF70: 0 | BG70: 0 | BQ70: 14.88 | BU70: 0 | BV70: 0 | BW70: 0 | BX70: 0 | BY70: 0 | CB70: 0 | CC70: 0 | CD70: 14.7769783 | CE70: 0 | CF70: 0 | CH70: 0 | CI70: 0 | CJ70: -0.1030216994 | CK70: 0 | CL70: 0
B71: 2 | C71: 046 | D71: 435 | E71: 83 | G71: 046435 | I71: Single High-Pressure Sodium Vapor | J71: Dusk to 1 AM (046) | K71: 310W | L71: 739 | M71: 0 | N71: 0 | O71: 0 | P71: 0 | Q71: 0 | R71: 1 | S71: 0 | T71: 0 | U71: 0 | V71: 0 | W71: 9.13 | AE71: 0 | AF71: 0 | AG71: 0 | AH71: 0 | AI71: 0 | AJ71: 1 | AK71: 0 | AL71: 0 | AM71: 0 | AN71: 0 | AO71: 9.13 | AW71: 0 | AX71: 0 | AY71: 0 | AZ71: 0 | BA71: 0 | BC71: =ROUND(AK71*(1+BC$1),2) -> 0 | BD71: =ROUND(AL71*(1+BD$1),2) -> 0 | BE71: =ROUND(AM71*(1+BE$1),2) -> 0 | BF71: =ROUND(AN71*(1+BF$1),2) -> 0 | BG71: =ROUND(AO71*(1+BG$1),2) -> 9.07 | BS71: 9.59 | BU71: 0 | BV71: 0 | BW71: 0 | BX71: 0 | BY71: 0 | CB71: 0 | CC71: 0 | CD71: 0 | CE71: 0 | CF71: 9.525742231 | CH71: =CB71-BO71 -> 0 | CI71: =CC71-BP71 -> 0 | CJ71: =CD71-BQ71 -> 0 | CK71: =CE71-BR71 -> 0 | CL71: =CF71-BS71 -> -0.06425776929
B72: 2 | C72: 046 | D72: 535 | E72: =311+15 -> 326 | G72: 046535 | I72: Double High-Pressure Sodium Vapor | J72: Pedestal Base | K72: 310W | L72: 742 | M72: 0 | N72: 0 | O72: 0 | P72: 0 | Q72: 0 | R72: 1 | S72: 0 | T72: 0 | U72: 26.67 | V72: 0 | W72: 0 | AE72: 0 | AF72: 0 | AG72: 0 | AH72: 0 | AI72: 0 | AJ72: 1 | AK72: 0 | AL72: 0 | AM72: 26.67 | AN72: 0 | AO72: 0 | AW72: 0 | AX72: 0 | AY72: 0 | AZ72: 0 | BA72: 0 | BC72: 0 | BD72: 0 | BE72: 26.49 | BF72: 0 | BG72: 0 | BQ72: 28 | BU72: 0 | BV72: 0 | BW72: 0 | BX72: 0 | BY72: 0 | CB72: 0 | CC72: 0 | CD72: 27.8210487 | CE72: 0 | CF72: 0 | CH72: 0 | CI72: 0 | CJ72: -0.1789513019 | CK72: 0 | CL72: 0
B73: 2 | C73: 046 | D73: 635 | E73: =34+374 -> 408 | G73: 046635 | I73: Mercury Vapor | J73: Dusk to Dawn | K73: 55000 | L73: 815 | M73: 0 | N73: 0 | O73: 0 | P73: 0 | Q73: 0 | R73: 1 | S73: 0 | T73: 0 | U73: 0 | V73: 30.65 | W73: 0 | AE73: 0 | AF73: 0 | AG73: 0 | AH73: 0 | AI73: 0 | AJ73: 1 | AK73: 0 | AL73: 0 | AM73: 0 | AN73: 30.65 | AO73: 0 | AW73: 0 | AX73: 0 | AY73: 0 | AZ73: 0 | BA73: 0 | BC73: 0 | BD73: 0 | BE73: 0 | BF73: 30.44 | BG73: 0 | BR73: 32.18 | BU73: 0 | BV73: 0 | BW73: 0 | BX73: 0 | BY73: 0 | CB73: 0 | CC73: 0 | CD73: 0 | CE73: 31.96952519 | CF73: 0 | CH73: 0 | CI73: 0 | CJ73: 0 | CK73: -0.2104748067 | CL73: 0
B74: 2 | C74: 046 | D74: 735 | E74: =71+371 -> 442 | G74: 046735 | I74: Single High-Pressure Sodium Vapor | J74: Direct Burial | K74: 400W | L74: 833 | M74: 0 | N74: 0 | O74: 0 | P74: 0 | Q74: 0 | R74: 1 | S74: 0 | T74: 0 | U74: 18.21 | V74: 0 | W74: 0 | AE74: 0 | AF74: 0 | AG74: 0 | AH74: 0 | AI74: 0 | AJ74: 1 | AK74: 0 | AL74: 0 | AM74: 18.21 | AN74: 0 | AO74: 0 | AW74: 0 | AX74: 0 | AY74: 0 | AZ74: 0 | BA74: 0 | BC74: 0 | BD74: 0 | BE74: 18.08 | BF74: 0 | BG74: 0 | BQ74: 19.12 | BU74: 0 | BV74: 0 | BW74: 0 | BX74: 0 | BY74: 0 | CB74: 0 | CC74: 0 | CD74: 18.98846963 | CE74: 0 | CF74: 0 | CH74: 0 | CI74: 0 | CJ74: -0.1315303714 | CK74: 0 | CL74: 0
B75: 2 | C75: 046 | D75: 835 | E75: =25+43 -> 68 | G75: 046835 | I75: Single High-Pressure Sodium Vapor | J75: Dusk to 1 AM (046) | K75: 400W | L75: 839 | M75: 0 | N75: 0 | O75: 0 | P75: 0 | Q75: 0 | R75: 1 | S75: 0 | T75: 0 | U75: 0 | V75: 0 | W75: 11.42 | AE75: =SUMIF($G:$G,TEXT(AE$3,"000")&TEXT($L75,"000"),$E:$E) -> 0 | AF75: 0 | AG75: 0 | AH75: 0 | AI75: 0 | AJ75: 1 | AK75: 0 | AL75: 0 | AM75: 0 | AN75: 0 | AO75: 11.42 | AW75: 0 | AX75: 0 | AY75: 0 | AZ75: 0 | BA75: 0 | BC75: 0 | BD75: 0 | BE75: 0 | BF75: 0 | BG75: 11.34 | BS75: 11.99 | BU75: 0 | BV75: 0 | BW75: 0 | BX75: 0 | BY75: 0 | CB75: =BC75*$CB$1 -> 0 | CC75: =BD75*$CB$1 -> 0 | CD75: =BE75*$CB$1 -> 0 | CE75: =BF75*$CB$1 -> 0 | CF75: =BG75*$CB$1 -> 11.90980341 | CH75: 0 | CI75: 0 | CJ75: 0 | CK75: 0 | CL75: -0.08019659358
B76: 2 | C76: 046 | D76: 935 | E76: =93+19 -> 112 | G76: 046935 | BC76: 0 | BD76: 0 | CB76: =BC76*1.0516 -> 0 | CC76: =BD76*1.0516 -> 0 | CD76: =BE76*1.0516 -> 0 | CF76: =BG76*1.0516 -> 0
E77: =SUM(E70:E76) -> 1480
AL78: Monthly Revenue increase (decrease) | AQ78: =AQ52-Y52 -> 0 | AR78: =AR52-Z52 -> 10340 | AS78: 10.4 | AT78: 0 | AU78: 0 | AV78: 0
B79: 2 | E79: =E11+E44+E60+E68+E77 -> 23651 | AL79: Annual Revenue increase (decrease) | AQ79: =AQ78*12 -> 0 | AR79: =AR78*12 -> 124080 | AS79: 124.8 | AT79: 0 | AU79: 0 | AV79: 0
D81: Street Light Summary total, WA | E81: 22203
D82: Area Light Count, WA | E82: 10232
E83: =E81+E82 -> 32435
E84: =E79+'Area Lts'!E63-E83 -> 0

Sheet Area Lts (hidden)
A1: Area Light Summary | I1: WASHINGTON Area Lights | S1: Monthly Rev. | AB1: Monthly Rev. | AE1: =SL_RateIncr -> 0 | AH1: % rate increase --> | AI1: ='Lighting summary'!L16 -> -0.00691011387 | AL1: Monthly Rev. | AO1: -0.00364 | AS1: compare input Present Billing Rates to calculated Present Billing Rates
A2: DWWPWMS.AREA_LIGHT_ASMBLY1, as of 2/10/11 | M2: # of Lights(1) | P2: Pres. Rates | S2: at Pres. Rates | V2: # of Lights(1) | Y2: Pres. Revised Rates | AB2: at Pres. Revised Rates | AF2: # of Lights | AI2: Prop. Rates | AL2: at Prop. Rates | AP2: Pres. Billing Rates | AS2: ='St Lts'!BU2 -> 1.0499 | AT2: ='St Lts'!BV2 -> Sch 91 & 93 | AV2: New Billing Rates | AX2: =1+'Lighting summary'!K36 -> 1.050247214 | AY2: Increase
I3: Fixture Type | J3: Pole Facility | K3: Size | L3: Sched | M3: 047 | N3: 048 | P3: 047 | Q3: 048 | S3: 047 | T3: 048 | V3: 047 | W3: 048 | Y3: 047 | Z3: 048 | AB3: 047 | AC3: 048 | AF3: 047 | AG3: 048 | AI3: 047 | AJ3: 048 | AL3: 047 | AM3: 048 | AO3: kwh | AP3: 047 | AQ3: 048 | AR3: Sch 59 | AS3: 047 | AT3: 048 | AV3: 047 | AW3: 048 | AY3: 047 | AZ3: 048
I4: Sodium Vapor | J4: Granville w/16' decorative pole | K4: 100W | L4: HAG | M4: =SUMIF($G:$G,TEXT(M$3,"000")&TEXT($L4,"000"),$E:$E) -> 0 | N4: 0 | P4: 27.39 | Q4: =P4 -> 27.39 | S4: =IF(AND(M4<>0,P4=0),#VALUE!,M4*P4) -> 0 | T4: =IF(AND(N4<>0,Q4=0),#VALUE!,N4*Q4) -> 0 | V4: =SUMIF($G:$G,TEXT(V$3,"000")&TEXT($L4,"000"),$E:$E) -> 0 | W4: 0 | Y4: 27.39 | Z4: =Y4 -> 27.39 | AB4: =IF(AND(V4<>0,Y4=0),#VALUE!,V4*Y4) -> 0 | AC4: =IF(AND(W4<>0,Z4=0),#VALUE!,W4*Z4) -> 0 | AF4: =M4 -> 0 | AG4: =N4 -> 0 | AI4: =ROUND(Y4*(1+AI$1),2) -> 27.2 | AJ4: =AI4 -> 27.2 | AL4: =IF(AND(AF4<>0,AI4=0),#VALUE!,AF4*AI4) -> 0 | AM4: =IF(AND(AG4<>0,AJ4=0),#VALUE!,AG4*AJ4) -> 0 | AO4: 40 | AP4: 28.76 | AQ4: 28.61 | AR4: =ROUND($AO$1*$AO4,2) -> -0.15 | AS4: =ROUND(P4*$AS$2-AP4,2) -> 0 | AT4: =ROUND(Q4*$AS$2-AQ4+AR4,2) -> 0 | AV4: =AI4*$AX$2 -> 28.56672422 | AW4: =AJ4*$AX$2+AR4 -> 28.41672422 | AY4: =AV4-AP4 -> -0.19327578 | AZ4: =AW4-AQ4 -> -0.19327578
B5: State | C5: Sched | D5: Rate Sub | E5: # of Lights | I5: Sodium Vapor | J5: Floodlight on existing standard | K5: 250W | L5: HAH | M5: 93 | N5: 7 | P5: 20.26 | Q5: =P5 -> 20.26 | S5: 1884.18 | T5: 141.82 | V5: 93 | W5: 7 | Y5: 20.26 | Z5: =Y5 -> 20.26 | AB5: 1884.18 | AC5: 141.82 | AF5: =M5 -> 93 | AG5: 7 | AI5: =ROUND(Y5*(1+AI$1),2) -> 20.12 | AJ5: =AI5 -> 20.12 | AL5: 1871.16 | AM5: 140.84 | AO5: 107 | AP5: 21.27 | AQ5: 20.88 | AR5: =ROUND($AO$1*$AO5,2) -> -0.39 | AS5: =ROUND(P5*$AS$2-AP5,2) -> 0 | AT5: =ROUND(Q5*$AS$2-AQ5+AR5,2) -> 0 | AV5: =AI5*$AX$2 -> 21.13097395 | AW5: =AJ5*$AX$2+AR5 -> 20.74097395 | AY5: =AV5-AP5 -> -0.1390260549 | AZ5: =AW5-AQ5 -> -0.1390260549
I6: Sodium Vapor | J6: Kim light w/25' fiberglass pole | K6: 100W | L6: HAI | M6: 15 | N6: 3 | P6: 26.45 | Q6: 26.45 | S6: 396.75 | T6: 79.35 | V6: 15 | W6: 3 | Y6: 26.45 | Z6: 26.45 | AB6: 396.75 | AC6: 79.35 | AF6: 15 | AG6: 3 | AI6: 26.27 | AJ6: =AI6 -> 26.27 | AL6: 394.05 | AM6: 78.81 | AO6: 40 | AP6: 27.77 | AQ6: 27.62 | AR6: -0.15 | AS6: 0 | AT6: 0 | AV6: 27.58999431 | AW6: 27.43999431 | AY6: -0.180005689 | AZ6: -0.180005689
B7: WA | C7: 047 | D7: HAH | E7: 93 | G7: =IF(OR(ISBLANK(C7),ISBLANK(D7)),"",TEXT(C7,"000")&TEXT(D7,"000")) -> 047HAH | I7: Sodium Vapor | J7: Post Top w/16' decorative pole | K7: 100W | L7: HAP | M7: 0 | N7: 0 | P7: 26.12 | Q7: 26.12 | S7: 0 | T7: 0 | V7: 0 | W7: 0 | Y7: 26.12 | Z7: 26.12 | AB7: 0 | AC7: 0 | AF7: 0 | AG7: 0 | AI7: 25.94 | AJ7: 25.94 | AL7: 0 | AM7: 0 | AO7: 40 | AP7: 27.42 | AQ7: 27.27 | AR7: -0.15 | AS7: 0 | AT7: 0 | AV7: 27.24341273 | AW7: 27.09341273 | AY7: -0.1765872696 | AZ7: -0.1765872696
B8: WA | C8: 047 | D8: HAI | E8: 15 | G8: =IF(OR(ISBLANK(C8),ISBLANK(D8)),"",TEXT(C8,"000")&TEXT(D8,"000")) -> 047HAI | I8: Sodium Vapor | J8: on existing standard | K8: 100W | L8: HPA | M8: 598 | N8: 830 | P8: 17.56 | Q8: 17.56 | S8: 10500.88 | T8: 14574.8 | V8: 598 | W8: 830 | Y8: =17.56-5 -> 12.56 | Z8: 12.56 | AB8: 7510.88 | AC8: 10424.8 | AF8: 598 | AG8: 830 | AI8: 12.47 | AJ8: 12.47 | AL8: 7457.06 | AM8: 10350.1 | AO8: 40 | AP8: 18.44 | AQ8: 18.29 | AR8: -0.15 | AS8: 0 | AT8: 0 | AV8: 13.09658276 | AW8: 12.94658276 | AY8: -5.343417242 | AZ8: -5.343417242
B9: WA | C9: 047 | D9: HPA | E9: 598 | G9: 047HPA | I9: Sodium Vapor | J9: on existing standard | K9: 200W | L9: HPB | M9: 1108 | N9: 562 | P9: 17.84 | Q9: 17.84 | S9: 19766.72 | T9: 10026.08 | V9: 1108 | W9: 562 | Y9: 17.84 | Z9: 17.84 | AB9: 19766.72 | AC9: 10026.08 | AF9: 1108 | AG9: 562 | AI9: 17.72 | AJ9: 17.72 | AL9: 19633.76 | AM9: 9958.64 | AO9: 84 | AP9: 18.73 | AQ9: 18.42 | AR9: -0.31 | AS9: 0 | AT9: 0 | AV9: 18.61038063 | AW9: 18.30038063 | AY9: -0.1196193684 | AZ9: -0.1196193684
B10: WA | C10: 047 | D10: HPB | E10: 1108 | G10: 047HPB | I10: Sodium Vapor | J10: on existing standard | K10: 400W | L10: HPC | M10: 119 | N10: 4 | P10: 24.64 | Q10: 24.64 | S10: 2932.16 | T10: 98.56 | V10: 119 | W10: 4 | Y10: 24.64 | Z10: 24.64 | AB10: 2932.16 | AC10: 98.56 | AF10: 119 | AG10: 4 | AI10: 24.47 | AJ10: 24.47 | AL10: 2911.93 | AM10: 97.88 | AO10: 167 | AP10: 25.87 | AQ10: 25.25 | AR10: -0.61 | AS10: 0 | AT10: 0.01 | AV10: 25.69954933 | AW10: 25.08954933 | AY10: -0.1704506742 | AZ10: -0.1604506742
B11: WA | C11: 047 | D11: HPC | E11: 119 | G11: 047HPC | I11: Sodium Vapor | J11: 30' wood pole | K11: 200W | L11: HPD | M11: 945 | N11: 241 | P11: 24.77 | Q11: 24.77 | S11: 23407.65 | T11: 5969.57 | V11: 945 | W11: 241 | Y11: 24.77 | Z11: 24.77 | AB11: 23407.65 | AC11: 5969.57 | AF11: 945 | AG11: 241 | AI11: 24.6 | AJ11: 24.6 | AL11: 23247 | AM11: 5928.6 | AO11: 84 | AP11: 26.01 | AQ11: 25.7 | AR11: -0.31 | AS11: 0 | AT11: 0 | AV11: 25.83608146 | AW11: 25.52608146 | AY11: -0.1739185363 | AZ11: -0.1739185363
B12: WA | C12: 047 | D12: HPD | E12: 945 | G12: 047HPD | I12: Sodium Vapor | J12: 30' wood pole | K12: 100W | L12: HPE | M12: 417 | N12: 318 | P12: 23.39 | Q12: 23.39 | S12: 9753.63 | T12: 7438.02 | V12: 417 | W12: 318 | Y12: =23.39-5 -> 18.39 | Z12: 18.39 | AB12: 7668.63 | AC12: 5848.02 | AF12: 417 | AG12: 318 | AI12: 18.26 | AJ12: 18.26 | AL12: 7614.42 | AM12: 5806.68 | AO12: 40 | AP12: 24.56 | AQ12: 24.41 | AR12: -0.15 | AS12: 0 | AT12: 0 | AV12: 19.17751413 | AW12: 19.02751413 | AY12: -5.382485873 | AZ12: -5.382485873
B13: WA | C13: 047 | D13: HPE | E13: 417 | G13: 047HPE | I13: Sodium Vapor | J13: 30' wood pole | K13: 400W | L13: HPG | M13: 47 | N13: 6 | P13: 31.67 | Q13: 31.67 | S13: 1488.49 | T13: 190.02 | V13: 47 | W13: 6 | Y13: 31.67 | Z13: 31.67 | AB13: 1488.49 | AC13: 190.02 | AF13: 47 | AG13: 6 | AI13: 31.45 | AJ13: 31.45 | AL13: 1478.15 | AM13: 188.7 | AO13: 167 | AP13: 33.25 | AQ13: 32.63 | AR13: -0.61 | AS13: =ROUND(P13*$AS$2-AP13,2) -> 0 | AT13: =ROUND(Q13*$AS$2-AQ13+AR13,2) -> 0.01 | AV13: 33.03027488 | AW13: 32.42027488 | AY13: -0.2197251206 | AZ13: -0.2097251206
B14: WA | C14: 047 | D14: HPG | E14: 47 | G14: 047HPG | I14: Sodium Vapor | J14: 30' steel pole | K14: 200W | L14: HPL | M14: 52 | N14: 4 | P14: 31.13 | Q14: 31.13 | S14: 1618.76 | T14: 124.52 | V14: 52 | W14: 4 | Y14: 31.13 | Z14: 31.13 | AB14: 1618.76 | AC14: 124.52 | AF14: 52 | AG14: 4 | AI14: 30.91 | AJ14: 30.91 | AL14: 1607.32 | AM14: 123.64 | AO14: 84 | AP14: 32.68 | AQ14: 32.37 | AR14: -0.31 | AS14: 0 | AT14: 0 | AV14: 32.46314138 | AW14: 32.15314138 | AY14: -0.2168586162 | AZ14: -0.2168586162
B15: WA | C15: 047 | D15: HPL | E15: 52 | G15: 047HPL | I15: Sodium Vapor | J15: 25' steel pole | K15: 200W | L15: HPO | M15: 15 | N15: 13 | P15: 26.95 | Q15: 26.95 | S15: 404.25 | T15: 350.35 | V15: 15 | W15: 13 | Y15: 26.95 | Z15: 26.95 | AB15: 404.25 | AC15: 350.35 | AF15: 15 | AG15: 13 | AI15: =ROUND(Y15*(1+AI$1),2) -> 26.76 | AJ15: 26.76 | AL15: 401.4 | AM15: 347.88 | AO15: 84 | AP15: 28.29 | AQ15: 27.98 | AR15: =ROUND($AO$1*$AO15,2) -> -0.31 | AS15: 0 | AT15: 0 | AV15: 28.10461545 | AW15: 27.79461545 | AY15: -0.1853845542 | AZ15: -0.1853845542
B16: WA | C16: 047 | D16: HPO | E16: 15 | G16: =IF(OR(ISBLANK(C16),ISBLANK(D16)),"",TEXT(C16,"000")&TEXT(D16,"000")) -> 047HPO | I16: Sodium Vapor | J16: 20' fiberglass pole | K16: 100W | L16: HPS | M16: 90 | N16: 124 | P16: 23.39 | Q16: 23.39 | S16: 2105.1 | T16: 2900.36 | V16: 90 | W16: 124 | Y16: =23.39-5 -> 18.39 | Z16: 18.39 | AB16: 1655.1 | AC16: 2280.36 | AF16: 90 | AG16: 124 | AI16: 18.26 | AJ16: 18.26 | AL16: 1643.4 | AM16: 2264.24 | AO16: 40 | AP16: 24.56 | AQ16: 24.41 | AR16: -0.15 | AS16: 0 | AT16: 0 | AV16: 19.17751413 | AW16: 19.02751413 | AY16: -5.382485873 | AZ16: -5.382485873
B17: WA | C17: 047 | D17: HPS | E17: 90 | G17: 047HPS | I17: Sodium Vapor | J17: 30' steel pole w/2 arms | K17: 200W | L17: HPY | M17: 13 | N17: 0 | P17: 52.73 | Q17: 52.73 | S17: 685.49 | T17: 0 | V17: 13 | W17: 0 | Y17: 52.73 | Z17: 52.73 | AB17: 685.49 | AC17: 0 | AF17: 13 | AG17: 0 | AI17: 52.37 | AJ17: 52.37 | AL17: 680.81 | AM17: 0 | AO17: 84 | AP17: 55.36 | AQ17: 55.05 | AR17: -0.31 | AS17: 0 | AT17: 0 | AV17: 55.0014466 | AW17: 54.6914466 | AY17: -0.3585534044 | AZ17: -0.3585534044
B18: WA | C18: 047 | D18: HPY | E18: 13 | G18: 047HPY | I18: Mercury Vapor | J18: on existing standard | K18: 7000 | L18: MVA | M18: 149 | N18: 469 | P18: 14.44 | Q18: 14.44 | S18: 2151.56 | T18: 6772.36 | V18: 149 | W18: 469 | Y18: 14.44 | Z18: 14.44 | AB18: 2151.56 | AC18: 6772.36 | AF18: 149 | AG18: 469 | AI18: 14.34 | AJ18: 14.34 | AL18: 2136.66 | AM18: 6725.46 | AO18: 80 | AP18: 15.16 | AQ18: 14.87 | AR18: -0.29 | AS18: 0 | AT18: 0 | AV18: 15.06054505 | AW18: 14.77054505 | AY18: -0.09945495167 | AZ18: -0.09945495167
B19: WA | C19: 047 | D19: MVA | E19: 149 | G19: 047MVA | I19: Mercury Vapor | J19: on existing standard | K19: 10000 | L19: MVB | M19: 304 | N19: 558 | P19: 17.3 | Q19: 17.3 | S19: 5259.2 | T19: 9653.4 | V19: 304 | W19: 558 | Y19: 17.3 | Z19: 17.3 | AB19: 5259.2 | AC19: 9653.4 | AF19: 304 | AG19: 558 | AI19: 17.18 | AJ19: 17.18 | AL19: 5222.72 | AM19: 9586.44 | AO19: 111 | AP19: 18.16 | AQ19: 17.76 | AR19: =ROUND($AO$1*$AO19,2) -> -0.4 | AS19: 0 | AT19: 0 | AV19: 18.04324714 | AW19: 17.64324714 | AY19: -0.116752864 | AZ19: -0.116752864
B20: WA | C20: 047 | D20: MVB | E20: 304 | G20: 047MVB | I20: Mercury Vapor | J20: on existing standard | K20: 20000 | L20: MVC | M20: 540 | N20: 52 | P20: 24.63 | Q20: 24.63 | S20: 13300.2 | T20: 1280.76 | V20: 540 | W20: 52 | Y20: 24.63 | Z20: 24.63 | AB20: 13300.2 | AC20: 1280.76 | AF20: 540 | AG20: 52 | AI20: 24.46 | AJ20: 24.46 | AL20: 13208.4 | AM20: 1271.92 | AO20: 182 | AP20: 25.86 | AQ20: 25.2 | AR20: -0.66 | AS20: 0 | AT20: 0 | AV20: 25.68904685 | AW20: 25.02904685 | AY20: -0.1709531463 | AZ20: -0.1709531463
B21: WA | C21: 047 | D21: MVC | E21: 540 | G21: 047MVC | I21: Mercury Vapor | J21: 30' wood pole | K21: 7000 | L21: MVD | M21: 60 | N21: 190 | P21: 18.03 | Q21: 18.03 | S21: 1081.8 | T21: 3425.7 | V21: 60 | W21: 190 | Y21: 18.03 | Z21: 18.03 | AB21: 1081.8 | AC21: 3425.7 | AF21: 60 | AG21: 190 | AI21: 17.91 | AJ21: 17.91 | AL21: 1074.6 | AM21: 3402.9 | AO21: 80 | AP21: 18.93 | AQ21: 18.64 | AR21: -0.29 | AS21: 0 | AT21: 0 | AV21: 18.8099276 | AW21: 18.5199276 | AY21: -0.1200723978 | AZ21: -0.1200723978
B22: WA | C22: 047 | D22: MVD | E22: 60 | G22: 047MVD | I22: Mercury Vapor | J22: 30' wood pole | K22: 10000 | L22: MVE | M22: 106 | N22: 170 | P22: 20.94 | Q22: 20.94 | S22: 2219.64 | T22: 3559.8 | V22: 106 | W22: 170 | Y22: 20.94 | Z22: 20.94 | AB22: 2219.64 | AC22: 3559.8 | AF22: 106 | AG22: 170 | AI22: 20.8 | AJ22: 20.8 | AL22: 2204.8 | AM22: 3536 | AO22: 111 | AP22: 21.98 | AQ22: 21.58 | AR22: -0.4 | AS22: 0 | AT22: 0 | AV22: 21.84514205 | AW22: 21.44514205 | AY22: -0.1348579494 | AZ22: -0.1348579494
B23: WA | C23: 047 | D23: MVE | E23: 106 | G23: 047MVE | I23: Mercury Vapor | J23: 30' wood pole | K23: 20000 | L23: MVF | M23: 324 | N23: 32 | P23: 28.25 | Q23: 28.25 | S23: 9153 | T23: 904 | V23: 324 | W23: 32 | Y23: 28.25 | Z23: 28.25 | AB23: 9153 | AC23: 904 | AF23: 324 | AG23: 32 | AI23: 28.05 | AJ23: 28.05 | AL23: 9088.2 | AM23: 897.6 | AO23: 182 | AP23: 29.66 | AQ23: 29 | AR23: -0.66 | AS23: 0 | AT23: 0 | AV23: 29.45943435 | AW23: 28.79943435 | AY23: -0.2005656481 | AZ23: -0.2005656481
B24: WA | C24: 047 | D24: MVF | E24: 324 | G24: 047MVF | I24: Mercury Vapor | J24: 25' steel | K24: 7000 | L24: MVG | M24: =SUMIF($G:$G,TEXT(M$3,"000")&TEXT($L24,"000"),$E:$E) -> 0 | N24: 1 | P24: 23.5 | Q24: 23.5 | S24: 0 | T24: 23.5 | V24: =SUMIF($G:$G,TEXT(V$3,"000")&TEXT($L24,"000"),$E:$E) -> 0 | W24: 1 | Y24: 23.5 | Z24: 23.5 | AB24: 0 | AC24: 23.5 | AF24: 0 | AG24: 1 | AI24: 23.34 | AJ24: 23.34 | AL24: 0 | AM24: 23.34 | AO24: 80 | AP24: 24.67 | AQ24: 24.38 | AR24: -0.29 | AS24: 0 | AT24: 0 | AV24: 24.51276997 | AW24: 24.22276997 | AY24: -0.1572300259 | AZ24: -0.1572300259
B25: WA | C25: 047 | D25: MVH | E25: 13 | G25: 047MVH | I25: Mercury Vapor | J25: 25' steel | K25: 10000 | L25: MVH | M25: 13 | N25: 27 | P25: 26.42 | Q25: 26.42 | S25: 343.46 | T25: 713.34 | V25: 13 | W25: 27 | Y25: 26.42 | Z25: 26.42 | AB25: 343.46 | AC25: 713.34 | AF25: 13 | AG25: 27 | AI25: 26.24 | AJ25: 26.24 | AL25: 341.12 | AM25: 708.48 | AO25: 111 | AP25: 27.74 | AQ25: 27.34 | AR25: -0.4 | AS25: 0 | AT25: 0 | AV25: 27.55848689 | AW25: 27.15848689 | AY25: -0.1815131054 | AZ25: -0.1815131054
B26: WA | C26: 047 | D26: MVI | E26: 4 | G26: 047MVI | I26: Mercury Vapor | J26: 25' steel | K26: 20000 | L26: MVI | M26: 4 | N26: 0 | P26: 33.71 | Q26: 33.71 | S26: 134.84 | T26: 0 | V26: 4 | W26: 0 | Y26: 33.71 | Z26: 33.71 | AB26: 134.84 | AC26: 0 | AF26: 4 | AG26: 0 | AI26: 33.48 | AJ26: 33.48 | AL26: 133.92 | AM26: 0 | AO26: 182 | AP26: 35.39 | AQ26: 34.73 | AR26: -0.66 | AS26: 0 | AT26: 0 | AV26: 35.16227672 | AW26: 34.50227672 | AY26: -0.2277232763 | AZ26: -0.2277232763
B27: WA | C27: 047 | D27: MVJ | E27: 2 | G27: 047MVJ | I27: Mercury Vapor | J27: 30' steel | K27: 7000 | L27: MVJ | M27: 2 | N27: 0 | P27: 24.65 | Q27: 24.65 | S27: 49.3 | T27: 0 | V27: 2 | W27: 0 | Y27: 24.65 | Z27: 24.65 | AB27: 49.3 | AC27: 0 | AF27: 2 | AG27: 0 | AI27: 24.48 | AJ27: 24.48 | AL27: 48.96 | AM27: 0 | AO27: 80 | AP27: 25.88 | AQ27: 25.59 | AR27: -0.29 | AS27: 0 | AT27: 0 | AV27: 25.7100518 | AW27: 25.4200518 | AY27: -0.169948202 | AZ27: -0.169948202
B28: WA | C28: 047 | D28: MVK | E28: 2 | G28: 047MVK | I28: Mercury Vapor | J28: 30' steel | K28: 10000 | L28: MVK | M28: 2 | N28: 41 | P28: 27.55 | Q28: 27.55 | S28: 55.1 | T28: 1129.55 | V28: 2 | W28: 41 | Y28: 27.55 | Z28: 27.55 | AB28: 55.1 | AC28: 1129.55 | AF28: 2 | AG28: 41 | AI28: 27.36 | AJ28: 27.36 | AL28: 54.72 | AM28: 1121.76 | AO28: 111 | AP28: 28.92 | AQ28: 28.52 | AR28: -0.4 | AS28: 0 | AT28: 0 | AV28: 28.73476377 | AW28: 28.33476377 | AY28: -0.1852362258 | AZ28: -0.1852362258
B29: WA | C29: 047 | D29: MVL | E29: 8 | G29: 047MVL | I29: Mercury Vapor | J29: 30' steel | K29: 20000 | L29: MVL | M29: 8 | N29: 0 | P29: 34.85 | Q29: 34.85 | S29: 278.8 | T29: 0 | V29: 8 | W29: 0 | Y29: 34.85 | Z29: 34.85 | AB29: 278.8 | AC29: 0 | AF29: 8 | AG29: 0 | AI29: 34.61 | AJ29: 34.61 | AL29: 276.88 | AM29: 0 | AO29: 182 | AP29: 36.59 | AQ29: 35.93 | AR29: -0.66 | AS29: 0 | AT29: 0 | AV29: 36.34905608 | AW29: 35.68905608 | AY29: -0.2409439245 | AZ29: -0.2409439245
B30: WA | C30: 047 | D30: MVO | E30: 0 | G30: 047MVO | I30: Mercury Vapor | J30: 25' aluminum | K30: 7000 | L30: MVM | M30: 0 | N30: 0 | P30: 25.43 | Q30: 25.43 | S30: 0 | T30: 0 | V30: 0 | W30: 0 | Y30: 25.43 | Z30: 25.43 | AB30: 0 | AC30: 0 | AF30: 0 | AG30: 0 | AI30: 25.25 | AJ30: 25.25 | AL30: 0 | AM30: 0 | AO30: 80 | AP30: 26.7 | AQ30: 26.41 | AR30: -0.29 | AS30: 0 | AT30: 0 | AV30: 26.51874215 | AW30: 26.22874215 | AY30: -0.1812578473 | AZ30: -0.1812578473
B31: WA | C31: 047 | D31: PA | E31: 54 | G31: 047PA | I31: Mercury Vapor | J31: 25' aluminum | K31: 10000 | L31: MVN | M31: 0 | N31: 0 | P31: 28.35 | Q31: 28.35 | S31: 0 | T31: 0 | V31: 0 | W31: 0 | Y31: 28.35 | Z31: 28.35 | AB31: 0 | AC31: 0 | AF31: 0 | AG31: 0 | AI31: 28.15 | AJ31: 28.15 | AL31: 0 | AM31: 0 | AO31: 111 | AP31: 29.76 | AQ31: 29.36 | AR31: -0.4 | AS31: 0 | AT31: 0 | AV31: 29.56445907 | AW31: 29.16445907 | AY31: -0.1955409267 | AZ31: -0.1955409267
E32: =SUM(E7:E31) -> 5078 | I32: Mercury Vapor | J32: 25' aluminum | K32: 20000 | L32: MVO | M32: 0 | N32: 0 | P32: 35.63 | Q32: 35.63 | S32: 0 | T32: 0 | V32: 0 | W32: 0 | Y32: 35.63 | Z32: 35.63 | AB32: 0 | AC32: 0 | AF32: 0 | AG32: 0 | AI32: 35.38 | AJ32: 35.38 | AL32: 0 | AM32: 0 | AO32: 182 | AP32: 37.41 | AQ32: 36.75 | AR32: -0.66 | AS32: 0 | AT32: 0 | AV32: 37.15774643 | AW32: 36.49774643 | AY32: -0.2522535697 | AZ32: -0.2522535697
I33: Mercury Vapor | J33: Special | K33: 7000 | L33: MVV | M33: 0 | N33: 2 | P33: 7.22 | Q33: 7.22 | S33: 0 | T33: 14.44 | V33: 0 | W33: 2 | Y33: 7.22 | Z33: 7.22 | AB33: 0 | AC33: 14.44 | AF33: 0 | AG33: 2 | AI33: 7.17 | AJ33: 7.17 | AL33: 0 | AM33: 14.34 | AO33: 42 | AP33: =AP18/2 -> 7.58 | AQ33: =AQ18/2 -> 7.435 | AR33: =ROUND($AO$1*$AO33,2) -> -0.15 | AS33: =ROUND(P33*$AS$2-AP33,2) -> 0 | AT33: =ROUND(Q33*$AS$2-AQ33+AR33,2) -> 0 | AV33: 7.530272524 | AW33: 7.380272524 | AY33: -0.04972747583 | AZ33: -0.05472747583
B34: WA | C34: 048 | D34: HAH | E34: 7 | G34: 048HAH | I34: none | J34: 30' wood pole | K34: n/a | L34: PA | M34: 54 | N34: 1 | P34: 5.82 | Q34: 5.82 | S34: 314.28 | T34: 5.82 | V34: 54 | W34: 1 | Y34: 5.82 | Z34: 5.82 | AB34: 314.28 | AC34: 5.82 | AF34: 54 | AG34: 1 | AI34: 5.78 | AJ34: 5.78 | AL34: 312.12 | AM34: 5.78 | AP34: 6.11 | AQ34: 6.11 | AR34: 0 | AS34: 0 | AT34: 0 | AV34: 6.070428897 | AW34: 6.070428897 | AY34: -0.03957110325 | AZ34: -0.03957110325
B35: WA | C35: 048 | D35: HAI | E35: 3 | G35: =IF(OR(ISBLANK(C35),ISBLANK(D35)),"",TEXT(C35,"000")&TEXT(D35,"000")) -> 048HAI | I35: none | J35: 55' wood pole | K35: n/a | L35: PB | M35: 0 | N35: 1 | P35: 11.11 | Q35: 11.11 | S35: 0 | T35: 11.11 | V35: 0 | W35: 1 | Y35: 11.11 | Z35: 11.11 | AB35: 0 | AC35: 11.11 | AF35: 0 | AG35: 1 | AI35: 11.03 | AJ35: 11.03 | AL35: 0 | AM35: 11.03 | AP35: 11.66 | AQ35: 11.66 | AR35: 0 | AS35: 0 | AT35: 0 | AV35: 11.58422677 | AW35: 11.58422677 | AY35: -0.07577322991 | AZ35: -0.07577322991
B36: WA | C36: 048 | D36: HPA | E36: 830 | G36: 048HPA | L36: SLB | M36: 0 | N36: 30 | Q36: 1e-07 | S36: 0 | T36: 3e-06 | V36: 0 | W36: 30 | Z36: 1e-07 | AB36: 0 | AC36: 3e-06 | AF36: 0 | AG36: 30 | AI36: =ROUND(P36*(1+$AE$1),2) -> 0 | AJ36: 1e-06 | AL36: 0 | AM36: 3e-05 | AS36: 0 | AT36: 0 | AV36: 0 | AW36: 1.050247214e-06 | AY36: 0 | AZ36: 1.050247214e-06
B37: WA | C37: 048 | D37: HPB | E37: 562 | G37: 048HPB | L37: SLC | M37: 0 | N37: 19 | Q37: 1e-06 | S37: 0 | T37: 1.9e-05 | V37: 0 | W37: 19 | Z37: 1e-06 | AB37: 0 | AC37: 1.9e-05 | AF37: 0 | AG37: 19 | AI37: =ROUND(P37*(1+$AE$1),2) -> 0 | AJ37: 1e-06 | AL37: 0 | AM37: 1.9e-05 | AS37: 0 | AT37: 0 | AV37: 0 | AW37: 1.050247214e-06 | AY37: 0 | AZ37: 1.050247214e-06
B38: WA | C38: 048 | D38: HPC | E38: 4 | G38: 048HPC | L38: SLD | M38: 0 | N38: 1 | Q38: 1e-06 | S38: 0 | T38: 1e-06 | V38: 0 | W38: 1 | Z38: 1e-06 | AB38: 0 | AC38: 1e-06 | AF38: 0 | AG38: 1 | AI38: =ROUND(P38*(1+$AE$1),2) -> 0 | AJ38: 1e-06 | AL38: 0 | AM38: 1e-06 | AS38: 0 | AT38: 0 | AV38: 0 | AW38: 1.050247214e-06 | AY38: 0 | AZ38: 1.050247214e-06
B39: WA | C39: 048 | D39: HPD | E39: 241 | G39: 048HPD
B40: WA | C40: 048 | D40: HPE | E40: 318 | G40: 048HPE | M40: =SUM(M5:M39) -> 5078 | N40: =SUM(N5:N39) -> 3706 | S40: =SUM(S5:S39) -> 109285.24 | T40: =SUM(T5:T39) -> 69387.23002 | V40: =SUM(V5:V39) -> 5078 | W40: =SUM(W5:W39) -> 3706 | AB40: =SUM(AB5:AB39) -> 103760.24 | AC40: =SUM(AC5:AC39) -> 63027.23002 | AF40: =SUM(AF5:AF39) -> 5078 | AG40: =SUM(AG5:AG39) -> 3706 | AL40: =SUM(AL5:AL39) -> 103043.56 | AM40: =SUM(AM5:AM39) -> 62591.06005
B41: WA | C41: 048 | D41: HPG | E41: 6 | G41: 048HPG | K41: Total | N41: =SUM(M40:N40) -> 8784 | T41: =ROUND(SUM(S40:T40),2) -> 178672.47 | W41: =SUM(V40:W40) -> 8784 | AC41: =ROUND(SUM(AB40:AC40),2) -> 166787.47 | AG41: =SUM(AF40:AG40) -> 8784 | AM41: =ROUND(SUM(AL40:AM40),2) -> 165634.62
B42: WA | C42: 048 | D42: HPL | E42: 4 | G42: =IF(OR(ISBLANK(C42),ISBLANK(D42)),"",TEXT(C42,"000")&TEXT(D42,"000")) -> 048HPL | I42: ='St Lts'!I54 -> (1) from Street Light Report and Area Light Report, 1/10/12, PDE-E-25-30 | N42: =ROUND(N41-E63,0) -> 0 | S42: =(107499*1.045)/1.0516 -> 106824.3201 | T42: =(67159*1.045)/1.0516 -> 66737.5 | AB42: =(107499*1.045)/1.0516 -> 106824.3201 | AC42: =(67159*1.045)/1.0516 -> 66737.5 | AE42: Dec '10 revenue | AG42: =AG41-N41 -> 0 | AM42: =AM41/T41-1 -> -0.07297067086
B43: WA | C43: 048 | D43: HPO | E43: 13 | G43: 048HPO | S43: =S40-S42 -> 2460.919916 | T43: =T40-T42 -> 2649.730023 | AB43: =AB40-AB42 -> -3064.080084 | AC43: =AC40-AC42 -> -3710.269977
B44: WA | C44: 048 | D44: HPS | E44: 124 | G44: 048HPS | T44: =SUM(S43:T43) -> 5110.649939 | AC44: =SUM(AB43:AC43) -> -6774.350061
B45: WA | C45: 048 | D45: MVA | E45: 469 | G45: 048MVA | S45: Surch Rate | T45: =T44/SUM(P42:T42) -> 0.02944570377 | AB45: Surch Rate | AC45: =AC44/SUM(Y42:AC42) -> -0.03903133798 | AL45: Surch Rate
B46: WA | C46: 048 | D46: MVB | E46: 558 | G46: 048MVB | S46: ='St Lts'!Y59 -> 1.0499 | AB46: ='St Lts'!AG59 -> 0 | AL46: ='St Lts'!BI59 -> 1.050247214
B47: WA | C47: 048 | D47: MVC | E47: 52 | G47: 048MVC | R47: Billed | S47: =S40*$S46 -> 114738.5735 | T47: =T40*$S46 -> 72849.6528 | AA47: Billed | AB47: =AB40*$S46 -> 108937.876 | AC47: =AC40*$S46 -> 66172.2888 | AK47: Billed | AL47: =AL40*$AL46 -> 108221.2118 | AM47: =AM40*$AL46 -> 65736.08644
B48: WA | C48: 048 | D48: MVD | E48: 190 | G48: 048MVD | R48: less Sch 59 | T48: =SUMPRODUCT($N$4:$N$38,$AR$4:$AR$38) -> -1019.82 | AA48: less Sch 59 | AC48: =SUMPRODUCT($N$4:$N$38,$AR$4:$AR$38) -> -1019.82 | AK48: less Sch 59 | AM48: =SUMPRODUCT($N$4:$N$38,$AR$4:$AR$38) -> -1019.82
B49: WA | C49: 048 | D49: MVE | E49: 170 | G49: 048MVE | S49: =S47+S48 -> 114738.5735 | T49: =T47+T48 -> 71829.8328 | AB49: =AB47+AB48 -> 108937.876 | AC49: =AC47+AC48 -> 65152.4688 | AL49: =AL47+AL48 -> 108221.2118 | AM49: =AM47+AM48 -> 64716.26644
B50: WA | C50: 048 | D50: MVF | E50: 32 | G50: 048MVF | T50: =S49+T49 -> 186568.4063 | AC50: =AB49+AC49 -> 174090.3448 | AM50: =AL49+AM49 -> 172937.4782
B51: WA | C51: 048 | D51: MVG | E51: 1 | G51: 048MVG
B52: WA | C52: 048 | D52: MVH | E52: 27 | G52: 048MVH
B53: WA | C53: 048 | D53: MVK | E53: 41 | G53: 048MVK | X53: Montly Increase (Decrease) | AB53: =AB40-S40 -> -5525 | AC53: =AC40-T40 -> -6360
B54: WA | C54: 048 | D54: MVN | E54: 0 | G54: 048MVN | X54: Annual Increase (Decrease) | AB54: =AB53*12 -> -66300 | AC54: =AC53*12 -> -76320
B55: WA | C55: 048 | D55: MVV | E55: 2 | G55: 048MVV
B56: WA | C56: 048 | D56: PA | E56: 1 | G56: 048PA
B57: WA | C57: 048 | D57: PB | E57: 1 | G57: 048PB
B58: WA | C58: 048 | D58: SLB | E58: 30 | G58: 048SLB
B59: WA | C59: 048 | D59: SLC | E59: 19 | G59: 048SLC
B60: WA | C60: 048 | D60: SLD | E60: 1 | G60: 048SLD
E61: =SUM(E34:E60) -> 3706
B63: WA | E63: =E32+E61 -> 8784

Sheet Rev Runs CY (hidden)
A1: Revenue Meters Report by Location Twelve Months Ended for Report Date : '12/31/2011'
F4: 201112 | I4: TME
A5: Service | B5: State Cde | C5: Rate Schedule Num | D5: Rate Schedule Desc | E5: RevClsDesc | F5: Meters | G5: Usage | H5: Revenue | I5: Avg Meters | J5: Usage | K5: Revenue
B6: WA | C6: 001 | D6: 001 RESIDENTIAL SERVICE | E6: 01 RESIDENTIAL | F6: 202660 | G6: 254046107 | H6: 20500169.88 | I6: 201444.8333 | J6: 2425015942 | K6: 198556496.5 | M6: E | N6: WA | O6: 001 | P6: 01 | Q6: EWA00101 | R6: =M6&N6&O6 -> EWA001 | S6: =N6&P6 -> WA01
E7: 21 FIRM COMMERCIAL | F7: 0 | G7: 0 | H7: 0 | I7: 0 | J7: 0 | K7: 0 | M7: E | N7: WA | O7: 001 | P7: 21 | Q7: EWA00121 | R7: =M7&N7&O7 -> EWA001 | S7: =N7&P7 -> WA21
E8: 80 INTERDEPARTMENT REVENUE | F8: 4 | G8: 3815 | H8: 305.52 | I8: 2.75 | J8: 9880 | K8: 913.85 | M8: E | N8: WA | O8: 001 | P8: 80 | Q8: EWA00180 | R8: EWA001 | S8: WA80
E9: Sum | F9: 202664 | G9: 254049922 | H9: 20500475.4 | I9: 0 | J9: 2425025822 | K9: 198557410.3 | M9: E | N9: WA | O9: 001 | Q9: EWA001 | R9: EWA001 | S9: WA
C10: 011 | D10: 011 GENERAL SERVICE | E10: 01 RESIDENTIAL | F10: 0 | G10: 111 | H10: 13.38 | I10: 0 | J10: 111 | K10: 13.38 | M10: E | N10: WA | O10: 011 | P10: 01 | Q10: EWA01101 | R10: EWA011 | S10: WA01
E11: 21 FIRM COMMERCIAL | F11: 19696 | G11: 37451043 | H11: 4184914.13 | I11: 19539.33333 | J11: 391062434 | K11: 44083351.13 | M11: E | N11: WA | O11: 011 | P11: 21 | Q11: EWA01121 | R11: EWA011 | S11: WA21
E12: 31 FIRM- INDUSTRIAL | F12: 110 | G12: 331946 | H12: 38761.47 | I12: 105.6666667 | J12: 3229864 | K12: 373646.86 | M12: E | N12: WA | O12: 011 | P12: 31 | Q12: EWA01131 | R12: EWA011 | S12: WA31
E13: 39 FIRM-PUMPING-IRRIGATION ONLY | F13: 0 | G13: 0 | H13: 0 | I13: 0.1666666667 | J13: 38 | K13: 17.36 | M13: E | N13: WA | O13: 011 | P13: 39 | Q13: EWA01139 | R13: EWA011 | S13: WA39
E14: 51 LIGHTING-PUBLIC STREET AND HIWAY | F14: 2 | G14: 8703 | H14: 929.18 | I14: 1 | J14: 35274 | K14: 3831.12 | M14: E | N14: WA | O14: 011 | P14: 51 | Q14: EWA01151 | R14: EWA011 | S14: WA51
E15: 80 INTERDEPARTMENT REVENUE | F15: 30 | G15: 178050 | H15: 18338.96 | I15: 32.25 | J15: 942031 | K15: 101371.44 | M15: E | N15: WA | O15: 011 | P15: 80 | Q15: EWA01180 | R15: EWA011 | S15: WA80
E16: Sum | F16: 19838 | G16: 37969853 | H16: 4242957.12 | I16: 0 | J16: 395269752 | K16: 44562231.29 | M16: E | N16: WA | O16: 011 | P16: Sum | Q16: EWA011 | R16: EWA011 | S16: WASum
C17: 012 | D17: 012 RESIDENTIAL AND FARM GENERAL SERVICE | E17: 01 RESIDENTIAL | F17: 8376 | G17: 5308125 | H17: 625398.25 | I17: 8271.166667 | J17: 49848510 | K17: 6168554.39 | M17: E | N17: WA | O17: 012 | P17: 01 | Q17: EWA01201 | R17: EWA012 | S17: WA01
E18: 21 FIRM COMMERCIAL | F18: 0 | G18: 0 | H18: 0 | I18: 0 | J18: 0 | K18: 0 | M18: E | N18: WA | O18: 012 | P18: 21 | Q18: EWA01221 | R18: EWA012 | S18: WA21
E19: 80 INTERDEPARTMENT REVENUE | F19: 1 | G19: 149 | H19: 25.24 | I19: 0.75 | J19: 389 | K19: 130.24 | M19: E | N19: WA | O19: 012 | P19: 80 | Q19: EWA01280 | R19: EWA012 | S19: WA80
E20: Sum | F20: 8377 | G20: 5308274 | H20: 625423.49 | I20: 0 | J20: 49848899 | K20: 6168684.63 | M20: E | N20: WA | O20: 012 | P20: Sum | Q20: EWA012 | R20: EWA012 | S20: WASum
C21: 021 | D21: 021 LARGE GENERAL SERVICE | E21: 01 RESIDENTIAL | F21: 0 | G21: 0 | H21: 0 | I21: 0 | J21: 0 | K21: 0 | M21: E | N21: WA | O21: 021 | P21: 01 | Q21: EWA02101 | R21: EWA021 | S21: WA01
E22: 21 FIRM COMMERCIAL | F22: 2788 | G22: 120953041 | H22: 10219805.11 | I22: 2846.25 | J22: 1384614954 | K22: 118752161.1 | M22: E | N22: WA | O22: 021 | P22: 21 | Q22: EWA02121 | R22: EWA021 | S22: WA21
E23: 31 FIRM- INDUSTRIAL | F23: 104 | G23: 8409024 | H23: 704857.69 | I23: 101.9166667 | J23: 90484655 | K23: 7692767.34 | M23: E | N23: WA | O23: 021 | P23: 31 | Q23: EWA02131 | R23: EWA021 | S23: WA31
E24: 80 INTERDEPARTMENT REVENUE | F24: 12 | G24: 766720 | H24: 61466.16 | I24: 11.66666667 | J24: 8580420 | K24: 700175.92 | M24: E | N24: WA | O24: 021 | P24: 80 | Q24: EWA02180 | R24: EWA021 | S24: WA80
E25: Sum | F25: 2904 | G25: 130128785 | H25: 10986128.96 | I25: 0 | J25: 1483680029 | K25: 127145104.3 | M25: E | N25: WA | O25: 021 | P25: Sum | Q25: EWA021 | R25: EWA021 | S25: WASum
C26: 022 | D26: 022 RESIDENTIAL AND FARM LARGE GENERAL SERVICE | E26: 01 RESIDENTIAL | F26: 85 | G26: 4197007 | H26: 331721.2 | I26: 82.08333333 | J26: 49227849 | K26: 3935942.52 | M26: E | N26: WA | O26: 022 | P26: 01 | Q26: EWA02201 | R26: EWA022 | S26: WA01
E27: Sum | F27: 85 | G27: 4197007 | H27: 331721.2 | I27: 0 | J27: 49227849 | K27: 3935942.52 | M27: E | N27: WA | O27: 022 | P27: Sum | Q27: EWA022 | R27: EWA022 | S27: WASum
C28: 025 | D28: 025 EXTRA LARGE GENERAL SERVICE | E28: 01 RESIDENTIAL | F28: 0 | G28: 0 | H28: 0 | I28: 0 | J28: 0 | K28: -3012.24 | M28: E | N28: WA | O28: 025 | P28: 01 | Q28: EWA02501 | R28: EWA025 | S28: WA01
E29: 21 FIRM COMMERCIAL | F29: 10 | G29: 23172719 | H29: 1358424.51 | I29: 10 | J29: 287242706 | K29: 16910291.15 | M29: E | N29: WA | O29: 025 | P29: 21 | Q29: EWA02521 | R29: EWA025 | S29: WA21
E30: 31 FIRM- INDUSTRIAL | F30: 12 | G30: 63901517 | H30: 3464184.1 | I30: 12 | J30: 777678119 | K30: 42286422.31 | M30: E | N30: WA | O30: 025 | P30: 31 | Q30: EWA02531 | R30: EWA025 | S30: WA31
E31: Sum | F31: 22 | G31: 87074236 | H31: 4822608.61 | I31: 0 | J31: 1064920825 | K31: 59193701.22 | M31: E | N31: WA | O31: 025 | P31: Sum | Q31: EWA025 | R31: EWA025 | S31: WASum
C32: 028 | D32: 028 EXTRA LARGE SERVICE-SPECIAL CONTRACT | E32: 31 FIRM- INDUSTRIAL | F32: 0 | G32: 0 | H32: 19250 | I32: 0.5833333333 | J32: 555000 | K32: 272978 | M32: E | N32: WA | O32: 028 | P32: 31 | Q32: EWA02831 | R32: EWA028 | S32: WA31
E33: Sum | F33: 0 | G33: 0 | H33: 19250 | I33: 0 | J33: 555000 | K33: 272978 | M33: E | N33: WA | O33: 028 | P33: Sum | Q33: EWA028 | R33: EWA028 | S33: WASum
C34: 030 | D34: 030 PUMPING SERVICE-SPECIAL | E34: 39 FIRM-PUMPING-IRRIGATION ONLY | F34: 33 | G34: 11180 | H34: 965.85 | I34: 33.08333333 | J34: 20570060 | K34: 1360443.74 | M34: E | N34: WA | O34: 030 | P34: 39 | Q34: EWA03039 | R34: EWA030 | S34: WA39
E35: Sum | F35: 33 | G35: 11180 | H35: 965.85 | I35: 0 | J35: 20570060 | K35: 1360443.74 | M35: E | N35: WA | O35: 030 | P35: Sum | Q35: EWA030 | R35: EWA030 | S35: WASum
C36: 031 | D36: 031 PUMPING SERVICE | E36: 21 FIRM COMMERCIAL | F36: 596 | G36: 3313637 | H36: 257392.26 | I36: 589.8333333 | J36: 63931083 | K36: 4854011.68 | M36: E | N36: WA | O36: 031 | P36: 21 | Q36: EWA03121 | R36: EWA031 | S36: WA21
E37: 31 FIRM- INDUSTRIAL | F37: 131 | G37: -535280 | H37: 21092.09 | I37: 130.5 | J37: 6670116 | K37: 635876.51 | M37: E | N37: WA | O37: 031 | P37: 31 | Q37: EWA03131 | R37: EWA031 | S37: WA31
E38: 39 FIRM-PUMPING-IRRIGATION ONLY | F38: 411 | G38: 271347 | H38: 26102.85 | I38: 410.0833333 | J38: 21104077 | K38: 1701383.05 | M38: E | N38: WA | O38: 031 | P38: 39 | Q38: EWA03139 | R38: EWA031 | S38: WA39
E39: 80 INTERDEPARTMENT REVENUE | F39: 2 | G39: 580 | H39: 61.97 | I39: 2 | J39: 73989 | K39: 5520.93 | M39: E | N39: WA | O39: 031 | P39: 80 | Q39: EWA03180 | R39: EWA031 | S39: WA80
E40: Sum | F40: 1140 | G40: 3050284 | H40: 304649.17 | I40: 0 | J40: 91779265 | K40: 7196792.17 | M40: E | N40: WA | O40: 031 | P40: Sum | Q40: EWA031 | R40: EWA031 | S40: WASum
C41: 032 | D41: 032 PUMPING SERVICE RESIDENTIAL AND FARM | E41: 01 RESIDENTIAL | F41: 1121 | G41: 399678 | H41: 38855.46 | I41: 1125.083333 | J41: 10026353 | K41: 873247.52 | M41: E | N41: WA | O41: 032 | P41: 01 | Q41: EWA03201 | R41: EWA032 | S41: WA01
E42: 39 FIRM-PUMPING-IRRIGATION ONLY | F42: 109 | G42: 16423 | H42: 2122.61 | I42: 109.6666667 | J42: 1468816 | K42: 121970.08 | M42: E | N42: WA | O42: 032 | P42: 39 | Q42: EWA03239 | R42: EWA032 | S42: WA39
E43: Sum | F43: 1230 | G43: 416101 | H43: 40978.07 | I43: 0 | J43: 11495169 | K43: 995217.6 | M43: E | N43: WA | O43: 032 | P43: Sum | Q43: EWA032 | R43: EWA032 | S43: WASum
C44: 041 | D44: 041 COMPANY OWNED STREET LIGHTS | E44: 51 LIGHTING-PUBLIC STREET AND HIWAY | F44: 11 | G44: 8720 | H44: 1867.96 | I44: 11 | J44: 106168 | K44: 22656.42 | M44: E | N44: WA | O44: 041 | P44: 51 | Q44: EWA04151 | R44: EWA041 | S44: WA51
E45: Sum | F45: 11 | G45: 8720 | H45: 1867.96 | I45: 0 | J45: 106168 | K45: 22656.42 | M45: E | N45: WA | O45: 041 | P45: Sum | Q45: EWA041 | R45: EWA041 | S45: WASum
C46: 042 | D46: 042 COMPANY OWNED STREET LIGHTS-HI PRESS SOD VP | E46: 51 LIGHTING-PUBLIC STREET AND HIWAY | F46: 285 | G46: 1131831 | H46: 347129.06 | I46: 283.8333333 | J46: 13570601 | K46: 4162220.15 | M46: E | N46: WA | O46: 042 | P46: 51 | Q46: EWA04251 | R46: EWA042 | S46: WA51
E47: Sum | F47: 285 | G47: 1131831 | H47: 347129.06 | I47: 0 | J47: 13570601 | K47: 4162220.15 | M47: E | N47: WA | O47: 042 | P47: Sum | Q47: EWA042 | R47: EWA042 | S47: WASum
C48: 044 | D48: 044 CUST OWNED ST LIGHTS-HI PRESS ENGY & MAINT | E48: 51 LIGHTING-PUBLIC STREET AND HIWAY | F48: 13 | G48: 22332 | H48: 2687.95 | I48: 13 | J48: 267984 | K48: 32255.4 | M48: E | N48: WA | O48: 044 | P48: 51 | Q48: EWA04451 | R48: EWA044 | S48: WA51
E49: Sum | F49: 13 | G49: 22332 | H49: 2687.95 | I49: 0 | J49: 267984 | K49: 32255.4 | M49: E | N49: WA | O49: 044 | P49: Sum | Q49: EWA044 | R49: EWA044 | S49: WASum
C50: 044A | D50: 044A FAIRCHILD ST LIGHTS | E50: 51 LIGHTING-PUBLIC STREET AND HIWAY | F50: 0 | G50: 0 | H50: 336 | I50: 0 | J50: 0 | K50: 4032 | M50: E | N50: WA | O50: 044A | P50: 51 | Q50: EWA044A51 | R50: EWA044A | S50: WA51
E51: Sum | F51: 0 | G51: 0 | H51: 336 | I51: 0 | J51: 0 | K51: 4032 | M51: E | N51: WA | O51: 044A | P51: Sum | Q51: EWA044A | R51: EWA044A | S51: WASum
C52: 045 | D52: 045 CUSTOMER OWNED STREET LIGHT ENERGY SERVICE | E52: 51 LIGHTING-PUBLIC STREET AND HIWAY | F52: 3 | G52: 84237 | H52: 5842.32 | I52: 3 | J52: 1011724 | K52: 70176.7 | M52: E | N52: WA | O52: 045 | P52: 51 | Q52: EWA04551 | R52: EWA045 | S52: WA51
E53: Sum | F53: 3 | G53: 84237 | H53: 5842.32 | I53: 0 | J53: 1011724 | K53: 70176.7 | M53: E | N53: WA | O53: 045 | P53: Sum | Q53: EWA045 | R53: EWA045 | S53: WASum
C54: 046 | D54: 046 CUSTOMER OWNED STREET LIGHT ENERGY SOD VAP | E54: 51 LIGHTING-PUBLIC STREET AND HIWAY | F54: 18 | G54: 150151 | H54: 14016.44 | I54: 18.25 | J54: 1857054 | K54: 173494.07 | M54: E | N54: WA | O54: 046 | P54: 51 | Q54: EWA04651 | R54: EWA046 | S54: WA51
E55: Sum | F55: 18 | G55: 150151 | H55: 14016.44 | I55: 0 | J55: 1857054 | K55: 173494.07 | M55: E | N55: WA | O55: 046 | P55: Sum | Q55: EWA046 | R55: EWA046 | S55: WASum
C56: 047 | D56: 047 AREA LIGHTING COMMERCIAL-INDUSTRIAL | E56: 21 FIRM COMMERCIAL | F56: 0 | G56: 458685 | H56: 102977.13 | I56: 0 | J56: 5497719 | K56: 1224244.04 | M56: E | N56: WA | O56: 047 | P56: 21 | Q56: EWA04721 | R56: EWA047 | S56: WA21
E57: 31 FIRM- INDUSTRIAL | F57: 0 | G57: 16293 | H57: 3510.47 | I57: 0 | J57: 197027 | K57: 42273.17 | M57: E | N57: WA | O57: 047 | P57: 31 | Q57: EWA04731 | R57: EWA047 | S57: WA31
E58: 39 FIRM-PUMPING-IRRIGATION ONLY | F58: 0 | G58: 291 | H58: 60.35 | I58: 0 | J58: 3492 | K58: 724.2 | M58: E | N58: WA | O58: 047 | P58: 39 | Q58: EWA04739 | R58: EWA047 | S58: WA39
E59: 80 INTERDEPARTMENT REVENUE | F59: 0 | G59: 3382 | H59: 951.41 | I59: 0 | J59: 40584 | K59: 11416.92 | M59: E | N59: WA | O59: 047 | P59: 80 | Q59: EWA04780 | R59: EWA047 | S59: WA80
E60: Sum | F60: 0 | G60: 478651 | H60: 107499.36 | I60: 0 | J60: 5738822 | K60: 1278658.33 | M60: E | N60: WA | O60: 047 | P60: Sum | Q60: EWA047 | R60: EWA047 | S60: WASum
C61: 048 | D61: 048 AREA LIGHTING FARM AND RESIDENTIAL | E61: 01 RESIDENTIAL | F61: 0 | G61: 275243 | H61: 67158.57 | I61: 0 | J61: 3334213 | K61: 819155.33 | M61: E | N61: WA | O61: 048 | P61: 01 | Q61: EWA04801 | R61: EWA048 | S61: WA01
E62: Sum | F62: 0 | G62: 275243 | H62: 67158.57 | I62: 0 | J62: 3334213 | K62: 819155.33 | M62: E | N62: WA | O62: 048 | P62: Sum | Q62: EWA048 | R62: EWA048 | S62: WASum
C63: 058 | D63: 058 TAX ADJUSTMENT | E63: 01 RESIDENTIAL | F63: 0 | G63: 0 | H63: 752289.15 | I63: 0 | J63: 0 | K63: 7373323.75 | M63: E | N63: WA | O63: 058 | P63: 01 | Q63: EWA05801 | R63: EWA058 | S63: WA01
E64: 21 FIRM COMMERCIAL | F64: 0 | G64: 0 | H64: 718968.87 | I64: 0 | J64: 0 | K64: 8381669.33 | M64: E | N64: WA | O64: 058 | P64: 21 | Q64: EWA05821 | R64: EWA058 | S64: WA21
E65: 31 FIRM- INDUSTRIAL | F65: 0 | G65: 0 | H65: 50888.19 | I65: 0 | J65: 0 | K65: 604060.09 | M65: E | N65: WA | O65: 058 | P65: 31 | Q65: EWA05831 | R65: EWA058 | S65: WA31
E66: 39 FIRM-PUMPING-IRRIGATION ONLY | F66: 0 | G66: 0 | H66: 367.92 | I66: 0 | J66: 0 | K66: 9066.65 | M66: E | N66: WA | O66: 058 | P66: 39 | Q66: EWA05839 | R66: EWA058 | S66: WA39
E67: 51 LIGHTING-PUBLIC STREET AND HIWAY | F67: 0 | G67: 0 | H67: 7384.11 | I67: 0 | J67: 0 | K67: 87692.68 | M67: E | N67: WA | O67: 058 | P67: 51 | Q67: EWA05851 | R67: EWA058 | S67: WA51
E68: 80 INTERDEPARTMENT REVENUE | F68: 0 | G68: 0 | H68: -3.99 | I68: 0 | J68: 0 | K68: 0 | M68: E | N68: WA | O68: 058 | P68: 80 | Q68: EWA05880 | R68: EWA058 | S68: WA80
E69: 85 MISC-RENT FROM ELECTRIC PROPERTY | F69: 0 | G69: 0 | H69: 1467.77 | I69: 0 | J69: 0 | K69: 17552.67 | M69: E | N69: WA | O69: 058 | P69: 85 | Q69: EWA05885 | R69: EWA058 | S69: WA85
E70: Sum | F70: 0 | G70: 0 | H70: 1531362.02 | I70: 0 | J70: 0 | K70: 16473365.17 | M70: E | N70: WA | O70: 058 | P70: Sum | Q70: EWA058 | R70: EWA058 | S70: WASum
C71: 058A | D71: 058A TAX ADJUSTMENT - INDIAN RESERVATION | E71: 01 RESIDENTIAL | F71: 0 | G71: 0 | H71: -5064.46 | I71: 0 | J71: 0 | K71: -48199.32 | M71: E | N71: WA | O71: 058A | P71: 01 | Q71: EWA058A01 | R71: =M71&N71&O71 -> EWA058A | S71: =N71&P71 -> WA01
E72: 21 FIRM COMMERCIAL | F72: 0 | G72: 0 | H72: -4693.52 | I72: 0 | J72: 0 | K72: -46188.45 | M72: E | N72: WA | O72: 058A | P72: 21 | Q72: EWA058A21 | R72: EWA058A | S72: WA21
E73: 39 FIRM-PUMPING-IRRIGATION ONLY | F73: 0 | G73: 0 | H73: -51.45 | I73: 0 | J73: 0 | K73: -1145.13 | M73: E | N73: WA | O73: 058A | P73: 39 | Q73: EWA058A39 | R73: EWA058A | S73: WA39
E74: 51 LIGHTING-PUBLIC STREET AND HIWAY | F74: 0 | G74: 0 | H74: -54.8 | I74: 0 | J74: 0 | K74: -657.6 | M74: E | N74: WA | O74: 058A | P74: 51 | Q74: EWA058A51 | R74: EWA058A | S74: WA51
E75: Sum | F75: 0 | G75: 0 | H75: -9864.23 | I75: 0 | J75: 0 | K75: -96190.5 | M75: E | N75: WA | O75: 058A | P75: Sum | Q75: EWA058A | R75: EWA058A | S75: WASum
C76: 063 | D76: 063 RENEWABLE GENERATION NET METERING | E76: 01 RESIDENTIAL | F76: 0 | G76: 0 | H76: 0 | I76: 0 | J76: 0 | K76: 0 | M76: E | N76: WA | O76: 063 | P76: 01 | Q76: EWA06301 | R76: EWA063 | S76: WA01
E77: 21 FIRM COMMERCIAL | F77: 0 | G77: 0 | H77: 0 | I77: 0 | J77: 0 | K77: 0 | M77: E | N77: WA | O77: 063 | P77: 21 | Q77: EWA06321 | R77: EWA063 | S77: WA21
E78: Sum | F78: 0 | G78: 0 | H78: 0 | I78: 0 | J78: 0 | K78: 0 | M78: E | N78: WA | O78: 063 | P78: Sum | Q78: EWA063 | R78: EWA063 | S78: WASum
C79: 064 | D79: 064 RENEWABLE GENERATION NET METERING INDUSTRIAL | E79: 31 FIRM- INDUSTRIAL | F79: 0 | G79: 0 | H79: 0 | I79: 0 | J79: 0 | K79: 0 | M79: E | N79: WA | O79: 064 | P79: 31 | Q79: EWA06431 | R79: EWA064 | S79: WA31
E80: Sum | F80: 0 | G80: 0 | H80: 0 | I80: 0 | J80: 0 | K80: 0 | M80: E | N80: WA | O80: 064 | P80: Sum | Q80: EWA064 | R80: EWA064 | S80: WASum
C81: 090 | D81: 090 FUEL EFFICIENCY | E81: 61 ENERGY EXCHANGE-RESIDENTIAL | F81: 0 | G81: 0 | H81: 4 | I81: 0 | J81: 0 | K81: 48 | M81: E | N81: WA | O81: 090 | P81: 61 | Q81: EWA09061 | R81: EWA090 | S81: WA61
E82: Sum | F82: 0 | G82: 0 | H82: 4 | I82: 0 | J82: 0 | K82: 48 | M82: E | N82: WA | O82: 090 | P82: Sum | Q82: EWA090 | R82: EWA090 | S82: WASum
C83: 095 | D83: 095 WIND POWER | E83: 01 RESIDENTIAL | F83: 0 | G83: 0 | H83: 9759.63 | I83: 0 | J83: 0 | K83: 120034.36 | M83: E | N83: WA | O83: 095 | P83: 01 | Q83: EWA09501 | R83: EWA095 | S83: WA01
E84: 21 FIRM COMMERCIAL | F84: 0 | G84: 0 | H84: 5830.87 | I84: 0 | J84: 0 | K84: 70323.2 | M84: E | N84: WA | O84: 095 | P84: 21 | Q84: EWA09521 | R84: EWA095 | S84: WA21
E85: 31 FIRM- INDUSTRIAL | F85: 0 | G85: 0 | H85: 144 | I85: 0 | J85: 0 | K85: 1728 | M85: E | N85: WA | O85: 095 | P85: 31 | Q85: EWA09531 | R85: EWA095 | S85: WA31
E86: Sum | F86: 0 | G86: 0 | H86: 15734.5 | I86: 0 | J86: 0 | K86: 192085.56 | M86: E | N86: WA | O86: 095 | P86: Sum | Q86: EWA095 | R86: EWA095 | S86: WASum
C87: 099 | D87: 099 REPORTING SCHED NUMBER FOR MISC ELEC REV | E87: 18 THEFT OF SERVICE-ELECTRIC | F87: 0 | G87: 0 | H87: 292.68 | I87: 0 | J87: 0 | K87: 12585.08 | M87: E | N87: WA | O87: 099 | P87: 18 | Q87: EWA09918 | R87: EWA099 | S87: WA18
E88: 83 MISC-SERVICE REVENUE SNP | F88: 0 | G88: 0 | H88: 31165 | I88: 0 | J88: 0 | K88: 343682 | M88: E | N88: WA | O88: 099 | P88: 83 | Q88: EWA09983 | R88: EWA099 | S88: WA83
E89: 85 MISC-RENT FROM ELECTRIC PROPERTY | F89: 0 | G89: 0 | H89: 29899.17 | I89: 0 | J89: 0 | K89: 355445.03 | M89: E | N89: WA | O89: 099 | P89: 85 | Q89: EWA09985 | R89: EWA099 | S89: WA85
E90: Sum | F90: 0 | G90: 0 | H90: 61356.85 | I90: 0 | J90: 0 | K90: 711712.11 | M90: E | N90: WA | O90: 099 | P90: Sum | Q90: EWA099 | R90: EWA099 | S90: WASum
C91: Sum | F91: 236623 | G91: 524356807 | H91: 44020288.67 | I91: 0 | J91: 5618259236 | K91: 473232174.6 | M91: E | N91: WA | O91: Sum | Q91: EWASum | R91: EWASum | S91: WA
A97: WASHINGTON | M97: WASHINGTON
A98: Summary by Rate Schedule | M98: Billed Summary by Revenue Class
O99: Meters | P99: Usage | Q99: Revenue
A100: Total for 001 RESIDENTIAL SERVICE | E100: EWA001 | F100: =SUMIF($Q$5:$Q$96,$E100,F$5:F$96) -> 202664 | G100: 254049922 | H100: 20500475.4 | I100: =SUMIF($R$6:$R$96,$E100,$I$5:$I$96) -> 201447.5833 | J100: =SUMIF($Q$5:$Q$96,$E100,J$5:J$96) -> 2425025822 | K100: 198557410.3 | M100: Res | N100: WA01 | O100: =SUMIF($S$4:$S$96,$N100,I$4:I$96) -> 210923.1667 | P100: =SUMIF($S$4:$S$96,$N100,J$4:J$96) -> 2537452978 | Q100: =SUMIF($S$4:$S$96,$N100,K$4:K$96) -> 217795556.2 | S100: =MID(N100,3,5) -> 01
A101: Total for 011 GENERAL SERVICE | E101: EWA011 | F101: 19838 | G101: 37969853 | H101: 4242957.12 | I101: 19678.41667 | J101: 395269752 | K101: 44562231.29 | M101: Theft | N101: WA18 | O101: 0 | P101: 0 | Q101: 12585.08 | S101: =MID(N101,3,5) -> 18
A102: Total for 012 RESIDENTIAL & FARM GENERAL SERVICE | E102: EWA012 | F102: 8377 | G102: 5308274 | H102: 625423.49 | I102: 8271.916667 | J102: 49848899 | K102: 6168684.63 | M102: Comm | N102: WA21 | O102: 22985.41667 | P102: 2132348896 | Q102: 194229863.2 | S102: 21
A103: Total for 021 LARGE GENERAL SERVICE | E103: EWA021 | F103: 2904 | G103: 130128785 | H103: 10986128.96 | I103: 2959.833333 | J103: 1483680029 | K103: 127145104.3 | M103: Ind | N103: WA31 | O103: 350.6666667 | P103: 878814781 | Q103: 51909752.28 | S103: 31
A104: Total for 022 RESIDENTIAL & FARM LARGE GENERAL SERVICE | E104: EWA022 | F104: 85 | G104: 4197007 | H104: 331721.2 | I104: 82.08333333 | J104: 49227849 | K104: 3935942.52 | M104: Pump | N104: WA39 | O104: 553 | P104: 43146483 | Q104: 3192459.95 | S104: 39
A105: Total for 025 EXTRA LARGE GENERAL SERVICE | E105: EWA025 | F105: 22 | G105: 87074236 | H105: 4822608.61 | I105: 22 | J105: 1064920825 | K105: 59193701.22 | M105: Lighting | N105: WA51 | O105: 330.0833333 | P105: 16848805 | Q105: 4555700.94 | S105: 51
A106: Total for 028 EXTRA LARGE SERVICE-SPECIAL CONTRACT | E106: EWA028 | F106: 0 | G106: 0 | H106: 19250 | I106: 0.5833333333 | J106: 555000 | K106: 272978 | M106: EnExch | N106: WA61 | O106: 0 | P106: 0 | Q106: 48 | S106: 61
A107: Total for 030 PUMPING SERVICE-SPECIAL | E107: EWA030 | F107: 33 | G107: 11180 | H107: 965.85 | I107: 33.08333333 | J107: 20570060 | K107: 1360443.74 | M107: Intdpt | N107: WA80 | O107: 49.41666667 | P107: 9647293 | Q107: 819529.3 | S107: 80
A108: Total for 031 PUMPING SERVICE | E108: EWA031 | F108: 1140 | G108: 3050284 | H108: 304649.17 | I108: 1132.416667 | J108: 91779265 | K108: 7196792.17 | M108: Svc. | N108: WA83 | O108: 0 | P108: 0 | Q108: 343682 | S108: 83
A109: Total for 032 PUMPING SERVICE RESIDENTIAL & FARM | E109: EWA032 | F109: 1230 | G109: 416101 | H109: 40978.07 | I109: 1234.75 | J109: 11495169 | K109: 995217.6 | M109: Rent | N109: WA85 | O109: 0 | P109: 0 | Q109: 372997.7 | S109: 85
A110: Total for 041 COMPANY OWNED STREET LIGHTS | E110: EWA041 | F110: 11 | G110: 8720 | H110: 1867.96 | I110: 11 | J110: 106168 | K110: 22656.42 | M110: MiscOth | N110: WA86 | O110: 0 | P110: 0 | Q110: 0 | S110: 86
A111: Total for 042 COMPANY OWNED STREET LIGHTS-HI PRESS SOD VP | E111: EWA042 | F111: 285 | G111: 1131831 | H111: 347129.06 | I111: 283.8333333 | J111: 13570601 | K111: 4162220.15 | M111: Total WA | O111: =SUM(O100:O110) -> 235191.75 | P111: =SUM(P100:P110) -> 5618259236 | Q111: =SUM(Q100:Q110) -> 473232174.6
A112: Total for 044 CUST OWNED ST LIGHTS-HI PRESS ENGY & MAINT | E112: EWA044 | F112: 13 | G112: 22332 | H112: 2687.95 | I112: 13 | J112: 267984 | K112: 32255.4 | O112: =O111-I124 -> 0 | P112: =P111-J124 -> 0 | Q112: =Q111-K124 -> 0
A113: Total for 044A CUST OWNED ST LIGHTS-FAIRCHILD ST LIGHTS | E113: EWA044A | F113: 0 | G113: 0 | H113: 336 | I113: 0 | J113: 0 | K113: 4032
A114: Total for 045 CUSTOMER OWNED STREET LIGHT ENERGY SERVICE | E114: EWA045 | F114: 3 | G114: 84237 | H114: 5842.32 | I114: 3 | J114: 1011724 | K114: 70176.7 | M114: Retail | O114: =SUM(O100,O102:O105,O107) -> 235191.75 | P114: =SUM(P100,P102:P105,P107) -> 5618259236 | Q114: =SUM(Q100,Q102:Q105,Q107) -> 472502861.8
A115: Total for 046 CUSTOMER OWNED STREET LIGHT ENERGY SOD VAP | E115: EWA046 | F115: 18 | G115: 150151 | H115: 14016.44 | I115: 18.25 | J115: 1857054 | K115: 173494.07 | M115: Unbilled | O115: 0 | P115: 0 | Q115: 0
A116: Total for 047 AREA LIGHTING COMMERCIAL-INDUSTRIAL | E116: EWA047 | F116: 0 | G116: 478651 | H116: 107499.36 | I116: 0 | J116: 5738822 | K116: 1278658.33 | O116: =O114+O115 -> 235191.75 | P116: =P114+P115 -> 5618259236 | Q116: =Q114+Q115 -> 472502861.8
A117: Total for 048 AREA LIGHTING FARM AND RESIDENTIAL | E117: EWA048 | F117: 0 | G117: 275243 | H117: 67158.57 | I117: 0 | J117: 3334213 | K117: 819155.33
A118: Total for 058 TAX ADJUSTMENT | E118: EWA058 | F118: 0 | G118: 0 | H118: 1531362.02 | I118: 0 | J118: 0 | K118: 16473365.17
A119: Total for 058A TAX ADJUSTMENT - INDIAN RESERVATION | E119: EWA058A | F119: 0 | G119: 0 | H119: -9864.23 | I119: 0 | J119: 0 | K119: -96190.5
A120: Total for 063 RENEWABLE GENERATION NET METERING | E120: EWA063 | F120: 0 | G120: 0 | H120: 0 | I120: 0 | J120: 0 | K120: 0
A121: Total for 090 FUEL EFFICIENCY | E121: EWA090 | F121: 0 | G121: 0 | H121: 4 | I121: 0 | J121: 0 | K121: 48
A122: Total for 095 WIND POWER | E122: EWA095 | F122: 0 | G122: 0 | H122: 15734.5 | I122: 0 | J122: 0 | K122: 192085.56
A123: Total for 099 REPORTING SCHED NUMBER FOR MISC ELEC REV | E123: EWA099 | F123: 0 | G123: 0 | H123: 61356.85 | I123: 0 | J123: 0 | K123: 711712.11
E124: Total | F124: =SUM(F100:F123) -> 236623 | G124: =SUM(G100:G123) -> 524356807 | H124: 44020288.67 | I124: 235191.75 | J124: 5618259236 | K124: 473232174.6
E125: EWASum | F125: =SUMIF($Q$5:$Q$102,$E125,F$5:F$102) -> 236623 | G125: =SUMIF($Q$5:$Q$102,$E125,G$5:G$102) -> 524356807 | H125: =SUMIF($Q$5:$Q$96,$E125,H$5:H$96) -> 44020288.67 | I125: =SUMIF($N$5:$N$95,"WA",$I$5:$I$96) -> 235191.75 | J125: =SUMIF($Q$5:$Q$94,$E125,J$5:J$94) -> 5618259236 | K125: =SUMIF($Q$5:$Q$92,$E125,K$5:K$92) -> 473232174.6
E126: Diff | F126: =F124-F125 -> 0 | G126: 0 | H126: 0 | I126: 0 | J126: 0 | K126: 0

Sheet Rev Runs LY (hidden)
A1: Revenue Meters Report by Location Twelve Months Ended for Report Date : '12/31/2010'
F4: 201012 | I4: TME
A5: Service | B5: State Cde | C5: Rate Schedule Num | D5: Rate Schedule Desc | E5: RevClsDesc | F5: Meters | G5: Usage | H5: Revenue | I5: Avg Meters | J5: Usage | K5: Revenue
B6: WA | C6: 001 | D6: 001 RESIDENTIAL SERVICE | E6: 01 RESIDENTIAL | F6: 202149 | G6: 260391499 | H6: 20455263.01 | I6: 200673.75 | J6: 2369426282 | K6: 181091861.9 | M6: E | N6: WA | O6: 001 | P6: 01 | Q6: EWA00101 | R6: =M6&N6&O6 -> EWA001 | S6: =N6&P6 -> WA01
E7: 21 FIRM COMMERCIAL | F7: 0 | G7: 0 | H7: 0 | I7: 0 | J7: -3070 | K7: -238.46 | M7: E | N7: WA | O7: 001 | P7: 21 | Q7: EWA00121 | R7: EWA001 | S7: WA21
E8: 80 INTERDEPARTMENT REVENUE | F8: 2 | G8: 940 | H8: 75 | I8: 2.833333333 | J8: 20664 | K8: 1716.61 | M8: E | N8: WA | O8: 001 | P8: 80 | Q8: EWA00180 | R8: EWA001 | S8: WA80
E9: Sum | F9: 202151 | G9: 260392439 | H9: 20455338.01 | I9: 0 | J9: 2369443876 | K9: 181093340 | M9: E | N9: WA | O9: 001 | Q9: EWA001 | R9: EWA001 | S9: WA
C10: 011 | D10: 011 GENERAL SERVICE | E10: 01 RESIDENTIAL | F10: 0 | G10: 0 | H10: 0 | I10: 0 | J10: 0 | K10: 0 | M10: E | N10: WA | O10: 011 | P10: 01 | Q10: EWA01101 | R10: EWA011 | S10: WA01
E11: 21 FIRM COMMERCIAL | F11: 19382 | G11: 35565765 | H11: 3828614.9 | I11: 19249.58333 | J11: 362015276 | K11: 39237381.22 | M11: E | N11: WA | O11: 011 | P11: 21 | Q11: EWA01121 | R11: EWA011 | S11: WA21
E12: 31 FIRM- INDUSTRIAL | F12: 101 | G12: 329272 | H12: 36028.95 | I12: 101.4166667 | J12: 2812808 | K12: 313847.03 | M12: E | N12: WA | O12: 011 | P12: 31 | Q12: EWA01131 | R12: EWA011 | S12: WA31
E13: 39 FIRM-PUMPING-IRRIGATION ONLY | F13: 0 | G13: 0 | H13: 0 | I13: 0.5 | J13: 268 | K13: 68.29 | M13: E | N13: WA | O13: 011 | P13: 39 | Q13: EWA01139 | R13: EWA011 | S13: WA39
E14: 80 INTERDEPARTMENT REVENUE | F14: 33 | G14: 92970 | H14: 9628.63 | I14: 30.41666667 | J14: 787099 | K14: 82470.99 | M14: E | N14: WA | O14: 011 | P14: 80 | Q14: EWA01180 | R14: EWA011 | S14: WA80
E15: Sum | F15: 19516 | G15: 35988007 | H15: 3874272.48 | I15: 0 | J15: 365615451 | K15: 39633767.53 | M15: E | N15: WA | O15: 011 | Q15: EWA011 | R15: EWA011 | S15: WA
C16: 012 | D16: 012 RESIDENTIAL AND FARM GENERAL SERVICE | E16: 01 RESIDENTIAL | F16: 8184 | G16: 5017164 | H16: 568835.34 | I16: 8113.583333 | J16: 45429389 | K16: 5249884.36 | M16: E | N16: WA | O16: 012 | P16: 01 | Q16: EWA01201 | R16: EWA012 | S16: WA01
E17: Sum | F17: 8184 | G17: 5017164 | H17: 568835.34 | I17: 0 | J17: 45429389 | K17: 5249884.36 | M17: E | N17: WA | O17: 012 | Q17: EWA012 | R17: EWA012 | S17: WA
C18: 021 | D18: 021 LARGE GENERAL SERVICE | E18: 01 RESIDENTIAL | F18: 0 | G18: 0 | H18: 0 | I18: 0 | J18: 0 | K18: 0 | M18: E | N18: WA | O18: 021 | P18: 01 | Q18: EWA02101 | R18: EWA021 | S18: WA01
E19: 21 FIRM COMMERCIAL | F19: 3030 | G19: 127530259 | H19: 10352295.43 | I19: 3075.833333 | J19: 1410103150 | K19: 115389848.6 | M19: E | N19: WA | O19: 021 | P19: 21 | Q19: EWA02121 | R19: EWA021 | S19: WA21
E20: 31 FIRM- INDUSTRIAL | F20: 107 | G20: 7847922 | H20: 638563.83 | I20: 105.8333333 | J20: 85553858 | K20: 6971106.43 | M20: E | N20: WA | O20: 021 | P20: 31 | Q20: EWA02131 | R20: EWA021 | S20: WA31
E21: 80 INTERDEPARTMENT REVENUE | F21: 11 | G21: 757260 | H21: 57776.97 | I21: 10.91666667 | J21: 8975880 | K21: 692934.2 | M21: E | N21: WA | O21: 021 | P21: 80 | Q21: EWA02180 | R21: EWA021 | S21: WA80
E22: Sum | F22: 3148 | G22: 136135441 | H22: 11048636.23 | I22: 0 | J22: 1504632888 | K22: 123053889.2 | M22: E | N22: WA | O22: 021 | Q22: EWA021 | R22: EWA021 | S22: WA
C23: 022 | D23: 022 RESIDENTIAL AND FARM LARGE GENERAL SERVICE | E23: 01 RESIDENTIAL | F23: 84 | G23: 3761086 | H23: 297671.69 | I23: 82.66666667 | J23: 37821678 | K23: 2965617.11 | M23: E | N23: WA | O23: 022 | P23: 01 | Q23: EWA02201 | R23: EWA022 | S23: WA01
E24: Sum | F24: 84 | G24: 3761086 | H24: 297671.69 | I24: 0 | J24: 37821678 | K24: 2965617.11 | M24: E | N24: WA | O24: 022 | Q24: EWA022 | R24: EWA022 | S24: WA
C25: 025 | D25: 025 EXTRA LARGE GENERAL SERVICE | E25: 21 FIRM COMMERCIAL | F25: 10 | G25: 23819378 | H25: 1311935.53 | I25: 10 | J25: 285136342 | K25: 15924714.55 | M25: E | N25: WA | O25: 025 | P25: 21 | Q25: EWA02521 | R25: EWA025 | S25: WA21
E26: 31 FIRM- INDUSTRIAL | F26: 12 | G26: 63541159 | H26: 3256394.82 | I26: 12 | J26: 743217702 | K26: 38630508.75 | M26: E | N26: WA | O26: 025 | P26: 31 | Q26: EWA02531 | R26: EWA025 | S26: WA31
E27: Sum | F27: 22 | G27: 87360537 | H27: 4568330.35 | I27: 0 | J27: 1028354044 | K27: 54555223.3 | M27: E | N27: WA | O27: 025 | Q27: EWA025 | R27: EWA025 | S27: WA
C28: 028 | D28: 028 EXTRA LARGE SERVICE-SPECIAL CONTRACT | E28: 31 FIRM- INDUSTRIAL | F28: 0 | G28: 0 | H28: 18600 | I28: 0.4166666667 | J28: 1409000 | K28: 336574.12 | M28: E | N28: WA | O28: 028 | P28: 31 | Q28: EWA02831 | R28: EWA028 | S28: WA31
E29: Sum | F29: 0 | G29: 0 | H29: 18600 | I29: 0 | J29: 1409000 | K29: 336574.12 | M29: E | N29: WA | O29: 028 | Q29: EWA028 | R29: EWA028 | S29: WA
C30: 030 | D30: 030 PUMPING SERVICE-SPECIAL | E30: 39 FIRM-PUMPING-IRRIGATION ONLY | F30: 34 | G30: 16260 | H30: 1238.76 | I30: 33.91666667 | J30: 20983280 | K30: 1292810.27 | M30: E | N30: WA | O30: 030 | P30: 39 | Q30: EWA03039 | R30: EWA030 | S30: WA39
E31: Sum | F31: 34 | G31: 16260 | H31: 1238.76 | I31: 0 | J31: 20983280 | K31: 1292810.27 | M31: E | N31: WA | O31: 030 | Q31: EWA030 | R31: EWA030 | S31: WA
C32: 031 | D32: 031 PUMPING SERVICE | E32: 21 FIRM COMMERCIAL | F32: 585 | G32: 2806575 | H32: 212859.13 | I32: 579.5 | J32: 60033742 | K32: 4295858.28 | M32: E | N32: WA | O32: 031 | P32: 21 | Q32: EWA03121 | R32: EWA031 | S32: WA21
E33: 31 FIRM- INDUSTRIAL | F33: 132 | G33: 520118 | H33: 41463.86 | I33: 130.3333333 | J33: 9903114 | K33: 752680.93 | M33: E | N33: WA | O33: 031 | P33: 31 | Q33: EWA03131 | R33: EWA031 | S33: WA31
E34: 39 FIRM-PUMPING-IRRIGATION ONLY | F34: 406 | G34: 265446 | H34: 23472.88 | I34: 407.0833333 | J34: 19713379 | K34: 1491502.64 | M34: E | N34: WA | O34: 031 | P34: 39 | Q34: EWA03139 | R34: EWA031 | S34: WA39
E35: 80 INTERDEPARTMENT REVENUE | F35: 2 | G35: 915 | H35: 73.71 | I35: 2.5 | J35: 68454 | K35: 4886.51 | M35: E | N35: WA | O35: 031 | P35: 80 | Q35: EWA03180 | R35: EWA031 | S35: WA80
E36: Sum | F36: 1125 | G36: 3593054 | H36: 277869.58 | I36: 0 | J36: 89718689 | K36: 6544928.36 | M36: E | N36: WA | O36: 031 | Q36: EWA031 | R36: EWA031 | S36: WA
C37: 032 | D37: 032 PUMPING SERVICE RESIDENTIAL AND FARM | E37: 01 RESIDENTIAL | F37: 1122 | G37: 399034 | H37: 37188.81 | I37: 1118.416667 | J37: 9418947 | K37: 755763.54 | M37: E | N37: WA | O37: 032 | P37: 01 | Q37: EWA03201 | R37: EWA032 | S37: WA01
E38: 39 FIRM-PUMPING-IRRIGATION ONLY | F38: 107 | G38: 21779 | H38: 2383.72 | I38: 108.25 | J38: 1479510 | K38: 111966.74 | M38: E | N38: WA | O38: 032 | P38: 39 | Q38: EWA03239 | R38: EWA032 | S38: WA39
E39: Sum | F39: 1229 | G39: 420813 | H39: 39572.53 | I39: 0 | J39: 10898457 | K39: 867730.28 | M39: E | N39: WA | O39: 032 | Q39: EWA032 | R39: EWA032 | S39: WA
C40: 041 | D40: 041 COMPANY OWNED STREET LIGHTS | E40: 51 LIGHTING-PUBLIC STREET AND HIWAY | F40: 11 | G40: 9484 | H40: 1859.35 | I40: 11 | J40: 107235 | K40: 21563.97 | M40: E | N40: WA | O40: 041 | P40: 51 | Q40: EWA04151 | R40: EWA041 | S40: WA51
E41: Sum | F41: 11 | G41: 9484 | H41: 1859.35 | I41: 0 | J41: 107235 | K41: 21563.97 | M41: E | N41: WA | O41: 041 | Q41: EWA041 | R41: EWA041 | S41: WA
C42: 042 | D42: 042 COMPANY OWNED STREET LIGHTS-HI PRESS SOD VP | E42: 51 LIGHTING-PUBLIC STREET AND HIWAY | F42: 281 | G42: 1127811 | H42: 323165.29 | I42: 278.6666667 | J42: 13488757 | K42: 3875379.43 | M42: E | N42: WA | O42: 042 | P42: 51 | Q42: EWA04251 | R42: EWA042 | S42: WA51
E43: Sum | F43: 281 | G43: 1127811 | H43: 323165.29 | I43: 0 | J43: 13488757 | K43: 3875379.43 | M43: E | N43: WA | O43: 042 | Q43: EWA042 | R43: EWA042 | S43: WA
C44: 044 | D44: 044 CUST OWNED ST LIGHTS-HI PRESS ENGY & MAINT | E44: 51 LIGHTING-PUBLIC STREET AND HIWAY | F44: 13 | G44: 22332 | H44: 2511.83 | I44: 13 | J44: 267984 | K44: 30484.37 | M44: E | N44: WA | O44: 044 | P44: 51 | Q44: EWA04451 | R44: EWA044 | S44: WA51
E45: Sum | F45: 13 | G45: 22332 | H45: 2511.83 | I45: 0 | J45: 267984 | K45: 30484.37 | M45: E | N45: WA | O45: 044 | Q45: EWA044 | R45: EWA044 | S45: WA
C46: 044A | D46: 044A FAIRCHILD ST LIGHTS | E46: 51 LIGHTING-PUBLIC STREET AND HIWAY | F46: 0 | G46: 0 | H46: 336 | I46: 0 | J46: 0 | K46: 4032 | M46: E | N46: WA | O46: 044A | P46: 51 | Q46: EWA044A51 | R46: EWA044A | S46: WA51
E47: Sum | F47: 0 | G47: 0 | H47: 336 | I47: 0 | J47: 0 | K47: 4032 | M47: E | N47: WA | O47: 044A | Q47: EWA044A | R47: EWA044A | S47: WA
C48: 045 | D48: 045 CUSTOMER OWNED STREET LIGHT ENERGY SERVICE | E48: 51 LIGHTING-PUBLIC STREET AND HIWAY | F48: 3 | G48: 84317 | H48: 5718 | I48: 3 | J48: 1020537 | K48: 67201.89 | M48: E | N48: WA | O48: 045 | P48: 51 | Q48: EWA04551 | R48: EWA045 | S48: WA51
E49: Sum | F49: 3 | G49: 84317 | H49: 5718 | I49: 0 | J49: 1020537 | K49: 67201.89 | M49: E | N49: WA | O49: 045 | Q49: EWA045 | R49: EWA045 | S49: WA
C50: 046 | D50: 046 CUSTOMER OWNED STREET LIGHT ENERGY SOD VAP | E50: 51 LIGHTING-PUBLIC STREET AND HIWAY | F50: 19 | G50: 194802 | H50: 17180.66 | I50: 19 | J50: 2312876 | K50: 205896.33 | M50: E | N50: WA | O50: 046 | P50: 51 | Q50: EWA04651 | R50: EWA046 | S50: WA51
E51: Sum | F51: 19 | G51: 194802 | H51: 17180.66 | I51: 0 | J51: 2312876 | K51: 205896.33 | M51: E | N51: WA | O51: 046 | Q51: EWA046 | R51: EWA046 | S51: WA
C52: 047 | D52: 047 AREA LIGHTING COMMERCIAL-INDUSTRIAL | E52: 21 FIRM COMMERCIAL | F52: 0 | G52: 462231 | H52: 97761.7 | I52: 0 | J52: 5585271 | K52: 1171543.09 | M52: E | N52: WA | O52: 047 | P52: 21 | Q52: EWA04721 | R52: EWA047 | S52: WA21
E53: 31 FIRM- INDUSTRIAL | F53: 0 | G53: 16431 | H53: 3360.01 | I53: 0 | J53: 170709 | K53: 33318.84 | M53: E | N53: WA | O53: 047 | P53: 31 | Q53: EWA04731 | R53: EWA047 | S53: WA31
E54: 39 FIRM-PUMPING-IRRIGATION ONLY | F54: 0 | G54: 291 | H54: 58.6 | I54: 0 | J54: 3492 | K54: 687.21 | M54: E | N54: WA | O54: 047 | P54: 39 | Q54: EWA04739 | R54: EWA047 | S54: WA39
E55: 80 INTERDEPARTMENT REVENUE | F55: 0 | G55: 3342 | H55: 883.99 | I55: 0 | J55: 28542 | K55: 8191.28 | M55: E | N55: WA | O55: 047 | P55: 80 | Q55: EWA04780 | R55: EWA047 | S55: WA80
E56: Sum | F56: 0 | G56: 482295 | H56: 102064.3 | I56: 0 | J56: 5788014 | K56: 1213740.42 | M56: E | N56: WA | O56: 047 | Q56: EWA047 | R56: EWA047 | S56: WA
C57: 048 | D57: 048 AREA LIGHTING FARM AND RESIDENTIAL | E57: 01 RESIDENTIAL | F57: 0 | G57: 281432 | H57: 65690.44 | I57: 0 | J57: 3379917 | K57: 783471.73 | M57: E | N57: WA | O57: 048 | P57: 01 | Q57: EWA04801 | R57: EWA048 | S57: WA01
E58: Sum | F58: 0 | G58: 281432 | H58: 65690.44 | I58: 0 | J58: 3379917 | K58: 783471.73 | M58: E | N58: WA | O58: 048 | Q58: EWA048 | R58: EWA048 | S58: WA
C59: 058 | D59: 058 TAX ADJUSTMENT | E59: 01 RESIDENTIAL | F59: 0 | G59: 0 | H59: 723180.66 | I59: 0 | J59: 0 | K59: 6514586.04 | M59: E | N59: WA | O59: 058 | P59: 01 | Q59: EWA05801 | R59: EWA058 | S59: WA01
E60: 21 FIRM COMMERCIAL | F60: 0 | G60: 0 | H60: 675159.58 | I60: 0 | J60: 0 | K60: 7657130.65 | M60: E | N60: WA | O60: 058 | P60: 21 | Q60: EWA05821 | R60: EWA058 | S60: WA21
E61: 31 FIRM- INDUSTRIAL | F61: 0 | G61: 0 | H61: 44138.94 | I61: 0 | J61: 0 | K61: 523343.22 | M61: E | N61: WA | O61: 058 | P61: 31 | Q61: EWA05831 | R61: EWA058 | S61: WA31
E62: 39 FIRM-PUMPING-IRRIGATION ONLY | F62: 0 | G62: 0 | H62: 250.77 | I62: 0 | J62: 0 | K62: 5069.31 | M62: E | N62: WA | O62: 058 | P62: 39 | Q62: EWA05839 | R62: EWA058 | S62: WA39
E63: 51 LIGHTING-PUBLIC STREET AND HIWAY | F63: 0 | G63: 0 | H63: 16311.31 | I63: 0 | J63: 0 | K63: 177281.23 | M63: E | N63: WA | O63: 058 | P63: 51 | Q63: EWA05851 | R63: EWA058 | S63: WA51
E64: 80 INTERDEPARTMENT REVENUE | F64: 0 | G64: 0 | H64: 56.22 | I64: 0 | J64: 0 | K64: 77.34 | M64: E | N64: WA | O64: 058 | P64: 80 | Q64: EWA05880 | R64: EWA058 | S64: WA80
E65: 85 MISC-RENT FROM ELECTRIC PROPERTY | F65: 0 | G65: 0 | H65: 1452.65 | I65: 0 | J65: 0 | K65: 17279.81 | M65: E | N65: WA | O65: 058 | P65: 85 | Q65: EWA05885 | R65: EWA058 | S65: WA85
E66: 86 MISC-OTHER ELECTRIC REVENUE | F66: 0 | G66: 0 | H66: 0 | I66: 0 | J66: 0 | K66: 100.32 | M66: E | N66: WA | O66: 058 | P66: 86 | Q66: EWA05886 | R66: EWA058 | S66: WA86
E67: Sum | F67: 0 | G67: 0 | H67: 1460550.13 | I67: 0 | J67: 0 | K67: 14894867.92 | M67: E | N67: WA | O67: 058 | Q67: EWA058 | R67: EWA058 | S67: WA
C68: 058A | D68: 058A TAX ADJUSTMENT - INDIAN RESERVATION | E68: 01 RESIDENTIAL | F68: 0 | G68: 0 | H68: -5032.11 | I68: 0 | J68: 0 | K68: -43206.17 | M68: E | N68: WA | O68: 058A | P68: 01 | Q68: EWA058A01 | R68: EWA058A | S68: WA01
E69: 21 FIRM COMMERCIAL | F69: 0 | G69: 0 | H69: -4643.82 | I69: 0 | J69: 0 | K69: -43631.61 | M69: E | N69: WA | O69: 058A | P69: 21 | Q69: EWA058A21 | R69: EWA058A | S69: WA21
E70: 31 FIRM- INDUSTRIAL | F70: 0 | G70: 0 | H70: 0 | I70: 0 | J70: 0 | K70: -1.02 | M70: E | N70: WA | O70: 058A | P70: 31 | Q70: EWA058A31 | R70: EWA058A | S70: WA31
E71: 39 FIRM-PUMPING-IRRIGATION ONLY | F71: 0 | G71: 0 | H71: -70.28 | I71: 0 | J71: 0 | K71: -1199.31 | M71: E | N71: WA | O71: 058A | P71: 39 | Q71: EWA058A39 | R71: EWA058A | S71: WA39
E72: 51 LIGHTING-PUBLIC STREET AND HIWAY | F72: 0 | G72: 0 | H72: -51.58 | I72: 0 | J72: 0 | K72: -621.7 | M72: E | N72: WA | O72: 058A | P72: 51 | Q72: EWA058A51 | R72: EWA058A | S72: WA51
E73: Sum | F73: 0 | G73: 0 | H73: -9797.79 | I73: 0 | J73: 0 | K73: -88659.81 | M73: E | N73: WA | O73: 058A | Q73: EWA058A | R73: EWA058A | S73: WA
C74: 063 | D74: 063 RENEWABLE GENERATION NET METERING | E74: 01 RESIDENTIAL | F74: 0 | G74: 0 | H74: 0 | I74: -0.1666666667 | J74: -3732 | K74: 0 | M74: E | N74: WA | O74: 063 | P74: 01 | Q74: EWA06301 | R74: EWA063 | S74: WA01
E75: 21 FIRM COMMERCIAL | F75: 0 | G75: 0 | H75: 0 | I75: 0.1666666667 | J75: 3732 | K75: 0 | M75: E | N75: WA | O75: 063 | P75: 21 | Q75: EWA06321 | R75: EWA063 | S75: WA21
E76: Sum | F76: 0 | G76: 0 | H76: 0 | I76: 0 | J76: 0 | K76: 0 | M76: E | N76: WA | O76: 063 | Q76: EWA063 | R76: EWA063 | S76: WA
C77: 090 | D77: 090 FUEL EFFICIENCY | E77: 61 ENERGY EXCHANGE-RESIDENTIAL | F77: 0 | G77: 0 | H77: 4 | I77: 0 | J77: 0 | K77: 48 | M77: E | N77: WA | O77: 090 | P77: 61 | Q77: EWA09061 | R77: EWA090 | S77: WA61
E78: Sum | F78: 0 | G78: 0 | H78: 4 | I78: 0 | J78: 0 | K78: 48 | M78: E | N78: WA | O78: 090 | Q78: EWA090 | R78: EWA090 | S78: WA
C79: 095 | D79: 095 WIND POWER | E79: 01 RESIDENTIAL | F79: 0 | G79: 0 | H79: 10193.22 | I79: 0 | J79: 0 | K79: 124234.51 | M79: E | N79: WA | O79: 095 | P79: 01 | Q79: EWA09501 | R79: EWA095 | S79: WA01
E80: 21 FIRM COMMERCIAL | F80: 0 | G80: 0 | H80: 5724 | I80: 0 | J80: 0 | K80: 52784.53 | M80: E | N80: WA | O80: 095 | P80: 21 | Q80: EWA09521 | R80: EWA095 | S80: WA21
E81: 31 FIRM- INDUSTRIAL | F81: 0 | G81: 0 | H81: 144 | I81: 0 | J81: 0 | K81: 1728 | M81: E | N81: WA | O81: 095 | P81: 31 | Q81: EWA09531 | R81: EWA095 | S81: WA31
E82: Sum | F82: 0 | G82: 0 | H82: 16061.22 | I82: 0 | J82: 0 | K82: 178747.04 | M82: E | N82: WA | O82: 095 | Q82: EWA095 | R82: =M82&N82&O82 -> EWA095 | S82: =N82&P82 -> WA
C83: 099 | D83: 099 REPORTING SCHED NUMBER FOR MISC ELEC REV | E83: 18 THEFT OF SERVICE-ELECTRIC | F83: 0 | G83: 0 | H83: 1138.63 | I83: 0 | J83: 0 | K83: 15306.98 | M83: E | N83: WA | O83: 099 | P83: 18 | Q83: EWA09918 | R83: EWA099 | S83: WA18
E84: 83 MISC-SERVICE REVENUE SNP | F84: 0 | G84: 0 | H84: 24933 | I84: 0 | J84: 0 | K84: 332014 | M84: E | N84: WA | O84: 099 | P84: 83 | Q84: EWA09983 | R84: EWA099 | S84: WA83
E85: 85 MISC-RENT FROM ELECTRIC PROPERTY | F85: 0 | G85: 0 | H85: 29257.67 | I85: 0 | J85: 0 | K85: 348658.7 | M85: E | N85: WA | O85: 099 | P85: 85 | Q85: EWA09985 | R85: EWA099 | S85: WA85
E86: 86 MISC-OTHER ELECTRIC REVENUE | F86: 0 | G86: 0 | H86: 0 | I86: 0 | J86: 0 | K86: 1572.54 | M86: E | N86: WA | O86: 099 | P86: 86 | Q86: EWA09986 | R86: EWA099 | S86: WA86
E87: Sum | F87: 0 | G87: 0 | H87: 55329.3 | I87: 0 | J87: 0 | K87: 697552.22 | M87: E | N87: WA | O87: 099 | Q87: EWA099 | R87: EWA099 | S87: WA
C88: Sum | F88: 235820 | G88: 534887274 | H88: 43191037.7 | I88: 0 | J88: 5500672072 | K88: 437478090.1 | M88: E | N88: WA | O88: Sum | Q88: EWASum | R88: EWASum | S88: WA
A94: WASHINGTON | M94: WASHINGTON
A95: Summary by Rate Schedule | M95: Billed Summary by Revenue Class
O96: Meters | P96: Usage | Q96: Revenue
A97: Total for 001 RESIDENTIAL SERVICE | E97: EWA001 | F97: =SUMIF($Q$5:$Q$93,$E97,F$5:F$93) -> 202151 | G97: 260392439 | H97: 20455338.01 | I97: =SUMIF($R$6:$R$93,$E97,$I$5:$I$93) -> 200676.5833 | J97: =SUMIF($Q$5:$Q$93,$E97,J$5:J$93) -> 2369443876 | K97: 181093340 | M97: Res | N97: WA01 | O97: =SUMIF($S$4:$S$93,$N97,I$4:I$93) -> 209988.25 | P97: =SUMIF($S$4:$S$93,$N97,J$4:J$93) -> 2465472481 | Q97: =SUMIF($S$4:$S$93,$N97,K$4:K$93) -> 197442213 | S97: =MID(N97,3,5) -> 01
A98: Total for 011 GENERAL SERVICE | E98: EWA011 | F98: 19516 | G98: 35988007 | H98: 3874272.48 | I98: 19381.91667 | J98: 365615451 | K98: 39633767.53 | M98: Theft | N98: WA18 | O98: 0 | P98: 0 | Q98: 15306.98 | S98: =MID(N98,3,5) -> 18
A99: Total for 012 RESIDENTIAL & FARM GENERAL SERVICE | E99: EWA012 | F99: 8184 | G99: 5017164 | H99: 568835.34 | I99: 8113.583333 | J99: 45429389 | K99: 5249884.36 | M99: Comm | N99: WA21 | O99: 22915.08333 | P99: 2122874443 | Q99: 183685390.8 | S99: 21
A100: Total for 021 LARGE GENERAL SERVICE | E100: EWA021 | F100: 3148 | G100: 136135441 | H100: 11048636.23 | I100: 3192.583333 | J100: 1504632888 | K100: 123053889.2 | M100: Ind | N100: WA31 | O100: 350 | P100: 843067191 | Q100: 47563106.3 | S100: 31
A101: Total for 022 RESIDENTIAL & FARM LARGE GENERAL SERVICE | E101: EWA022 | F101: 84 | G101: 3761086 | H101: 297671.69 | I101: 82.66666667 | J101: 37821678 | K101: 2965617.11 | M101: Pump | N101: WA39 | O101: 549.75 | P101: 42179929 | Q101: 2900905.15 | S101: 39
A102: Total for 025 EXTRA LARGE GENERAL SERVICE | E102: EWA025 | F102: 22 | G102: 87360537 | H102: 4568330.35 | I102: 22 | J102: 1028354044 | K102: 54555223.3 | M102: Lighting | N102: WA51 | O102: 324.6666667 | P102: 17197389 | Q102: 4381217.52 | S102: 51
A103: Total for 028 EXTRA LARGE SERVICE-SPECIAL CONTRACT | E103: EWA028 | F103: 0 | G103: 0 | H103: 18600 | I103: 0.4166666667 | J103: 1409000 | K103: 336574.12 | M103: EnExch | N103: WA61 | O103: 0 | P103: 0 | Q103: 48 | S103: 61
A104: Total for 030 PUMPING SERVICE-SPECIAL | E104: EWA030 | F104: 34 | G104: 16260 | H104: 1238.76 | I104: 33.91666667 | J104: 20983280 | K104: 1292810.27 | M104: Intdpt | N104: WA80 | O104: 46.66666667 | P104: 9880639 | Q104: 790276.93 | S104: 80
A105: Total for 031 PUMPING SERVICE | E105: EWA031 | F105: 1125 | G105: 3593054 | H105: 277869.58 | I105: 1119.416667 | J105: 89718689 | K105: 6544928.36 | M105: Svc. | N105: WA83 | O105: 0 | P105: 0 | Q105: 332014 | S105: 83
A106: Total for 032 PUMPING SERVICE RESIDENTIAL & FARM | E106: EWA032 | F106: 1229 | G106: 420813 | H106: 39572.53 | I106: 1226.666667 | J106: 10898457 | K106: 867730.28 | M106: Rent | N106: WA85 | O106: 0 | P106: 0 | Q106: 365938.51 | S106: 85
A107: Total for 041 COMPANY OWNED STREET LIGHTS | E107: EWA041 | F107: 11 | G107: 9484 | H107: 1859.35 | I107: 11 | J107: 107235 | K107: 21563.97 | M107: MiscOth | N107: WA86 | O107: 0 | P107: 0 | Q107: 1672.86 | S107: 86
A108: Total for 042 COMPANY OWNED STREET LIGHTS-HI PRESS SOD VP | E108: EWA042 | F108: 281 | G108: 1127811 | H108: 323165.29 | I108: 278.6666667 | J108: 13488757 | K108: 3875379.43 | M108: Total WA | O108: =SUM(O97:O107) -> 234174.4167 | P108: =SUM(P97:P107) -> 5500672072 | Q108: =SUM(Q97:Q107) -> 437478090.1
A109: Total for 044 CUST OWNED ST LIGHTS-HI PRESS ENGY & MAINT | E109: EWA044 | F109: 13 | G109: 22332 | H109: 2511.83 | I109: 13 | J109: 267984 | K109: 30484.37 | O109: =O108-I121 -> 0 | P109: =P108-J121 -> 0 | Q109: =Q108-K121 -> 0
A110: Total for 044A CUST OWNED ST LIGHTS-FAIRCHILD ST LIGHTS | E110: EWA044A | F110: 0 | G110: 0 | H110: 336 | I110: 0 | J110: 0 | K110: 4032
A111: Total for 045 CUSTOMER OWNED STREET LIGHT ENERGY SERVICE | E111: EWA045 | F111: 3 | G111: 84317 | H111: 5718 | I111: 3 | J111: 1020537 | K111: 67201.89 | M111: Retail | O111: =SUM(O97,O99:O102,O104) -> 234174.4167 | P111: =SUM(P97,P99:P102,P104) -> 5500672072 | Q111: =SUM(Q97,Q99:Q102,Q104) -> 436763109.7
A112: Total for 046 CUSTOMER OWNED STREET LIGHT ENERGY SOD VAP | E112: EWA046 | F112: 19 | G112: 194802 | H112: 17180.66 | I112: 19 | J112: 2312876 | K112: 205896.33 | M112: Unbilled | O112: 0 | P112: -33496376 | Q112: -2355055
A113: Total for 047 AREA LIGHTING COMMERCIAL-INDUSTRIAL | E113: EWA047 | F113: 0 | G113: 482295 | H113: 102064.3 | I113: 0 | J113: 5788014 | K113: 1213740.42 | O113: =O111+O112 -> 234174.4167 | P113: =P111+P112 -> 5467175696 | Q113: =Q111+Q112 -> 434408054.7
A114: Total for 048 AREA LIGHTING FARM AND RESIDENTIAL | E114: EWA048 | F114: 0 | G114: 281432 | H114: 65690.44 | I114: 0 | J114: 3379917 | K114: 783471.73
A115: Total for 058 TAX ADJUSTMENT | E115: EWA058 | F115: 0 | G115: 0 | H115: 1460550.13 | I115: 0 | J115: 0 | K115: 14894867.92 | M115: Billed Summary by Revenue Class, All Jurisdictions
A116: Total for 058A TAX ADJUSTMENT - INDIAN RESERVATION | E116: EWA058A | F116: 0 | G116: 0 | H116: -9797.79 | I116: 0 | J116: 0 | K116: -88659.81
A117: Total for 063 RENEWABLE GENERATION NET METERING | E117: EWA063 | F117: 0 | G117: 0 | H117: 0 | I117: 0 | J117: 0 | K117: 0 | M117: Res | N117: 01 | O117: =315283-8 -> 315275 | P117: =3651269575-133100 -> 3651136475 | Q117: =298043691-6346 -> 298037345 | S117: =O97+'[5]Rev Runs CY'!$O$100-O117 -> -0.666666667 | T117: =P97+'[5]Rev Runs CY'!$P$100-P117 -> 0 | U117: =Q97+'[5]Rev Runs CY'!$Q$100-Q117 -> 0.5400000215
A118: Total for 090 FUEL EFFICIENCY | E118: EWA090 | F118: 0 | G118: 0 | H118: 4 | I118: 0 | J118: 0 | K118: 48 | M118: Theft | N118: 18 | O118: 0 | P118: 0 | Q118: 19884 | S118: =O98+'[5]Rev Runs CY'!$O$101-O118 -> 0 | T118: =P98+'[5]Rev Runs CY'!$P$101-P118 -> 0 | U118: =Q98+'[5]Rev Runs CY'!$Q$101-Q118 -> -0.47
A119: Total for 095 WIND POWER | E119: EWA095 | F119: 0 | G119: 0 | H119: 16061.22 | I119: 0 | J119: 0 | K119: 178747.04 | M119: Comm | N119: 21 | O119: =39489-1 -> 39488 | P119: =3113429923-21220 -> 3113408703 | Q119: =266393126-1391 -> 266391735 | S119: =O99+'[5]Rev Runs CY'!$O$102-O119 -> 0.08333333334 | T119: =P99+'[5]Rev Runs CY'!$P$102-P119 -> 0 | U119: =Q99+'[5]Rev Runs CY'!$Q$102-Q119 -> -0.5099999905
A120: Total for 099 REPORTING SCHED NUMBER FOR MISC ELEC REV | E120: EWA099 | F120: 0 | G120: 0 | H120: 55329.3 | I120: 0 | J120: 0 | K120: 697552.22 | M120: Ind | N120: 31 | O120: 746 | P120: 2045858854 | Q120: 111099747 | S120: =O100+'[5]Rev Runs CY'!$O$103-O120 -> 0 | T120: =P100+'[5]Rev Runs CY'!$P$103-P120 -> 0 | U120: =Q100+'[5]Rev Runs CY'!$Q$103-Q120 -> -0.4100000113
E121: Total | F121: =SUM(F97:F120) -> 235820 | G121: =SUM(G97:G120) -> 534887274 | H121: 43191037.7 | I121: 234174.4167 | J121: 5500672072 | K121: 437478090.1 | M121: Pump | N121: 39 | O121: 630 | P121: 47728708 | Q121: 3334213 | S121: =O101+'[5]Rev Runs CY'!$O$104-O121 -> -0.25 | T121: =P101+'[5]Rev Runs CY'!$P$104-P121 -> 0 | U121: =Q101+'[5]Rev Runs CY'!$Q$104-Q121 -> -0.2699999996
E122: EWASum | F122: =SUMIF($Q$5:$Q$99,$E122,F$5:F$99) -> 235820 | G122: =SUMIF($Q$5:$Q$99,$E122,G$5:G$99) -> 534887274 | H122: =SUMIF($Q$5:$Q$93,$E122,H$5:H$93) -> 43191037.7 | I122: =SUMIF($N$5:$N$93,"WA",$I$5:$I$93) -> 234174.4167 | J122: =SUMIF($Q$5:$Q$99,$E122,J$5:J$99) -> 5500672072 | K122: =SUMIF($Q$5:$Q$89,$E122,K$5:K$89) -> 437478090.1 | M122: Lighting | N122: 51 | O122: 449 | P122: 26056726 | Q122: 6594570 | S122: =O102+'[5]Rev Runs CY'!$O$105-O122 -> -0.08333333333 | T122: =P102+'[5]Rev Runs CY'!$P$105-P122 -> 0 | U122: =Q102+'[5]Rev Runs CY'!$Q$105-Q122 -> 0.1400000006
E123: Diff | F123: =F121-F122 -> 0 | G123: 0 | H123: 0 | I123: 0 | J123: 0 | K123: 0 | M123: EnExch | N123: 61 | O123: 0 | P123: 0 | Q123: 48 | S123: =O103+'[5]Rev Runs CY'!$O$106-O123 -> 0 | T123: =P103+'[5]Rev Runs CY'!$P$106-P123 -> 0 | U123: =Q103+'[5]Rev Runs CY'!$Q$106-Q123 -> 0
M124: Intdpt | N124: 80 | O124: =85-11 -> 74 | P124: =12457452-326729 -> 12130723 | Q124: =999779-21899 -> 977880 | S124: =O104+'[5]Rev Runs CY'!$O$107-O124 -> 0.25 | T124: =P104+'[5]Rev Runs CY'!$P$107-P124 -> 0 | U124: =Q104+'[5]Rev Runs CY'!$Q$107-Q124 -> 0.06000000006
M125: Svc. | N125: 83 | O125: 0 | P125: 0 | Q125: 547338 | S125: =O105+'[5]Rev Runs CY'!$O$108-O125 -> 0 | T125: =P105+'[5]Rev Runs CY'!$P$108-P125 -> 0 | U125: =Q105+'[5]Rev Runs CY'!$Q$108-Q125 -> 0
M126: Rent | N126: 85 | O126: 0 | P126: 0 | Q126: 496585 | S126: =O106+'[5]Rev Runs CY'!$O$109-O126 -> 0 | T126: =P106+'[5]Rev Runs CY'!$P$109-P126 -> 0 | U126: =Q106+'[5]Rev Runs CY'!$Q$109-Q126 -> -0.47
M127: MiscOth | N127: 86 | O127: 0 | P127: 0 | Q127: 1862 | S127: =O107+'[5]Rev Runs CY'!$O$110-O127 -> 0 | T127: =P107+'[5]Rev Runs CY'!$P$110-P127 -> 0 | U127: =Q107+'[5]Rev Runs CY'!$Q$110-Q127 -> -0.24
M128: WA & ID | O128: =SUM(O117:O127) -> 356662 | P128: =SUM(P117:P127) -> 8896320189 | Q128: =SUM(Q117:Q127) -> 687501207
M129: MT | O129: 20 | P129: 481049 | Q129: 29635 | S129: =SUM(S117:S128) -> -0.666666667 | T129: =SUM(T117:T128) -> 0 | U129: -1.629999979
M130: Total Rev Runs | O130: =O128+O129 -> 356682 | P130: =P128+P129 -> 8896801238 | Q130: =Q128+Q129 -> 687530842
M132: Retail | O132: =SUM(O117,O119:O122,O124,O129) -> 356682 | P132: =SUM(P117,P119:P122,P124,P129) -> 8896801238 | Q132: =SUM(Q117,Q119:Q122,Q124,Q129) -> 686465125
M133: Unbilled | O133: 0 | P133: -40411185 | Q133: =-2355055+230164 -> -2124891 | S133: =O112+'[5]Rev Runs CY'!$O$115-O133 ->  | T133: =P112+'[5]Rev Runs CY'!$P$115-P133 -> 0 | U133: =Q112+'[5]Rev Runs CY'!$Q$115-Q133 -> 0
O134: =O132+O133 -> 356682 | P134: =P132+P133 -> 8856390053 | Q134: =Q132+Q133 -> 684340234
M135: Elec Op Rpt, F&O | O135: 356681 | P135: 8856390053 | Q135: 684340234
O136: =O134-O135 -> 1 | P136: =P134-P135 -> 0 | Q136: =Q134-Q135 -> 0
